Workbook

Sheet AÇIKLAMA

Sheet BİLGİ GİRİŞİ
D5: DOĞRUDAN TEMİN PROGRAMI
D7: Üst İdare Adı | O7: BULANIK KAYMAKAMLIĞI
D8: İdare Adı | O8: Atatürk İlkokulu Müdürlüğü | AN8: ne
D9: Mal/Hizmet/Yapım Adı, Niteliği | O9: Bilişim Malzemeleri Alımı
D10: Alım/Temin Usulü | O10: 22/d
D11: DTN (Doğrudan Temin Numarası) | O11: 22DT1211930
AB12: Bütçe Tertibi | AJ12: 6.98.255.9436.13.67.01.03.05.30.02
D13: NO | E13: BELGE ADI/ BELGE AÇ | O13: TARİHİ | S13: ÖNİZLEME | W13: YAZDIRMA | AB13: Kullanılabilir Ödenek Tutarı | AJ13: 45000
D14: 1 | E14: Alım/Görevlendirme Oluru
E15: Alım/Görevlendirme Oluru Tarihi-Sayısı >> | O15: 2023-03-06 | S15: 456789123 | AB15: PİYASA ARAŞTIRMA GÖREVLİLERİ
D16: 2 | E16: Yaklaşık Maliyet Araştırma Yazısı | O16: 2023-03-06 | AB16: Piyasa Araştırma Görevlisi | AH16: Piyasa Araştırma Görevlisi | AN16: Piyasa Araştırma Görevlisi | AT16: OLUR/UYGUNDUR
D17: 3 | E17: Yaklaşık Maliyet Hesap Cetveli | O17: 2023-03-07 | AB17: Ahmet DEMİR | AH17: Ayşe YILDIZ | AT17: Mustafa AYDIN
D18: 4 | E18: Doğrudan Temin Onay Belgesi | O18: 2023-03-06 | AB18: Müdür Yardımcısı 1 | AH18: Öğretmen 1 | AT18: Okul Müdürü
D19: 5 | E19: Teklif Vermeye Davet Yazısı | O19: 2023-03-06
E20: Teklif Geçerlilik Tarihi >> | O20: 2023-03-08 | AB20: MUAYENE VE KABUL GÖREVLİLERİ
D21: 6 | E21: İdari veTeknik Şartlar | AB21: Muayene ve Kabul Görevlisi | AH21: Muayene ve Kabul Görevlisi | AN21: Muayene ve Kabul Görevlisi | AT21: OLUR/UYGUNDUR
D22: 7 | E22: Piyasa Araştırma Tutanağı | O22: 2023-03-08 | AB22: Mehmet ÇELİK | AH22: Fatma GÜNEŞ | AT22: Mustafa AYDIN
D23: 8 | E23: Muayene ve Kabul Tutanağı | O23: 2023-03-08 | AB23: Müdür Yardımcısı 2 | AH23: Öğretmen 2 | AT23: Okul Müdürü
AB25: YAKLAŞIK MALİYET ARAŞTIRMASI
D27: MAL'IN/HİZMET'İN/YAPIM İŞİ'NİN | AB27: ARAŞTIRMA YAPILAN KİŞİLER/FİRMALAR VE VERDİKLERİ FİYATLAR (KDV HARİÇ)
D28: S | E28: =IF((COUNTIF(BA30:BA129,"*x*"))>=1,"Bu alanda (x ile işaretlenen satırda) hücrelerin birinde veya birkaçında fazla veri var! Siliniz!","ADI") -> ADI | T28: MİKTARI | W28: BİRİMİ | Z28: KDV (%) | AB28: A GERÇEK/TÜZEL KİŞİSİ | AJ28: B GERÇEK/TÜZEL KİŞİSİ | AR28: C GERÇEK/TÜZEL KİŞİSİ | BN28: 1 | BO28: 1
AB29: Birim Fiyatı | AF29: Toplam Fiyatı | AJ29: Birim Fiyatı | AN29: Toplam Fiyatı | AR29: Birim Fiyatı | AV29: Toplam Fiyatı
D30: =IF(E30="","",1) -> 1 | E30: AIO (All In One) Masaüstü Bilgisayar | T30: 2 | W30: Adet | Z30: 20 | AB30: 2000 | AF30: =IF(AB30="","",T30*AB30) -> 4000 | AJ30: 3000 | AN30: =IF(AJ30="","",T30*AJ30) -> 6000 | AR30: 4000 | AV30: =IF(AR30="","",T30*AR30) -> 8000 | BA30: =IF(E30="",IF(OR(T30<>"",W30<>"",Z30<>"",AB30<>"",AJ30<>"",AR30<>""),"x",""),"✓") -> ✓
D31: =IF(E31="","",2) -> 2 | E31: Fotokopi Makinesi | T31: 2 | W31: Adet | Z31: 10 | AB31: 3000 | AF31: =IF(AB31="","",T31*AB31) -> 6000 | AJ31: 4000 | AN31: =IF(AJ31="","",T31*AJ31) -> 8000 | AR31: 5000 | AV31: =IF(AR31="","",T31*AR31) -> 10000 | BA31: =IF(E31="",IF(OR(T31<>"",W31<>"",Z31<>"",AB31<>"",AJ31<>"",AR31<>""),"x",""),"✓") -> ✓
D32: =IF(E32="","",3) -> 3 | E32: Projektör | T32: 2 | W32: Adet | Z32: 1 | AB32: 4000 | AF32: 8000 | AJ32: 5000 | AN32: 10000 | AR32: 6000 | AV32: 12000 | BA32: ✓
D33: =IF(E33="","",4) -> 
D34: =IF(E34="","",5) -> 
D35: =IF(E35="","",6) -> 
D36: =IF(E36="","",7) -> 
D37: =IF(E37="","",8) -> 
D38: =IF(E38="","",9) -> 
D39: =IF(E39="","",10) -> 
D40: =IF(E40="","",11) -> 
D41: =IF(E41="","",12) -> 
D42: =IF(E42="","",13) -> 
D43: =IF(E43="","",14) -> 
D44: =IF(E44="","",15) -> 
D45: =IF(E45="","",16) -> 
D46: =IF(E46="","",17) -> 
D47: =IF(E47="","",18) -> 
D48: =IF(E48="","",19) -> 
D49: =IF(E49="","",20) -> 
D50: =IF(E50="","",21) -> 
D51: =IF(E51="","",22) -> 
D52: =IF(E52="","",23) -> 
D53: =IF(E53="","",24) -> 
D54: =IF(E54="","",25) -> 
D55: =IF(E55="","",26) -> 
D56: =IF(E56="","",27) -> 
D57: =IF(E57="","",28) -> 
D58: =IF(E58="","",29) -> 
D59: =IF(E59="","",30) -> 
D60: =IF(E60="","",31) -> 
D61: =IF(E61="","",32) -> 
D62: =IF(E62="","",33) -> 
D63: =IF(E63="","",34) -> 
D64: =IF(E64="","",35) -> 
D65: =IF(E65="","",36) -> 
D66: =IF(E66="","",37) -> 
D67: =IF(E67="","",38) -> 
D68: =IF(E68="","",39) -> 
D69: =IF(E69="","",40) -> 
D70: =IF(E70="","",41) -> 
D71: =IF(E71="","",42) -> 
D72: =IF(E72="","",43) -> 
D73: =IF(E73="","",44) -> 
D74: =IF(E74="","",45) -> 
D75: =IF(E75="","",46) -> 
D76: =IF(E76="","",47) -> 
D77: =IF(E77="","",48) -> 
D78: =IF(E78="","",49) -> 
D79: =IF(E79="","",50) -> 
D80: =IF(E80="","",51) -> 
D81: =IF(E81="","",52) -> 
D82: =IF(E82="","",53) -> 
D83: =IF(E83="","",54) -> 
D84: =IF(E84="","",55) -> 
D85: =IF(E85="","",56) -> 
D86: =IF(E86="","",57) -> 
D87: =IF(E87="","",58) -> 
D88: =IF(E88="","",59) -> 
D89: =IF(E89="","",60) -> 
D90: =IF(E90="","",61) -> 
D91: =IF(E91="","",62) -> 
D92: =IF(E92="","",63) -> 
D93: =IF(E93="","",64) -> 
D94: =IF(E94="","",65) -> 
D95: =IF(E95="","",66) ->  | AF95: =IF(AB95="","",T95*AB95) ->  | AN95: =IF(AJ95="","",T95*AJ95) ->  | AV95: =IF(AR95="","",T95*AR95) ->  | BA95: =IF(E95="",IF(OR(T95<>"",W95<>"",Z95<>"",AB95<>"",AJ95<>"",AR95<>""),"x",""),"✓") -> 
D96: =IF(E96="","",67) -> 
D97: =IF(E97="","",68) -> 
D98: =IF(E98="","",69) -> 
D99: =IF(E99="","",70) -> 
D100: =IF(E100="","",71) -> 
D101: =IF(E101="","",72) -> 
D102: =IF(E102="","",73) -> 
D103: =IF(E103="","",74) -> 
D104: =IF(E104="","",75) -> 
D105: =IF(E105="","",76) -> 
D106: =IF(E106="","",77) -> 
D107: =IF(E107="","",78) -> 
D108: =IF(E108="","",79) -> 
D109: =IF(E109="","",80) ->  | AF109: =IF(AB109="","",T109*AB109) ->  | AN109: =IF(AJ109="","",T109*AJ109) ->  | AV109: =IF(AR109="","",T109*AR109) -> 
D110: =IF(E110="","",81) -> 
D111: =IF(E111="","",82) -> 
D112: =IF(E112="","",83) -> 
D113: =IF(E113="","",84) -> 
D114: =IF(E114="","",85) -> 
D115: =IF(E115="","",86) -> 
D116: =IF(E116="","",87) -> 
D117: =IF(E117="","",88) -> 
D118: =IF(E118="","",89) -> 
D119: =IF(E119="","",90) -> 
D120: =IF(E120="","",91) -> 
D121: =IF(E121="","",92) -> 
D122: =IF(E122="","",93) -> 
D123: =IF(E123="","",94) -> 
D124: =IF(E124="","",95) -> 
D125: =IF(E125="","",96) -> 
D126: =IF(E126="","",97) -> 
D127: =IF(E127="","",98) -> 
D128: =IF(E128="","",99) ->  | AF128: =IF(AB128="","",T128*AB128) -> 
D129: =IF(E129="","",100) -> 
D130: TOPLAM (KDV Hariç) | AB130: =SUM(AB30:AB129) -> 9000 | AF130: =SUM(AF30:AF129) -> 18000 | AJ130: =SUM(AJ30:AJ129) -> 12000 | AN130: =SUM(AN30:AN129) -> 24000 | AR130: =SUM(AR30:AR129) -> 15000 | AV130: =SUM(AV30:AV129) -> 30000
AB132: PİYASA FİYAT ARAŞTIRMASI
D134: MAL'IN/HİZMET'İN/YAPIM İŞİ'NİN | AB134: TEKLİF VEREN KİŞİLER/FİRMALAR VE TEKLİF FİYATLARI (KDV HARİÇ)
D135: S | E135: =IF((COUNTIF(BA137:BA236,"*x*"))>=1,"Bu alanda (x ile işaretlenen satırda) hücrelerin birinde veya birkaçında fazla veri var! Siliniz!","ADI") -> ADI | T135: BİRİMİ | W135: MİKTARI | Z135: KDV (%) | AB135: A GERÇEK/TÜZEL KİŞİSİ | AJ135: B GERÇEK/TÜZEL KİŞİSİ | AR135: D GERÇEK/TÜZEL KİŞİSİ | BC135: =AB135 -> A GERÇEK/TÜZEL KİŞİSİ | BF135: =AJ135 -> B GERÇEK/TÜZEL KİŞİSİ | BI135: =AR135 -> D GERÇEK/TÜZEL KİŞİSİ
AB136: Birim Fiyatı | AF136: Toplam Fiyatı | AJ136: Birim Fiyatı | AN136: Toplam Fiyatı | AR136: Birim Fiyatı | AV136: Toplam Fiyatı | BC136: 20 | BD136: 10 | BE136: 1 | BF136: 20 | BG136: 10 | BH136: 1 | BI136: 20 | BJ136: 10 | BK136: 1
D137: =IF(D30="","",D30) -> 1 | E137: =IF(E30="","",E30) -> AIO (All In One) Masaüstü Bilgisayar | T137: =IF(T30="","",T30) -> 2 | W137: =IF(W30="","",W30) -> Adet | Z137: =IF(Z30="","",Z30) -> 20 | AB137: 3000 | AF137: =IF(AB137="","",T137*AB137) -> 6000 | AJ137: 4000 | AN137: =IF(AJ137="","",T137*AJ137) -> 8000 | AR137: 5000 | AV137: =IF(AR137="","",T137*AR137) -> 10000 | BA137: =IF(E137="",IF(OR(AB137<>"",AJ137<>"",AR137<>""),"x",""),"✓") -> ✓ | BC137: =IF(Z137=20,(AF137*20/100),"") -> 1200 | BD137: =IF(Z137=10,(AF137*10/100),"") ->  | BE137: =IF(Z137=1,(AF137*1/100),"") ->  | BF137: =IF(Z137=20,(AN137*20/100),"") -> 1600 | BG137: =IF(Z137=10,(AN137*10/100),"") ->  | BH137: =IF(Z137=1,(AN137*1/100),"") ->  | BI137: =IF(Z137=20,(AV137*20/100),"") -> 2000 | BJ137: =IF(Z137=10,(AV137*10/100),"") ->  | BK137: =IF(Z137=1,(AV137*1/100),"") -> 
D138: =IF(D31="","",D31) -> 2 | E138: =IF(E31="","",E31) -> Fotokopi Makinesi | T138: =IF(T31="","",T31) -> 2 | W138: =IF(W31="","",W31) -> Adet | Z138: =IF(Z31="","",Z31) -> 10 | AB138: 4000 | AF138: =IF(AB138="","",T138*AB138) -> 8000 | AJ138: 5000 | AN138: =IF(AJ138="","",T138*AJ138) -> 10000 | AR138: 6000 | AV138: =IF(AR138="","",T138*AR138) -> 12000 | BA138: =IF(E138="",IF(OR(AB138<>"",AJ138<>"",AR138<>""),"x",""),"✓") -> ✓ | BC138: =IF(Z138=20,(AF138*20/100),"") ->  | BD138: =IF(Z138=10,(AF138*10/100),"") -> 800 | BE138: =IF(Z138=1,(AF138*1/100),"") ->  | BF138: =IF(Z138=20,(AN138*20/100),"") ->  | BG138: =IF(Z138=10,(AN138*10/100),"") -> 1000 | BH138: =IF(Z138=1,(AN138*1/100),"") ->  | BI138: =IF(Z138=20,(AV138*20/100),"") ->  | BJ138: =IF(Z138=10,(AV138*10/100),"") -> 1200 | BK138: =IF(Z138=1,(AV138*1/100),"") -> 
D139: =IF(D32="","",D32) -> 3 | E139: =IF(E32="","",E32) -> Projektör | T139: =IF(T32="","",T32) -> 2 | W139: =IF(W32="","",W32) -> Adet | Z139: =IF(Z32="","",Z32) -> 1 | AB139: 5000 | AF139: 10000 | AJ139: 6000 | AN139: 12000 | AR139: 7000 | AV139: 14000 | BA139: ✓ | BE139: 100 | BH139: 120 | BK139: 140
D140: =IF(D33="","",D33) ->  | E140: =IF(E33="","",E33) ->  | T140: =IF(T33="","",T33) ->  | W140: =IF(W33="","",W33) ->  | Z140: =IF(Z33="","",Z33) -> 
D141: =IF(D34="","",D34) ->  | E141: =IF(E34="","",E34) ->  | T141: =IF(T34="","",T34) ->  | W141: =IF(W34="","",W34) ->  | Z141: =IF(Z34="","",Z34) -> 
D142: =IF(D35="","",D35) ->  | E142: =IF(E35="","",E35) ->  | T142: =IF(T35="","",T35) ->  | W142: =IF(W35="","",W35) ->  | Z142: =IF(Z35="","",Z35) -> 
D143: =IF(D36="","",D36) ->  | E143: =IF(E36="","",E36) ->  | T143: =IF(T36="","",T36) ->  | W143: =IF(W36="","",W36) ->  | Z143: =IF(Z36="","",Z36) -> 
D144: =IF(D37="","",D37) ->  | E144: =IF(E37="","",E37) ->  | T144: =IF(T37="","",T37) ->  | W144: =IF(W37="","",W37) ->  | Z144: =IF(Z37="","",Z37) -> 
D145: =IF(D38="","",D38) ->  | E145: =IF(E38="","",E38) ->  | T145: =IF(T38="","",T38) ->  | W145: =IF(W38="","",W38) ->  | Z145: =IF(Z38="","",Z38) -> 
D146: =IF(D39="","",D39) ->  | E146: =IF(E39="","",E39) ->  | T146: =IF(T39="","",T39) ->  | W146: =IF(W39="","",W39) ->  | Z146: =IF(Z39="","",Z39) -> 
D147: =IF(D40="","",D40) ->  | E147: =IF(E40="","",E40) ->  | T147: =IF(T40="","",T40) ->  | W147: =IF(W40="","",W40) ->  | Z147: =IF(Z40="","",Z40) -> 
D148: =IF(D41="","",D41) ->  | E148: =IF(E41="","",E41) ->  | T148: =IF(T41="","",T41) ->  | W148: =IF(W41="","",W41) ->  | Z148: =IF(Z41="","",Z41) -> 
D149: =IF(D42="","",D42) ->  | E149: =IF(E42="","",E42) ->  | T149: =IF(T42="","",T42) ->  | W149: =IF(W42="","",W42) ->  | Z149: =IF(Z42="","",Z42) -> 
D150: =IF(D43="","",D43) ->  | E150: =IF(E43="","",E43) ->  | T150: =IF(T43="","",T43) ->  | W150: =IF(W43="","",W43) ->  | Z150: =IF(Z43="","",Z43) -> 
D151: =IF(D44="","",D44) ->  | E151: =IF(E44="","",E44) ->  | T151: =IF(T44="","",T44) ->  | W151: =IF(W44="","",W44) ->  | Z151: =IF(Z44="","",Z44) -> 
D152: =IF(D45="","",D45) ->  | E152: =IF(E45="","",E45) ->  | T152: =IF(T45="","",T45) ->  | W152: =IF(W45="","",W45) ->  | Z152: =IF(Z45="","",Z45) -> 
D153: =IF(D46="","",D46) ->  | E153: =IF(E46="","",E46) ->  | T153: =IF(T46="","",T46) ->  | W153: =IF(W46="","",W46) ->  | Z153: =IF(Z46="","",Z46) -> 
D154: =IF(D47="","",D47) ->  | E154: =IF(E47="","",E47) ->  | T154: =IF(T47="","",T47) ->  | W154: =IF(W47="","",W47) ->  | Z154: =IF(Z47="","",Z47) -> 
D155: =IF(D48="","",D48) ->  | E155: =IF(E48="","",E48) ->  | T155: =IF(T48="","",T48) ->  | W155: =IF(W48="","",W48) ->  | Z155: =IF(Z48="","",Z48) -> 
D156: =IF(D49="","",D49) ->  | E156: =IF(E49="","",E49) ->  | T156: =IF(T49="","",T49) ->  | W156: =IF(W49="","",W49) ->  | Z156: =IF(Z49="","",Z49) -> 
D157: =IF(D50="","",D50) ->  | E157: =IF(E50="","",E50) ->  | T157: =IF(T50="","",T50) ->  | W157: =IF(W50="","",W50) ->  | Z157: =IF(Z50="","",Z50) -> 
D158: =IF(D51="","",D51) ->  | E158: =IF(E51="","",E51) ->  | T158: =IF(T51="","",T51) ->  | W158: =IF(W51="","",W51) ->  | Z158: =IF(Z51="","",Z51) -> 
D159: =IF(D52="","",D52) ->  | E159: =IF(E52="","",E52) ->  | T159: =IF(T52="","",T52) ->  | W159: =IF(W52="","",W52) ->  | Z159: =IF(Z52="","",Z52) -> 
D160: =IF(D53="","",D53) ->  | E160: =IF(E53="","",E53) ->  | T160: =IF(T53="","",T53) ->  | W160: =IF(W53="","",W53) ->  | Z160: =IF(Z53="","",Z53) -> 
D161: =IF(D54="","",D54) ->  | E161: =IF(E54="","",E54) ->  | T161: =IF(T54="","",T54) ->  | W161: =IF(W54="","",W54) ->  | Z161: =IF(Z54="","",Z54) -> 
D162: =IF(D55="","",D55) ->  | E162: =IF(E55="","",E55) ->  | T162: =IF(T55="","",T55) ->  | W162: =IF(W55="","",W55) ->  | Z162: =IF(Z55="","",Z55) -> 
D163: =IF(D56="","",D56) ->  | E163: =IF(E56="","",E56) ->  | T163: =IF(T56="","",T56) ->  | W163: =IF(W56="","",W56) ->  | Z163: =IF(Z56="","",Z56) -> 
D164: =IF(D57="","",D57) ->  | E164: =IF(E57="","",E57) ->  | T164: =IF(T57="","",T57) ->  | W164: =IF(W57="","",W57) ->  | Z164: =IF(Z57="","",Z57) -> 
D165: =IF(D58="","",D58) ->  | E165: =IF(E58="","",E58) ->  | T165: =IF(T58="","",T58) ->  | W165: =IF(W58="","",W58) ->  | Z165: =IF(Z58="","",Z58) -> 
D166: =IF(D59="","",D59) ->  | E166: =IF(E59="","",E59) ->  | T166: =IF(T59="","",T59) ->  | W166: =IF(W59="","",W59) ->  | Z166: =IF(Z59="","",Z59) -> 
D167: =IF(D60="","",D60) ->  | E167: =IF(E60="","",E60) ->  | T167: =IF(T60="","",T60) ->  | W167: =IF(W60="","",W60) ->  | Z167: =IF(Z60="","",Z60) -> 
D168: =IF(D61="","",D61) ->  | E168: =IF(E61="","",E61) ->  | T168: =IF(T61="","",T61) ->  | W168: =IF(W61="","",W61) ->  | Z168: =IF(Z61="","",Z61) -> 
D169: =IF(D62="","",D62) ->  | E169: =IF(E62="","",E62) ->  | T169: =IF(T62="","",T62) ->  | W169: =IF(W62="","",W62) ->  | Z169: =IF(Z62="","",Z62) -> 
D170: =IF(D63="","",D63) ->  | E170: =IF(E63="","",E63) ->  | T170: =IF(T63="","",T63) ->  | W170: =IF(W63="","",W63) ->  | Z170: =IF(Z63="","",Z63) -> 
D171: =IF(D64="","",D64) ->  | E171: =IF(E64="","",E64) ->  | T171: =IF(T64="","",T64) ->  | W171: =IF(W64="","",W64) ->  | Z171: =IF(Z64="","",Z64) -> 
D172: =IF(D65="","",D65) ->  | E172: =IF(E65="","",E65) ->  | T172: =IF(T65="","",T65) ->  | W172: =IF(W65="","",W65) ->  | Z172: =IF(Z65="","",Z65) -> 
D173: =IF(D66="","",D66) ->  | E173: =IF(E66="","",E66) ->  | T173: =IF(T66="","",T66) ->  | W173: =IF(W66="","",W66) ->  | Z173: =IF(Z66="","",Z66) -> 
D174: =IF(D67="","",D67) ->  | E174: =IF(E67="","",E67) ->  | T174: =IF(T67="","",T67) ->  | W174: =IF(W67="","",W67) ->  | Z174: =IF(Z67="","",Z67) -> 
D175: =IF(D68="","",D68) ->  | E175: =IF(E68="","",E68) ->  | T175: =IF(T68="","",T68) ->  | W175: =IF(W68="","",W68) ->  | Z175: =IF(Z68="","",Z68) -> 
D176: =IF(D69="","",D69) ->  | T176: =IF(T69="","",T69) ->  | W176: =IF(W69="","",W69) ->  | Z176: =IF(Z69="","",Z69) -> 
D177: =IF(D70="","",D70) ->  | T177: =IF(T70="","",T70) ->  | W177: =IF(W70="","",W70) ->  | Z177: =IF(Z70="","",Z70) -> 
D178: =IF(D71="","",D71) ->  | T178: =IF(T71="","",T71) ->  | W178: =IF(W71="","",W71) ->  | Z178: =IF(Z71="","",Z71) -> 
D179: =IF(D72="","",D72) ->  | T179: =IF(T72="","",T72) ->  | W179: =IF(W72="","",W72) ->  | Z179: =IF(Z72="","",Z72) -> 
D180: =IF(D73="","",D73) ->  | T180: =IF(T73="","",T73) ->  | W180: =IF(W73="","",W73) ->  | Z180: =IF(Z73="","",Z73) -> 
D181: =IF(D74="","",D74) ->  | T181: =IF(T74="","",T74) ->  | W181: =IF(W74="","",W74) ->  | Z181: =IF(Z74="","",Z74) -> 
D182: =IF(D75="","",D75) ->  | T182: =IF(T75="","",T75) ->  | W182: =IF(W75="","",W75) ->  | Z182: =IF(Z75="","",Z75) -> 
D183: =IF(D76="","",D76) ->  | T183: =IF(T76="","",T76) ->  | W183: =IF(W76="","",W76) ->  | Z183: =IF(Z76="","",Z76) -> 
D184: =IF(D77="","",D77) ->  | T184: =IF(T77="","",T77) ->  | W184: =IF(W77="","",W77) ->  | Z184: =IF(Z77="","",Z77) -> 
D185: =IF(D78="","",D78) ->  | T185: =IF(T78="","",T78) ->  | W185: =IF(W78="","",W78) ->  | Z185: =IF(Z78="","",Z78) -> 
D186: =IF(D79="","",D79) ->  | T186: =IF(T79="","",T79) ->  | W186: =IF(W79="","",W79) ->  | Z186: =IF(Z79="","",Z79) -> 
D187: =IF(D80="","",D80) ->  | T187: =IF(T80="","",T80) ->  | W187: =IF(W80="","",W80) ->  | Z187: =IF(Z80="","",Z80) -> 
D188: =IF(D81="","",D81) ->  | T188: =IF(T81="","",T81) ->  | W188: =IF(W81="","",W81) ->  | Z188: =IF(Z81="","",Z81) -> 
D189: =IF(D82="","",D82) ->  | T189: =IF(T82="","",T82) ->  | W189: =IF(W82="","",W82) ->  | Z189: =IF(Z82="","",Z82) -> 
D190: =IF(D83="","",D83) ->  | T190: =IF(T83="","",T83) ->  | W190: =IF(W83="","",W83) ->  | Z190: =IF(Z83="","",Z83) -> 
D191: =IF(D84="","",D84) ->  | T191: =IF(T84="","",T84) ->  | W191: =IF(W84="","",W84) ->  | Z191: =IF(Z84="","",Z84) -> 
D192: =IF(D85="","",D85) ->  | T192: =IF(T85="","",T85) ->  | W192: =IF(W85="","",W85) ->  | Z192: =IF(Z85="","",Z85) -> 
D193: =IF(D86="","",D86) ->  | T193: =IF(T86="","",T86) ->  | W193: =IF(W86="","",W86) ->  | Z193: =IF(Z86="","",Z86) -> 
D194: =IF(D87="","",D87) ->  | T194: =IF(T87="","",T87) ->  | W194: =IF(W87="","",W87) ->  | Z194: =IF(Z87="","",Z87) -> 
D195: =IF(D88="","",D88) ->  | E195: =IF(E88="","",E88) ->  | T195: =IF(T88="","",T88) ->  | W195: =IF(W88="","",W88) ->  | Z195: =IF(Z88="","",Z88) -> 
D196: =IF(D89="","",D89) ->  | T196: =IF(T89="","",T89) ->  | W196: =IF(W89="","",W89) ->  | Z196: =IF(Z89="","",Z89) -> 
D197: =IF(D90="","",D90) ->  | T197: =IF(T90="","",T90) ->  | W197: =IF(W90="","",W90) ->  | Z197: =IF(Z90="","",Z90) -> 
D198: =IF(D91="","",D91) ->  | T198: =IF(T91="","",T91) ->  | W198: =IF(W91="","",W91) ->  | Z198: =IF(Z91="","",Z91) -> 
D199: =IF(D92="","",D92) ->  | T199: =IF(T92="","",T92) ->  | W199: =IF(W92="","",W92) ->  | Z199: =IF(Z92="","",Z92) -> 
D200: =IF(D93="","",D93) ->  | T200: =IF(T93="","",T93) ->  | W200: =IF(W93="","",W93) ->  | Z200: =IF(Z93="","",Z93) -> 
D201: =IF(D94="","",D94) ->  | T201: =IF(T94="","",T94) ->  | W201: =IF(W94="","",W94) ->  | Z201: =IF(Z94="","",Z94) -> 
D202: =IF(D95="","",D95) ->  | T202: =IF(T95="","",T95) ->  | W202: =IF(W95="","",W95) ->  | Z202: =IF(Z95="","",Z95) ->  | AF202: =IF(AB202="","",T202*AB202) ->  | AN202: =IF(AJ202="","",T202*AJ202) ->  | AV202: =IF(AR202="","",T202*AR202) ->  | BA202: =IF(E202="",IF(OR(AB202<>"",AJ202<>"",AR202<>""),"x",""),"✓") ->  | BC202: =IF(Z202=20,(AF202*20/100),"") ->  | BD202: =IF(Z202=10,(AF202*10/100),"") ->  | BE202: =IF(Z202=1,(AF202*1/100),"") ->  | BF202: =IF(Z202=20,(AN202*20/100),"") ->  | BG202: =IF(Z202=10,(AN202*10/100),"") ->  | BH202: =IF(Z202=1,(AN202*1/100),"") ->  | BI202: =IF(Z202=20,(AV202*20/100),"") ->  | BJ202: =IF(Z202=10,(AV202*10/100),"") ->  | BK202: =IF(Z202=1,(AV202*1/100),"") -> 
D203: =IF(D96="","",D96) ->  | T203: =IF(T96="","",T96) ->  | W203: =IF(W96="","",W96) ->  | Z203: =IF(Z96="","",Z96) -> 
D204: =IF(D97="","",D97) ->  | T204: =IF(T97="","",T97) ->  | W204: =IF(W97="","",W97) ->  | Z204: =IF(Z97="","",Z97) -> 
D205: =IF(D98="","",D98) ->  | T205: =IF(T98="","",T98) ->  | W205: =IF(W98="","",W98) ->  | Z205: =IF(Z98="","",Z98) -> 
D206: =IF(D99="","",D99) ->  | T206: =IF(T99="","",T99) ->  | W206: =IF(W99="","",W99) ->  | Z206: =IF(Z99="","",Z99) -> 
D207: =IF(D100="","",D100) ->  | T207: =IF(T100="","",T100) ->  | W207: =IF(W100="","",W100) ->  | Z207: =IF(Z100="","",Z100) -> 
D208: =IF(D101="","",D101) ->  | T208: =IF(T101="","",T101) ->  | W208: =IF(W101="","",W101) ->  | Z208: =IF(Z101="","",Z101) -> 
D209: =IF(D102="","",D102) ->  | T209: =IF(T102="","",T102) ->  | W209: =IF(W102="","",W102) ->  | Z209: =IF(Z102="","",Z102) -> 
... 69 more rows

Sheet 1
A2: T.C.
A3: =IF('BİLGİ GİRİŞİ'!O7="","",'BİLGİ GİRİŞİ'!O7) -> BULANIK KAYMAKAMLIĞI
A4: =IF('BİLGİ GİRİŞİ'!O8="","",'BİLGİ GİRİŞİ'!O8) -> Atatürk İlkokulu Müdürlüğü
A6: Sayı | D6: : | E6: =IF('BİLGİ GİRİŞİ'!S15="","",'BİLGİ GİRİŞİ'!S15) -> 456789123 | Y6: =IF('BİLGİ GİRİŞİ'!O15="","…../…../……..",'BİLGİ GİRİŞİ'!O15) -> 2023-03-06
A7: Konu | D7: : | E7: Mal Alımı/Hizmet Alımı/Yapım İşi
A10: =IF('BİLGİ GİRİŞİ'!O8="","",CONCATENATE(UPPER('BİLGİ GİRİŞİ'!O8)," HARCAMA YETKİLİSİ MAKAMINA",)) -> ATATÜRK İLKOKULU MÜDÜRLÜĞÜ HARCAMA YETKİLİSİ MAKAMINA
A12: =CONCATENATE(" ","Kurumumuz ihtiyaçlarında kullanılmak üzere aşağıda bilgileri verilen Mal'ın/Hizmet'in/Yapım İşi'nin Kamu İhale Kanunu'nun ",IF('BİLGİ GİRİŞİ'!O10="",".............................................................................",'BİLGİ GİRİŞİ'!O10)," Maddesine göre Doğrudan Temin yoluyla satın alınması ve aşağıda bilgileri verilen personellerin piyasa araştırma , muayene ve kabul görevlisi olarak görevlendirilmesi hususunu; Olurlarınıza arz ederim/ederiz.") -> Kurumumuz ihtiyaçlarında kullanılmak üzere aşağıda bilgileri verilen Mal'ın/Hizmet'in/Yapım İşi'nin Kamu İhale Kanunu'nun 22/d Maddesine göre Doğrudan Temin yoluyla satın alınması ve aşağıda bilgileri verilen personellerin piyasa araştırma , muayene ve kabul görevlisi olarak görevlendirilmesi hususunu; Olurlarınıza arz ederim/ederiz.
T18: =IF('BİLGİ GİRİŞİ'!AB17="","",'BİLGİ GİRİŞİ'!AB17) -> Ahmet DEMİR
T19: =IF(T18="","",IF('BİLGİ GİRİŞİ'!AB18="","",'BİLGİ GİRİŞİ'!AB18)) -> Müdür Yardımcısı 1
J22: =IF(J23="","",IF('BİLGİ GİRİŞİ'!AT16="","",'BİLGİ GİRİŞİ'!AT16)) -> OLUR/UYGUNDUR
J23: =IF('BİLGİ GİRİŞİ'!AT17="","",'BİLGİ GİRİŞİ'!AT17) -> Mustafa AYDIN
J24: =IF(J23="","",IF('BİLGİ GİRİŞİ'!AT18="","",'BİLGİ GİRİŞİ'!AT18)) -> Okul Müdürü
A30: MAL'IN/HİZMET'İN/YAPIM İŞİ'NİN
A31: S | B31: Kalem/KısımBilgileri | X31: Birimi | AB31: Miktarı
A32: =IF('BİLGİ GİRİŞİ'!D30="","",'BİLGİ GİRİŞİ'!D30) -> 1 | B32: =IF('BİLGİ GİRİŞİ'!E30="","",'BİLGİ GİRİŞİ'!E30) -> AIO (All In One) Masaüstü Bilgisayar | X32: =IF('BİLGİ GİRİŞİ'!W30="","",'BİLGİ GİRİŞİ'!W30) -> Adet | AB32: =IF('BİLGİ GİRİŞİ'!T30="","",'BİLGİ GİRİŞİ'!T30) -> 2
A33: =IF('BİLGİ GİRİŞİ'!D31="","",'BİLGİ GİRİŞİ'!D31) -> 2 | B33: =IF('BİLGİ GİRİŞİ'!E31="","",'BİLGİ GİRİŞİ'!E31) -> Fotokopi Makinesi | X33: =IF('BİLGİ GİRİŞİ'!W31="","",'BİLGİ GİRİŞİ'!W31) -> Adet | AB33: =IF('BİLGİ GİRİŞİ'!T31="","",'BİLGİ GİRİŞİ'!T31) -> 2
A34: =IF('BİLGİ GİRİŞİ'!D32="","",'BİLGİ GİRİŞİ'!D32) -> 3 | B34: =IF('BİLGİ GİRİŞİ'!E32="","",'BİLGİ GİRİŞİ'!E32) -> Projektör | X34: =IF('BİLGİ GİRİŞİ'!W32="","",'BİLGİ GİRİŞİ'!W32) -> Adet | AB34: =IF('BİLGİ GİRİŞİ'!T32="","",'BİLGİ GİRİŞİ'!T32) -> 2
A35: =IF('BİLGİ GİRİŞİ'!D33="","",'BİLGİ GİRİŞİ'!D33) ->  | B35: =IF('BİLGİ GİRİŞİ'!E33="","",'BİLGİ GİRİŞİ'!E33) ->  | X35: =IF('BİLGİ GİRİŞİ'!W33="","",'BİLGİ GİRİŞİ'!W33) ->  | AB35: =IF('BİLGİ GİRİŞİ'!T33="","",'BİLGİ GİRİŞİ'!T33) -> 
A36: =IF('BİLGİ GİRİŞİ'!D34="","",'BİLGİ GİRİŞİ'!D34) ->  | B36: =IF('BİLGİ GİRİŞİ'!E34="","",'BİLGİ GİRİŞİ'!E34) ->  | X36: =IF('BİLGİ GİRİŞİ'!W34="","",'BİLGİ GİRİŞİ'!W34) ->  | AB36: =IF('BİLGİ GİRİŞİ'!T34="","",'BİLGİ GİRİŞİ'!T34) -> 
A37: =IF('BİLGİ GİRİŞİ'!D35="","",'BİLGİ GİRİŞİ'!D35) ->  | B37: =IF('BİLGİ GİRİŞİ'!E35="","",'BİLGİ GİRİŞİ'!E35) ->  | X37: =IF('BİLGİ GİRİŞİ'!W35="","",'BİLGİ GİRİŞİ'!W35) ->  | AB37: =IF('BİLGİ GİRİŞİ'!T35="","",'BİLGİ GİRİŞİ'!T35) -> 
A38: =IF('BİLGİ GİRİŞİ'!D36="","",'BİLGİ GİRİŞİ'!D36) ->  | B38: =IF('BİLGİ GİRİŞİ'!E36="","",'BİLGİ GİRİŞİ'!E36) ->  | X38: =IF('BİLGİ GİRİŞİ'!W36="","",'BİLGİ GİRİŞİ'!W36) ->  | AB38: =IF('BİLGİ GİRİŞİ'!T36="","",'BİLGİ GİRİŞİ'!T36) -> 
A39: =IF('BİLGİ GİRİŞİ'!D37="","",'BİLGİ GİRİŞİ'!D37) ->  | B39: =IF('BİLGİ GİRİŞİ'!E37="","",'BİLGİ GİRİŞİ'!E37) ->  | X39: =IF('BİLGİ GİRİŞİ'!W37="","",'BİLGİ GİRİŞİ'!W37) ->  | AB39: =IF('BİLGİ GİRİŞİ'!T37="","",'BİLGİ GİRİŞİ'!T37) -> 
A40: =IF('BİLGİ GİRİŞİ'!D38="","",'BİLGİ GİRİŞİ'!D38) ->  | B40: =IF('BİLGİ GİRİŞİ'!E38="","",'BİLGİ GİRİŞİ'!E38) ->  | X40: =IF('BİLGİ GİRİŞİ'!W38="","",'BİLGİ GİRİŞİ'!W38) ->  | AB40: =IF('BİLGİ GİRİŞİ'!T38="","",'BİLGİ GİRİŞİ'!T38) -> 
A41: =IF('BİLGİ GİRİŞİ'!D39="","",'BİLGİ GİRİŞİ'!D39) ->  | B41: =IF('BİLGİ GİRİŞİ'!E39="","",'BİLGİ GİRİŞİ'!E39) ->  | X41: =IF('BİLGİ GİRİŞİ'!W39="","",'BİLGİ GİRİŞİ'!W39) ->  | AB41: =IF('BİLGİ GİRİŞİ'!T39="","",'BİLGİ GİRİŞİ'!T39) -> 
A42: =IF('BİLGİ GİRİŞİ'!D40="","",'BİLGİ GİRİŞİ'!D40) ->  | B42: =IF('BİLGİ GİRİŞİ'!E40="","",'BİLGİ GİRİŞİ'!E40) ->  | X42: =IF('BİLGİ GİRİŞİ'!W40="","",'BİLGİ GİRİŞİ'!W40) ->  | AB42: =IF('BİLGİ GİRİŞİ'!T40="","",'BİLGİ GİRİŞİ'!T40) -> 
A43: =IF('BİLGİ GİRİŞİ'!D41="","",'BİLGİ GİRİŞİ'!D41) ->  | B43: =IF('BİLGİ GİRİŞİ'!E41="","",'BİLGİ GİRİŞİ'!E41) ->  | X43: =IF('BİLGİ GİRİŞİ'!W41="","",'BİLGİ GİRİŞİ'!W41) ->  | AB43: =IF('BİLGİ GİRİŞİ'!T41="","",'BİLGİ GİRİŞİ'!T41) -> 
A44: =IF('BİLGİ GİRİŞİ'!D42="","",'BİLGİ GİRİŞİ'!D42) ->  | B44: =IF('BİLGİ GİRİŞİ'!E42="","",'BİLGİ GİRİŞİ'!E42) ->  | X44: =IF('BİLGİ GİRİŞİ'!W42="","",'BİLGİ GİRİŞİ'!W42) ->  | AB44: =IF('BİLGİ GİRİŞİ'!T42="","",'BİLGİ GİRİŞİ'!T42) -> 
A45: =IF('BİLGİ GİRİŞİ'!D43="","",'BİLGİ GİRİŞİ'!D43) ->  | B45: =IF('BİLGİ GİRİŞİ'!E43="","",'BİLGİ GİRİŞİ'!E43) ->  | X45: =IF('BİLGİ GİRİŞİ'!W43="","",'BİLGİ GİRİŞİ'!W43) ->  | AB45: =IF('BİLGİ GİRİŞİ'!T43="","",'BİLGİ GİRİŞİ'!T43) -> 
A46: =IF('BİLGİ GİRİŞİ'!D44="","",'BİLGİ GİRİŞİ'!D44) ->  | B46: =IF('BİLGİ GİRİŞİ'!E44="","",'BİLGİ GİRİŞİ'!E44) ->  | X46: =IF('BİLGİ GİRİŞİ'!W44="","",'BİLGİ GİRİŞİ'!W44) ->  | AB46: =IF('BİLGİ GİRİŞİ'!T44="","",'BİLGİ GİRİŞİ'!T44) -> 
A47: =IF('BİLGİ GİRİŞİ'!D45="","",'BİLGİ GİRİŞİ'!D45) ->  | B47: =IF('BİLGİ GİRİŞİ'!E45="","",'BİLGİ GİRİŞİ'!E45) ->  | X47: =IF('BİLGİ GİRİŞİ'!W45="","",'BİLGİ GİRİŞİ'!W45) ->  | AB47: =IF('BİLGİ GİRİŞİ'!T45="","",'BİLGİ GİRİŞİ'!T45) -> 
A48: =IF('BİLGİ GİRİŞİ'!D46="","",'BİLGİ GİRİŞİ'!D46) ->  | B48: =IF('BİLGİ GİRİŞİ'!E46="","",'BİLGİ GİRİŞİ'!E46) ->  | X48: =IF('BİLGİ GİRİŞİ'!W46="","",'BİLGİ GİRİŞİ'!W46) ->  | AB48: =IF('BİLGİ GİRİŞİ'!T46="","",'BİLGİ GİRİŞİ'!T46) -> 
A49: =IF('BİLGİ GİRİŞİ'!D47="","",'BİLGİ GİRİŞİ'!D47) ->  | B49: =IF('BİLGİ GİRİŞİ'!E47="","",'BİLGİ GİRİŞİ'!E47) ->  | X49: =IF('BİLGİ GİRİŞİ'!W47="","",'BİLGİ GİRİŞİ'!W47) ->  | AB49: =IF('BİLGİ GİRİŞİ'!T47="","",'BİLGİ GİRİŞİ'!T47) -> 
A50: =IF('BİLGİ GİRİŞİ'!D48="","",'BİLGİ GİRİŞİ'!D48) ->  | B50: =IF('BİLGİ GİRİŞİ'!E48="","",'BİLGİ GİRİŞİ'!E48) ->  | X50: =IF('BİLGİ GİRİŞİ'!W48="","",'BİLGİ GİRİŞİ'!W48) ->  | AB50: =IF('BİLGİ GİRİŞİ'!T48="","",'BİLGİ GİRİŞİ'!T48) -> 
A51: =IF('BİLGİ GİRİŞİ'!D49="","",'BİLGİ GİRİŞİ'!D49) ->  | B51: =IF('BİLGİ GİRİŞİ'!E49="","",'BİLGİ GİRİŞİ'!E49) ->  | X51: =IF('BİLGİ GİRİŞİ'!W49="","",'BİLGİ GİRİŞİ'!W49) ->  | AB51: =IF('BİLGİ GİRİŞİ'!T49="","",'BİLGİ GİRİŞİ'!T49) -> 
A52: =IF('BİLGİ GİRİŞİ'!D50="","",'BİLGİ GİRİŞİ'!D50) ->  | B52: =IF('BİLGİ GİRİŞİ'!E50="","",'BİLGİ GİRİŞİ'!E50) ->  | X52: =IF('BİLGİ GİRİŞİ'!W50="","",'BİLGİ GİRİŞİ'!W50) ->  | AB52: =IF('BİLGİ GİRİŞİ'!T50="","",'BİLGİ GİRİŞİ'!T50) -> 
A53: =IF('BİLGİ GİRİŞİ'!D51="","",'BİLGİ GİRİŞİ'!D51) ->  | B53: =IF('BİLGİ GİRİŞİ'!E51="","",'BİLGİ GİRİŞİ'!E51) ->  | X53: =IF('BİLGİ GİRİŞİ'!W51="","",'BİLGİ GİRİŞİ'!W51) ->  | AB53: =IF('BİLGİ GİRİŞİ'!T51="","",'BİLGİ GİRİŞİ'!T51) -> 
A54: =IF('BİLGİ GİRİŞİ'!D52="","",'BİLGİ GİRİŞİ'!D52) ->  | B54: =IF('BİLGİ GİRİŞİ'!E52="","",'BİLGİ GİRİŞİ'!E52) ->  | X54: =IF('BİLGİ GİRİŞİ'!W52="","",'BİLGİ GİRİŞİ'!W52) ->  | AB54: =IF('BİLGİ GİRİŞİ'!T52="","",'BİLGİ GİRİŞİ'!T52) -> 
A55: =IF('BİLGİ GİRİŞİ'!D53="","",'BİLGİ GİRİŞİ'!D53) ->  | B55: =IF('BİLGİ GİRİŞİ'!E53="","",'BİLGİ GİRİŞİ'!E53) ->  | X55: =IF('BİLGİ GİRİŞİ'!W53="","",'BİLGİ GİRİŞİ'!W53) ->  | AB55: =IF('BİLGİ GİRİŞİ'!T53="","",'BİLGİ GİRİŞİ'!T53) -> 
A56: =IF('BİLGİ GİRİŞİ'!D54="","",'BİLGİ GİRİŞİ'!D54) ->  | B56: =IF('BİLGİ GİRİŞİ'!E54="","",'BİLGİ GİRİŞİ'!E54) ->  | X56: =IF('BİLGİ GİRİŞİ'!W54="","",'BİLGİ GİRİŞİ'!W54) ->  | AB56: =IF('BİLGİ GİRİŞİ'!T54="","",'BİLGİ GİRİŞİ'!T54) -> 
A57: =IF('BİLGİ GİRİŞİ'!D55="","",'BİLGİ GİRİŞİ'!D55) ->  | B57: =IF('BİLGİ GİRİŞİ'!E55="","",'BİLGİ GİRİŞİ'!E55) ->  | X57: =IF('BİLGİ GİRİŞİ'!W55="","",'BİLGİ GİRİŞİ'!W55) ->  | AB57: =IF('BİLGİ GİRİŞİ'!T55="","",'BİLGİ GİRİŞİ'!T55) -> 
A58: =IF('BİLGİ GİRİŞİ'!D56="","",'BİLGİ GİRİŞİ'!D56) ->  | B58: =IF('BİLGİ GİRİŞİ'!E56="","",'BİLGİ GİRİŞİ'!E56) ->  | X58: =IF('BİLGİ GİRİŞİ'!W56="","",'BİLGİ GİRİŞİ'!W56) ->  | AB58: =IF('BİLGİ GİRİŞİ'!T56="","",'BİLGİ GİRİŞİ'!T56) -> 
A59: =IF('BİLGİ GİRİŞİ'!D57="","",'BİLGİ GİRİŞİ'!D57) ->  | B59: =IF('BİLGİ GİRİŞİ'!E57="","",'BİLGİ GİRİŞİ'!E57) ->  | X59: =IF('BİLGİ GİRİŞİ'!W57="","",'BİLGİ GİRİŞİ'!W57) ->  | AB59: =IF('BİLGİ GİRİŞİ'!T57="","",'BİLGİ GİRİŞİ'!T57) -> 
A60: =IF('BİLGİ GİRİŞİ'!D58="","",'BİLGİ GİRİŞİ'!D58) ->  | B60: =IF('BİLGİ GİRİŞİ'!E58="","",'BİLGİ GİRİŞİ'!E58) ->  | X60: =IF('BİLGİ GİRİŞİ'!W58="","",'BİLGİ GİRİŞİ'!W58) ->  | AB60: =IF('BİLGİ GİRİŞİ'!T58="","",'BİLGİ GİRİŞİ'!T58) -> 
A61: =IF('BİLGİ GİRİŞİ'!D59="","",'BİLGİ GİRİŞİ'!D59) ->  | B61: =IF('BİLGİ GİRİŞİ'!E59="","",'BİLGİ GİRİŞİ'!E59) ->  | X61: =IF('BİLGİ GİRİŞİ'!W59="","",'BİLGİ GİRİŞİ'!W59) ->  | AB61: =IF('BİLGİ GİRİŞİ'!T59="","",'BİLGİ GİRİŞİ'!T59) -> 
A62: =IF('BİLGİ GİRİŞİ'!D60="","",'BİLGİ GİRİŞİ'!D60) ->  | B62: =IF('BİLGİ GİRİŞİ'!E60="","",'BİLGİ GİRİŞİ'!E60) ->  | X62: =IF('BİLGİ GİRİŞİ'!W60="","",'BİLGİ GİRİŞİ'!W60) ->  | AB62: =IF('BİLGİ GİRİŞİ'!T60="","",'BİLGİ GİRİŞİ'!T60) -> 
A63: =IF('BİLGİ GİRİŞİ'!D61="","",'BİLGİ GİRİŞİ'!D61) ->  | B63: =IF('BİLGİ GİRİŞİ'!E61="","",'BİLGİ GİRİŞİ'!E61) ->  | X63: =IF('BİLGİ GİRİŞİ'!W61="","",'BİLGİ GİRİŞİ'!W61) ->  | AB63: =IF('BİLGİ GİRİŞİ'!T61="","",'BİLGİ GİRİŞİ'!T61) -> 
A64: =IF('BİLGİ GİRİŞİ'!D62="","",'BİLGİ GİRİŞİ'!D62) ->  | B64: =IF('BİLGİ GİRİŞİ'!E62="","",'BİLGİ GİRİŞİ'!E62) ->  | X64: =IF('BİLGİ GİRİŞİ'!W62="","",'BİLGİ GİRİŞİ'!W62) ->  | AB64: =IF('BİLGİ GİRİŞİ'!T62="","",'BİLGİ GİRİŞİ'!T62) -> 
A65: =IF('BİLGİ GİRİŞİ'!D63="","",'BİLGİ GİRİŞİ'!D63) ->  | B65: =IF('BİLGİ GİRİŞİ'!E63="","",'BİLGİ GİRİŞİ'!E63) ->  | X65: =IF('BİLGİ GİRİŞİ'!W63="","",'BİLGİ GİRİŞİ'!W63) ->  | AB65: =IF('BİLGİ GİRİŞİ'!T63="","",'BİLGİ GİRİŞİ'!T63) -> 
A66: =IF('BİLGİ GİRİŞİ'!D64="","",'BİLGİ GİRİŞİ'!D64) ->  | B66: =IF('BİLGİ GİRİŞİ'!E64="","",'BİLGİ GİRİŞİ'!E64) ->  | X66: =IF('BİLGİ GİRİŞİ'!W64="","",'BİLGİ GİRİŞİ'!W64) ->  | AB66: =IF('BİLGİ GİRİŞİ'!T64="","",'BİLGİ GİRİŞİ'!T64) -> 
A67: =IF('BİLGİ GİRİŞİ'!D65="","",'BİLGİ GİRİŞİ'!D65) ->  | B67: =IF('BİLGİ GİRİŞİ'!E65="","",'BİLGİ GİRİŞİ'!E65) ->  | X67: =IF('BİLGİ GİRİŞİ'!W65="","",'BİLGİ GİRİŞİ'!W65) ->  | AB67: =IF('BİLGİ GİRİŞİ'!T65="","",'BİLGİ GİRİŞİ'!T65) -> 
A68: =IF('BİLGİ GİRİŞİ'!D66="","",'BİLGİ GİRİŞİ'!D66) ->  | B68: =IF('BİLGİ GİRİŞİ'!E66="","",'BİLGİ GİRİŞİ'!E66) ->  | X68: =IF('BİLGİ GİRİŞİ'!W66="","",'BİLGİ GİRİŞİ'!W66) ->  | AB68: =IF('BİLGİ GİRİŞİ'!T66="","",'BİLGİ GİRİŞİ'!T66) -> 
A69: =IF('BİLGİ GİRİŞİ'!D67="","",'BİLGİ GİRİŞİ'!D67) ->  | B69: =IF('BİLGİ GİRİŞİ'!E67="","",'BİLGİ GİRİŞİ'!E67) ->  | X69: =IF('BİLGİ GİRİŞİ'!W67="","",'BİLGİ GİRİŞİ'!W67) ->  | AB69: =IF('BİLGİ GİRİŞİ'!T67="","",'BİLGİ GİRİŞİ'!T67) -> 
A70: =IF('BİLGİ GİRİŞİ'!D68="","",'BİLGİ GİRİŞİ'!D68) ->  | B70: =IF('BİLGİ GİRİŞİ'!E68="","",'BİLGİ GİRİŞİ'!E68) ->  | X70: =IF('BİLGİ GİRİŞİ'!W68="","",'BİLGİ GİRİŞİ'!W68) ->  | AB70: =IF('BİLGİ GİRİŞİ'!T68="","",'BİLGİ GİRİŞİ'!T68) -> 
A71: =IF('BİLGİ GİRİŞİ'!D69="","",'BİLGİ GİRİŞİ'!D69) ->  | B71: =IF('BİLGİ GİRİŞİ'!E69="","",'BİLGİ GİRİŞİ'!E69) ->  | X71: =IF('BİLGİ GİRİŞİ'!W69="","",'BİLGİ GİRİŞİ'!W69) ->  | AB71: =IF('BİLGİ GİRİŞİ'!T69="","",'BİLGİ GİRİŞİ'!T69) -> 
A72: =IF('BİLGİ GİRİŞİ'!D70="","",'BİLGİ GİRİŞİ'!D70) ->  | B72: =IF('BİLGİ GİRİŞİ'!E70="","",'BİLGİ GİRİŞİ'!E70) ->  | X72: =IF('BİLGİ GİRİŞİ'!W70="","",'BİLGİ GİRİŞİ'!W70) ->  | AB72: =IF('BİLGİ GİRİŞİ'!T70="","",'BİLGİ GİRİŞİ'!T70) -> 
A73: =IF('BİLGİ GİRİŞİ'!D71="","",'BİLGİ GİRİŞİ'!D71) ->  | B73: =IF('BİLGİ GİRİŞİ'!E71="","",'BİLGİ GİRİŞİ'!E71) ->  | X73: =IF('BİLGİ GİRİŞİ'!W71="","",'BİLGİ GİRİŞİ'!W71) ->  | AB73: =IF('BİLGİ GİRİŞİ'!T71="","",'BİLGİ GİRİŞİ'!T71) -> 
A74: =IF('BİLGİ GİRİŞİ'!D72="","",'BİLGİ GİRİŞİ'!D72) ->  | B74: =IF('BİLGİ GİRİŞİ'!E72="","",'BİLGİ GİRİŞİ'!E72) ->  | X74: =IF('BİLGİ GİRİŞİ'!W72="","",'BİLGİ GİRİŞİ'!W72) ->  | AB74: =IF('BİLGİ GİRİŞİ'!T72="","",'BİLGİ GİRİŞİ'!T72) -> 
A75: =IF('BİLGİ GİRİŞİ'!D73="","",'BİLGİ GİRİŞİ'!D73) ->  | B75: =IF('BİLGİ GİRİŞİ'!E73="","",'BİLGİ GİRİŞİ'!E73) ->  | X75: =IF('BİLGİ GİRİŞİ'!W73="","",'BİLGİ GİRİŞİ'!W73) ->  | AB75: =IF('BİLGİ GİRİŞİ'!T73="","",'BİLGİ GİRİŞİ'!T73) -> 
A76: =IF('BİLGİ GİRİŞİ'!D74="","",'BİLGİ GİRİŞİ'!D74) ->  | B76: =IF('BİLGİ GİRİŞİ'!E74="","",'BİLGİ GİRİŞİ'!E74) ->  | X76: =IF('BİLGİ GİRİŞİ'!W74="","",'BİLGİ GİRİŞİ'!W74) ->  | AB76: =IF('BİLGİ GİRİŞİ'!T74="","",'BİLGİ GİRİŞİ'!T74) -> 
A77: =IF('BİLGİ GİRİŞİ'!D75="","",'BİLGİ GİRİŞİ'!D75) ->  | B77: =IF('BİLGİ GİRİŞİ'!E75="","",'BİLGİ GİRİŞİ'!E75) ->  | X77: =IF('BİLGİ GİRİŞİ'!W75="","",'BİLGİ GİRİŞİ'!W75) ->  | AB77: =IF('BİLGİ GİRİŞİ'!T75="","",'BİLGİ GİRİŞİ'!T75) -> 
A78: =IF('BİLGİ GİRİŞİ'!D76="","",'BİLGİ GİRİŞİ'!D76) ->  | B78: =IF('BİLGİ GİRİŞİ'!E76="","",'BİLGİ GİRİŞİ'!E76) ->  | X78: =IF('BİLGİ GİRİŞİ'!W76="","",'BİLGİ GİRİŞİ'!W76) ->  | AB78: =IF('BİLGİ GİRİŞİ'!T76="","",'BİLGİ GİRİŞİ'!T76) -> 
A79: =IF('BİLGİ GİRİŞİ'!D77="","",'BİLGİ GİRİŞİ'!D77) ->  | B79: =IF('BİLGİ GİRİŞİ'!E77="","",'BİLGİ GİRİŞİ'!E77) ->  | X79: =IF('BİLGİ GİRİŞİ'!W77="","",'BİLGİ GİRİŞİ'!W77) ->  | AB79: =IF('BİLGİ GİRİŞİ'!T77="","",'BİLGİ GİRİŞİ'!T77) -> 
A80: =IF('BİLGİ GİRİŞİ'!D78="","",'BİLGİ GİRİŞİ'!D78) ->  | B80: =IF('BİLGİ GİRİŞİ'!E78="","",'BİLGİ GİRİŞİ'!E78) ->  | X80: =IF('BİLGİ GİRİŞİ'!W78="","",'BİLGİ GİRİŞİ'!W78) ->  | AB80: =IF('BİLGİ GİRİŞİ'!T78="","",'BİLGİ GİRİŞİ'!T78) -> 
A81: =IF('BİLGİ GİRİŞİ'!D79="","",'BİLGİ GİRİŞİ'!D79) ->  | B81: =IF('BİLGİ GİRİŞİ'!E79="","",'BİLGİ GİRİŞİ'!E79) ->  | X81: =IF('BİLGİ GİRİŞİ'!W79="","",'BİLGİ GİRİŞİ'!W79) ->  | AB81: =IF('BİLGİ GİRİŞİ'!T79="","",'BİLGİ GİRİŞİ'!T79) -> 
A82: =IF('BİLGİ GİRİŞİ'!D80="","",'BİLGİ GİRİŞİ'!D80) ->  | B82: =IF('BİLGİ GİRİŞİ'!E80="","",'BİLGİ GİRİŞİ'!E80) ->  | X82: =IF('BİLGİ GİRİŞİ'!W80="","",'BİLGİ GİRİŞİ'!W80) ->  | AB82: =IF('BİLGİ GİRİŞİ'!T80="","",'BİLGİ GİRİŞİ'!T80) -> 
A83: =IF('BİLGİ GİRİŞİ'!D81="","",'BİLGİ GİRİŞİ'!D81) ->  | B83: =IF('BİLGİ GİRİŞİ'!E81="","",'BİLGİ GİRİŞİ'!E81) ->  | X83: =IF('BİLGİ GİRİŞİ'!W81="","",'BİLGİ GİRİŞİ'!W81) ->  | AB83: =IF('BİLGİ GİRİŞİ'!T81="","",'BİLGİ GİRİŞİ'!T81) -> 
A84: =IF('BİLGİ GİRİŞİ'!D82="","",'BİLGİ GİRİŞİ'!D82) ->  | B84: =IF('BİLGİ GİRİŞİ'!E82="","",'BİLGİ GİRİŞİ'!E82) ->  | X84: =IF('BİLGİ GİRİŞİ'!W82="","",'BİLGİ GİRİŞİ'!W82) ->  | AB84: =IF('BİLGİ GİRİŞİ'!T82="","",'BİLGİ GİRİŞİ'!T82) -> 
A85: =IF('BİLGİ GİRİŞİ'!D83="","",'BİLGİ GİRİŞİ'!D83) ->  | B85: =IF('BİLGİ GİRİŞİ'!E83="","",'BİLGİ GİRİŞİ'!E83) ->  | X85: =IF('BİLGİ GİRİŞİ'!W83="","",'BİLGİ GİRİŞİ'!W83) ->  | AB85: =IF('BİLGİ GİRİŞİ'!T83="","",'BİLGİ GİRİŞİ'!T83) -> 
A86: =IF('BİLGİ GİRİŞİ'!D84="","",'BİLGİ GİRİŞİ'!D84) ->  | B86: =IF('BİLGİ GİRİŞİ'!E84="","",'BİLGİ GİRİŞİ'!E84) ->  | X86: =IF('BİLGİ GİRİŞİ'!W84="","",'BİLGİ GİRİŞİ'!W84) ->  | AB86: =IF('BİLGİ GİRİŞİ'!T84="","",'BİLGİ GİRİŞİ'!T84) -> 
A87: =IF('BİLGİ GİRİŞİ'!D85="","",'BİLGİ GİRİŞİ'!D85) ->  | B87: =IF('BİLGİ GİRİŞİ'!E85="","",'BİLGİ GİRİŞİ'!E85) ->  | X87: =IF('BİLGİ GİRİŞİ'!W85="","",'BİLGİ GİRİŞİ'!W85) ->  | AB87: =IF('BİLGİ GİRİŞİ'!T85="","",'BİLGİ GİRİŞİ'!T85) -> 
A88: =IF('BİLGİ GİRİŞİ'!D86="","",'BİLGİ GİRİŞİ'!D86) ->  | B88: =IF('BİLGİ GİRİŞİ'!E86="","",'BİLGİ GİRİŞİ'!E86) ->  | X88: =IF('BİLGİ GİRİŞİ'!W86="","",'BİLGİ GİRİŞİ'!W86) ->  | AB88: =IF('BİLGİ GİRİŞİ'!T86="","",'BİLGİ GİRİŞİ'!T86) -> 
A89: =IF('BİLGİ GİRİŞİ'!D87="","",'BİLGİ GİRİŞİ'!D87) ->  | B89: =IF('BİLGİ GİRİŞİ'!E87="","",'BİLGİ GİRİŞİ'!E87) ->  | X89: =IF('BİLGİ GİRİŞİ'!W87="","",'BİLGİ GİRİŞİ'!W87) ->  | AB89: =IF('BİLGİ GİRİŞİ'!T87="","",'BİLGİ GİRİŞİ'!T87) -> 
A90: =IF('BİLGİ GİRİŞİ'!D88="","",'BİLGİ GİRİŞİ'!D88) ->  | B90: =IF('BİLGİ GİRİŞİ'!E88="","",'BİLGİ GİRİŞİ'!E88) ->  | X90: =IF('BİLGİ GİRİŞİ'!W88="","",'BİLGİ GİRİŞİ'!W88) ->  | AB90: =IF('BİLGİ GİRİŞİ'!T88="","",'BİLGİ GİRİŞİ'!T88) -> 
A91: =IF('BİLGİ GİRİŞİ'!D89="","",'BİLGİ GİRİŞİ'!D89) ->  | B91: =IF('BİLGİ GİRİŞİ'!E89="","",'BİLGİ GİRİŞİ'!E89) ->  | X91: =IF('BİLGİ GİRİŞİ'!W89="","",'BİLGİ GİRİŞİ'!W89) ->  | AB91: =IF('BİLGİ GİRİŞİ'!T89="","",'BİLGİ GİRİŞİ'!T89) -> 
A92: =IF('BİLGİ GİRİŞİ'!D90="","",'BİLGİ GİRİŞİ'!D90) ->  | B92: =IF('BİLGİ GİRİŞİ'!E90="","",'BİLGİ GİRİŞİ'!E90) ->  | X92: =IF('BİLGİ GİRİŞİ'!W90="","",'BİLGİ GİRİŞİ'!W90) ->  | AB92: =IF('BİLGİ GİRİŞİ'!T90="","",'BİLGİ GİRİŞİ'!T90) -> 
A93: =IF('BİLGİ GİRİŞİ'!D91="","",'BİLGİ GİRİŞİ'!D91) ->  | B93: =IF('BİLGİ GİRİŞİ'!E91="","",'BİLGİ GİRİŞİ'!E91) ->  | X93: =IF('BİLGİ GİRİŞİ'!W91="","",'BİLGİ GİRİŞİ'!W91) ->  | AB93: =IF('BİLGİ GİRİŞİ'!T91="","",'BİLGİ GİRİŞİ'!T91) -> 
A94: =IF('BİLGİ GİRİŞİ'!D92="","",'BİLGİ GİRİŞİ'!D92) ->  | B94: =IF('BİLGİ GİRİŞİ'!E92="","",'BİLGİ GİRİŞİ'!E92) ->  | X94: =IF('BİLGİ GİRİŞİ'!W92="","",'BİLGİ GİRİŞİ'!W92) ->  | AB94: =IF('BİLGİ GİRİŞİ'!T92="","",'BİLGİ GİRİŞİ'!T92) -> 
A95: =IF('BİLGİ GİRİŞİ'!D93="","",'BİLGİ GİRİŞİ'!D93) ->  | B95: =IF('BİLGİ GİRİŞİ'!E93="","",'BİLGİ GİRİŞİ'!E93) ->  | X95: =IF('BİLGİ GİRİŞİ'!W93="","",'BİLGİ GİRİŞİ'!W93) ->  | AB95: =IF('BİLGİ GİRİŞİ'!T93="","",'BİLGİ GİRİŞİ'!T93) -> 
A96: =IF('BİLGİ GİRİŞİ'!D94="","",'BİLGİ GİRİŞİ'!D94) ->  | B96: =IF('BİLGİ GİRİŞİ'!E94="","",'BİLGİ GİRİŞİ'!E94) ->  | X96: =IF('BİLGİ GİRİŞİ'!W94="","",'BİLGİ GİRİŞİ'!W94) ->  | AB96: =IF('BİLGİ GİRİŞİ'!T94="","",'BİLGİ GİRİŞİ'!T94) -> 
A97: =IF('BİLGİ GİRİŞİ'!D95="","",'BİLGİ GİRİŞİ'!D95) ->  | B97: =IF('BİLGİ GİRİŞİ'!E95="","",'BİLGİ GİRİŞİ'!E95) ->  | X97: =IF('BİLGİ GİRİŞİ'!W95="","",'BİLGİ GİRİŞİ'!W95) ->  | AB97: =IF('BİLGİ GİRİŞİ'!T95="","",'BİLGİ GİRİŞİ'!T95) -> 
A98: =IF('BİLGİ GİRİŞİ'!D96="","",'BİLGİ GİRİŞİ'!D96) ->  | B98: =IF('BİLGİ GİRİŞİ'!E96="","",'BİLGİ GİRİŞİ'!E96) ->  | X98: =IF('BİLGİ GİRİŞİ'!W96="","",'BİLGİ GİRİŞİ'!W96) ->  | AB98: =IF('BİLGİ GİRİŞİ'!T96="","",'BİLGİ GİRİŞİ'!T96) -> 
A99: =IF('BİLGİ GİRİŞİ'!D97="","",'BİLGİ GİRİŞİ'!D97) ->  | B99: =IF('BİLGİ GİRİŞİ'!E97="","",'BİLGİ GİRİŞİ'!E97) ->  | X99: =IF('BİLGİ GİRİŞİ'!W97="","",'BİLGİ GİRİŞİ'!W97) ->  | AB99: =IF('BİLGİ GİRİŞİ'!T97="","",'BİLGİ GİRİŞİ'!T97) -> 
A100: =IF('BİLGİ GİRİŞİ'!D98="","",'BİLGİ GİRİŞİ'!D98) ->  | B100: =IF('BİLGİ GİRİŞİ'!E98="","",'BİLGİ GİRİŞİ'!E98) ->  | X100: =IF('BİLGİ GİRİŞİ'!W98="","",'BİLGİ GİRİŞİ'!W98) ->  | AB100: =IF('BİLGİ GİRİŞİ'!T98="","",'BİLGİ GİRİŞİ'!T98) -> 
A101: =IF('BİLGİ GİRİŞİ'!D99="","",'BİLGİ GİRİŞİ'!D99) ->  | B101: =IF('BİLGİ GİRİŞİ'!E99="","",'BİLGİ GİRİŞİ'!E99) ->  | X101: =IF('BİLGİ GİRİŞİ'!W99="","",'BİLGİ GİRİŞİ'!W99) ->  | AB101: =IF('BİLGİ GİRİŞİ'!T99="","",'BİLGİ GİRİŞİ'!T99) -> 
A102: =IF('BİLGİ GİRİŞİ'!D100="","",'BİLGİ GİRİŞİ'!D100) ->  | B102: =IF('BİLGİ GİRİŞİ'!E100="","",'BİLGİ GİRİŞİ'!E100) ->  | X102: =IF('BİLGİ GİRİŞİ'!W100="","",'BİLGİ GİRİŞİ'!W100) ->  | AB102: =IF('BİLGİ GİRİŞİ'!T100="","",'BİLGİ GİRİŞİ'!T100) -> 
A103: =IF('BİLGİ GİRİŞİ'!D101="","",'BİLGİ GİRİŞİ'!D101) ->  | B103: =IF('BİLGİ GİRİŞİ'!E101="","",'BİLGİ GİRİŞİ'!E101) ->  | X103: =IF('BİLGİ GİRİŞİ'!W101="","",'BİLGİ GİRİŞİ'!W101) ->  | AB103: =IF('BİLGİ GİRİŞİ'!T101="","",'BİLGİ GİRİŞİ'!T101) -> 
A104: =IF('BİLGİ GİRİŞİ'!D102="","",'BİLGİ GİRİŞİ'!D102) ->  | B104: =IF('BİLGİ GİRİŞİ'!E102="","",'BİLGİ GİRİŞİ'!E102) ->  | X104: =IF('BİLGİ GİRİŞİ'!W102="","",'BİLGİ GİRİŞİ'!W102) ->  | AB104: =IF('BİLGİ GİRİŞİ'!T102="","",'BİLGİ GİRİŞİ'!T102) -> 
A105: =IF('BİLGİ GİRİŞİ'!D103="","",'BİLGİ GİRİŞİ'!D103) ->  | B105: =IF('BİLGİ GİRİŞİ'!E103="","",'BİLGİ GİRİŞİ'!E103) ->  | X105: =IF('BİLGİ GİRİŞİ'!W103="","",'BİLGİ GİRİŞİ'!W103) ->  | AB105: =IF('BİLGİ GİRİŞİ'!T103="","",'BİLGİ GİRİŞİ'!T103) -> 
A106: =IF('BİLGİ GİRİŞİ'!D104="","",'BİLGİ GİRİŞİ'!D104) ->  | B106: =IF('BİLGİ GİRİŞİ'!E104="","",'BİLGİ GİRİŞİ'!E104) ->  | X106: =IF('BİLGİ GİRİŞİ'!W104="","",'BİLGİ GİRİŞİ'!W104) ->  | AB106: =IF('BİLGİ GİRİŞİ'!T104="","",'BİLGİ GİRİŞİ'!T104) -> 
A107: =IF('BİLGİ GİRİŞİ'!D105="","",'BİLGİ GİRİŞİ'!D105) ->  | B107: =IF('BİLGİ GİRİŞİ'!E105="","",'BİLGİ GİRİŞİ'!E105) ->  | X107: =IF('BİLGİ GİRİŞİ'!W105="","",'BİLGİ GİRİŞİ'!W105) ->  | AB107: =IF('BİLGİ GİRİŞİ'!T105="","",'BİLGİ GİRİŞİ'!T105) -> 
A108: =IF('BİLGİ GİRİŞİ'!D106="","",'BİLGİ GİRİŞİ'!D106) ->  | B108: =IF('BİLGİ GİRİŞİ'!E106="","",'BİLGİ GİRİŞİ'!E106) ->  | X108: =IF('BİLGİ GİRİŞİ'!W106="","",'BİLGİ GİRİŞİ'!W106) ->  | AB108: =IF('BİLGİ GİRİŞİ'!T106="","",'BİLGİ GİRİŞİ'!T106) -> 
A109: =IF('BİLGİ GİRİŞİ'!D107="","",'BİLGİ GİRİŞİ'!D107) ->  | B109: =IF('BİLGİ GİRİŞİ'!E107="","",'BİLGİ GİRİŞİ'!E107) ->  | X109: =IF('BİLGİ GİRİŞİ'!W107="","",'BİLGİ GİRİŞİ'!W107) ->  | AB109: =IF('BİLGİ GİRİŞİ'!T107="","",'BİLGİ GİRİŞİ'!T107) -> 
A110: =IF('BİLGİ GİRİŞİ'!D108="","",'BİLGİ GİRİŞİ'!D108) ->  | B110: =IF('BİLGİ GİRİŞİ'!E108="","",'BİLGİ GİRİŞİ'!E108) ->  | X110: =IF('BİLGİ GİRİŞİ'!W108="","",'BİLGİ GİRİŞİ'!W108) ->  | AB110: =IF('BİLGİ GİRİŞİ'!T108="","",'BİLGİ GİRİŞİ'!T108) -> 
A111: =IF('BİLGİ GİRİŞİ'!D109="","",'BİLGİ GİRİŞİ'!D109) ->  | B111: =IF('BİLGİ GİRİŞİ'!E109="","",'BİLGİ GİRİŞİ'!E109) ->  | X111: =IF('BİLGİ GİRİŞİ'!W109="","",'BİLGİ GİRİŞİ'!W109) ->  | AB111: =IF('BİLGİ GİRİŞİ'!T109="","",'BİLGİ GİRİŞİ'!T109) -> 
A112: =IF('BİLGİ GİRİŞİ'!D110="","",'BİLGİ GİRİŞİ'!D110) ->  | B112: =IF('BİLGİ GİRİŞİ'!E110="","",'BİLGİ GİRİŞİ'!E110) ->  | X112: =IF('BİLGİ GİRİŞİ'!W110="","",'BİLGİ GİRİŞİ'!W110) ->  | AB112: =IF('BİLGİ GİRİŞİ'!T110="","",'BİLGİ GİRİŞİ'!T110) -> 
A113: =IF('BİLGİ GİRİŞİ'!D111="","",'BİLGİ GİRİŞİ'!D111) ->  | B113: =IF('BİLGİ GİRİŞİ'!E111="","",'BİLGİ GİRİŞİ'!E111) ->  | X113: =IF('BİLGİ GİRİŞİ'!W111="","",'BİLGİ GİRİŞİ'!W111) ->  | AB113: =IF('BİLGİ GİRİŞİ'!T111="","",'BİLGİ GİRİŞİ'!T111) -> 
A114: =IF('BİLGİ GİRİŞİ'!D112="","",'BİLGİ GİRİŞİ'!D112) ->  | B114: =IF('BİLGİ GİRİŞİ'!E112="","",'BİLGİ GİRİŞİ'!E112) ->  | X114: =IF('BİLGİ GİRİŞİ'!W112="","",'BİLGİ GİRİŞİ'!W112) ->  | AB114: =IF('BİLGİ GİRİŞİ'!T112="","",'BİLGİ GİRİŞİ'!T112) -> 
A115: =IF('BİLGİ GİRİŞİ'!D113="","",'BİLGİ GİRİŞİ'!D113) ->  | B115: =IF('BİLGİ GİRİŞİ'!E113="","",'BİLGİ GİRİŞİ'!E113) ->  | X115: =IF('BİLGİ GİRİŞİ'!W113="","",'BİLGİ GİRİŞİ'!W113) ->  | AB115: =IF('BİLGİ GİRİŞİ'!T113="","",'BİLGİ GİRİŞİ'!T113) -> 
A116: =IF('BİLGİ GİRİŞİ'!D114="","",'BİLGİ GİRİŞİ'!D114) ->  | B116: =IF('BİLGİ GİRİŞİ'!E114="","",'BİLGİ GİRİŞİ'!E114) ->  | X116: =IF('BİLGİ GİRİŞİ'!W114="","",'BİLGİ GİRİŞİ'!W114) ->  | AB116: =IF('BİLGİ GİRİŞİ'!T114="","",'BİLGİ GİRİŞİ'!T114) -> 
A117: =IF('BİLGİ GİRİŞİ'!D115="","",'BİLGİ GİRİŞİ'!D115) ->  | B117: =IF('BİLGİ GİRİŞİ'!E115="","",'BİLGİ GİRİŞİ'!E115) ->  | X117: =IF('BİLGİ GİRİŞİ'!W115="","",'BİLGİ GİRİŞİ'!W115) ->  | AB117: =IF('BİLGİ GİRİŞİ'!T115="","",'BİLGİ GİRİŞİ'!T115) -> 
A118: =IF('BİLGİ GİRİŞİ'!D116="","",'BİLGİ GİRİŞİ'!D116) ->  | B118: =IF('BİLGİ GİRİŞİ'!E116="","",'BİLGİ GİRİŞİ'!E116) ->  | X118: =IF('BİLGİ GİRİŞİ'!W116="","",'BİLGİ GİRİŞİ'!W116) ->  | AB118: =IF('BİLGİ GİRİŞİ'!T116="","",'BİLGİ GİRİŞİ'!T116) -> 
A119: =IF('BİLGİ GİRİŞİ'!D117="","",'BİLGİ GİRİŞİ'!D117) ->  | B119: =IF('BİLGİ GİRİŞİ'!E117="","",'BİLGİ GİRİŞİ'!E117) ->  | X119: =IF('BİLGİ GİRİŞİ'!W117="","",'BİLGİ GİRİŞİ'!W117) ->  | AB119: =IF('BİLGİ GİRİŞİ'!T117="","",'BİLGİ GİRİŞİ'!T117) -> 
A120: =IF('BİLGİ GİRİŞİ'!D118="","",'BİLGİ GİRİŞİ'!D118) ->  | B120: =IF('BİLGİ GİRİŞİ'!E118="","",'BİLGİ GİRİŞİ'!E118) ->  | X120: =IF('BİLGİ GİRİŞİ'!W118="","",'BİLGİ GİRİŞİ'!W118) ->  | AB120: =IF('BİLGİ GİRİŞİ'!T118="","",'BİLGİ GİRİŞİ'!T118) -> 
A121: =IF('BİLGİ GİRİŞİ'!D119="","",'BİLGİ GİRİŞİ'!D119) ->  | B121: =IF('BİLGİ GİRİŞİ'!E119="","",'BİLGİ GİRİŞİ'!E119) ->  | X121: =IF('BİLGİ GİRİŞİ'!W119="","",'BİLGİ GİRİŞİ'!W119) ->  | AB121: =IF('BİLGİ GİRİŞİ'!T119="","",'BİLGİ GİRİŞİ'!T119) -> 
A122: =IF('BİLGİ GİRİŞİ'!D120="","",'BİLGİ GİRİŞİ'!D120) ->  | B122: =IF('BİLGİ GİRİŞİ'!E120="","",'BİLGİ GİRİŞİ'!E120) ->  | X122: =IF('BİLGİ GİRİŞİ'!W120="","",'BİLGİ GİRİŞİ'!W120) ->  | AB122: =IF('BİLGİ GİRİŞİ'!T120="","",'BİLGİ GİRİŞİ'!T120) -> 
A123: =IF('BİLGİ GİRİŞİ'!D121="","",'BİLGİ GİRİŞİ'!D121) ->  | B123: =IF('BİLGİ GİRİŞİ'!E121="","",'BİLGİ GİRİŞİ'!E121) ->  | X123: =IF('BİLGİ GİRİŞİ'!W121="","",'BİLGİ GİRİŞİ'!W121) ->  | AB123: =IF('BİLGİ GİRİŞİ'!T121="","",'BİLGİ GİRİŞİ'!T121) -> 
A124: =IF('BİLGİ GİRİŞİ'!D122="","",'BİLGİ GİRİŞİ'!D122) ->  | B124: =IF('BİLGİ GİRİŞİ'!E122="","",'BİLGİ GİRİŞİ'!E122) ->  | X124: =IF('BİLGİ GİRİŞİ'!W122="","",'BİLGİ GİRİŞİ'!W122) ->  | AB124: =IF('BİLGİ GİRİŞİ'!T122="","",'BİLGİ GİRİŞİ'!T122) -> 
A125: =IF('BİLGİ GİRİŞİ'!D123="","",'BİLGİ GİRİŞİ'!D123) ->  | B125: =IF('BİLGİ GİRİŞİ'!E123="","",'BİLGİ GİRİŞİ'!E123) ->  | X125: =IF('BİLGİ GİRİŞİ'!W123="","",'BİLGİ GİRİŞİ'!W123) ->  | AB125: =IF('BİLGİ GİRİŞİ'!T123="","",'BİLGİ GİRİŞİ'!T123) -> 
A126: =IF('BİLGİ GİRİŞİ'!D124="","",'BİLGİ GİRİŞİ'!D124) ->  | B126: =IF('BİLGİ GİRİŞİ'!E124="","",'BİLGİ GİRİŞİ'!E124) ->  | X126: =IF('BİLGİ GİRİŞİ'!W124="","",'BİLGİ GİRİŞİ'!W124) ->  | AB126: =IF('BİLGİ GİRİŞİ'!T124="","",'BİLGİ GİRİŞİ'!T124) -> 
A127: =IF('BİLGİ GİRİŞİ'!D125="","",'BİLGİ GİRİŞİ'!D125) ->  | B127: =IF('BİLGİ GİRİŞİ'!E125="","",'BİLGİ GİRİŞİ'!E125) ->  | X127: =IF('BİLGİ GİRİŞİ'!W125="","",'BİLGİ GİRİŞİ'!W125) ->  | AB127: =IF('BİLGİ GİRİŞİ'!T125="","",'BİLGİ GİRİŞİ'!T125) -> 
A128: =IF('BİLGİ GİRİŞİ'!D126="","",'BİLGİ GİRİŞİ'!D126) ->  | B128: =IF('BİLGİ GİRİŞİ'!E126="","",'BİLGİ GİRİŞİ'!E126) ->  | X128: =IF('BİLGİ GİRİŞİ'!W126="","",'BİLGİ GİRİŞİ'!W126) ->  | AB128: =IF('BİLGİ GİRİŞİ'!T126="","",'BİLGİ GİRİŞİ'!T126) -> 
A129: =IF('BİLGİ GİRİŞİ'!D127="","",'BİLGİ GİRİŞİ'!D127) ->  | B129: =IF('BİLGİ GİRİŞİ'!E127="","",'BİLGİ GİRİŞİ'!E127) ->  | X129: =IF('BİLGİ GİRİŞİ'!W127="","",'BİLGİ GİRİŞİ'!W127) ->  | AB129: =IF('BİLGİ GİRİŞİ'!T127="","",'BİLGİ GİRİŞİ'!T127) -> 
A130: =IF('BİLGİ GİRİŞİ'!D128="","",'BİLGİ GİRİŞİ'!D128) ->  | B130: =IF('BİLGİ GİRİŞİ'!E128="","",'BİLGİ GİRİŞİ'!E128) ->  | X130: =IF('BİLGİ GİRİŞİ'!W128="","",'BİLGİ GİRİŞİ'!W128) ->  | AB130: =IF('BİLGİ GİRİŞİ'!T128="","",'BİLGİ GİRİŞİ'!T128) -> 
A131: =IF('BİLGİ GİRİŞİ'!D129="","",'BİLGİ GİRİŞİ'!D129) ->  | B131: =IF('BİLGİ GİRİŞİ'!E129="","",'BİLGİ GİRİŞİ'!E129) ->  | X131: =IF('BİLGİ GİRİŞİ'!W129="","",'BİLGİ GİRİŞİ'!W129) ->  | AB131: =IF('BİLGİ GİRİŞİ'!T129="","",'BİLGİ GİRİŞİ'!T129) -> 
A133: PİYASA ARAŞTIRMA GÖREVLİLERİ
A134: =IF('BİLGİ GİRİŞİ'!AB17="","",'BİLGİ GİRİŞİ'!AB17) -> Ahmet DEMİR | K134: =IF('BİLGİ GİRİŞİ'!AH17="","",'BİLGİ GİRİŞİ'!AH17) -> Ayşe YILDIZ | V134: =IF('BİLGİ GİRİŞİ'!AN17="","",'BİLGİ GİRİŞİ'!AN17) -> 
A135: =IF(A134="","",'BİLGİ GİRİŞİ'!AB18) -> Müdür Yardımcısı 1 | K135: =IF(K134="","",'BİLGİ GİRİŞİ'!AH18) -> Öğretmen 1 | V135: =IF(V134="","",'BİLGİ GİRİŞİ'!AN18) -> 
A137: MUAYENE VE KABUL GÖREVLİLERİ
A138: =IF('BİLGİ GİRİŞİ'!AB22="","",'BİLGİ GİRİŞİ'!AB22) -> Mehmet ÇELİK | K138: =IF('BİLGİ GİRİŞİ'!AH22="","",'BİLGİ GİRİŞİ'!AH22) -> Fatma GÜNEŞ | V138: =IF('BİLGİ GİRİŞİ'!AN22="","",'BİLGİ GİRİŞİ'!AN22) -> 
A139: =IF(A138="","",'BİLGİ GİRİŞİ'!AB23) -> Müdür Yardımcısı 2 | K139: =IF(K138="","",'BİLGİ GİRİŞİ'!AH23) -> Öğretmen 2 | V139: =IF(V138="","",'BİLGİ GİRİŞİ'!AN23) -> 

Sheet 2
A2: T.C.
A3: =IF('BİLGİ GİRİŞİ'!O7="","",'BİLGİ GİRİŞİ'!O7) -> BULANIK KAYMAKAMLIĞI
A4: =IF('BİLGİ GİRİŞİ'!O8="","",'BİLGİ GİRİŞİ'!O8) -> Atatürk İlkokulu Müdürlüğü
A6: Sayı | D6: : | E6: =IF('BİLGİ GİRİŞİ'!S15="","",'BİLGİ GİRİŞİ'!S15) -> 456789123 | Z6: =IF('BİLGİ GİRİŞİ'!O16="","…../…../……..",'BİLGİ GİRİŞİ'!O16) -> 2023-03-06
A7: Konu | D7: : | E7: Yaklaşık Maliyet Araştırması
A9: İLGİLİ GERÇEK/TÜZEL KİŞİLERE
A11: =CONCATENATE(" ","Kurumumuz ihtiyaçlarında kullanılmak üzere aşağıda bilgileri verilen Mal/Hizmet/Yapım İşi, Kamu İhale Kanunu'nun ",IF('BİLGİ GİRİŞİ'!O10="",".............................................................................",'BİLGİ GİRİŞİ'!O10)," maddesine göre Doğrudan Temin yoluyla satın alınacaktır.") -> Kurumumuz ihtiyaçlarında kullanılmak üzere aşağıda bilgileri verilen Mal/Hizmet/Yapım İşi, Kamu İhale Kanunu'nun 22/d maddesine göre Doğrudan Temin yoluyla satın alınacaktır.
A13: Yaklaşık maliyetin tespitinde değerlendirilmek üzere aşağıda bilgileri verilen Mal'ın/Hizmet'in/Yapım İşi'nin, KDV hariç piyasa fiyatlarının karşılarına yazılması ve Kurumumuza gönderilmesi hususunda; Gereğini rica ederim/ederiz
A18: =IF(A19="","",IF('BİLGİ GİRİŞİ'!AH16="","",'BİLGİ GİRİŞİ'!AH16)) -> Piyasa Araştırma Görevlisi | K18: =IF(K19="","",IF('BİLGİ GİRİŞİ'!AN16="","",'BİLGİ GİRİŞİ'!AN16)) ->  | U18: =IF(U19="","",IF('BİLGİ GİRİŞİ'!AB16="","",'BİLGİ GİRİŞİ'!AB16)) -> Piyasa Araştırma Görevlisi
A19: =IF('BİLGİ GİRİŞİ'!AH17="","",'BİLGİ GİRİŞİ'!AH17) -> Ayşe YILDIZ | K19: =IF('BİLGİ GİRİŞİ'!AN17="","",'BİLGİ GİRİŞİ'!AN17) ->  | U19: =IF('BİLGİ GİRİŞİ'!AB17="","",'BİLGİ GİRİŞİ'!AB17) -> Ahmet DEMİR
A20: =IF(A19="","",IF('BİLGİ GİRİŞİ'!AH18="","",'BİLGİ GİRİŞİ'!AH18)) -> Öğretmen 1 | K20: =IF(K19="","",IF('BİLGİ GİRİŞİ'!AN18="","",'BİLGİ GİRİŞİ'!AN18)) ->  | U20: =IF(U19="","",IF('BİLGİ GİRİŞİ'!AB18="","",'BİLGİ GİRİŞİ'!AB18)) -> Müdür Yardımcısı 1
A23: =IF('BİLGİ GİRİŞİ'!O8="","",CONCATENATE(UPPER('BİLGİ GİRİŞİ'!O8),"",UPPER(IF('BİLGİ GİRİŞİ'!O8="","",'BİLGİ GİRİŞİ'!AN8)))) -> ATATÜRK İLKOKULU MÜDÜRLÜĞÜNE
A25: Kurumunuzca satın alınacak Mal'ın/Hizmet'in/Yapım İşi'nin piyasa fiyatları aşağıya çıkarılmıştır. Gereğini bilgilerinize arz ederim/ederiz.
A30: MAL'IN/HİZMET'İN/YAPIM İŞİ'NİN
A31: S | B31: Kalem/KısımBilgileri | P31: Birimi | T31: Miktarı | X31: Birim Fiyatı | AB31: Toplam Fiyatı
A32: =IF('BİLGİ GİRİŞİ'!D30="","",'BİLGİ GİRİŞİ'!D30) -> 1 | B32: =IF('BİLGİ GİRİŞİ'!E30="","",'BİLGİ GİRİŞİ'!E30) -> AIO (All In One) Masaüstü Bilgisayar | P32: =IF('BİLGİ GİRİŞİ'!W30="","",'BİLGİ GİRİŞİ'!W30) -> Adet | T32: =IF('BİLGİ GİRİŞİ'!T30="","",IF('BİLGİ GİRİŞİ'!$BN$28=1,"1",'BİLGİ GİRİŞİ'!T30)) -> 1
A33: =IF('BİLGİ GİRİŞİ'!D31="","",'BİLGİ GİRİŞİ'!D31) -> 2 | B33: =IF('BİLGİ GİRİŞİ'!E31="","",'BİLGİ GİRİŞİ'!E31) -> Fotokopi Makinesi | P33: =IF('BİLGİ GİRİŞİ'!W31="","",'BİLGİ GİRİŞİ'!W31) -> Adet | T33: =IF('BİLGİ GİRİŞİ'!T31="","",IF('BİLGİ GİRİŞİ'!$BN$28=1,"1",'BİLGİ GİRİŞİ'!T31)) -> 1
A34: =IF('BİLGİ GİRİŞİ'!D32="","",'BİLGİ GİRİŞİ'!D32) -> 3 | B34: =IF('BİLGİ GİRİŞİ'!E32="","",'BİLGİ GİRİŞİ'!E32) -> Projektör | P34: =IF('BİLGİ GİRİŞİ'!W32="","",'BİLGİ GİRİŞİ'!W32) -> Adet | T34: =IF('BİLGİ GİRİŞİ'!T32="","",IF('BİLGİ GİRİŞİ'!$BN$28=1,"1",'BİLGİ GİRİŞİ'!T32)) -> 1
A35: =IF('BİLGİ GİRİŞİ'!D33="","",'BİLGİ GİRİŞİ'!D33) ->  | B35: =IF('BİLGİ GİRİŞİ'!E33="","",'BİLGİ GİRİŞİ'!E33) ->  | P35: =IF('BİLGİ GİRİŞİ'!W33="","",'BİLGİ GİRİŞİ'!W33) ->  | T35: =IF('BİLGİ GİRİŞİ'!T33="","",IF('BİLGİ GİRİŞİ'!$BN$28=1,"1",'BİLGİ GİRİŞİ'!T33)) -> 
A36: =IF('BİLGİ GİRİŞİ'!D34="","",'BİLGİ GİRİŞİ'!D34) ->  | B36: =IF('BİLGİ GİRİŞİ'!E34="","",'BİLGİ GİRİŞİ'!E34) ->  | P36: =IF('BİLGİ GİRİŞİ'!W34="","",'BİLGİ GİRİŞİ'!W34) ->  | T36: =IF('BİLGİ GİRİŞİ'!T34="","",IF('BİLGİ GİRİŞİ'!$BN$28=1,"1",'BİLGİ GİRİŞİ'!T34)) -> 
A37: =IF('BİLGİ GİRİŞİ'!D35="","",'BİLGİ GİRİŞİ'!D35) ->  | B37: =IF('BİLGİ GİRİŞİ'!E35="","",'BİLGİ GİRİŞİ'!E35) ->  | P37: =IF('BİLGİ GİRİŞİ'!W35="","",'BİLGİ GİRİŞİ'!W35) ->  | T37: =IF('BİLGİ GİRİŞİ'!T35="","",IF('BİLGİ GİRİŞİ'!$BN$28=1,"1",'BİLGİ GİRİŞİ'!T35)) -> 
A38: =IF('BİLGİ GİRİŞİ'!D36="","",'BİLGİ GİRİŞİ'!D36) ->  | B38: =IF('BİLGİ GİRİŞİ'!E36="","",'BİLGİ GİRİŞİ'!E36) ->  | P38: =IF('BİLGİ GİRİŞİ'!W36="","",'BİLGİ GİRİŞİ'!W36) ->  | T38: =IF('BİLGİ GİRİŞİ'!T36="","",IF('BİLGİ GİRİŞİ'!$BN$28=1,"1",'BİLGİ GİRİŞİ'!T36)) -> 
A39: =IF('BİLGİ GİRİŞİ'!D37="","",'BİLGİ GİRİŞİ'!D37) ->  | B39: =IF('BİLGİ GİRİŞİ'!E37="","",'BİLGİ GİRİŞİ'!E37) ->  | P39: =IF('BİLGİ GİRİŞİ'!W37="","",'BİLGİ GİRİŞİ'!W37) ->  | T39: =IF('BİLGİ GİRİŞİ'!T37="","",IF('BİLGİ GİRİŞİ'!$BN$28=1,"1",'BİLGİ GİRİŞİ'!T37)) -> 
A40: =IF('BİLGİ GİRİŞİ'!D38="","",'BİLGİ GİRİŞİ'!D38) ->  | B40: =IF('BİLGİ GİRİŞİ'!E38="","",'BİLGİ GİRİŞİ'!E38) ->  | P40: =IF('BİLGİ GİRİŞİ'!W38="","",'BİLGİ GİRİŞİ'!W38) ->  | T40: =IF('BİLGİ GİRİŞİ'!T38="","",IF('BİLGİ GİRİŞİ'!$BN$28=1,"1",'BİLGİ GİRİŞİ'!T38)) -> 
A41: =IF('BİLGİ GİRİŞİ'!D39="","",'BİLGİ GİRİŞİ'!D39) ->  | B41: =IF('BİLGİ GİRİŞİ'!E39="","",'BİLGİ GİRİŞİ'!E39) ->  | P41: =IF('BİLGİ GİRİŞİ'!W39="","",'BİLGİ GİRİŞİ'!W39) ->  | T41: =IF('BİLGİ GİRİŞİ'!T39="","",IF('BİLGİ GİRİŞİ'!$BN$28=1,"1",'BİLGİ GİRİŞİ'!T39)) -> 
A42: =IF('BİLGİ GİRİŞİ'!D40="","",'BİLGİ GİRİŞİ'!D40) ->  | B42: =IF('BİLGİ GİRİŞİ'!E40="","",'BİLGİ GİRİŞİ'!E40) ->  | P42: =IF('BİLGİ GİRİŞİ'!W40="","",'BİLGİ GİRİŞİ'!W40) ->  | T42: =IF('BİLGİ GİRİŞİ'!T40="","",IF('BİLGİ GİRİŞİ'!$BN$28=1,"1",'BİLGİ GİRİŞİ'!T40)) -> 
A43: =IF('BİLGİ GİRİŞİ'!D41="","",'BİLGİ GİRİŞİ'!D41) ->  | B43: =IF('BİLGİ GİRİŞİ'!E41="","",'BİLGİ GİRİŞİ'!E41) ->  | P43: =IF('BİLGİ GİRİŞİ'!W41="","",'BİLGİ GİRİŞİ'!W41) ->  | T43: =IF('BİLGİ GİRİŞİ'!T41="","",IF('BİLGİ GİRİŞİ'!$BN$28=1,"1",'BİLGİ GİRİŞİ'!T41)) -> 
A44: =IF('BİLGİ GİRİŞİ'!D42="","",'BİLGİ GİRİŞİ'!D42) ->  | B44: =IF('BİLGİ GİRİŞİ'!E42="","",'BİLGİ GİRİŞİ'!E42) ->  | P44: =IF('BİLGİ GİRİŞİ'!W42="","",'BİLGİ GİRİŞİ'!W42) ->  | T44: =IF('BİLGİ GİRİŞİ'!T42="","",IF('BİLGİ GİRİŞİ'!$BN$28=1,"1",'BİLGİ GİRİŞİ'!T42)) -> 
A45: =IF('BİLGİ GİRİŞİ'!D43="","",'BİLGİ GİRİŞİ'!D43) ->  | B45: =IF('BİLGİ GİRİŞİ'!E43="","",'BİLGİ GİRİŞİ'!E43) ->  | P45: =IF('BİLGİ GİRİŞİ'!W43="","",'BİLGİ GİRİŞİ'!W43) ->  | T45: =IF('BİLGİ GİRİŞİ'!T43="","",IF('BİLGİ GİRİŞİ'!$BN$28=1,"1",'BİLGİ GİRİŞİ'!T43)) -> 
A46: =IF('BİLGİ GİRİŞİ'!D44="","",'BİLGİ GİRİŞİ'!D44) ->  | B46: =IF('BİLGİ GİRİŞİ'!E44="","",'BİLGİ GİRİŞİ'!E44) ->  | P46: =IF('BİLGİ GİRİŞİ'!W44="","",'BİLGİ GİRİŞİ'!W44) ->  | T46: =IF('BİLGİ GİRİŞİ'!T44="","",IF('BİLGİ GİRİŞİ'!$BN$28=1,"1",'BİLGİ GİRİŞİ'!T44)) -> 
A47: =IF('BİLGİ GİRİŞİ'!D45="","",'BİLGİ GİRİŞİ'!D45) ->  | B47: =IF('BİLGİ GİRİŞİ'!E45="","",'BİLGİ GİRİŞİ'!E45) ->  | P47: =IF('BİLGİ GİRİŞİ'!W45="","",'BİLGİ GİRİŞİ'!W45) ->  | T47: =IF('BİLGİ GİRİŞİ'!T45="","",IF('BİLGİ GİRİŞİ'!$BN$28=1,"1",'BİLGİ GİRİŞİ'!T45)) -> 
A48: =IF('BİLGİ GİRİŞİ'!D46="","",'BİLGİ GİRİŞİ'!D46) ->  | B48: =IF('BİLGİ GİRİŞİ'!E46="","",'BİLGİ GİRİŞİ'!E46) ->  | P48: =IF('BİLGİ GİRİŞİ'!W46="","",'BİLGİ GİRİŞİ'!W46) ->  | T48: =IF('BİLGİ GİRİŞİ'!T46="","",IF('BİLGİ GİRİŞİ'!$BN$28=1,"1",'BİLGİ GİRİŞİ'!T46)) -> 
A49: =IF('BİLGİ GİRİŞİ'!D47="","",'BİLGİ GİRİŞİ'!D47) ->  | B49: =IF('BİLGİ GİRİŞİ'!E47="","",'BİLGİ GİRİŞİ'!E47) ->  | P49: =IF('BİLGİ GİRİŞİ'!W47="","",'BİLGİ GİRİŞİ'!W47) ->  | T49: =IF('BİLGİ GİRİŞİ'!T47="","",IF('BİLGİ GİRİŞİ'!$BN$28=1,"1",'BİLGİ GİRİŞİ'!T47)) -> 
A50: =IF('BİLGİ GİRİŞİ'!D48="","",'BİLGİ GİRİŞİ'!D48) ->  | B50: =IF('BİLGİ GİRİŞİ'!E48="","",'BİLGİ GİRİŞİ'!E48) ->  | P50: =IF('BİLGİ GİRİŞİ'!W48="","",'BİLGİ GİRİŞİ'!W48) ->  | T50: =IF('BİLGİ GİRİŞİ'!T48="","",IF('BİLGİ GİRİŞİ'!$BN$28=1,"1",'BİLGİ GİRİŞİ'!T48)) -> 
A51: =IF('BİLGİ GİRİŞİ'!D49="","",'BİLGİ GİRİŞİ'!D49) ->  | B51: =IF('BİLGİ GİRİŞİ'!E49="","",'BİLGİ GİRİŞİ'!E49) ->  | P51: =IF('BİLGİ GİRİŞİ'!W49="","",'BİLGİ GİRİŞİ'!W49) ->  | T51: =IF('BİLGİ GİRİŞİ'!T49="","",IF('BİLGİ GİRİŞİ'!$BN$28=1,"1",'BİLGİ GİRİŞİ'!T49)) -> 
A52: =IF('BİLGİ GİRİŞİ'!D50="","",'BİLGİ GİRİŞİ'!D50) ->  | B52: =IF('BİLGİ GİRİŞİ'!E50="","",'BİLGİ GİRİŞİ'!E50) ->  | P52: =IF('BİLGİ GİRİŞİ'!W50="","",'BİLGİ GİRİŞİ'!W50) ->  | T52: =IF('BİLGİ GİRİŞİ'!T50="","",IF('BİLGİ GİRİŞİ'!$BN$28=1,"1",'BİLGİ GİRİŞİ'!T50)) -> 
A53: =IF('BİLGİ GİRİŞİ'!D51="","",'BİLGİ GİRİŞİ'!D51) ->  | B53: =IF('BİLGİ GİRİŞİ'!E51="","",'BİLGİ GİRİŞİ'!E51) ->  | P53: =IF('BİLGİ GİRİŞİ'!W51="","",'BİLGİ GİRİŞİ'!W51) ->  | T53: =IF('BİLGİ GİRİŞİ'!T51="","",IF('BİLGİ GİRİŞİ'!$BN$28=1,"1",'BİLGİ GİRİŞİ'!T51)) -> 
A54: =IF('BİLGİ GİRİŞİ'!D52="","",'BİLGİ GİRİŞİ'!D52) ->  | B54: =IF('BİLGİ GİRİŞİ'!E52="","",'BİLGİ GİRİŞİ'!E52) ->  | P54: =IF('BİLGİ GİRİŞİ'!W52="","",'BİLGİ GİRİŞİ'!W52) ->  | T54: =IF('BİLGİ GİRİŞİ'!T52="","",IF('BİLGİ GİRİŞİ'!$BN$28=1,"1",'BİLGİ GİRİŞİ'!T52)) -> 
A55: =IF('BİLGİ GİRİŞİ'!D53="","",'BİLGİ GİRİŞİ'!D53) ->  | B55: =IF('BİLGİ GİRİŞİ'!E53="","",'BİLGİ GİRİŞİ'!E53) ->  | P55: =IF('BİLGİ GİRİŞİ'!W53="","",'BİLGİ GİRİŞİ'!W53) ->  | T55: =IF('BİLGİ GİRİŞİ'!T53="","",IF('BİLGİ GİRİŞİ'!$BN$28=1,"1",'BİLGİ GİRİŞİ'!T53)) -> 
A56: =IF('BİLGİ GİRİŞİ'!D54="","",'BİLGİ GİRİŞİ'!D54) ->  | B56: =IF('BİLGİ GİRİŞİ'!E54="","",'BİLGİ GİRİŞİ'!E54) ->  | P56: =IF('BİLGİ GİRİŞİ'!W54="","",'BİLGİ GİRİŞİ'!W54) ->  | T56: =IF('BİLGİ GİRİŞİ'!T54="","",IF('BİLGİ GİRİŞİ'!$BN$28=1,"1",'BİLGİ GİRİŞİ'!T54)) -> 
A57: =IF('BİLGİ GİRİŞİ'!D55="","",'BİLGİ GİRİŞİ'!D55) ->  | B57: =IF('BİLGİ GİRİŞİ'!E55="","",'BİLGİ GİRİŞİ'!E55) ->  | P57: =IF('BİLGİ GİRİŞİ'!W55="","",'BİLGİ GİRİŞİ'!W55) ->  | T57: =IF('BİLGİ GİRİŞİ'!T55="","",IF('BİLGİ GİRİŞİ'!$BN$28=1,"1",'BİLGİ GİRİŞİ'!T55)) -> 
A58: =IF('BİLGİ GİRİŞİ'!D56="","",'BİLGİ GİRİŞİ'!D56) ->  | B58: =IF('BİLGİ GİRİŞİ'!E56="","",'BİLGİ GİRİŞİ'!E56) ->  | P58: =IF('BİLGİ GİRİŞİ'!W56="","",'BİLGİ GİRİŞİ'!W56) ->  | T58: =IF('BİLGİ GİRİŞİ'!T56="","",IF('BİLGİ GİRİŞİ'!$BN$28=1,"1",'BİLGİ GİRİŞİ'!T56)) -> 
A59: =IF('BİLGİ GİRİŞİ'!D57="","",'BİLGİ GİRİŞİ'!D57) ->  | B59: =IF('BİLGİ GİRİŞİ'!E57="","",'BİLGİ GİRİŞİ'!E57) ->  | P59: =IF('BİLGİ GİRİŞİ'!W57="","",'BİLGİ GİRİŞİ'!W57) ->  | T59: =IF('BİLGİ GİRİŞİ'!T57="","",IF('BİLGİ GİRİŞİ'!$BN$28=1,"1",'BİLGİ GİRİŞİ'!T57)) -> 
A60: =IF('BİLGİ GİRİŞİ'!D58="","",'BİLGİ GİRİŞİ'!D58) ->  | B60: =IF('BİLGİ GİRİŞİ'!E58="","",'BİLGİ GİRİŞİ'!E58) ->  | P60: =IF('BİLGİ GİRİŞİ'!W58="","",'BİLGİ GİRİŞİ'!W58) ->  | T60: =IF('BİLGİ GİRİŞİ'!T58="","",IF('BİLGİ GİRİŞİ'!$BN$28=1,"1",'BİLGİ GİRİŞİ'!T58)) -> 
A61: =IF('BİLGİ GİRİŞİ'!D59="","",'BİLGİ GİRİŞİ'!D59) ->  | B61: =IF('BİLGİ GİRİŞİ'!E59="","",'BİLGİ GİRİŞİ'!E59) ->  | P61: =IF('BİLGİ GİRİŞİ'!W59="","",'BİLGİ GİRİŞİ'!W59) ->  | T61: =IF('BİLGİ GİRİŞİ'!T59="","",IF('BİLGİ GİRİŞİ'!$BN$28=1,"1",'BİLGİ GİRİŞİ'!T59)) -> 
A62: =IF('BİLGİ GİRİŞİ'!D60="","",'BİLGİ GİRİŞİ'!D60) ->  | B62: =IF('BİLGİ GİRİŞİ'!E60="","",'BİLGİ GİRİŞİ'!E60) ->  | P62: =IF('BİLGİ GİRİŞİ'!W60="","",'BİLGİ GİRİŞİ'!W60) ->  | T62: =IF('BİLGİ GİRİŞİ'!T60="","",IF('BİLGİ GİRİŞİ'!$BN$28=1,"1",'BİLGİ GİRİŞİ'!T60)) -> 
A63: =IF('BİLGİ GİRİŞİ'!D61="","",'BİLGİ GİRİŞİ'!D61) ->  | B63: =IF('BİLGİ GİRİŞİ'!E61="","",'BİLGİ GİRİŞİ'!E61) ->  | P63: =IF('BİLGİ GİRİŞİ'!W61="","",'BİLGİ GİRİŞİ'!W61) ->  | T63: =IF('BİLGİ GİRİŞİ'!T61="","",IF('BİLGİ GİRİŞİ'!$BN$28=1,"1",'BİLGİ GİRİŞİ'!T61)) -> 
A64: =IF('BİLGİ GİRİŞİ'!D62="","",'BİLGİ GİRİŞİ'!D62) ->  | B64: =IF('BİLGİ GİRİŞİ'!E62="","",'BİLGİ GİRİŞİ'!E62) ->  | P64: =IF('BİLGİ GİRİŞİ'!W62="","",'BİLGİ GİRİŞİ'!W62) ->  | T64: =IF('BİLGİ GİRİŞİ'!T62="","",IF('BİLGİ GİRİŞİ'!$BN$28=1,"1",'BİLGİ GİRİŞİ'!T62)) -> 
A65: =IF('BİLGİ GİRİŞİ'!D63="","",'BİLGİ GİRİŞİ'!D63) ->  | B65: =IF('BİLGİ GİRİŞİ'!E63="","",'BİLGİ GİRİŞİ'!E63) ->  | P65: =IF('BİLGİ GİRİŞİ'!W63="","",'BİLGİ GİRİŞİ'!W63) ->  | T65: =IF('BİLGİ GİRİŞİ'!T63="","",IF('BİLGİ GİRİŞİ'!$BN$28=1,"1",'BİLGİ GİRİŞİ'!T63)) -> 
A66: =IF('BİLGİ GİRİŞİ'!D64="","",'BİLGİ GİRİŞİ'!D64) ->  | B66: =IF('BİLGİ GİRİŞİ'!E64="","",'BİLGİ GİRİŞİ'!E64) ->  | P66: =IF('BİLGİ GİRİŞİ'!W64="","",'BİLGİ GİRİŞİ'!W64) ->  | T66: =IF('BİLGİ GİRİŞİ'!T64="","",IF('BİLGİ GİRİŞİ'!$BN$28=1,"1",'BİLGİ GİRİŞİ'!T64)) -> 
A67: =IF('BİLGİ GİRİŞİ'!D65="","",'BİLGİ GİRİŞİ'!D65) ->  | B67: =IF('BİLGİ GİRİŞİ'!E65="","",'BİLGİ GİRİŞİ'!E65) ->  | P67: =IF('BİLGİ GİRİŞİ'!W65="","",'BİLGİ GİRİŞİ'!W65) ->  | T67: =IF('BİLGİ GİRİŞİ'!T65="","",IF('BİLGİ GİRİŞİ'!$BN$28=1,"1",'BİLGİ GİRİŞİ'!T65)) -> 
A68: =IF('BİLGİ GİRİŞİ'!D66="","",'BİLGİ GİRİŞİ'!D66) ->  | B68: =IF('BİLGİ GİRİŞİ'!E66="","",'BİLGİ GİRİŞİ'!E66) ->  | P68: =IF('BİLGİ GİRİŞİ'!W66="","",'BİLGİ GİRİŞİ'!W66) ->  | T68: =IF('BİLGİ GİRİŞİ'!T66="","",IF('BİLGİ GİRİŞİ'!$BN$28=1,"1",'BİLGİ GİRİŞİ'!T66)) -> 
A69: =IF('BİLGİ GİRİŞİ'!D67="","",'BİLGİ GİRİŞİ'!D67) ->  | B69: =IF('BİLGİ GİRİŞİ'!E67="","",'BİLGİ GİRİŞİ'!E67) ->  | P69: =IF('BİLGİ GİRİŞİ'!W67="","",'BİLGİ GİRİŞİ'!W67) ->  | T69: =IF('BİLGİ GİRİŞİ'!T67="","",IF('BİLGİ GİRİŞİ'!$BN$28=1,"1",'BİLGİ GİRİŞİ'!T67)) -> 
A70: =IF('BİLGİ GİRİŞİ'!D68="","",'BİLGİ GİRİŞİ'!D68) ->  | B70: =IF('BİLGİ GİRİŞİ'!E68="","",'BİLGİ GİRİŞİ'!E68) ->  | P70: =IF('BİLGİ GİRİŞİ'!W68="","",'BİLGİ GİRİŞİ'!W68) ->  | T70: =IF('BİLGİ GİRİŞİ'!T68="","",IF('BİLGİ GİRİŞİ'!$BN$28=1,"1",'BİLGİ GİRİŞİ'!T68)) -> 
A71: =IF('BİLGİ GİRİŞİ'!D69="","",'BİLGİ GİRİŞİ'!D69) ->  | B71: =IF('BİLGİ GİRİŞİ'!E69="","",'BİLGİ GİRİŞİ'!E69) ->  | P71: =IF('BİLGİ GİRİŞİ'!W69="","",'BİLGİ GİRİŞİ'!W69) ->  | T71: =IF('BİLGİ GİRİŞİ'!T69="","",IF('BİLGİ GİRİŞİ'!$BN$28=1,"1",'BİLGİ GİRİŞİ'!T69)) -> 
A72: =IF('BİLGİ GİRİŞİ'!D70="","",'BİLGİ GİRİŞİ'!D70) ->  | B72: =IF('BİLGİ GİRİŞİ'!E70="","",'BİLGİ GİRİŞİ'!E70) ->  | P72: =IF('BİLGİ GİRİŞİ'!W70="","",'BİLGİ GİRİŞİ'!W70) ->  | T72: =IF('BİLGİ GİRİŞİ'!T70="","",IF('BİLGİ GİRİŞİ'!$BN$28=1,"1",'BİLGİ GİRİŞİ'!T70)) -> 
A73: =IF('BİLGİ GİRİŞİ'!D71="","",'BİLGİ GİRİŞİ'!D71) ->  | B73: =IF('BİLGİ GİRİŞİ'!E71="","",'BİLGİ GİRİŞİ'!E71) ->  | P73: =IF('BİLGİ GİRİŞİ'!W71="","",'BİLGİ GİRİŞİ'!W71) ->  | T73: =IF('BİLGİ GİRİŞİ'!T71="","",IF('BİLGİ GİRİŞİ'!$BN$28=1,"1",'BİLGİ GİRİŞİ'!T71)) -> 
A74: =IF('BİLGİ GİRİŞİ'!D72="","",'BİLGİ GİRİŞİ'!D72) ->  | B74: =IF('BİLGİ GİRİŞİ'!E72="","",'BİLGİ GİRİŞİ'!E72) ->  | P74: =IF('BİLGİ GİRİŞİ'!W72="","",'BİLGİ GİRİŞİ'!W72) ->  | T74: =IF('BİLGİ GİRİŞİ'!T72="","",IF('BİLGİ GİRİŞİ'!$BN$28=1,"1",'BİLGİ GİRİŞİ'!T72)) -> 
A75: =IF('BİLGİ GİRİŞİ'!D73="","",'BİLGİ GİRİŞİ'!D73) ->  | B75: =IF('BİLGİ GİRİŞİ'!E73="","",'BİLGİ GİRİŞİ'!E73) ->  | P75: =IF('BİLGİ GİRİŞİ'!W73="","",'BİLGİ GİRİŞİ'!W73) ->  | T75: =IF('BİLGİ GİRİŞİ'!T73="","",IF('BİLGİ GİRİŞİ'!$BN$28=1,"1",'BİLGİ GİRİŞİ'!T73)) -> 
A76: =IF('BİLGİ GİRİŞİ'!D74="","",'BİLGİ GİRİŞİ'!D74) ->  | B76: =IF('BİLGİ GİRİŞİ'!E74="","",'BİLGİ GİRİŞİ'!E74) ->  | P76: =IF('BİLGİ GİRİŞİ'!W74="","",'BİLGİ GİRİŞİ'!W74) ->  | T76: =IF('BİLGİ GİRİŞİ'!T74="","",IF('BİLGİ GİRİŞİ'!$BN$28=1,"1",'BİLGİ GİRİŞİ'!T74)) -> 
A77: =IF('BİLGİ GİRİŞİ'!D75="","",'BİLGİ GİRİŞİ'!D75) ->  | B77: =IF('BİLGİ GİRİŞİ'!E75="","",'BİLGİ GİRİŞİ'!E75) ->  | P77: =IF('BİLGİ GİRİŞİ'!W75="","",'BİLGİ GİRİŞİ'!W75) ->  | T77: =IF('BİLGİ GİRİŞİ'!T75="","",IF('BİLGİ GİRİŞİ'!$BN$28=1,"1",'BİLGİ GİRİŞİ'!T75)) -> 
A78: =IF('BİLGİ GİRİŞİ'!D76="","",'BİLGİ GİRİŞİ'!D76) ->  | B78: =IF('BİLGİ GİRİŞİ'!E76="","",'BİLGİ GİRİŞİ'!E76) ->  | P78: =IF('BİLGİ GİRİŞİ'!W76="","",'BİLGİ GİRİŞİ'!W76) ->  | T78: =IF('BİLGİ GİRİŞİ'!T76="","",IF('BİLGİ GİRİŞİ'!$BN$28=1,"1",'BİLGİ GİRİŞİ'!T76)) -> 
A79: =IF('BİLGİ GİRİŞİ'!D77="","",'BİLGİ GİRİŞİ'!D77) ->  | B79: =IF('BİLGİ GİRİŞİ'!E77="","",'BİLGİ GİRİŞİ'!E77) ->  | P79: =IF('BİLGİ GİRİŞİ'!W77="","",'BİLGİ GİRİŞİ'!W77) ->  | T79: =IF('BİLGİ GİRİŞİ'!T77="","",IF('BİLGİ GİRİŞİ'!$BN$28=1,"1",'BİLGİ GİRİŞİ'!T77)) -> 
A80: =IF('BİLGİ GİRİŞİ'!D78="","",'BİLGİ GİRİŞİ'!D78) ->  | B80: =IF('BİLGİ GİRİŞİ'!E78="","",'BİLGİ GİRİŞİ'!E78) ->  | P80: =IF('BİLGİ GİRİŞİ'!W78="","",'BİLGİ GİRİŞİ'!W78) ->  | T80: =IF('BİLGİ GİRİŞİ'!T78="","",IF('BİLGİ GİRİŞİ'!$BN$28=1,"1",'BİLGİ GİRİŞİ'!T78)) -> 
A81: =IF('BİLGİ GİRİŞİ'!D79="","",'BİLGİ GİRİŞİ'!D79) ->  | B81: =IF('BİLGİ GİRİŞİ'!E79="","",'BİLGİ GİRİŞİ'!E79) ->  | P81: =IF('BİLGİ GİRİŞİ'!W79="","",'BİLGİ GİRİŞİ'!W79) ->  | T81: =IF('BİLGİ GİRİŞİ'!T79="","",IF('BİLGİ GİRİŞİ'!$BN$28=1,"1",'BİLGİ GİRİŞİ'!T79)) -> 
A82: =IF('BİLGİ GİRİŞİ'!D80="","",'BİLGİ GİRİŞİ'!D80) ->  | B82: =IF('BİLGİ GİRİŞİ'!E80="","",'BİLGİ GİRİŞİ'!E80) ->  | P82: =IF('BİLGİ GİRİŞİ'!W80="","",'BİLGİ GİRİŞİ'!W80) ->  | T82: =IF('BİLGİ GİRİŞİ'!T80="","",IF('BİLGİ GİRİŞİ'!$BN$28=1,"1",'BİLGİ GİRİŞİ'!T80)) -> 
A83: =IF('BİLGİ GİRİŞİ'!D81="","",'BİLGİ GİRİŞİ'!D81) ->  | B83: =IF('BİLGİ GİRİŞİ'!E81="","",'BİLGİ GİRİŞİ'!E81) ->  | P83: =IF('BİLGİ GİRİŞİ'!W81="","",'BİLGİ GİRİŞİ'!W81) ->  | T83: =IF('BİLGİ GİRİŞİ'!T81="","",IF('BİLGİ GİRİŞİ'!$BN$28=1,"1",'BİLGİ GİRİŞİ'!T81)) -> 
A84: =IF('BİLGİ GİRİŞİ'!D82="","",'BİLGİ GİRİŞİ'!D82) ->  | B84: =IF('BİLGİ GİRİŞİ'!E82="","",'BİLGİ GİRİŞİ'!E82) ->  | P84: =IF('BİLGİ GİRİŞİ'!W82="","",'BİLGİ GİRİŞİ'!W82) ->  | T84: =IF('BİLGİ GİRİŞİ'!T82="","",IF('BİLGİ GİRİŞİ'!$BN$28=1,"1",'BİLGİ GİRİŞİ'!T82)) -> 
A85: =IF('BİLGİ GİRİŞİ'!D83="","",'BİLGİ GİRİŞİ'!D83) ->  | B85: =IF('BİLGİ GİRİŞİ'!E83="","",'BİLGİ GİRİŞİ'!E83) ->  | P85: =IF('BİLGİ GİRİŞİ'!W83="","",'BİLGİ GİRİŞİ'!W83) ->  | T85: =IF('BİLGİ GİRİŞİ'!T83="","",IF('BİLGİ GİRİŞİ'!$BN$28=1,"1",'BİLGİ GİRİŞİ'!T83)) -> 
A86: =IF('BİLGİ GİRİŞİ'!D84="","",'BİLGİ GİRİŞİ'!D84) ->  | B86: =IF('BİLGİ GİRİŞİ'!E84="","",'BİLGİ GİRİŞİ'!E84) ->  | P86: =IF('BİLGİ GİRİŞİ'!W84="","",'BİLGİ GİRİŞİ'!W84) ->  | T86: =IF('BİLGİ GİRİŞİ'!T84="","",IF('BİLGİ GİRİŞİ'!$BN$28=1,"1",'BİLGİ GİRİŞİ'!T84)) -> 
A87: =IF('BİLGİ GİRİŞİ'!D85="","",'BİLGİ GİRİŞİ'!D85) ->  | B87: =IF('BİLGİ GİRİŞİ'!E85="","",'BİLGİ GİRİŞİ'!E85) ->  | P87: =IF('BİLGİ GİRİŞİ'!W85="","",'BİLGİ GİRİŞİ'!W85) ->  | T87: =IF('BİLGİ GİRİŞİ'!T85="","",IF('BİLGİ GİRİŞİ'!$BN$28=1,"1",'BİLGİ GİRİŞİ'!T85)) -> 
A88: =IF('BİLGİ GİRİŞİ'!D86="","",'BİLGİ GİRİŞİ'!D86) ->  | B88: =IF('BİLGİ GİRİŞİ'!E86="","",'BİLGİ GİRİŞİ'!E86) ->  | P88: =IF('BİLGİ GİRİŞİ'!W86="","",'BİLGİ GİRİŞİ'!W86) ->  | T88: =IF('BİLGİ GİRİŞİ'!T86="","",IF('BİLGİ GİRİŞİ'!$BN$28=1,"1",'BİLGİ GİRİŞİ'!T86)) -> 
A89: =IF('BİLGİ GİRİŞİ'!D87="","",'BİLGİ GİRİŞİ'!D87) ->  | B89: =IF('BİLGİ GİRİŞİ'!E87="","",'BİLGİ GİRİŞİ'!E87) ->  | P89: =IF('BİLGİ GİRİŞİ'!W87="","",'BİLGİ GİRİŞİ'!W87) ->  | T89: =IF('BİLGİ GİRİŞİ'!T87="","",IF('BİLGİ GİRİŞİ'!$BN$28=1,"1",'BİLGİ GİRİŞİ'!T87)) -> 
A90: =IF('BİLGİ GİRİŞİ'!D88="","",'BİLGİ GİRİŞİ'!D88) ->  | B90: =IF('BİLGİ GİRİŞİ'!E88="","",'BİLGİ GİRİŞİ'!E88) ->  | P90: =IF('BİLGİ GİRİŞİ'!W88="","",'BİLGİ GİRİŞİ'!W88) ->  | T90: =IF('BİLGİ GİRİŞİ'!T88="","",IF('BİLGİ GİRİŞİ'!$BN$28=1,"1",'BİLGİ GİRİŞİ'!T88)) -> 
A91: =IF('BİLGİ GİRİŞİ'!D89="","",'BİLGİ GİRİŞİ'!D89) ->  | B91: =IF('BİLGİ GİRİŞİ'!E89="","",'BİLGİ GİRİŞİ'!E89) ->  | P91: =IF('BİLGİ GİRİŞİ'!W89="","",'BİLGİ GİRİŞİ'!W89) ->  | T91: =IF('BİLGİ GİRİŞİ'!T89="","",IF('BİLGİ GİRİŞİ'!$BN$28=1,"1",'BİLGİ GİRİŞİ'!T89)) -> 
A92: =IF('BİLGİ GİRİŞİ'!D90="","",'BİLGİ GİRİŞİ'!D90) ->  | B92: =IF('BİLGİ GİRİŞİ'!E90="","",'BİLGİ GİRİŞİ'!E90) ->  | P92: =IF('BİLGİ GİRİŞİ'!W90="","",'BİLGİ GİRİŞİ'!W90) ->  | T92: =IF('BİLGİ GİRİŞİ'!T90="","",IF('BİLGİ GİRİŞİ'!$BN$28=1,"1",'BİLGİ GİRİŞİ'!T90)) -> 
A93: =IF('BİLGİ GİRİŞİ'!D91="","",'BİLGİ GİRİŞİ'!D91) ->  | B93: =IF('BİLGİ GİRİŞİ'!E91="","",'BİLGİ GİRİŞİ'!E91) ->  | P93: =IF('BİLGİ GİRİŞİ'!W91="","",'BİLGİ GİRİŞİ'!W91) ->  | T93: =IF('BİLGİ GİRİŞİ'!T91="","",IF('BİLGİ GİRİŞİ'!$BN$28=1,"1",'BİLGİ GİRİŞİ'!T91)) -> 
A94: =IF('BİLGİ GİRİŞİ'!D92="","",'BİLGİ GİRİŞİ'!D92) ->  | B94: =IF('BİLGİ GİRİŞİ'!E92="","",'BİLGİ GİRİŞİ'!E92) ->  | P94: =IF('BİLGİ GİRİŞİ'!W92="","",'BİLGİ GİRİŞİ'!W92) ->  | T94: =IF('BİLGİ GİRİŞİ'!T92="","",IF('BİLGİ GİRİŞİ'!$BN$28=1,"1",'BİLGİ GİRİŞİ'!T92)) -> 
A95: =IF('BİLGİ GİRİŞİ'!D93="","",'BİLGİ GİRİŞİ'!D93) ->  | B95: =IF('BİLGİ GİRİŞİ'!E93="","",'BİLGİ GİRİŞİ'!E93) ->  | P95: =IF('BİLGİ GİRİŞİ'!W93="","",'BİLGİ GİRİŞİ'!W93) ->  | T95: =IF('BİLGİ GİRİŞİ'!T93="","",IF('BİLGİ GİRİŞİ'!$BN$28=1,"1",'BİLGİ GİRİŞİ'!T93)) -> 
A96: =IF('BİLGİ GİRİŞİ'!D94="","",'BİLGİ GİRİŞİ'!D94) ->  | B96: =IF('BİLGİ GİRİŞİ'!E94="","",'BİLGİ GİRİŞİ'!E94) ->  | P96: =IF('BİLGİ GİRİŞİ'!W94="","",'BİLGİ GİRİŞİ'!W94) ->  | T96: =IF('BİLGİ GİRİŞİ'!T94="","",IF('BİLGİ GİRİŞİ'!$BN$28=1,"1",'BİLGİ GİRİŞİ'!T94)) -> 
A97: =IF('BİLGİ GİRİŞİ'!D95="","",'BİLGİ GİRİŞİ'!D95) ->  | B97: =IF('BİLGİ GİRİŞİ'!E95="","",'BİLGİ GİRİŞİ'!E95) ->  | P97: =IF('BİLGİ GİRİŞİ'!W95="","",'BİLGİ GİRİŞİ'!W95) ->  | T97: =IF('BİLGİ GİRİŞİ'!T95="","",IF('BİLGİ GİRİŞİ'!$BN$28=1,"1",'BİLGİ GİRİŞİ'!T95)) -> 
A98: =IF('BİLGİ GİRİŞİ'!D96="","",'BİLGİ GİRİŞİ'!D96) ->  | B98: =IF('BİLGİ GİRİŞİ'!E96="","",'BİLGİ GİRİŞİ'!E96) ->  | P98: =IF('BİLGİ GİRİŞİ'!W96="","",'BİLGİ GİRİŞİ'!W96) ->  | T98: =IF('BİLGİ GİRİŞİ'!T96="","",IF('BİLGİ GİRİŞİ'!$BN$28=1,"1",'BİLGİ GİRİŞİ'!T96)) -> 
A99: =IF('BİLGİ GİRİŞİ'!D97="","",'BİLGİ GİRİŞİ'!D97) ->  | B99: =IF('BİLGİ GİRİŞİ'!E97="","",'BİLGİ GİRİŞİ'!E97) ->  | P99: =IF('BİLGİ GİRİŞİ'!W97="","",'BİLGİ GİRİŞİ'!W97) ->  | T99: =IF('BİLGİ GİRİŞİ'!T97="","",IF('BİLGİ GİRİŞİ'!$BN$28=1,"1",'BİLGİ GİRİŞİ'!T97)) -> 
A100: =IF('BİLGİ GİRİŞİ'!D98="","",'BİLGİ GİRİŞİ'!D98) ->  | B100: =IF('BİLGİ GİRİŞİ'!E98="","",'BİLGİ GİRİŞİ'!E98) ->  | P100: =IF('BİLGİ GİRİŞİ'!W98="","",'BİLGİ GİRİŞİ'!W98) ->  | T100: =IF('BİLGİ GİRİŞİ'!T98="","",IF('BİLGİ GİRİŞİ'!$BN$28=1,"1",'BİLGİ GİRİŞİ'!T98)) -> 
A101: =IF('BİLGİ GİRİŞİ'!D99="","",'BİLGİ GİRİŞİ'!D99) ->  | B101: =IF('BİLGİ GİRİŞİ'!E99="","",'BİLGİ GİRİŞİ'!E99) ->  | P101: =IF('BİLGİ GİRİŞİ'!W99="","",'BİLGİ GİRİŞİ'!W99) ->  | T101: =IF('BİLGİ GİRİŞİ'!T99="","",IF('BİLGİ GİRİŞİ'!$BN$28=1,"1",'BİLGİ GİRİŞİ'!T99)) -> 
A102: =IF('BİLGİ GİRİŞİ'!D100="","",'BİLGİ GİRİŞİ'!D100) ->  | B102: =IF('BİLGİ GİRİŞİ'!E100="","",'BİLGİ GİRİŞİ'!E100) ->  | P102: =IF('BİLGİ GİRİŞİ'!W100="","",'BİLGİ GİRİŞİ'!W100) ->  | T102: =IF('BİLGİ GİRİŞİ'!T100="","",IF('BİLGİ GİRİŞİ'!$BN$28=1,"1",'BİLGİ GİRİŞİ'!T100)) -> 
A103: =IF('BİLGİ GİRİŞİ'!D101="","",'BİLGİ GİRİŞİ'!D101) ->  | B103: =IF('BİLGİ GİRİŞİ'!E101="","",'BİLGİ GİRİŞİ'!E101) ->  | P103: =IF('BİLGİ GİRİŞİ'!W101="","",'BİLGİ GİRİŞİ'!W101) ->  | T103: =IF('BİLGİ GİRİŞİ'!T101="","",IF('BİLGİ GİRİŞİ'!$BN$28=1,"1",'BİLGİ GİRİŞİ'!T101)) -> 
A104: =IF('BİLGİ GİRİŞİ'!D102="","",'BİLGİ GİRİŞİ'!D102) ->  | B104: =IF('BİLGİ GİRİŞİ'!E102="","",'BİLGİ GİRİŞİ'!E102) ->  | P104: =IF('BİLGİ GİRİŞİ'!W102="","",'BİLGİ GİRİŞİ'!W102) ->  | T104: =IF('BİLGİ GİRİŞİ'!T102="","",IF('BİLGİ GİRİŞİ'!$BN$28=1,"1",'BİLGİ GİRİŞİ'!T102)) -> 
A105: =IF('BİLGİ GİRİŞİ'!D103="","",'BİLGİ GİRİŞİ'!D103) ->  | B105: =IF('BİLGİ GİRİŞİ'!E103="","",'BİLGİ GİRİŞİ'!E103) ->  | P105: =IF('BİLGİ GİRİŞİ'!W103="","",'BİLGİ GİRİŞİ'!W103) ->  | T105: =IF('BİLGİ GİRİŞİ'!T103="","",IF('BİLGİ GİRİŞİ'!$BN$28=1,"1",'BİLGİ GİRİŞİ'!T103)) -> 
A106: =IF('BİLGİ GİRİŞİ'!D104="","",'BİLGİ GİRİŞİ'!D104) ->  | B106: =IF('BİLGİ GİRİŞİ'!E104="","",'BİLGİ GİRİŞİ'!E104) ->  | P106: =IF('BİLGİ GİRİŞİ'!W104="","",'BİLGİ GİRİŞİ'!W104) ->  | T106: =IF('BİLGİ GİRİŞİ'!T104="","",IF('BİLGİ GİRİŞİ'!$BN$28=1,"1",'BİLGİ GİRİŞİ'!T104)) -> 
A107: =IF('BİLGİ GİRİŞİ'!D105="","",'BİLGİ GİRİŞİ'!D105) ->  | B107: =IF('BİLGİ GİRİŞİ'!E105="","",'BİLGİ GİRİŞİ'!E105) ->  | P107: =IF('BİLGİ GİRİŞİ'!W105="","",'BİLGİ GİRİŞİ'!W105) ->  | T107: =IF('BİLGİ GİRİŞİ'!T105="","",IF('BİLGİ GİRİŞİ'!$BN$28=1,"1",'BİLGİ GİRİŞİ'!T105)) -> 
A108: =IF('BİLGİ GİRİŞİ'!D106="","",'BİLGİ GİRİŞİ'!D106) ->  | B108: =IF('BİLGİ GİRİŞİ'!E106="","",'BİLGİ GİRİŞİ'!E106) ->  | P108: =IF('BİLGİ GİRİŞİ'!W106="","",'BİLGİ GİRİŞİ'!W106) ->  | T108: =IF('BİLGİ GİRİŞİ'!T106="","",IF('BİLGİ GİRİŞİ'!$BN$28=1,"1",'BİLGİ GİRİŞİ'!T106)) -> 
A109: =IF('BİLGİ GİRİŞİ'!D107="","",'BİLGİ GİRİŞİ'!D107) ->  | B109: =IF('BİLGİ GİRİŞİ'!E107="","",'BİLGİ GİRİŞİ'!E107) ->  | P109: =IF('BİLGİ GİRİŞİ'!W107="","",'BİLGİ GİRİŞİ'!W107) ->  | T109: =IF('BİLGİ GİRİŞİ'!T107="","",IF('BİLGİ GİRİŞİ'!$BN$28=1,"1",'BİLGİ GİRİŞİ'!T107)) -> 
A110: =IF('BİLGİ GİRİŞİ'!D108="","",'BİLGİ GİRİŞİ'!D108) ->  | B110: =IF('BİLGİ GİRİŞİ'!E108="","",'BİLGİ GİRİŞİ'!E108) ->  | P110: =IF('BİLGİ GİRİŞİ'!W108="","",'BİLGİ GİRİŞİ'!W108) ->  | T110: =IF('BİLGİ GİRİŞİ'!T108="","",IF('BİLGİ GİRİŞİ'!$BN$28=1,"1",'BİLGİ GİRİŞİ'!T108)) -> 
A111: =IF('BİLGİ GİRİŞİ'!D109="","",'BİLGİ GİRİŞİ'!D109) ->  | B111: =IF('BİLGİ GİRİŞİ'!E109="","",'BİLGİ GİRİŞİ'!E109) ->  | P111: =IF('BİLGİ GİRİŞİ'!W109="","",'BİLGİ GİRİŞİ'!W109) ->  | T111: =IF('BİLGİ GİRİŞİ'!T109="","",IF('BİLGİ GİRİŞİ'!$BN$28=1,"1",'BİLGİ GİRİŞİ'!T109)) -> 
A112: =IF('BİLGİ GİRİŞİ'!D110="","",'BİLGİ GİRİŞİ'!D110) ->  | B112: =IF('BİLGİ GİRİŞİ'!E110="","",'BİLGİ GİRİŞİ'!E110) ->  | P112: =IF('BİLGİ GİRİŞİ'!W110="","",'BİLGİ GİRİŞİ'!W110) ->  | T112: =IF('BİLGİ GİRİŞİ'!T110="","",IF('BİLGİ GİRİŞİ'!$BN$28=1,"1",'BİLGİ GİRİŞİ'!T110)) -> 
A113: =IF('BİLGİ GİRİŞİ'!D111="","",'BİLGİ GİRİŞİ'!D111) ->  | B113: =IF('BİLGİ GİRİŞİ'!E111="","",'BİLGİ GİRİŞİ'!E111) ->  | P113: =IF('BİLGİ GİRİŞİ'!W111="","",'BİLGİ GİRİŞİ'!W111) ->  | T113: =IF('BİLGİ GİRİŞİ'!T111="","",IF('BİLGİ GİRİŞİ'!$BN$28=1,"1",'BİLGİ GİRİŞİ'!T111)) -> 
A114: =IF('BİLGİ GİRİŞİ'!D112="","",'BİLGİ GİRİŞİ'!D112) ->  | B114: =IF('BİLGİ GİRİŞİ'!E112="","",'BİLGİ GİRİŞİ'!E112) ->  | P114: =IF('BİLGİ GİRİŞİ'!W112="","",'BİLGİ GİRİŞİ'!W112) ->  | T114: =IF('BİLGİ GİRİŞİ'!T112="","",IF('BİLGİ GİRİŞİ'!$BN$28=1,"1",'BİLGİ GİRİŞİ'!T112)) -> 
A115: =IF('BİLGİ GİRİŞİ'!D113="","",'BİLGİ GİRİŞİ'!D113) ->  | B115: =IF('BİLGİ GİRİŞİ'!E113="","",'BİLGİ GİRİŞİ'!E113) ->  | P115: =IF('BİLGİ GİRİŞİ'!W113="","",'BİLGİ GİRİŞİ'!W113) ->  | T115: =IF('BİLGİ GİRİŞİ'!T113="","",IF('BİLGİ GİRİŞİ'!$BN$28=1,"1",'BİLGİ GİRİŞİ'!T113)) -> 
A116: =IF('BİLGİ GİRİŞİ'!D114="","",'BİLGİ GİRİŞİ'!D114) ->  | B116: =IF('BİLGİ GİRİŞİ'!E114="","",'BİLGİ GİRİŞİ'!E114) ->  | P116: =IF('BİLGİ GİRİŞİ'!W114="","",'BİLGİ GİRİŞİ'!W114) ->  | T116: =IF('BİLGİ GİRİŞİ'!T114="","",IF('BİLGİ GİRİŞİ'!$BN$28=1,"1",'BİLGİ GİRİŞİ'!T114)) -> 
A117: =IF('BİLGİ GİRİŞİ'!D115="","",'BİLGİ GİRİŞİ'!D115) ->  | B117: =IF('BİLGİ GİRİŞİ'!E115="","",'BİLGİ GİRİŞİ'!E115) ->  | P117: =IF('BİLGİ GİRİŞİ'!W115="","",'BİLGİ GİRİŞİ'!W115) ->  | T117: =IF('BİLGİ GİRİŞİ'!T115="","",IF('BİLGİ GİRİŞİ'!$BN$28=1,"1",'BİLGİ GİRİŞİ'!T115)) -> 
A118: =IF('BİLGİ GİRİŞİ'!D116="","",'BİLGİ GİRİŞİ'!D116) ->  | B118: =IF('BİLGİ GİRİŞİ'!E116="","",'BİLGİ GİRİŞİ'!E116) ->  | P118: =IF('BİLGİ GİRİŞİ'!W116="","",'BİLGİ GİRİŞİ'!W116) ->  | T118: =IF('BİLGİ GİRİŞİ'!T116="","",IF('BİLGİ GİRİŞİ'!$BN$28=1,"1",'BİLGİ GİRİŞİ'!T116)) -> 
A119: =IF('BİLGİ GİRİŞİ'!D117="","",'BİLGİ GİRİŞİ'!D117) ->  | B119: =IF('BİLGİ GİRİŞİ'!E117="","",'BİLGİ GİRİŞİ'!E117) ->  | P119: =IF('BİLGİ GİRİŞİ'!W117="","",'BİLGİ GİRİŞİ'!W117) ->  | T119: =IF('BİLGİ GİRİŞİ'!T117="","",IF('BİLGİ GİRİŞİ'!$BN$28=1,"1",'BİLGİ GİRİŞİ'!T117)) -> 
A120: =IF('BİLGİ GİRİŞİ'!D118="","",'BİLGİ GİRİŞİ'!D118) ->  | B120: =IF('BİLGİ GİRİŞİ'!E118="","",'BİLGİ GİRİŞİ'!E118) ->  | P120: =IF('BİLGİ GİRİŞİ'!W118="","",'BİLGİ GİRİŞİ'!W118) ->  | T120: =IF('BİLGİ GİRİŞİ'!T118="","",IF('BİLGİ GİRİŞİ'!$BN$28=1,"1",'BİLGİ GİRİŞİ'!T118)) -> 
A121: =IF('BİLGİ GİRİŞİ'!D119="","",'BİLGİ GİRİŞİ'!D119) ->  | B121: =IF('BİLGİ GİRİŞİ'!E119="","",'BİLGİ GİRİŞİ'!E119) ->  | P121: =IF('BİLGİ GİRİŞİ'!W119="","",'BİLGİ GİRİŞİ'!W119) ->  | T121: =IF('BİLGİ GİRİŞİ'!T119="","",IF('BİLGİ GİRİŞİ'!$BN$28=1,"1",'BİLGİ GİRİŞİ'!T119)) -> 
A122: =IF('BİLGİ GİRİŞİ'!D120="","",'BİLGİ GİRİŞİ'!D120) ->  | B122: =IF('BİLGİ GİRİŞİ'!E120="","",'BİLGİ GİRİŞİ'!E120) ->  | P122: =IF('BİLGİ GİRİŞİ'!W120="","",'BİLGİ GİRİŞİ'!W120) ->  | T122: =IF('BİLGİ GİRİŞİ'!T120="","",IF('BİLGİ GİRİŞİ'!$BN$28=1,"1",'BİLGİ GİRİŞİ'!T120)) -> 
A123: =IF('BİLGİ GİRİŞİ'!D121="","",'BİLGİ GİRİŞİ'!D121) ->  | B123: =IF('BİLGİ GİRİŞİ'!E121="","",'BİLGİ GİRİŞİ'!E121) ->  | P123: =IF('BİLGİ GİRİŞİ'!W121="","",'BİLGİ GİRİŞİ'!W121) ->  | T123: =IF('BİLGİ GİRİŞİ'!T121="","",IF('BİLGİ GİRİŞİ'!$BN$28=1,"1",'BİLGİ GİRİŞİ'!T121)) -> 
A124: =IF('BİLGİ GİRİŞİ'!D122="","",'BİLGİ GİRİŞİ'!D122) ->  | B124: =IF('BİLGİ GİRİŞİ'!E122="","",'BİLGİ GİRİŞİ'!E122) ->  | P124: =IF('BİLGİ GİRİŞİ'!W122="","",'BİLGİ GİRİŞİ'!W122) ->  | T124: =IF('BİLGİ GİRİŞİ'!T122="","",IF('BİLGİ GİRİŞİ'!$BN$28=1,"1",'BİLGİ GİRİŞİ'!T122)) -> 
A125: =IF('BİLGİ GİRİŞİ'!D123="","",'BİLGİ GİRİŞİ'!D123) ->  | B125: =IF('BİLGİ GİRİŞİ'!E123="","",'BİLGİ GİRİŞİ'!E123) ->  | P125: =IF('BİLGİ GİRİŞİ'!W123="","",'BİLGİ GİRİŞİ'!W123) ->  | T125: =IF('BİLGİ GİRİŞİ'!T123="","",IF('BİLGİ GİRİŞİ'!$BN$28=1,"1",'BİLGİ GİRİŞİ'!T123)) -> 
A126: =IF('BİLGİ GİRİŞİ'!D124="","",'BİLGİ GİRİŞİ'!D124) ->  | B126: =IF('BİLGİ GİRİŞİ'!E124="","",'BİLGİ GİRİŞİ'!E124) ->  | P126: =IF('BİLGİ GİRİŞİ'!W124="","",'BİLGİ GİRİŞİ'!W124) ->  | T126: =IF('BİLGİ GİRİŞİ'!T124="","",IF('BİLGİ GİRİŞİ'!$BN$28=1,"1",'BİLGİ GİRİŞİ'!T124)) -> 
A127: =IF('BİLGİ GİRİŞİ'!D125="","",'BİLGİ GİRİŞİ'!D125) ->  | B127: =IF('BİLGİ GİRİŞİ'!E125="","",'BİLGİ GİRİŞİ'!E125) ->  | P127: =IF('BİLGİ GİRİŞİ'!W125="","",'BİLGİ GİRİŞİ'!W125) ->  | T127: =IF('BİLGİ GİRİŞİ'!T125="","",IF('BİLGİ GİRİŞİ'!$BN$28=1,"1",'BİLGİ GİRİŞİ'!T125)) -> 
A128: =IF('BİLGİ GİRİŞİ'!D126="","",'BİLGİ GİRİŞİ'!D126) ->  | B128: =IF('BİLGİ GİRİŞİ'!E126="","",'BİLGİ GİRİŞİ'!E126) ->  | P128: =IF('BİLGİ GİRİŞİ'!W126="","",'BİLGİ GİRİŞİ'!W126) ->  | T128: =IF('BİLGİ GİRİŞİ'!T126="","",IF('BİLGİ GİRİŞİ'!$BN$28=1,"1",'BİLGİ GİRİŞİ'!T126)) -> 
A129: =IF('BİLGİ GİRİŞİ'!D127="","",'BİLGİ GİRİŞİ'!D127) ->  | B129: =IF('BİLGİ GİRİŞİ'!E127="","",'BİLGİ GİRİŞİ'!E127) ->  | P129: =IF('BİLGİ GİRİŞİ'!W127="","",'BİLGİ GİRİŞİ'!W127) ->  | T129: =IF('BİLGİ GİRİŞİ'!T127="","",IF('BİLGİ GİRİŞİ'!$BN$28=1,"1",'BİLGİ GİRİŞİ'!T127)) -> 
A130: =IF('BİLGİ GİRİŞİ'!D128="","",'BİLGİ GİRİŞİ'!D128) ->  | B130: =IF('BİLGİ GİRİŞİ'!E128="","",'BİLGİ GİRİŞİ'!E128) ->  | P130: =IF('BİLGİ GİRİŞİ'!W128="","",'BİLGİ GİRİŞİ'!W128) ->  | T130: =IF('BİLGİ GİRİŞİ'!T128="","",IF('BİLGİ GİRİŞİ'!$BN$28=1,"1",'BİLGİ GİRİŞİ'!T128)) -> 
A131: =IF('BİLGİ GİRİŞİ'!D129="","",'BİLGİ GİRİŞİ'!D129) ->  | B131: =IF('BİLGİ GİRİŞİ'!E129="","",'BİLGİ GİRİŞİ'!E129) ->  | P131: =IF('BİLGİ GİRİŞİ'!W129="","",'BİLGİ GİRİŞİ'!W129) ->  | T131: =IF('BİLGİ GİRİŞİ'!T129="","",IF('BİLGİ GİRİŞİ'!$BN$28=1,"1",'BİLGİ GİRİŞİ'!T129)) -> 
A132: TOPLAM (KDV Hariç)
U134: KİŞİ/FİRMA KAŞE/İMZA

Sheet 3
A2: YAKLAŞIK MALİYET HESAP CETVELİ
A4: İdarenin Adı | K4: : | L4: =IF('BİLGİ GİRİŞİ'!O8="","",'BİLGİ GİRİŞİ'!O8) -> Atatürk İlkokulu Müdürlüğü | AQ4: =IF('BİLGİ GİRİŞİ'!O17="","….../….../….…..",'BİLGİ GİRİŞİ'!O17) -> 2023-03-07
A5: Doğrudan Temin Numarası | K5: : | L5: =IF('BİLGİ GİRİŞİ'!O11="","",'BİLGİ GİRİŞİ'!O11) -> 22DT1211930
A6: Mal/Hizmet/Yapım Adı, Niteliği | K6: : | L6: =IF('BİLGİ GİRİŞİ'!O9="","",'BİLGİ GİRİŞİ'!O9) -> Bilişim Malzemeleri Alımı
A7: Alım/Görevlendirme Onay Tarihi/sayısı | K7: : | L7: =IF('BİLGİ GİRİŞİ'!O15="","",'BİLGİ GİRİŞİ'!O15) -> 2023-03-06 | P7: / | Q7: =IF('BİLGİ GİRİŞİ'!S15="","",'BİLGİ GİRİŞİ'!S15) -> 456789123
A9: =CONCATENATE(" ","Kurumumuz ihtiyaçlarında kullanılmak üzere aşağıda bilgileri verilen Mal/Hizmet/Yapım İşi, Kamu İhale Kanunu'nun ",IF('BİLGİ GİRİŞİ'!O10="",".............................................................................",'BİLGİ GİRİŞİ'!O10)," maddesine göre Doğrudan Temin yoluyla satın alınmak üzere piyasa fiyat araştırması yapılmış olup verilen fiyatlar ve yaklaşık maliyet aşağıya çıkarılmıştır.") -> Kurumumuz ihtiyaçlarında kullanılmak üzere aşağıda bilgileri verilen Mal/Hizmet/Yapım İşi, Kamu İhale Kanunu'nun 22/d maddesine göre Doğrudan Temin yoluyla satın alınmak üzere piyasa fiyat araştırması yapılmış olup verilen fiyatlar ve yaklaşık maliyet aşağıya çıkarılmıştır.
A13: MAL'IN/HİZMET'İN/YAPIM İŞİ'NİN | X13: TEKLİF VEREN KİŞİLER/FİRMALAR VE TEKLİF FİYATLARI | AP13: YAKLAŞIK MALİYET
A14: S | B14: Kalem/KısımBilgileri | P14: Birimi | T14: Miktarı | X14: =IF('BİLGİ GİRİŞİ'!AB28="","",'BİLGİ GİRİŞİ'!AB28) -> A GERÇEK/TÜZEL KİŞİSİ | AD14: =IF('BİLGİ GİRİŞİ'!AJ28="","",'BİLGİ GİRİŞİ'!AJ28) -> B GERÇEK/TÜZEL KİŞİSİ | AJ14: =IF('BİLGİ GİRİŞİ'!AR28="","",'BİLGİ GİRİŞİ'!AR28) -> C GERÇEK/TÜZEL KİŞİSİ
X15: Birim Fiyat | AA15: Toplam Fiyat | AD15: Birim Fiyat | AG15: Toplam Fiyat | AJ15: Birim Fiyat | AM15: Toplam Fiyat | AP15: Birim Fiyat | AS15: Toplam Fiyat
A16: =IF('BİLGİ GİRİŞİ'!D30="","",'BİLGİ GİRİŞİ'!D30) -> 1 | B16: =IF('BİLGİ GİRİŞİ'!E30="","",'BİLGİ GİRİŞİ'!E30) -> AIO (All In One) Masaüstü Bilgisayar | P16: =IF('BİLGİ GİRİŞİ'!W30="","",'BİLGİ GİRİŞİ'!W30) -> Adet | T16: =IF('BİLGİ GİRİŞİ'!T30="","",'BİLGİ GİRİŞİ'!T30) -> 2 | X16: =IF('BİLGİ GİRİŞİ'!AB30="","",'BİLGİ GİRİŞİ'!AB30) -> 2000 | AA16: =IF('BİLGİ GİRİŞİ'!AF30="","",'BİLGİ GİRİŞİ'!AF30) -> 4000 | AD16: =IF('BİLGİ GİRİŞİ'!AJ30="","",'BİLGİ GİRİŞİ'!AJ30) -> 3000 | AG16: =IF('BİLGİ GİRİŞİ'!AN30="","",'BİLGİ GİRİŞİ'!AN30) -> 6000 | AJ16: =IF('BİLGİ GİRİŞİ'!AR30="","",'BİLGİ GİRİŞİ'!AR30) -> 4000 | AM16: =IF('BİLGİ GİRİŞİ'!AV30="","",'BİLGİ GİRİŞİ'!AV30) -> 8000 | AP16: =IF(P16="","",(X16+AD16+AJ16)/3) -> 3000 | AS16: =IF(P16="","",(AA16+AG16+AM16)/3) -> 6000
A17: =IF('BİLGİ GİRİŞİ'!D31="","",'BİLGİ GİRİŞİ'!D31) -> 2 | B17: =IF('BİLGİ GİRİŞİ'!E31="","",'BİLGİ GİRİŞİ'!E31) -> Fotokopi Makinesi | P17: =IF('BİLGİ GİRİŞİ'!W31="","",'BİLGİ GİRİŞİ'!W31) -> Adet | T17: =IF('BİLGİ GİRİŞİ'!T31="","",'BİLGİ GİRİŞİ'!T31) -> 2 | X17: =IF('BİLGİ GİRİŞİ'!AB31="","",'BİLGİ GİRİŞİ'!AB31) -> 3000 | AA17: =IF('BİLGİ GİRİŞİ'!AF31="","",'BİLGİ GİRİŞİ'!AF31) -> 6000 | AD17: =IF('BİLGİ GİRİŞİ'!AJ31="","",'BİLGİ GİRİŞİ'!AJ31) -> 4000 | AG17: =IF('BİLGİ GİRİŞİ'!AN31="","",'BİLGİ GİRİŞİ'!AN31) -> 8000 | AJ17: =IF('BİLGİ GİRİŞİ'!AR31="","",'BİLGİ GİRİŞİ'!AR31) -> 5000 | AM17: =IF('BİLGİ GİRİŞİ'!AV31="","",'BİLGİ GİRİŞİ'!AV31) -> 10000 | AP17: =IF(P17="","",(X17+AD17+AJ17)/3) -> 4000 | AS17: =IF(P17="","",(AA17+AG17+AM17)/3) -> 8000
A18: =IF('BİLGİ GİRİŞİ'!D32="","",'BİLGİ GİRİŞİ'!D32) -> 3 | B18: =IF('BİLGİ GİRİŞİ'!E32="","",'BİLGİ GİRİŞİ'!E32) -> Projektör | P18: =IF('BİLGİ GİRİŞİ'!W32="","",'BİLGİ GİRİŞİ'!W32) -> Adet | T18: =IF('BİLGİ GİRİŞİ'!T32="","",'BİLGİ GİRİŞİ'!T32) -> 2 | X18: =IF('BİLGİ GİRİŞİ'!AB32="","",'BİLGİ GİRİŞİ'!AB32) -> 4000 | AA18: =IF('BİLGİ GİRİŞİ'!AF32="","",'BİLGİ GİRİŞİ'!AF32) -> 8000 | AD18: =IF('BİLGİ GİRİŞİ'!AJ32="","",'BİLGİ GİRİŞİ'!AJ32) -> 5000 | AG18: =IF('BİLGİ GİRİŞİ'!AN32="","",'BİLGİ GİRİŞİ'!AN32) -> 10000 | AJ18: =IF('BİLGİ GİRİŞİ'!AR32="","",'BİLGİ GİRİŞİ'!AR32) -> 6000 | AM18: =IF('BİLGİ GİRİŞİ'!AV32="","",'BİLGİ GİRİŞİ'!AV32) -> 12000 | AP18: 5000 | AS18: 10000
A19: =IF('BİLGİ GİRİŞİ'!D33="","",'BİLGİ GİRİŞİ'!D33) ->  | B19: =IF('BİLGİ GİRİŞİ'!E33="","",'BİLGİ GİRİŞİ'!E33) ->  | P19: =IF('BİLGİ GİRİŞİ'!W33="","",'BİLGİ GİRİŞİ'!W33) ->  | T19: =IF('BİLGİ GİRİŞİ'!T33="","",'BİLGİ GİRİŞİ'!T33) ->  | X19: =IF('BİLGİ GİRİŞİ'!AB33="","",'BİLGİ GİRİŞİ'!AB33) ->  | AA19: =IF('BİLGİ GİRİŞİ'!AF33="","",'BİLGİ GİRİŞİ'!AF33) ->  | AD19: =IF('BİLGİ GİRİŞİ'!AJ33="","",'BİLGİ GİRİŞİ'!AJ33) ->  | AG19: =IF('BİLGİ GİRİŞİ'!AN33="","",'BİLGİ GİRİŞİ'!AN33) ->  | AJ19: =IF('BİLGİ GİRİŞİ'!AR33="","",'BİLGİ GİRİŞİ'!AR33) ->  | AM19: =IF('BİLGİ GİRİŞİ'!AV33="","",'BİLGİ GİRİŞİ'!AV33) -> 
A20: =IF('BİLGİ GİRİŞİ'!D34="","",'BİLGİ GİRİŞİ'!D34) ->  | B20: =IF('BİLGİ GİRİŞİ'!E34="","",'BİLGİ GİRİŞİ'!E34) ->  | P20: =IF('BİLGİ GİRİŞİ'!W34="","",'BİLGİ GİRİŞİ'!W34) ->  | T20: =IF('BİLGİ GİRİŞİ'!T34="","",'BİLGİ GİRİŞİ'!T34) ->  | X20: =IF('BİLGİ GİRİŞİ'!AB34="","",'BİLGİ GİRİŞİ'!AB34) ->  | AA20: =IF('BİLGİ GİRİŞİ'!AF34="","",'BİLGİ GİRİŞİ'!AF34) ->  | AD20: =IF('BİLGİ GİRİŞİ'!AJ34="","",'BİLGİ GİRİŞİ'!AJ34) ->  | AG20: =IF('BİLGİ GİRİŞİ'!AN34="","",'BİLGİ GİRİŞİ'!AN34) ->  | AJ20: =IF('BİLGİ GİRİŞİ'!AR34="","",'BİLGİ GİRİŞİ'!AR34) ->  | AM20: =IF('BİLGİ GİRİŞİ'!AV34="","",'BİLGİ GİRİŞİ'!AV34) -> 
A21: =IF('BİLGİ GİRİŞİ'!D35="","",'BİLGİ GİRİŞİ'!D35) ->  | B21: =IF('BİLGİ GİRİŞİ'!E35="","",'BİLGİ GİRİŞİ'!E35) ->  | P21: =IF('BİLGİ GİRİŞİ'!W35="","",'BİLGİ GİRİŞİ'!W35) ->  | T21: =IF('BİLGİ GİRİŞİ'!T35="","",'BİLGİ GİRİŞİ'!T35) ->  | X21: =IF('BİLGİ GİRİŞİ'!AB35="","",'BİLGİ GİRİŞİ'!AB35) ->  | AA21: =IF('BİLGİ GİRİŞİ'!AF35="","",'BİLGİ GİRİŞİ'!AF35) ->  | AD21: =IF('BİLGİ GİRİŞİ'!AJ35="","",'BİLGİ GİRİŞİ'!AJ35) ->  | AG21: =IF('BİLGİ GİRİŞİ'!AN35="","",'BİLGİ GİRİŞİ'!AN35) ->  | AJ21: =IF('BİLGİ GİRİŞİ'!AR35="","",'BİLGİ GİRİŞİ'!AR35) ->  | AM21: =IF('BİLGİ GİRİŞİ'!AV35="","",'BİLGİ GİRİŞİ'!AV35) -> 
A22: =IF('BİLGİ GİRİŞİ'!D36="","",'BİLGİ GİRİŞİ'!D36) ->  | B22: =IF('BİLGİ GİRİŞİ'!E36="","",'BİLGİ GİRİŞİ'!E36) ->  | P22: =IF('BİLGİ GİRİŞİ'!W36="","",'BİLGİ GİRİŞİ'!W36) ->  | T22: =IF('BİLGİ GİRİŞİ'!T36="","",'BİLGİ GİRİŞİ'!T36) ->  | X22: =IF('BİLGİ GİRİŞİ'!AB36="","",'BİLGİ GİRİŞİ'!AB36) ->  | AA22: =IF('BİLGİ GİRİŞİ'!AF36="","",'BİLGİ GİRİŞİ'!AF36) ->  | AD22: =IF('BİLGİ GİRİŞİ'!AJ36="","",'BİLGİ GİRİŞİ'!AJ36) ->  | AG22: =IF('BİLGİ GİRİŞİ'!AN36="","",'BİLGİ GİRİŞİ'!AN36) ->  | AJ22: =IF('BİLGİ GİRİŞİ'!AR36="","",'BİLGİ GİRİŞİ'!AR36) ->  | AM22: =IF('BİLGİ GİRİŞİ'!AV36="","",'BİLGİ GİRİŞİ'!AV36) -> 
A23: =IF('BİLGİ GİRİŞİ'!D37="","",'BİLGİ GİRİŞİ'!D37) ->  | B23: =IF('BİLGİ GİRİŞİ'!E37="","",'BİLGİ GİRİŞİ'!E37) ->  | P23: =IF('BİLGİ GİRİŞİ'!W37="","",'BİLGİ GİRİŞİ'!W37) ->  | T23: =IF('BİLGİ GİRİŞİ'!T37="","",'BİLGİ GİRİŞİ'!T37) ->  | X23: =IF('BİLGİ GİRİŞİ'!AB37="","",'BİLGİ GİRİŞİ'!AB37) ->  | AA23: =IF('BİLGİ GİRİŞİ'!AF37="","",'BİLGİ GİRİŞİ'!AF37) ->  | AD23: =IF('BİLGİ GİRİŞİ'!AJ37="","",'BİLGİ GİRİŞİ'!AJ37) ->  | AG23: =IF('BİLGİ GİRİŞİ'!AN37="","",'BİLGİ GİRİŞİ'!AN37) ->  | AJ23: =IF('BİLGİ GİRİŞİ'!AR37="","",'BİLGİ GİRİŞİ'!AR37) ->  | AM23: =IF('BİLGİ GİRİŞİ'!AV37="","",'BİLGİ GİRİŞİ'!AV37) -> 
A24: =IF('BİLGİ GİRİŞİ'!D38="","",'BİLGİ GİRİŞİ'!D38) ->  | B24: =IF('BİLGİ GİRİŞİ'!E38="","",'BİLGİ GİRİŞİ'!E38) ->  | P24: =IF('BİLGİ GİRİŞİ'!W38="","",'BİLGİ GİRİŞİ'!W38) ->  | T24: =IF('BİLGİ GİRİŞİ'!T38="","",'BİLGİ GİRİŞİ'!T38) ->  | X24: =IF('BİLGİ GİRİŞİ'!AB38="","",'BİLGİ GİRİŞİ'!AB38) ->  | AA24: =IF('BİLGİ GİRİŞİ'!AF38="","",'BİLGİ GİRİŞİ'!AF38) ->  | AD24: =IF('BİLGİ GİRİŞİ'!AJ38="","",'BİLGİ GİRİŞİ'!AJ38) ->  | AG24: =IF('BİLGİ GİRİŞİ'!AN38="","",'BİLGİ GİRİŞİ'!AN38) ->  | AJ24: =IF('BİLGİ GİRİŞİ'!AR38="","",'BİLGİ GİRİŞİ'!AR38) ->  | AM24: =IF('BİLGİ GİRİŞİ'!AV38="","",'BİLGİ GİRİŞİ'!AV38) -> 
A25: =IF('BİLGİ GİRİŞİ'!D39="","",'BİLGİ GİRİŞİ'!D39) ->  | B25: =IF('BİLGİ GİRİŞİ'!E39="","",'BİLGİ GİRİŞİ'!E39) ->  | P25: =IF('BİLGİ GİRİŞİ'!W39="","",'BİLGİ GİRİŞİ'!W39) ->  | T25: =IF('BİLGİ GİRİŞİ'!T39="","",'BİLGİ GİRİŞİ'!T39) ->  | X25: =IF('BİLGİ GİRİŞİ'!AB39="","",'BİLGİ GİRİŞİ'!AB39) ->  | AA25: =IF('BİLGİ GİRİŞİ'!AF39="","",'BİLGİ GİRİŞİ'!AF39) ->  | AD25: =IF('BİLGİ GİRİŞİ'!AJ39="","",'BİLGİ GİRİŞİ'!AJ39) ->  | AG25: =IF('BİLGİ GİRİŞİ'!AN39="","",'BİLGİ GİRİŞİ'!AN39) ->  | AJ25: =IF('BİLGİ GİRİŞİ'!AR39="","",'BİLGİ GİRİŞİ'!AR39) ->  | AM25: =IF('BİLGİ GİRİŞİ'!AV39="","",'BİLGİ GİRİŞİ'!AV39) -> 
A26: =IF('BİLGİ GİRİŞİ'!D40="","",'BİLGİ GİRİŞİ'!D40) ->  | B26: =IF('BİLGİ GİRİŞİ'!E40="","",'BİLGİ GİRİŞİ'!E40) ->  | P26: =IF('BİLGİ GİRİŞİ'!W40="","",'BİLGİ GİRİŞİ'!W40) ->  | T26: =IF('BİLGİ GİRİŞİ'!T40="","",'BİLGİ GİRİŞİ'!T40) ->  | X26: =IF('BİLGİ GİRİŞİ'!AB40="","",'BİLGİ GİRİŞİ'!AB40) ->  | AA26: =IF('BİLGİ GİRİŞİ'!AF40="","",'BİLGİ GİRİŞİ'!AF40) ->  | AD26: =IF('BİLGİ GİRİŞİ'!AJ40="","",'BİLGİ GİRİŞİ'!AJ40) ->  | AG26: =IF('BİLGİ GİRİŞİ'!AN40="","",'BİLGİ GİRİŞİ'!AN40) ->  | AJ26: =IF('BİLGİ GİRİŞİ'!AR40="","",'BİLGİ GİRİŞİ'!AR40) ->  | AM26: =IF('BİLGİ GİRİŞİ'!AV40="","",'BİLGİ GİRİŞİ'!AV40) -> 
A27: =IF('BİLGİ GİRİŞİ'!D41="","",'BİLGİ GİRİŞİ'!D41) ->  | B27: =IF('BİLGİ GİRİŞİ'!E41="","",'BİLGİ GİRİŞİ'!E41) ->  | P27: =IF('BİLGİ GİRİŞİ'!W41="","",'BİLGİ GİRİŞİ'!W41) ->  | T27: =IF('BİLGİ GİRİŞİ'!T41="","",'BİLGİ GİRİŞİ'!T41) ->  | X27: =IF('BİLGİ GİRİŞİ'!AB41="","",'BİLGİ GİRİŞİ'!AB41) ->  | AA27: =IF('BİLGİ GİRİŞİ'!AF41="","",'BİLGİ GİRİŞİ'!AF41) ->  | AD27: =IF('BİLGİ GİRİŞİ'!AJ41="","",'BİLGİ GİRİŞİ'!AJ41) ->  | AG27: =IF('BİLGİ GİRİŞİ'!AN41="","",'BİLGİ GİRİŞİ'!AN41) ->  | AJ27: =IF('BİLGİ GİRİŞİ'!AR41="","",'BİLGİ GİRİŞİ'!AR41) ->  | AM27: =IF('BİLGİ GİRİŞİ'!AV41="","",'BİLGİ GİRİŞİ'!AV41) -> 
A28: =IF('BİLGİ GİRİŞİ'!D42="","",'BİLGİ GİRİŞİ'!D42) ->  | B28: =IF('BİLGİ GİRİŞİ'!E42="","",'BİLGİ GİRİŞİ'!E42) ->  | P28: =IF('BİLGİ GİRİŞİ'!W42="","",'BİLGİ GİRİŞİ'!W42) ->  | T28: =IF('BİLGİ GİRİŞİ'!T42="","",'BİLGİ GİRİŞİ'!T42) ->  | X28: =IF('BİLGİ GİRİŞİ'!AB42="","",'BİLGİ GİRİŞİ'!AB42) ->  | AA28: =IF('BİLGİ GİRİŞİ'!AF42="","",'BİLGİ GİRİŞİ'!AF42) ->  | AD28: =IF('BİLGİ GİRİŞİ'!AJ42="","",'BİLGİ GİRİŞİ'!AJ42) ->  | AG28: =IF('BİLGİ GİRİŞİ'!AN42="","",'BİLGİ GİRİŞİ'!AN42) ->  | AJ28: =IF('BİLGİ GİRİŞİ'!AR42="","",'BİLGİ GİRİŞİ'!AR42) ->  | AM28: =IF('BİLGİ GİRİŞİ'!AV42="","",'BİLGİ GİRİŞİ'!AV42) -> 
A29: =IF('BİLGİ GİRİŞİ'!D43="","",'BİLGİ GİRİŞİ'!D43) ->  | B29: =IF('BİLGİ GİRİŞİ'!E43="","",'BİLGİ GİRİŞİ'!E43) ->  | P29: =IF('BİLGİ GİRİŞİ'!W43="","",'BİLGİ GİRİŞİ'!W43) ->  | T29: =IF('BİLGİ GİRİŞİ'!T43="","",'BİLGİ GİRİŞİ'!T43) ->  | X29: =IF('BİLGİ GİRİŞİ'!AB43="","",'BİLGİ GİRİŞİ'!AB43) ->  | AA29: =IF('BİLGİ GİRİŞİ'!AF43="","",'BİLGİ GİRİŞİ'!AF43) ->  | AD29: =IF('BİLGİ GİRİŞİ'!AJ43="","",'BİLGİ GİRİŞİ'!AJ43) ->  | AG29: =IF('BİLGİ GİRİŞİ'!AN43="","",'BİLGİ GİRİŞİ'!AN43) ->  | AJ29: =IF('BİLGİ GİRİŞİ'!AR43="","",'BİLGİ GİRİŞİ'!AR43) ->  | AM29: =IF('BİLGİ GİRİŞİ'!AV43="","",'BİLGİ GİRİŞİ'!AV43) -> 
A30: =IF('BİLGİ GİRİŞİ'!D44="","",'BİLGİ GİRİŞİ'!D44) ->  | B30: =IF('BİLGİ GİRİŞİ'!E44="","",'BİLGİ GİRİŞİ'!E44) ->  | P30: =IF('BİLGİ GİRİŞİ'!W44="","",'BİLGİ GİRİŞİ'!W44) ->  | T30: =IF('BİLGİ GİRİŞİ'!T44="","",'BİLGİ GİRİŞİ'!T44) ->  | X30: =IF('BİLGİ GİRİŞİ'!AB44="","",'BİLGİ GİRİŞİ'!AB44) ->  | AA30: =IF('BİLGİ GİRİŞİ'!AF44="","",'BİLGİ GİRİŞİ'!AF44) ->  | AD30: =IF('BİLGİ GİRİŞİ'!AJ44="","",'BİLGİ GİRİŞİ'!AJ44) ->  | AG30: =IF('BİLGİ GİRİŞİ'!AN44="","",'BİLGİ GİRİŞİ'!AN44) ->  | AJ30: =IF('BİLGİ GİRİŞİ'!AR44="","",'BİLGİ GİRİŞİ'!AR44) ->  | AM30: =IF('BİLGİ GİRİŞİ'!AV44="","",'BİLGİ GİRİŞİ'!AV44) -> 
A31: =IF('BİLGİ GİRİŞİ'!D45="","",'BİLGİ GİRİŞİ'!D45) ->  | B31: =IF('BİLGİ GİRİŞİ'!E45="","",'BİLGİ GİRİŞİ'!E45) ->  | P31: =IF('BİLGİ GİRİŞİ'!W45="","",'BİLGİ GİRİŞİ'!W45) ->  | T31: =IF('BİLGİ GİRİŞİ'!T45="","",'BİLGİ GİRİŞİ'!T45) ->  | X31: =IF('BİLGİ GİRİŞİ'!AB45="","",'BİLGİ GİRİŞİ'!AB45) ->  | AA31: =IF('BİLGİ GİRİŞİ'!AF45="","",'BİLGİ GİRİŞİ'!AF45) ->  | AD31: =IF('BİLGİ GİRİŞİ'!AJ45="","",'BİLGİ GİRİŞİ'!AJ45) ->  | AG31: =IF('BİLGİ GİRİŞİ'!AN45="","",'BİLGİ GİRİŞİ'!AN45) ->  | AJ31: =IF('BİLGİ GİRİŞİ'!AR45="","",'BİLGİ GİRİŞİ'!AR45) ->  | AM31: =IF('BİLGİ GİRİŞİ'!AV45="","",'BİLGİ GİRİŞİ'!AV45) -> 
A32: =IF('BİLGİ GİRİŞİ'!D46="","",'BİLGİ GİRİŞİ'!D46) ->  | B32: =IF('BİLGİ GİRİŞİ'!E46="","",'BİLGİ GİRİŞİ'!E46) ->  | P32: =IF('BİLGİ GİRİŞİ'!W46="","",'BİLGİ GİRİŞİ'!W46) ->  | T32: =IF('BİLGİ GİRİŞİ'!T46="","",'BİLGİ GİRİŞİ'!T46) ->  | X32: =IF('BİLGİ GİRİŞİ'!AB46="","",'BİLGİ GİRİŞİ'!AB46) ->  | AA32: =IF('BİLGİ GİRİŞİ'!AF46="","",'BİLGİ GİRİŞİ'!AF46) ->  | AD32: =IF('BİLGİ GİRİŞİ'!AJ46="","",'BİLGİ GİRİŞİ'!AJ46) ->  | AG32: =IF('BİLGİ GİRİŞİ'!AN46="","",'BİLGİ GİRİŞİ'!AN46) ->  | AJ32: =IF('BİLGİ GİRİŞİ'!AR46="","",'BİLGİ GİRİŞİ'!AR46) ->  | AM32: =IF('BİLGİ GİRİŞİ'!AV46="","",'BİLGİ GİRİŞİ'!AV46) -> 
A33: =IF('BİLGİ GİRİŞİ'!D47="","",'BİLGİ GİRİŞİ'!D47) ->  | B33: =IF('BİLGİ GİRİŞİ'!E47="","",'BİLGİ GİRİŞİ'!E47) ->  | P33: =IF('BİLGİ GİRİŞİ'!W47="","",'BİLGİ GİRİŞİ'!W47) ->  | T33: =IF('BİLGİ GİRİŞİ'!T47="","",'BİLGİ GİRİŞİ'!T47) ->  | X33: =IF('BİLGİ GİRİŞİ'!AB47="","",'BİLGİ GİRİŞİ'!AB47) ->  | AA33: =IF('BİLGİ GİRİŞİ'!AF47="","",'BİLGİ GİRİŞİ'!AF47) ->  | AD33: =IF('BİLGİ GİRİŞİ'!AJ47="","",'BİLGİ GİRİŞİ'!AJ47) ->  | AG33: =IF('BİLGİ GİRİŞİ'!AN47="","",'BİLGİ GİRİŞİ'!AN47) ->  | AJ33: =IF('BİLGİ GİRİŞİ'!AR47="","",'BİLGİ GİRİŞİ'!AR47) ->  | AM33: =IF('BİLGİ GİRİŞİ'!AV47="","",'BİLGİ GİRİŞİ'!AV47) -> 
A34: =IF('BİLGİ GİRİŞİ'!D48="","",'BİLGİ GİRİŞİ'!D48) ->  | B34: =IF('BİLGİ GİRİŞİ'!E48="","",'BİLGİ GİRİŞİ'!E48) ->  | P34: =IF('BİLGİ GİRİŞİ'!W48="","",'BİLGİ GİRİŞİ'!W48) ->  | T34: =IF('BİLGİ GİRİŞİ'!T48="","",'BİLGİ GİRİŞİ'!T48) ->  | X34: =IF('BİLGİ GİRİŞİ'!AB48="","",'BİLGİ GİRİŞİ'!AB48) ->  | AA34: =IF('BİLGİ GİRİŞİ'!AF48="","",'BİLGİ GİRİŞİ'!AF48) ->  | AD34: =IF('BİLGİ GİRİŞİ'!AJ48="","",'BİLGİ GİRİŞİ'!AJ48) ->  | AG34: =IF('BİLGİ GİRİŞİ'!AN48="","",'BİLGİ GİRİŞİ'!AN48) ->  | AJ34: =IF('BİLGİ GİRİŞİ'!AR48="","",'BİLGİ GİRİŞİ'!AR48) ->  | AM34: =IF('BİLGİ GİRİŞİ'!AV48="","",'BİLGİ GİRİŞİ'!AV48) ->  | AP34: =IF(P34="","",(X34+AD34+AJ34)/3) ->  | AS34: =IF(P34="","",(AA34+AG34+AM34)/3) -> 
A35: =IF('BİLGİ GİRİŞİ'!D49="","",'BİLGİ GİRİŞİ'!D49) ->  | B35: =IF('BİLGİ GİRİŞİ'!E49="","",'BİLGİ GİRİŞİ'!E49) ->  | P35: =IF('BİLGİ GİRİŞİ'!W49="","",'BİLGİ GİRİŞİ'!W49) ->  | T35: =IF('BİLGİ GİRİŞİ'!T49="","",'BİLGİ GİRİŞİ'!T49) ->  | X35: =IF('BİLGİ GİRİŞİ'!AB49="","",'BİLGİ GİRİŞİ'!AB49) ->  | AA35: =IF('BİLGİ GİRİŞİ'!AF49="","",'BİLGİ GİRİŞİ'!AF49) ->  | AD35: =IF('BİLGİ GİRİŞİ'!AJ49="","",'BİLGİ GİRİŞİ'!AJ49) ->  | AG35: =IF('BİLGİ GİRİŞİ'!AN49="","",'BİLGİ GİRİŞİ'!AN49) ->  | AJ35: =IF('BİLGİ GİRİŞİ'!AR49="","",'BİLGİ GİRİŞİ'!AR49) ->  | AM35: =IF('BİLGİ GİRİŞİ'!AV49="","",'BİLGİ GİRİŞİ'!AV49) -> 
A36: =IF('BİLGİ GİRİŞİ'!D50="","",'BİLGİ GİRİŞİ'!D50) ->  | B36: =IF('BİLGİ GİRİŞİ'!E50="","",'BİLGİ GİRİŞİ'!E50) ->  | P36: =IF('BİLGİ GİRİŞİ'!W50="","",'BİLGİ GİRİŞİ'!W50) ->  | T36: =IF('BİLGİ GİRİŞİ'!T50="","",'BİLGİ GİRİŞİ'!T50) ->  | X36: =IF('BİLGİ GİRİŞİ'!AB50="","",'BİLGİ GİRİŞİ'!AB50) ->  | AA36: =IF('BİLGİ GİRİŞİ'!AF50="","",'BİLGİ GİRİŞİ'!AF50) ->  | AD36: =IF('BİLGİ GİRİŞİ'!AJ50="","",'BİLGİ GİRİŞİ'!AJ50) ->  | AG36: =IF('BİLGİ GİRİŞİ'!AN50="","",'BİLGİ GİRİŞİ'!AN50) ->  | AJ36: =IF('BİLGİ GİRİŞİ'!AR50="","",'BİLGİ GİRİŞİ'!AR50) ->  | AM36: =IF('BİLGİ GİRİŞİ'!AV50="","",'BİLGİ GİRİŞİ'!AV50) -> 
A37: =IF('BİLGİ GİRİŞİ'!D51="","",'BİLGİ GİRİŞİ'!D51) ->  | B37: =IF('BİLGİ GİRİŞİ'!E51="","",'BİLGİ GİRİŞİ'!E51) ->  | P37: =IF('BİLGİ GİRİŞİ'!W51="","",'BİLGİ GİRİŞİ'!W51) ->  | T37: =IF('BİLGİ GİRİŞİ'!T51="","",'BİLGİ GİRİŞİ'!T51) ->  | X37: =IF('BİLGİ GİRİŞİ'!AB51="","",'BİLGİ GİRİŞİ'!AB51) ->  | AA37: =IF('BİLGİ GİRİŞİ'!AF51="","",'BİLGİ GİRİŞİ'!AF51) ->  | AD37: =IF('BİLGİ GİRİŞİ'!AJ51="","",'BİLGİ GİRİŞİ'!AJ51) ->  | AG37: =IF('BİLGİ GİRİŞİ'!AN51="","",'BİLGİ GİRİŞİ'!AN51) ->  | AJ37: =IF('BİLGİ GİRİŞİ'!AR51="","",'BİLGİ GİRİŞİ'!AR51) ->  | AM37: =IF('BİLGİ GİRİŞİ'!AV51="","",'BİLGİ GİRİŞİ'!AV51) -> 
A38: =IF('BİLGİ GİRİŞİ'!D52="","",'BİLGİ GİRİŞİ'!D52) ->  | B38: =IF('BİLGİ GİRİŞİ'!E52="","",'BİLGİ GİRİŞİ'!E52) ->  | P38: =IF('BİLGİ GİRİŞİ'!W52="","",'BİLGİ GİRİŞİ'!W52) ->  | T38: =IF('BİLGİ GİRİŞİ'!T52="","",'BİLGİ GİRİŞİ'!T52) ->  | X38: =IF('BİLGİ GİRİŞİ'!AB52="","",'BİLGİ GİRİŞİ'!AB52) ->  | AA38: =IF('BİLGİ GİRİŞİ'!AF52="","",'BİLGİ GİRİŞİ'!AF52) ->  | AD38: =IF('BİLGİ GİRİŞİ'!AJ52="","",'BİLGİ GİRİŞİ'!AJ52) ->  | AG38: =IF('BİLGİ GİRİŞİ'!AN52="","",'BİLGİ GİRİŞİ'!AN52) ->  | AJ38: =IF('BİLGİ GİRİŞİ'!AR52="","",'BİLGİ GİRİŞİ'!AR52) ->  | AM38: =IF('BİLGİ GİRİŞİ'!AV52="","",'BİLGİ GİRİŞİ'!AV52) -> 
A39: =IF('BİLGİ GİRİŞİ'!D53="","",'BİLGİ GİRİŞİ'!D53) ->  | B39: =IF('BİLGİ GİRİŞİ'!E53="","",'BİLGİ GİRİŞİ'!E53) ->  | P39: =IF('BİLGİ GİRİŞİ'!W53="","",'BİLGİ GİRİŞİ'!W53) ->  | T39: =IF('BİLGİ GİRİŞİ'!T53="","",'BİLGİ GİRİŞİ'!T53) ->  | X39: =IF('BİLGİ GİRİŞİ'!AB53="","",'BİLGİ GİRİŞİ'!AB53) ->  | AA39: =IF('BİLGİ GİRİŞİ'!AF53="","",'BİLGİ GİRİŞİ'!AF53) ->  | AD39: =IF('BİLGİ GİRİŞİ'!AJ53="","",'BİLGİ GİRİŞİ'!AJ53) ->  | AG39: =IF('BİLGİ GİRİŞİ'!AN53="","",'BİLGİ GİRİŞİ'!AN53) ->  | AJ39: =IF('BİLGİ GİRİŞİ'!AR53="","",'BİLGİ GİRİŞİ'!AR53) ->  | AM39: =IF('BİLGİ GİRİŞİ'!AV53="","",'BİLGİ GİRİŞİ'!AV53) -> 
A40: =IF('BİLGİ GİRİŞİ'!D54="","",'BİLGİ GİRİŞİ'!D54) ->  | B40: =IF('BİLGİ GİRİŞİ'!E54="","",'BİLGİ GİRİŞİ'!E54) ->  | P40: =IF('BİLGİ GİRİŞİ'!W54="","",'BİLGİ GİRİŞİ'!W54) ->  | T40: =IF('BİLGİ GİRİŞİ'!T54="","",'BİLGİ GİRİŞİ'!T54) ->  | X40: =IF('BİLGİ GİRİŞİ'!AB54="","",'BİLGİ GİRİŞİ'!AB54) ->  | AA40: =IF('BİLGİ GİRİŞİ'!AF54="","",'BİLGİ GİRİŞİ'!AF54) ->  | AD40: =IF('BİLGİ GİRİŞİ'!AJ54="","",'BİLGİ GİRİŞİ'!AJ54) ->  | AG40: =IF('BİLGİ GİRİŞİ'!AN54="","",'BİLGİ GİRİŞİ'!AN54) ->  | AJ40: =IF('BİLGİ GİRİŞİ'!AR54="","",'BİLGİ GİRİŞİ'!AR54) ->  | AM40: =IF('BİLGİ GİRİŞİ'!AV54="","",'BİLGİ GİRİŞİ'!AV54) -> 
A41: =IF('BİLGİ GİRİŞİ'!D55="","",'BİLGİ GİRİŞİ'!D55) ->  | B41: =IF('BİLGİ GİRİŞİ'!E55="","",'BİLGİ GİRİŞİ'!E55) ->  | P41: =IF('BİLGİ GİRİŞİ'!W55="","",'BİLGİ GİRİŞİ'!W55) ->  | T41: =IF('BİLGİ GİRİŞİ'!T55="","",'BİLGİ GİRİŞİ'!T55) ->  | X41: =IF('BİLGİ GİRİŞİ'!AB55="","",'BİLGİ GİRİŞİ'!AB55) ->  | AA41: =IF('BİLGİ GİRİŞİ'!AF55="","",'BİLGİ GİRİŞİ'!AF55) ->  | AD41: =IF('BİLGİ GİRİŞİ'!AJ55="","",'BİLGİ GİRİŞİ'!AJ55) ->  | AG41: =IF('BİLGİ GİRİŞİ'!AN55="","",'BİLGİ GİRİŞİ'!AN55) ->  | AJ41: =IF('BİLGİ GİRİŞİ'!AR55="","",'BİLGİ GİRİŞİ'!AR55) ->  | AM41: =IF('BİLGİ GİRİŞİ'!AV55="","",'BİLGİ GİRİŞİ'!AV55) -> 
A42: =IF('BİLGİ GİRİŞİ'!D56="","",'BİLGİ GİRİŞİ'!D56) ->  | B42: =IF('BİLGİ GİRİŞİ'!E56="","",'BİLGİ GİRİŞİ'!E56) ->  | P42: =IF('BİLGİ GİRİŞİ'!W56="","",'BİLGİ GİRİŞİ'!W56) ->  | T42: =IF('BİLGİ GİRİŞİ'!T56="","",'BİLGİ GİRİŞİ'!T56) ->  | X42: =IF('BİLGİ GİRİŞİ'!AB56="","",'BİLGİ GİRİŞİ'!AB56) ->  | AA42: =IF('BİLGİ GİRİŞİ'!AF56="","",'BİLGİ GİRİŞİ'!AF56) ->  | AD42: =IF('BİLGİ GİRİŞİ'!AJ56="","",'BİLGİ GİRİŞİ'!AJ56) ->  | AG42: =IF('BİLGİ GİRİŞİ'!AN56="","",'BİLGİ GİRİŞİ'!AN56) ->  | AJ42: =IF('BİLGİ GİRİŞİ'!AR56="","",'BİLGİ GİRİŞİ'!AR56) ->  | AM42: =IF('BİLGİ GİRİŞİ'!AV56="","",'BİLGİ GİRİŞİ'!AV56) -> 
A43: =IF('BİLGİ GİRİŞİ'!D57="","",'BİLGİ GİRİŞİ'!D57) ->  | B43: =IF('BİLGİ GİRİŞİ'!E57="","",'BİLGİ GİRİŞİ'!E57) ->  | P43: =IF('BİLGİ GİRİŞİ'!W57="","",'BİLGİ GİRİŞİ'!W57) ->  | T43: =IF('BİLGİ GİRİŞİ'!T57="","",'BİLGİ GİRİŞİ'!T57) ->  | X43: =IF('BİLGİ GİRİŞİ'!AB57="","",'BİLGİ GİRİŞİ'!AB57) ->  | AA43: =IF('BİLGİ GİRİŞİ'!AF57="","",'BİLGİ GİRİŞİ'!AF57) ->  | AD43: =IF('BİLGİ GİRİŞİ'!AJ57="","",'BİLGİ GİRİŞİ'!AJ57) ->  | AG43: =IF('BİLGİ GİRİŞİ'!AN57="","",'BİLGİ GİRİŞİ'!AN57) ->  | AJ43: =IF('BİLGİ GİRİŞİ'!AR57="","",'BİLGİ GİRİŞİ'!AR57) ->  | AM43: =IF('BİLGİ GİRİŞİ'!AV57="","",'BİLGİ GİRİŞİ'!AV57) -> 
A44: =IF('BİLGİ GİRİŞİ'!D58="","",'BİLGİ GİRİŞİ'!D58) ->  | B44: =IF('BİLGİ GİRİŞİ'!E58="","",'BİLGİ GİRİŞİ'!E58) ->  | P44: =IF('BİLGİ GİRİŞİ'!W58="","",'BİLGİ GİRİŞİ'!W58) ->  | T44: =IF('BİLGİ GİRİŞİ'!T58="","",'BİLGİ GİRİŞİ'!T58) ->  | X44: =IF('BİLGİ GİRİŞİ'!AB58="","",'BİLGİ GİRİŞİ'!AB58) ->  | AA44: =IF('BİLGİ GİRİŞİ'!AF58="","",'BİLGİ GİRİŞİ'!AF58) ->  | AD44: =IF('BİLGİ GİRİŞİ'!AJ58="","",'BİLGİ GİRİŞİ'!AJ58) ->  | AG44: =IF('BİLGİ GİRİŞİ'!AN58="","",'BİLGİ GİRİŞİ'!AN58) ->  | AJ44: =IF('BİLGİ GİRİŞİ'!AR58="","",'BİLGİ GİRİŞİ'!AR58) ->  | AM44: =IF('BİLGİ GİRİŞİ'!AV58="","",'BİLGİ GİRİŞİ'!AV58) -> 
A45: =IF('BİLGİ GİRİŞİ'!D59="","",'BİLGİ GİRİŞİ'!D59) ->  | B45: =IF('BİLGİ GİRİŞİ'!E59="","",'BİLGİ GİRİŞİ'!E59) ->  | P45: =IF('BİLGİ GİRİŞİ'!W59="","",'BİLGİ GİRİŞİ'!W59) ->  | T45: =IF('BİLGİ GİRİŞİ'!T59="","",'BİLGİ GİRİŞİ'!T59) ->  | X45: =IF('BİLGİ GİRİŞİ'!AB59="","",'BİLGİ GİRİŞİ'!AB59) ->  | AA45: =IF('BİLGİ GİRİŞİ'!AF59="","",'BİLGİ GİRİŞİ'!AF59) ->  | AD45: =IF('BİLGİ GİRİŞİ'!AJ59="","",'BİLGİ GİRİŞİ'!AJ59) ->  | AG45: =IF('BİLGİ GİRİŞİ'!AN59="","",'BİLGİ GİRİŞİ'!AN59) ->  | AJ45: =IF('BİLGİ GİRİŞİ'!AR59="","",'BİLGİ GİRİŞİ'!AR59) ->  | AM45: =IF('BİLGİ GİRİŞİ'!AV59="","",'BİLGİ GİRİŞİ'!AV59) -> 
A46: =IF('BİLGİ GİRİŞİ'!D60="","",'BİLGİ GİRİŞİ'!D60) ->  | B46: =IF('BİLGİ GİRİŞİ'!E60="","",'BİLGİ GİRİŞİ'!E60) ->  | P46: =IF('BİLGİ GİRİŞİ'!W60="","",'BİLGİ GİRİŞİ'!W60) ->  | T46: =IF('BİLGİ GİRİŞİ'!T60="","",'BİLGİ GİRİŞİ'!T60) ->  | X46: =IF('BİLGİ GİRİŞİ'!AB60="","",'BİLGİ GİRİŞİ'!AB60) ->  | AA46: =IF('BİLGİ GİRİŞİ'!AF60="","",'BİLGİ GİRİŞİ'!AF60) ->  | AD46: =IF('BİLGİ GİRİŞİ'!AJ60="","",'BİLGİ GİRİŞİ'!AJ60) ->  | AG46: =IF('BİLGİ GİRİŞİ'!AN60="","",'BİLGİ GİRİŞİ'!AN60) ->  | AJ46: =IF('BİLGİ GİRİŞİ'!AR60="","",'BİLGİ GİRİŞİ'!AR60) ->  | AM46: =IF('BİLGİ GİRİŞİ'!AV60="","",'BİLGİ GİRİŞİ'!AV60) -> 
A47: =IF('BİLGİ GİRİŞİ'!D61="","",'BİLGİ GİRİŞİ'!D61) ->  | B47: =IF('BİLGİ GİRİŞİ'!E61="","",'BİLGİ GİRİŞİ'!E61) ->  | P47: =IF('BİLGİ GİRİŞİ'!W61="","",'BİLGİ GİRİŞİ'!W61) ->  | T47: =IF('BİLGİ GİRİŞİ'!T61="","",'BİLGİ GİRİŞİ'!T61) ->  | X47: =IF('BİLGİ GİRİŞİ'!AB61="","",'BİLGİ GİRİŞİ'!AB61) ->  | AA47: =IF('BİLGİ GİRİŞİ'!AF61="","",'BİLGİ GİRİŞİ'!AF61) ->  | AD47: =IF('BİLGİ GİRİŞİ'!AJ61="","",'BİLGİ GİRİŞİ'!AJ61) ->  | AG47: =IF('BİLGİ GİRİŞİ'!AN61="","",'BİLGİ GİRİŞİ'!AN61) ->  | AJ47: =IF('BİLGİ GİRİŞİ'!AR61="","",'BİLGİ GİRİŞİ'!AR61) ->  | AM47: =IF('BİLGİ GİRİŞİ'!AV61="","",'BİLGİ GİRİŞİ'!AV61) -> 
A48: =IF('BİLGİ GİRİŞİ'!D62="","",'BİLGİ GİRİŞİ'!D62) ->  | B48: =IF('BİLGİ GİRİŞİ'!E62="","",'BİLGİ GİRİŞİ'!E62) ->  | P48: =IF('BİLGİ GİRİŞİ'!W62="","",'BİLGİ GİRİŞİ'!W62) ->  | T48: =IF('BİLGİ GİRİŞİ'!T62="","",'BİLGİ GİRİŞİ'!T62) ->  | X48: =IF('BİLGİ GİRİŞİ'!AB62="","",'BİLGİ GİRİŞİ'!AB62) ->  | AA48: =IF('BİLGİ GİRİŞİ'!AF62="","",'BİLGİ GİRİŞİ'!AF62) ->  | AD48: =IF('BİLGİ GİRİŞİ'!AJ62="","",'BİLGİ GİRİŞİ'!AJ62) ->  | AG48: =IF('BİLGİ GİRİŞİ'!AN62="","",'BİLGİ GİRİŞİ'!AN62) ->  | AJ48: =IF('BİLGİ GİRİŞİ'!AR62="","",'BİLGİ GİRİŞİ'!AR62) ->  | AM48: =IF('BİLGİ GİRİŞİ'!AV62="","",'BİLGİ GİRİŞİ'!AV62) -> 
A49: =IF('BİLGİ GİRİŞİ'!D63="","",'BİLGİ GİRİŞİ'!D63) ->  | B49: =IF('BİLGİ GİRİŞİ'!E63="","",'BİLGİ GİRİŞİ'!E63) ->  | P49: =IF('BİLGİ GİRİŞİ'!W63="","",'BİLGİ GİRİŞİ'!W63) ->  | T49: =IF('BİLGİ GİRİŞİ'!T63="","",'BİLGİ GİRİŞİ'!T63) ->  | X49: =IF('BİLGİ GİRİŞİ'!AB63="","",'BİLGİ GİRİŞİ'!AB63) ->  | AA49: =IF('BİLGİ GİRİŞİ'!AF63="","",'BİLGİ GİRİŞİ'!AF63) ->  | AD49: =IF('BİLGİ GİRİŞİ'!AJ63="","",'BİLGİ GİRİŞİ'!AJ63) ->  | AG49: =IF('BİLGİ GİRİŞİ'!AN63="","",'BİLGİ GİRİŞİ'!AN63) ->  | AJ49: =IF('BİLGİ GİRİŞİ'!AR63="","",'BİLGİ GİRİŞİ'!AR63) ->  | AM49: =IF('BİLGİ GİRİŞİ'!AV63="","",'BİLGİ GİRİŞİ'!AV63) -> 
A50: =IF('BİLGİ GİRİŞİ'!D64="","",'BİLGİ GİRİŞİ'!D64) ->  | B50: =IF('BİLGİ GİRİŞİ'!E64="","",'BİLGİ GİRİŞİ'!E64) ->  | P50: =IF('BİLGİ GİRİŞİ'!W64="","",'BİLGİ GİRİŞİ'!W64) ->  | T50: =IF('BİLGİ GİRİŞİ'!T64="","",'BİLGİ GİRİŞİ'!T64) ->  | X50: =IF('BİLGİ GİRİŞİ'!AB64="","",'BİLGİ GİRİŞİ'!AB64) ->  | AA50: =IF('BİLGİ GİRİŞİ'!AF64="","",'BİLGİ GİRİŞİ'!AF64) ->  | AD50: =IF('BİLGİ GİRİŞİ'!AJ64="","",'BİLGİ GİRİŞİ'!AJ64) ->  | AG50: =IF('BİLGİ GİRİŞİ'!AN64="","",'BİLGİ GİRİŞİ'!AN64) ->  | AJ50: =IF('BİLGİ GİRİŞİ'!AR64="","",'BİLGİ GİRİŞİ'!AR64) ->  | AM50: =IF('BİLGİ GİRİŞİ'!AV64="","",'BİLGİ GİRİŞİ'!AV64) -> 
A51: =IF('BİLGİ GİRİŞİ'!D65="","",'BİLGİ GİRİŞİ'!D65) ->  | B51: =IF('BİLGİ GİRİŞİ'!E65="","",'BİLGİ GİRİŞİ'!E65) ->  | P51: =IF('BİLGİ GİRİŞİ'!W65="","",'BİLGİ GİRİŞİ'!W65) ->  | T51: =IF('BİLGİ GİRİŞİ'!T65="","",'BİLGİ GİRİŞİ'!T65) ->  | X51: =IF('BİLGİ GİRİŞİ'!AB65="","",'BİLGİ GİRİŞİ'!AB65) ->  | AA51: =IF('BİLGİ GİRİŞİ'!AF65="","",'BİLGİ GİRİŞİ'!AF65) ->  | AD51: =IF('BİLGİ GİRİŞİ'!AJ65="","",'BİLGİ GİRİŞİ'!AJ65) ->  | AG51: =IF('BİLGİ GİRİŞİ'!AN65="","",'BİLGİ GİRİŞİ'!AN65) ->  | AJ51: =IF('BİLGİ GİRİŞİ'!AR65="","",'BİLGİ GİRİŞİ'!AR65) ->  | AM51: =IF('BİLGİ GİRİŞİ'!AV65="","",'BİLGİ GİRİŞİ'!AV65) -> 
A52: =IF('BİLGİ GİRİŞİ'!D66="","",'BİLGİ GİRİŞİ'!D66) ->  | B52: =IF('BİLGİ GİRİŞİ'!E66="","",'BİLGİ GİRİŞİ'!E66) ->  | P52: =IF('BİLGİ GİRİŞİ'!W66="","",'BİLGİ GİRİŞİ'!W66) ->  | T52: =IF('BİLGİ GİRİŞİ'!T66="","",'BİLGİ GİRİŞİ'!T66) ->  | X52: =IF('BİLGİ GİRİŞİ'!AB66="","",'BİLGİ GİRİŞİ'!AB66) ->  | AA52: =IF('BİLGİ GİRİŞİ'!AF66="","",'BİLGİ GİRİŞİ'!AF66) ->  | AD52: =IF('BİLGİ GİRİŞİ'!AJ66="","",'BİLGİ GİRİŞİ'!AJ66) ->  | AG52: =IF('BİLGİ GİRİŞİ'!AN66="","",'BİLGİ GİRİŞİ'!AN66) ->  | AJ52: =IF('BİLGİ GİRİŞİ'!AR66="","",'BİLGİ GİRİŞİ'!AR66) ->  | AM52: =IF('BİLGİ GİRİŞİ'!AV66="","",'BİLGİ GİRİŞİ'!AV66) -> 
A53: =IF('BİLGİ GİRİŞİ'!D67="","",'BİLGİ GİRİŞİ'!D67) ->  | B53: =IF('BİLGİ GİRİŞİ'!E67="","",'BİLGİ GİRİŞİ'!E67) ->  | P53: =IF('BİLGİ GİRİŞİ'!W67="","",'BİLGİ GİRİŞİ'!W67) ->  | T53: =IF('BİLGİ GİRİŞİ'!T67="","",'BİLGİ GİRİŞİ'!T67) ->  | X53: =IF('BİLGİ GİRİŞİ'!AB67="","",'BİLGİ GİRİŞİ'!AB67) ->  | AA53: =IF('BİLGİ GİRİŞİ'!AF67="","",'BİLGİ GİRİŞİ'!AF67) ->  | AD53: =IF('BİLGİ GİRİŞİ'!AJ67="","",'BİLGİ GİRİŞİ'!AJ67) ->  | AG53: =IF('BİLGİ GİRİŞİ'!AN67="","",'BİLGİ GİRİŞİ'!AN67) ->  | AJ53: =IF('BİLGİ GİRİŞİ'!AR67="","",'BİLGİ GİRİŞİ'!AR67) ->  | AM53: =IF('BİLGİ GİRİŞİ'!AV67="","",'BİLGİ GİRİŞİ'!AV67) -> 
A54: =IF('BİLGİ GİRİŞİ'!D68="","",'BİLGİ GİRİŞİ'!D68) ->  | B54: =IF('BİLGİ GİRİŞİ'!E68="","",'BİLGİ GİRİŞİ'!E68) ->  | P54: =IF('BİLGİ GİRİŞİ'!W68="","",'BİLGİ GİRİŞİ'!W68) ->  | T54: =IF('BİLGİ GİRİŞİ'!T68="","",'BİLGİ GİRİŞİ'!T68) ->  | X54: =IF('BİLGİ GİRİŞİ'!AB68="","",'BİLGİ GİRİŞİ'!AB68) ->  | AA54: =IF('BİLGİ GİRİŞİ'!AF68="","",'BİLGİ GİRİŞİ'!AF68) ->  | AD54: =IF('BİLGİ GİRİŞİ'!AJ68="","",'BİLGİ GİRİŞİ'!AJ68) ->  | AG54: =IF('BİLGİ GİRİŞİ'!AN68="","",'BİLGİ GİRİŞİ'!AN68) ->  | AJ54: =IF('BİLGİ GİRİŞİ'!AR68="","",'BİLGİ GİRİŞİ'!AR68) ->  | AM54: =IF('BİLGİ GİRİŞİ'!AV68="","",'BİLGİ GİRİŞİ'!AV68) -> 
A55: =IF('BİLGİ GİRİŞİ'!D69="","",'BİLGİ GİRİŞİ'!D69) ->  | B55: =IF('BİLGİ GİRİŞİ'!E69="","",'BİLGİ GİRİŞİ'!E69) ->  | P55: =IF('BİLGİ GİRİŞİ'!W69="","",'BİLGİ GİRİŞİ'!W69) ->  | T55: =IF('BİLGİ GİRİŞİ'!T69="","",'BİLGİ GİRİŞİ'!T69) ->  | X55: =IF('BİLGİ GİRİŞİ'!AB69="","",'BİLGİ GİRİŞİ'!AB69) ->  | AA55: =IF('BİLGİ GİRİŞİ'!AF69="","",'BİLGİ GİRİŞİ'!AF69) ->  | AD55: =IF('BİLGİ GİRİŞİ'!AJ69="","",'BİLGİ GİRİŞİ'!AJ69) ->  | AG55: =IF('BİLGİ GİRİŞİ'!AN69="","",'BİLGİ GİRİŞİ'!AN69) ->  | AJ55: =IF('BİLGİ GİRİŞİ'!AR69="","",'BİLGİ GİRİŞİ'!AR69) ->  | AM55: =IF('BİLGİ GİRİŞİ'!AV69="","",'BİLGİ GİRİŞİ'!AV69) ->  | AP55: =IF(P55="","",(X55+AD55+AJ55)/3) ->  | AS55: =IF(P55="","",(AA55+AG55+AM55)/3) -> 
A56: =IF('BİLGİ GİRİŞİ'!D70="","",'BİLGİ GİRİŞİ'!D70) ->  | B56: =IF('BİLGİ GİRİŞİ'!E70="","",'BİLGİ GİRİŞİ'!E70) ->  | P56: =IF('BİLGİ GİRİŞİ'!W70="","",'BİLGİ GİRİŞİ'!W70) ->  | T56: =IF('BİLGİ GİRİŞİ'!T70="","",'BİLGİ GİRİŞİ'!T70) ->  | X56: =IF('BİLGİ GİRİŞİ'!AB70="","",'BİLGİ GİRİŞİ'!AB70) ->  | AA56: =IF('BİLGİ GİRİŞİ'!AF70="","",'BİLGİ GİRİŞİ'!AF70) ->  | AD56: =IF('BİLGİ GİRİŞİ'!AJ70="","",'BİLGİ GİRİŞİ'!AJ70) ->  | AG56: =IF('BİLGİ GİRİŞİ'!AN70="","",'BİLGİ GİRİŞİ'!AN70) ->  | AJ56: =IF('BİLGİ GİRİŞİ'!AR70="","",'BİLGİ GİRİŞİ'!AR70) ->  | AM56: =IF('BİLGİ GİRİŞİ'!AV70="","",'BİLGİ GİRİŞİ'!AV70) -> 
A57: =IF('BİLGİ GİRİŞİ'!D71="","",'BİLGİ GİRİŞİ'!D71) ->  | B57: =IF('BİLGİ GİRİŞİ'!E71="","",'BİLGİ GİRİŞİ'!E71) ->  | P57: =IF('BİLGİ GİRİŞİ'!W71="","",'BİLGİ GİRİŞİ'!W71) ->  | T57: =IF('BİLGİ GİRİŞİ'!T71="","",'BİLGİ GİRİŞİ'!T71) ->  | X57: =IF('BİLGİ GİRİŞİ'!AB71="","",'BİLGİ GİRİŞİ'!AB71) ->  | AA57: =IF('BİLGİ GİRİŞİ'!AF71="","",'BİLGİ GİRİŞİ'!AF71) ->  | AD57: =IF('BİLGİ GİRİŞİ'!AJ71="","",'BİLGİ GİRİŞİ'!AJ71) ->  | AG57: =IF('BİLGİ GİRİŞİ'!AN71="","",'BİLGİ GİRİŞİ'!AN71) ->  | AJ57: =IF('BİLGİ GİRİŞİ'!AR71="","",'BİLGİ GİRİŞİ'!AR71) ->  | AM57: =IF('BİLGİ GİRİŞİ'!AV71="","",'BİLGİ GİRİŞİ'!AV71) -> 
A58: =IF('BİLGİ GİRİŞİ'!D72="","",'BİLGİ GİRİŞİ'!D72) ->  | B58: =IF('BİLGİ GİRİŞİ'!E72="","",'BİLGİ GİRİŞİ'!E72) ->  | P58: =IF('BİLGİ GİRİŞİ'!W72="","",'BİLGİ GİRİŞİ'!W72) ->  | T58: =IF('BİLGİ GİRİŞİ'!T72="","",'BİLGİ GİRİŞİ'!T72) ->  | X58: =IF('BİLGİ GİRİŞİ'!AB72="","",'BİLGİ GİRİŞİ'!AB72) ->  | AA58: =IF('BİLGİ GİRİŞİ'!AF72="","",'BİLGİ GİRİŞİ'!AF72) ->  | AD58: =IF('BİLGİ GİRİŞİ'!AJ72="","",'BİLGİ GİRİŞİ'!AJ72) ->  | AG58: =IF('BİLGİ GİRİŞİ'!AN72="","",'BİLGİ GİRİŞİ'!AN72) ->  | AJ58: =IF('BİLGİ GİRİŞİ'!AR72="","",'BİLGİ GİRİŞİ'!AR72) ->  | AM58: =IF('BİLGİ GİRİŞİ'!AV72="","",'BİLGİ GİRİŞİ'!AV72) -> 
A59: =IF('BİLGİ GİRİŞİ'!D73="","",'BİLGİ GİRİŞİ'!D73) ->  | B59: =IF('BİLGİ GİRİŞİ'!E73="","",'BİLGİ GİRİŞİ'!E73) ->  | P59: =IF('BİLGİ GİRİŞİ'!W73="","",'BİLGİ GİRİŞİ'!W73) ->  | T59: =IF('BİLGİ GİRİŞİ'!T73="","",'BİLGİ GİRİŞİ'!T73) ->  | X59: =IF('BİLGİ GİRİŞİ'!AB73="","",'BİLGİ GİRİŞİ'!AB73) ->  | AA59: =IF('BİLGİ GİRİŞİ'!AF73="","",'BİLGİ GİRİŞİ'!AF73) ->  | AD59: =IF('BİLGİ GİRİŞİ'!AJ73="","",'BİLGİ GİRİŞİ'!AJ73) ->  | AG59: =IF('BİLGİ GİRİŞİ'!AN73="","",'BİLGİ GİRİŞİ'!AN73) ->  | AJ59: =IF('BİLGİ GİRİŞİ'!AR73="","",'BİLGİ GİRİŞİ'!AR73) ->  | AM59: =IF('BİLGİ GİRİŞİ'!AV73="","",'BİLGİ GİRİŞİ'!AV73) -> 
A60: =IF('BİLGİ GİRİŞİ'!D74="","",'BİLGİ GİRİŞİ'!D74) ->  | B60: =IF('BİLGİ GİRİŞİ'!E74="","",'BİLGİ GİRİŞİ'!E74) ->  | P60: =IF('BİLGİ GİRİŞİ'!W74="","",'BİLGİ GİRİŞİ'!W74) ->  | T60: =IF('BİLGİ GİRİŞİ'!T74="","",'BİLGİ GİRİŞİ'!T74) ->  | X60: =IF('BİLGİ GİRİŞİ'!AB74="","",'BİLGİ GİRİŞİ'!AB74) ->  | AA60: =IF('BİLGİ GİRİŞİ'!AF74="","",'BİLGİ GİRİŞİ'!AF74) ->  | AD60: =IF('BİLGİ GİRİŞİ'!AJ74="","",'BİLGİ GİRİŞİ'!AJ74) ->  | AG60: =IF('BİLGİ GİRİŞİ'!AN74="","",'BİLGİ GİRİŞİ'!AN74) ->  | AJ60: =IF('BİLGİ GİRİŞİ'!AR74="","",'BİLGİ GİRİŞİ'!AR74) ->  | AM60: =IF('BİLGİ GİRİŞİ'!AV74="","",'BİLGİ GİRİŞİ'!AV74) -> 
A61: =IF('BİLGİ GİRİŞİ'!D75="","",'BİLGİ GİRİŞİ'!D75) ->  | B61: =IF('BİLGİ GİRİŞİ'!E75="","",'BİLGİ GİRİŞİ'!E75) ->  | P61: =IF('BİLGİ GİRİŞİ'!W75="","",'BİLGİ GİRİŞİ'!W75) ->  | T61: =IF('BİLGİ GİRİŞİ'!T75="","",'BİLGİ GİRİŞİ'!T75) ->  | X61: =IF('BİLGİ GİRİŞİ'!AB75="","",'BİLGİ GİRİŞİ'!AB75) ->  | AA61: =IF('BİLGİ GİRİŞİ'!AF75="","",'BİLGİ GİRİŞİ'!AF75) ->  | AD61: =IF('BİLGİ GİRİŞİ'!AJ75="","",'BİLGİ GİRİŞİ'!AJ75) ->  | AG61: =IF('BİLGİ GİRİŞİ'!AN75="","",'BİLGİ GİRİŞİ'!AN75) ->  | AJ61: =IF('BİLGİ GİRİŞİ'!AR75="","",'BİLGİ GİRİŞİ'!AR75) ->  | AM61: =IF('BİLGİ GİRİŞİ'!AV75="","",'BİLGİ GİRİŞİ'!AV75) -> 
A62: =IF('BİLGİ GİRİŞİ'!D76="","",'BİLGİ GİRİŞİ'!D76) ->  | B62: =IF('BİLGİ GİRİŞİ'!E76="","",'BİLGİ GİRİŞİ'!E76) ->  | P62: =IF('BİLGİ GİRİŞİ'!W76="","",'BİLGİ GİRİŞİ'!W76) ->  | T62: =IF('BİLGİ GİRİŞİ'!T76="","",'BİLGİ GİRİŞİ'!T76) ->  | X62: =IF('BİLGİ GİRİŞİ'!AB76="","",'BİLGİ GİRİŞİ'!AB76) ->  | AA62: =IF('BİLGİ GİRİŞİ'!AF76="","",'BİLGİ GİRİŞİ'!AF76) ->  | AD62: =IF('BİLGİ GİRİŞİ'!AJ76="","",'BİLGİ GİRİŞİ'!AJ76) ->  | AG62: =IF('BİLGİ GİRİŞİ'!AN76="","",'BİLGİ GİRİŞİ'!AN76) ->  | AJ62: =IF('BİLGİ GİRİŞİ'!AR76="","",'BİLGİ GİRİŞİ'!AR76) ->  | AM62: =IF('BİLGİ GİRİŞİ'!AV76="","",'BİLGİ GİRİŞİ'!AV76) -> 
A63: =IF('BİLGİ GİRİŞİ'!D77="","",'BİLGİ GİRİŞİ'!D77) ->  | B63: =IF('BİLGİ GİRİŞİ'!E77="","",'BİLGİ GİRİŞİ'!E77) ->  | P63: =IF('BİLGİ GİRİŞİ'!W77="","",'BİLGİ GİRİŞİ'!W77) ->  | T63: =IF('BİLGİ GİRİŞİ'!T77="","",'BİLGİ GİRİŞİ'!T77) ->  | X63: =IF('BİLGİ GİRİŞİ'!AB77="","",'BİLGİ GİRİŞİ'!AB77) ->  | AA63: =IF('BİLGİ GİRİŞİ'!AF77="","",'BİLGİ GİRİŞİ'!AF77) ->  | AD63: =IF('BİLGİ GİRİŞİ'!AJ77="","",'BİLGİ GİRİŞİ'!AJ77) ->  | AG63: =IF('BİLGİ GİRİŞİ'!AN77="","",'BİLGİ GİRİŞİ'!AN77) ->  | AJ63: =IF('BİLGİ GİRİŞİ'!AR77="","",'BİLGİ GİRİŞİ'!AR77) ->  | AM63: =IF('BİLGİ GİRİŞİ'!AV77="","",'BİLGİ GİRİŞİ'!AV77) -> 
A64: =IF('BİLGİ GİRİŞİ'!D78="","",'BİLGİ GİRİŞİ'!D78) ->  | B64: =IF('BİLGİ GİRİŞİ'!E78="","",'BİLGİ GİRİŞİ'!E78) ->  | P64: =IF('BİLGİ GİRİŞİ'!W78="","",'BİLGİ GİRİŞİ'!W78) ->  | T64: =IF('BİLGİ GİRİŞİ'!T78="","",'BİLGİ GİRİŞİ'!T78) ->  | X64: =IF('BİLGİ GİRİŞİ'!AB78="","",'BİLGİ GİRİŞİ'!AB78) ->  | AA64: =IF('BİLGİ GİRİŞİ'!AF78="","",'BİLGİ GİRİŞİ'!AF78) ->  | AD64: =IF('BİLGİ GİRİŞİ'!AJ78="","",'BİLGİ GİRİŞİ'!AJ78) ->  | AG64: =IF('BİLGİ GİRİŞİ'!AN78="","",'BİLGİ GİRİŞİ'!AN78) ->  | AJ64: =IF('BİLGİ GİRİŞİ'!AR78="","",'BİLGİ GİRİŞİ'!AR78) ->  | AM64: =IF('BİLGİ GİRİŞİ'!AV78="","",'BİLGİ GİRİŞİ'!AV78) -> 
A65: =IF('BİLGİ GİRİŞİ'!D79="","",'BİLGİ GİRİŞİ'!D79) ->  | B65: =IF('BİLGİ GİRİŞİ'!E79="","",'BİLGİ GİRİŞİ'!E79) ->  | P65: =IF('BİLGİ GİRİŞİ'!W79="","",'BİLGİ GİRİŞİ'!W79) ->  | T65: =IF('BİLGİ GİRİŞİ'!T79="","",'BİLGİ GİRİŞİ'!T79) ->  | X65: =IF('BİLGİ GİRİŞİ'!AB79="","",'BİLGİ GİRİŞİ'!AB79) ->  | AA65: =IF('BİLGİ GİRİŞİ'!AF79="","",'BİLGİ GİRİŞİ'!AF79) ->  | AD65: =IF('BİLGİ GİRİŞİ'!AJ79="","",'BİLGİ GİRİŞİ'!AJ79) ->  | AG65: =IF('BİLGİ GİRİŞİ'!AN79="","",'BİLGİ GİRİŞİ'!AN79) ->  | AJ65: =IF('BİLGİ GİRİŞİ'!AR79="","",'BİLGİ GİRİŞİ'!AR79) ->  | AM65: =IF('BİLGİ GİRİŞİ'!AV79="","",'BİLGİ GİRİŞİ'!AV79) -> 
A66: =IF('BİLGİ GİRİŞİ'!D80="","",'BİLGİ GİRİŞİ'!D80) ->  | B66: =IF('BİLGİ GİRİŞİ'!E80="","",'BİLGİ GİRİŞİ'!E80) ->  | P66: =IF('BİLGİ GİRİŞİ'!W80="","",'BİLGİ GİRİŞİ'!W80) ->  | T66: =IF('BİLGİ GİRİŞİ'!T80="","",'BİLGİ GİRİŞİ'!T80) ->  | X66: =IF('BİLGİ GİRİŞİ'!AB80="","",'BİLGİ GİRİŞİ'!AB80) ->  | AA66: =IF('BİLGİ GİRİŞİ'!AF80="","",'BİLGİ GİRİŞİ'!AF80) ->  | AD66: =IF('BİLGİ GİRİŞİ'!AJ80="","",'BİLGİ GİRİŞİ'!AJ80) ->  | AG66: =IF('BİLGİ GİRİŞİ'!AN80="","",'BİLGİ GİRİŞİ'!AN80) ->  | AJ66: =IF('BİLGİ GİRİŞİ'!AR80="","",'BİLGİ GİRİŞİ'!AR80) ->  | AM66: =IF('BİLGİ GİRİŞİ'!AV80="","",'BİLGİ GİRİŞİ'!AV80) -> 
A67: =IF('BİLGİ GİRİŞİ'!D81="","",'BİLGİ GİRİŞİ'!D81) ->  | B67: =IF('BİLGİ GİRİŞİ'!E81="","",'BİLGİ GİRİŞİ'!E81) ->  | P67: =IF('BİLGİ GİRİŞİ'!W81="","",'BİLGİ GİRİŞİ'!W81) ->  | T67: =IF('BİLGİ GİRİŞİ'!T81="","",'BİLGİ GİRİŞİ'!T81) ->  | X67: =IF('BİLGİ GİRİŞİ'!AB81="","",'BİLGİ GİRİŞİ'!AB81) ->  | AA67: =IF('BİLGİ GİRİŞİ'!AF81="","",'BİLGİ GİRİŞİ'!AF81) ->  | AD67: =IF('BİLGİ GİRİŞİ'!AJ81="","",'BİLGİ GİRİŞİ'!AJ81) ->  | AG67: =IF('BİLGİ GİRİŞİ'!AN81="","",'BİLGİ GİRİŞİ'!AN81) ->  | AJ67: =IF('BİLGİ GİRİŞİ'!AR81="","",'BİLGİ GİRİŞİ'!AR81) ->  | AM67: =IF('BİLGİ GİRİŞİ'!AV81="","",'BİLGİ GİRİŞİ'!AV81) -> 
A68: =IF('BİLGİ GİRİŞİ'!D82="","",'BİLGİ GİRİŞİ'!D82) ->  | B68: =IF('BİLGİ GİRİŞİ'!E82="","",'BİLGİ GİRİŞİ'!E82) ->  | P68: =IF('BİLGİ GİRİŞİ'!W82="","",'BİLGİ GİRİŞİ'!W82) ->  | T68: =IF('BİLGİ GİRİŞİ'!T82="","",'BİLGİ GİRİŞİ'!T82) ->  | X68: =IF('BİLGİ GİRİŞİ'!AB82="","",'BİLGİ GİRİŞİ'!AB82) ->  | AA68: =IF('BİLGİ GİRİŞİ'!AF82="","",'BİLGİ GİRİŞİ'!AF82) ->  | AD68: =IF('BİLGİ GİRİŞİ'!AJ82="","",'BİLGİ GİRİŞİ'!AJ82) ->  | AG68: =IF('BİLGİ GİRİŞİ'!AN82="","",'BİLGİ GİRİŞİ'!AN82) ->  | AJ68: =IF('BİLGİ GİRİŞİ'!AR82="","",'BİLGİ GİRİŞİ'!AR82) ->  | AM68: =IF('BİLGİ GİRİŞİ'!AV82="","",'BİLGİ GİRİŞİ'!AV82) -> 
A69: =IF('BİLGİ GİRİŞİ'!D83="","",'BİLGİ GİRİŞİ'!D83) ->  | B69: =IF('BİLGİ GİRİŞİ'!E83="","",'BİLGİ GİRİŞİ'!E83) ->  | P69: =IF('BİLGİ GİRİŞİ'!W83="","",'BİLGİ GİRİŞİ'!W83) ->  | T69: =IF('BİLGİ GİRİŞİ'!T83="","",'BİLGİ GİRİŞİ'!T83) ->  | X69: =IF('BİLGİ GİRİŞİ'!AB83="","",'BİLGİ GİRİŞİ'!AB83) ->  | AA69: =IF('BİLGİ GİRİŞİ'!AF83="","",'BİLGİ GİRİŞİ'!AF83) ->  | AD69: =IF('BİLGİ GİRİŞİ'!AJ83="","",'BİLGİ GİRİŞİ'!AJ83) ->  | AG69: =IF('BİLGİ GİRİŞİ'!AN83="","",'BİLGİ GİRİŞİ'!AN83) ->  | AJ69: =IF('BİLGİ GİRİŞİ'!AR83="","",'BİLGİ GİRİŞİ'!AR83) ->  | AM69: =IF('BİLGİ GİRİŞİ'!AV83="","",'BİLGİ GİRİŞİ'!AV83) -> 
A70: =IF('BİLGİ GİRİŞİ'!D84="","",'BİLGİ GİRİŞİ'!D84) ->  | B70: =IF('BİLGİ GİRİŞİ'!E84="","",'BİLGİ GİRİŞİ'!E84) ->  | P70: =IF('BİLGİ GİRİŞİ'!W84="","",'BİLGİ GİRİŞİ'!W84) ->  | T70: =IF('BİLGİ GİRİŞİ'!T84="","",'BİLGİ GİRİŞİ'!T84) ->  | X70: =IF('BİLGİ GİRİŞİ'!AB84="","",'BİLGİ GİRİŞİ'!AB84) ->  | AA70: =IF('BİLGİ GİRİŞİ'!AF84="","",'BİLGİ GİRİŞİ'!AF84) ->  | AD70: =IF('BİLGİ GİRİŞİ'!AJ84="","",'BİLGİ GİRİŞİ'!AJ84) ->  | AG70: =IF('BİLGİ GİRİŞİ'!AN84="","",'BİLGİ GİRİŞİ'!AN84) ->  | AJ70: =IF('BİLGİ GİRİŞİ'!AR84="","",'BİLGİ GİRİŞİ'!AR84) ->  | AM70: =IF('BİLGİ GİRİŞİ'!AV84="","",'BİLGİ GİRİŞİ'!AV84) -> 
A71: =IF('BİLGİ GİRİŞİ'!D85="","",'BİLGİ GİRİŞİ'!D85) ->  | B71: =IF('BİLGİ GİRİŞİ'!E85="","",'BİLGİ GİRİŞİ'!E85) ->  | P71: =IF('BİLGİ GİRİŞİ'!W85="","",'BİLGİ GİRİŞİ'!W85) ->  | T71: =IF('BİLGİ GİRİŞİ'!T85="","",'BİLGİ GİRİŞİ'!T85) ->  | X71: =IF('BİLGİ GİRİŞİ'!AB85="","",'BİLGİ GİRİŞİ'!AB85) ->  | AA71: =IF('BİLGİ GİRİŞİ'!AF85="","",'BİLGİ GİRİŞİ'!AF85) ->  | AD71: =IF('BİLGİ GİRİŞİ'!AJ85="","",'BİLGİ GİRİŞİ'!AJ85) ->  | AG71: =IF('BİLGİ GİRİŞİ'!AN85="","",'BİLGİ GİRİŞİ'!AN85) ->  | AJ71: =IF('BİLGİ GİRİŞİ'!AR85="","",'BİLGİ GİRİŞİ'!AR85) ->  | AM71: =IF('BİLGİ GİRİŞİ'!AV85="","",'BİLGİ GİRİŞİ'!AV85) -> 
A72: =IF('BİLGİ GİRİŞİ'!D86="","",'BİLGİ GİRİŞİ'!D86) ->  | B72: =IF('BİLGİ GİRİŞİ'!E86="","",'BİLGİ GİRİŞİ'!E86) ->  | P72: =IF('BİLGİ GİRİŞİ'!W86="","",'BİLGİ GİRİŞİ'!W86) ->  | T72: =IF('BİLGİ GİRİŞİ'!T86="","",'BİLGİ GİRİŞİ'!T86) ->  | X72: =IF('BİLGİ GİRİŞİ'!AB86="","",'BİLGİ GİRİŞİ'!AB86) ->  | AA72: =IF('BİLGİ GİRİŞİ'!AF86="","",'BİLGİ GİRİŞİ'!AF86) ->  | AD72: =IF('BİLGİ GİRİŞİ'!AJ86="","",'BİLGİ GİRİŞİ'!AJ86) ->  | AG72: =IF('BİLGİ GİRİŞİ'!AN86="","",'BİLGİ GİRİŞİ'!AN86) ->  | AJ72: =IF('BİLGİ GİRİŞİ'!AR86="","",'BİLGİ GİRİŞİ'!AR86) ->  | AM72: =IF('BİLGİ GİRİŞİ'!AV86="","",'BİLGİ GİRİŞİ'!AV86) -> 
A73: =IF('BİLGİ GİRİŞİ'!D87="","",'BİLGİ GİRİŞİ'!D87) ->  | B73: =IF('BİLGİ GİRİŞİ'!E87="","",'BİLGİ GİRİŞİ'!E87) ->  | P73: =IF('BİLGİ GİRİŞİ'!W87="","",'BİLGİ GİRİŞİ'!W87) ->  | T73: =IF('BİLGİ GİRİŞİ'!T87="","",'BİLGİ GİRİŞİ'!T87) ->  | X73: =IF('BİLGİ GİRİŞİ'!AB87="","",'BİLGİ GİRİŞİ'!AB87) ->  | AA73: =IF('BİLGİ GİRİŞİ'!AF87="","",'BİLGİ GİRİŞİ'!AF87) ->  | AD73: =IF('BİLGİ GİRİŞİ'!AJ87="","",'BİLGİ GİRİŞİ'!AJ87) ->  | AG73: =IF('BİLGİ GİRİŞİ'!AN87="","",'BİLGİ GİRİŞİ'!AN87) ->  | AJ73: =IF('BİLGİ GİRİŞİ'!AR87="","",'BİLGİ GİRİŞİ'!AR87) ->  | AM73: =IF('BİLGİ GİRİŞİ'!AV87="","",'BİLGİ GİRİŞİ'!AV87) -> 
A74: =IF('BİLGİ GİRİŞİ'!D88="","",'BİLGİ GİRİŞİ'!D88) ->  | B74: =IF('BİLGİ GİRİŞİ'!E88="","",'BİLGİ GİRİŞİ'!E88) ->  | P74: =IF('BİLGİ GİRİŞİ'!W88="","",'BİLGİ GİRİŞİ'!W88) ->  | T74: =IF('BİLGİ GİRİŞİ'!T88="","",'BİLGİ GİRİŞİ'!T88) ->  | X74: =IF('BİLGİ GİRİŞİ'!AB88="","",'BİLGİ GİRİŞİ'!AB88) ->  | AA74: =IF('BİLGİ GİRİŞİ'!AF88="","",'BİLGİ GİRİŞİ'!AF88) ->  | AD74: =IF('BİLGİ GİRİŞİ'!AJ88="","",'BİLGİ GİRİŞİ'!AJ88) ->  | AG74: =IF('BİLGİ GİRİŞİ'!AN88="","",'BİLGİ GİRİŞİ'!AN88) ->  | AJ74: =IF('BİLGİ GİRİŞİ'!AR88="","",'BİLGİ GİRİŞİ'!AR88) ->  | AM74: =IF('BİLGİ GİRİŞİ'!AV88="","",'BİLGİ GİRİŞİ'!AV88) -> 
A75: =IF('BİLGİ GİRİŞİ'!D89="","",'BİLGİ GİRİŞİ'!D89) ->  | B75: =IF('BİLGİ GİRİŞİ'!E89="","",'BİLGİ GİRİŞİ'!E89) ->  | P75: =IF('BİLGİ GİRİŞİ'!W89="","",'BİLGİ GİRİŞİ'!W89) ->  | T75: =IF('BİLGİ GİRİŞİ'!T89="","",'BİLGİ GİRİŞİ'!T89) ->  | X75: =IF('BİLGİ GİRİŞİ'!AB89="","",'BİLGİ GİRİŞİ'!AB89) ->  | AA75: =IF('BİLGİ GİRİŞİ'!AF89="","",'BİLGİ GİRİŞİ'!AF89) ->  | AD75: =IF('BİLGİ GİRİŞİ'!AJ89="","",'BİLGİ GİRİŞİ'!AJ89) ->  | AG75: =IF('BİLGİ GİRİŞİ'!AN89="","",'BİLGİ GİRİŞİ'!AN89) ->  | AJ75: =IF('BİLGİ GİRİŞİ'!AR89="","",'BİLGİ GİRİŞİ'!AR89) ->  | AM75: =IF('BİLGİ GİRİŞİ'!AV89="","",'BİLGİ GİRİŞİ'!AV89) ->  | AP75: =IF(P75="","",(X75+AD75+AJ75)/3) ->  | AS75: =IF(P75="","",(AA75+AG75+AM75)/3) -> 
A76: =IF('BİLGİ GİRİŞİ'!D90="","",'BİLGİ GİRİŞİ'!D90) ->  | B76: =IF('BİLGİ GİRİŞİ'!E90="","",'BİLGİ GİRİŞİ'!E90) ->  | P76: =IF('BİLGİ GİRİŞİ'!W90="","",'BİLGİ GİRİŞİ'!W90) ->  | T76: =IF('BİLGİ GİRİŞİ'!T90="","",'BİLGİ GİRİŞİ'!T90) ->  | X76: =IF('BİLGİ GİRİŞİ'!AB90="","",'BİLGİ GİRİŞİ'!AB90) ->  | AA76: =IF('BİLGİ GİRİŞİ'!AF90="","",'BİLGİ GİRİŞİ'!AF90) ->  | AD76: =IF('BİLGİ GİRİŞİ'!AJ90="","",'BİLGİ GİRİŞİ'!AJ90) ->  | AG76: =IF('BİLGİ GİRİŞİ'!AN90="","",'BİLGİ GİRİŞİ'!AN90) ->  | AJ76: =IF('BİLGİ GİRİŞİ'!AR90="","",'BİLGİ GİRİŞİ'!AR90) ->  | AM76: =IF('BİLGİ GİRİŞİ'!AV90="","",'BİLGİ GİRİŞİ'!AV90) -> 
A77: =IF('BİLGİ GİRİŞİ'!D91="","",'BİLGİ GİRİŞİ'!D91) ->  | B77: =IF('BİLGİ GİRİŞİ'!E91="","",'BİLGİ GİRİŞİ'!E91) ->  | P77: =IF('BİLGİ GİRİŞİ'!W91="","",'BİLGİ GİRİŞİ'!W91) ->  | T77: =IF('BİLGİ GİRİŞİ'!T91="","",'BİLGİ GİRİŞİ'!T91) ->  | X77: =IF('BİLGİ GİRİŞİ'!AB91="","",'BİLGİ GİRİŞİ'!AB91) ->  | AA77: =IF('BİLGİ GİRİŞİ'!AF91="","",'BİLGİ GİRİŞİ'!AF91) ->  | AD77: =IF('BİLGİ GİRİŞİ'!AJ91="","",'BİLGİ GİRİŞİ'!AJ91) ->  | AG77: =IF('BİLGİ GİRİŞİ'!AN91="","",'BİLGİ GİRİŞİ'!AN91) ->  | AJ77: =IF('BİLGİ GİRİŞİ'!AR91="","",'BİLGİ GİRİŞİ'!AR91) ->  | AM77: =IF('BİLGİ GİRİŞİ'!AV91="","",'BİLGİ GİRİŞİ'!AV91) -> 
A78: =IF('BİLGİ GİRİŞİ'!D92="","",'BİLGİ GİRİŞİ'!D92) ->  | B78: =IF('BİLGİ GİRİŞİ'!E92="","",'BİLGİ GİRİŞİ'!E92) ->  | P78: =IF('BİLGİ GİRİŞİ'!W92="","",'BİLGİ GİRİŞİ'!W92) ->  | T78: =IF('BİLGİ GİRİŞİ'!T92="","",'BİLGİ GİRİŞİ'!T92) ->  | X78: =IF('BİLGİ GİRİŞİ'!AB92="","",'BİLGİ GİRİŞİ'!AB92) ->  | AA78: =IF('BİLGİ GİRİŞİ'!AF92="","",'BİLGİ GİRİŞİ'!AF92) ->  | AD78: =IF('BİLGİ GİRİŞİ'!AJ92="","",'BİLGİ GİRİŞİ'!AJ92) ->  | AG78: =IF('BİLGİ GİRİŞİ'!AN92="","",'BİLGİ GİRİŞİ'!AN92) ->  | AJ78: =IF('BİLGİ GİRİŞİ'!AR92="","",'BİLGİ GİRİŞİ'!AR92) ->  | AM78: =IF('BİLGİ GİRİŞİ'!AV92="","",'BİLGİ GİRİŞİ'!AV92) -> 
A79: =IF('BİLGİ GİRİŞİ'!D93="","",'BİLGİ GİRİŞİ'!D93) ->  | B79: =IF('BİLGİ GİRİŞİ'!E93="","",'BİLGİ GİRİŞİ'!E93) ->  | P79: =IF('BİLGİ GİRİŞİ'!W93="","",'BİLGİ GİRİŞİ'!W93) ->  | T79: =IF('BİLGİ GİRİŞİ'!T93="","",'BİLGİ GİRİŞİ'!T93) ->  | X79: =IF('BİLGİ GİRİŞİ'!AB93="","",'BİLGİ GİRİŞİ'!AB93) ->  | AA79: =IF('BİLGİ GİRİŞİ'!AF93="","",'BİLGİ GİRİŞİ'!AF93) ->  | AD79: =IF('BİLGİ GİRİŞİ'!AJ93="","",'BİLGİ GİRİŞİ'!AJ93) ->  | AG79: =IF('BİLGİ GİRİŞİ'!AN93="","",'BİLGİ GİRİŞİ'!AN93) ->  | AJ79: =IF('BİLGİ GİRİŞİ'!AR93="","",'BİLGİ GİRİŞİ'!AR93) ->  | AM79: =IF('BİLGİ GİRİŞİ'!AV93="","",'BİLGİ GİRİŞİ'!AV93) -> 
A80: =IF('BİLGİ GİRİŞİ'!D94="","",'BİLGİ GİRİŞİ'!D94) ->  | B80: =IF('BİLGİ GİRİŞİ'!E94="","",'BİLGİ GİRİŞİ'!E94) ->  | P80: =IF('BİLGİ GİRİŞİ'!W94="","",'BİLGİ GİRİŞİ'!W94) ->  | T80: =IF('BİLGİ GİRİŞİ'!T94="","",'BİLGİ GİRİŞİ'!T94) ->  | X80: =IF('BİLGİ GİRİŞİ'!AB94="","",'BİLGİ GİRİŞİ'!AB94) ->  | AA80: =IF('BİLGİ GİRİŞİ'!AF94="","",'BİLGİ GİRİŞİ'!AF94) ->  | AD80: =IF('BİLGİ GİRİŞİ'!AJ94="","",'BİLGİ GİRİŞİ'!AJ94) ->  | AG80: =IF('BİLGİ GİRİŞİ'!AN94="","",'BİLGİ GİRİŞİ'!AN94) ->  | AJ80: =IF('BİLGİ GİRİŞİ'!AR94="","",'BİLGİ GİRİŞİ'!AR94) ->  | AM80: =IF('BİLGİ GİRİŞİ'!AV94="","",'BİLGİ GİRİŞİ'!AV94) -> 
A81: =IF('BİLGİ GİRİŞİ'!D95="","",'BİLGİ GİRİŞİ'!D95) ->  | B81: =IF('BİLGİ GİRİŞİ'!E95="","",'BİLGİ GİRİŞİ'!E95) ->  | P81: =IF('BİLGİ GİRİŞİ'!W95="","",'BİLGİ GİRİŞİ'!W95) ->  | T81: =IF('BİLGİ GİRİŞİ'!T95="","",'BİLGİ GİRİŞİ'!T95) ->  | X81: =IF('BİLGİ GİRİŞİ'!AB95="","",'BİLGİ GİRİŞİ'!AB95) ->  | AA81: =IF('BİLGİ GİRİŞİ'!AF95="","",'BİLGİ GİRİŞİ'!AF95) ->  | AD81: =IF('BİLGİ GİRİŞİ'!AJ95="","",'BİLGİ GİRİŞİ'!AJ95) ->  | AG81: =IF('BİLGİ GİRİŞİ'!AN95="","",'BİLGİ GİRİŞİ'!AN95) ->  | AJ81: =IF('BİLGİ GİRİŞİ'!AR95="","",'BİLGİ GİRİŞİ'!AR95) ->  | AM81: =IF('BİLGİ GİRİŞİ'!AV95="","",'BİLGİ GİRİŞİ'!AV95) -> 
A82: =IF('BİLGİ GİRİŞİ'!D96="","",'BİLGİ GİRİŞİ'!D96) ->  | B82: =IF('BİLGİ GİRİŞİ'!E96="","",'BİLGİ GİRİŞİ'!E96) ->  | P82: =IF('BİLGİ GİRİŞİ'!W96="","",'BİLGİ GİRİŞİ'!W96) ->  | T82: =IF('BİLGİ GİRİŞİ'!T96="","",'BİLGİ GİRİŞİ'!T96) ->  | X82: =IF('BİLGİ GİRİŞİ'!AB96="","",'BİLGİ GİRİŞİ'!AB96) ->  | AA82: =IF('BİLGİ GİRİŞİ'!AF96="","",'BİLGİ GİRİŞİ'!AF96) ->  | AD82: =IF('BİLGİ GİRİŞİ'!AJ96="","",'BİLGİ GİRİŞİ'!AJ96) ->  | AG82: =IF('BİLGİ GİRİŞİ'!AN96="","",'BİLGİ GİRİŞİ'!AN96) ->  | AJ82: =IF('BİLGİ GİRİŞİ'!AR96="","",'BİLGİ GİRİŞİ'!AR96) ->  | AM82: =IF('BİLGİ GİRİŞİ'!AV96="","",'BİLGİ GİRİŞİ'!AV96) -> 
A83: =IF('BİLGİ GİRİŞİ'!D97="","",'BİLGİ GİRİŞİ'!D97) ->  | B83: =IF('BİLGİ GİRİŞİ'!E97="","",'BİLGİ GİRİŞİ'!E97) ->  | P83: =IF('BİLGİ GİRİŞİ'!W97="","",'BİLGİ GİRİŞİ'!W97) ->  | T83: =IF('BİLGİ GİRİŞİ'!T97="","",'BİLGİ GİRİŞİ'!T97) ->  | X83: =IF('BİLGİ GİRİŞİ'!AB97="","",'BİLGİ GİRİŞİ'!AB97) ->  | AA83: =IF('BİLGİ GİRİŞİ'!AF97="","",'BİLGİ GİRİŞİ'!AF97) ->  | AD83: =IF('BİLGİ GİRİŞİ'!AJ97="","",'BİLGİ GİRİŞİ'!AJ97) ->  | AG83: =IF('BİLGİ GİRİŞİ'!AN97="","",'BİLGİ GİRİŞİ'!AN97) ->  | AJ83: =IF('BİLGİ GİRİŞİ'!AR97="","",'BİLGİ GİRİŞİ'!AR97) ->  | AM83: =IF('BİLGİ GİRİŞİ'!AV97="","",'BİLGİ GİRİŞİ'!AV97) -> 
A84: =IF('BİLGİ GİRİŞİ'!D98="","",'BİLGİ GİRİŞİ'!D98) ->  | B84: =IF('BİLGİ GİRİŞİ'!E98="","",'BİLGİ GİRİŞİ'!E98) ->  | P84: =IF('BİLGİ GİRİŞİ'!W98="","",'BİLGİ GİRİŞİ'!W98) ->  | T84: =IF('BİLGİ GİRİŞİ'!T98="","",'BİLGİ GİRİŞİ'!T98) ->  | X84: =IF('BİLGİ GİRİŞİ'!AB98="","",'BİLGİ GİRİŞİ'!AB98) ->  | AA84: =IF('BİLGİ GİRİŞİ'!AF98="","",'BİLGİ GİRİŞİ'!AF98) ->  | AD84: =IF('BİLGİ GİRİŞİ'!AJ98="","",'BİLGİ GİRİŞİ'!AJ98) ->  | AG84: =IF('BİLGİ GİRİŞİ'!AN98="","",'BİLGİ GİRİŞİ'!AN98) ->  | AJ84: =IF('BİLGİ GİRİŞİ'!AR98="","",'BİLGİ GİRİŞİ'!AR98) ->  | AM84: =IF('BİLGİ GİRİŞİ'!AV98="","",'BİLGİ GİRİŞİ'!AV98) -> 
A85: =IF('BİLGİ GİRİŞİ'!D99="","",'BİLGİ GİRİŞİ'!D99) ->  | B85: =IF('BİLGİ GİRİŞİ'!E99="","",'BİLGİ GİRİŞİ'!E99) ->  | P85: =IF('BİLGİ GİRİŞİ'!W99="","",'BİLGİ GİRİŞİ'!W99) ->  | T85: =IF('BİLGİ GİRİŞİ'!T99="","",'BİLGİ GİRİŞİ'!T99) ->  | X85: =IF('BİLGİ GİRİŞİ'!AB99="","",'BİLGİ GİRİŞİ'!AB99) ->  | AA85: =IF('BİLGİ GİRİŞİ'!AF99="","",'BİLGİ GİRİŞİ'!AF99) ->  | AD85: =IF('BİLGİ GİRİŞİ'!AJ99="","",'BİLGİ GİRİŞİ'!AJ99) ->  | AG85: =IF('BİLGİ GİRİŞİ'!AN99="","",'BİLGİ GİRİŞİ'!AN99) ->  | AJ85: =IF('BİLGİ GİRİŞİ'!AR99="","",'BİLGİ GİRİŞİ'!AR99) ->  | AM85: =IF('BİLGİ GİRİŞİ'!AV99="","",'BİLGİ GİRİŞİ'!AV99) -> 
A86: =IF('BİLGİ GİRİŞİ'!D100="","",'BİLGİ GİRİŞİ'!D100) ->  | B86: =IF('BİLGİ GİRİŞİ'!E100="","",'BİLGİ GİRİŞİ'!E100) ->  | P86: =IF('BİLGİ GİRİŞİ'!W100="","",'BİLGİ GİRİŞİ'!W100) ->  | T86: =IF('BİLGİ GİRİŞİ'!T100="","",'BİLGİ GİRİŞİ'!T100) ->  | X86: =IF('BİLGİ GİRİŞİ'!AB100="","",'BİLGİ GİRİŞİ'!AB100) ->  | AA86: =IF('BİLGİ GİRİŞİ'!AF100="","",'BİLGİ GİRİŞİ'!AF100) ->  | AD86: =IF('BİLGİ GİRİŞİ'!AJ100="","",'BİLGİ GİRİŞİ'!AJ100) ->  | AG86: =IF('BİLGİ GİRİŞİ'!AN100="","",'BİLGİ GİRİŞİ'!AN100) ->  | AJ86: =IF('BİLGİ GİRİŞİ'!AR100="","",'BİLGİ GİRİŞİ'!AR100) ->  | AM86: =IF('BİLGİ GİRİŞİ'!AV100="","",'BİLGİ GİRİŞİ'!AV100) -> 
A87: =IF('BİLGİ GİRİŞİ'!D101="","",'BİLGİ GİRİŞİ'!D101) ->  | B87: =IF('BİLGİ GİRİŞİ'!E101="","",'BİLGİ GİRİŞİ'!E101) ->  | P87: =IF('BİLGİ GİRİŞİ'!W101="","",'BİLGİ GİRİŞİ'!W101) ->  | T87: =IF('BİLGİ GİRİŞİ'!T101="","",'BİLGİ GİRİŞİ'!T101) ->  | X87: =IF('BİLGİ GİRİŞİ'!AB101="","",'BİLGİ GİRİŞİ'!AB101) ->  | AA87: =IF('BİLGİ GİRİŞİ'!AF101="","",'BİLGİ GİRİŞİ'!AF101) ->  | AD87: =IF('BİLGİ GİRİŞİ'!AJ101="","",'BİLGİ GİRİŞİ'!AJ101) ->  | AG87: =IF('BİLGİ GİRİŞİ'!AN101="","",'BİLGİ GİRİŞİ'!AN101) ->  | AJ87: =IF('BİLGİ GİRİŞİ'!AR101="","",'BİLGİ GİRİŞİ'!AR101) ->  | AM87: =IF('BİLGİ GİRİŞİ'!AV101="","",'BİLGİ GİRİŞİ'!AV101) -> 
A88: =IF('BİLGİ GİRİŞİ'!D102="","",'BİLGİ GİRİŞİ'!D102) ->  | B88: =IF('BİLGİ GİRİŞİ'!E102="","",'BİLGİ GİRİŞİ'!E102) ->  | P88: =IF('BİLGİ GİRİŞİ'!W102="","",'BİLGİ GİRİŞİ'!W102) ->  | T88: =IF('BİLGİ GİRİŞİ'!T102="","",'BİLGİ GİRİŞİ'!T102) ->  | X88: =IF('BİLGİ GİRİŞİ'!AB102="","",'BİLGİ GİRİŞİ'!AB102) ->  | AA88: =IF('BİLGİ GİRİŞİ'!AF102="","",'BİLGİ GİRİŞİ'!AF102) ->  | AD88: =IF('BİLGİ GİRİŞİ'!AJ102="","",'BİLGİ GİRİŞİ'!AJ102) ->  | AG88: =IF('BİLGİ GİRİŞİ'!AN102="","",'BİLGİ GİRİŞİ'!AN102) ->  | AJ88: =IF('BİLGİ GİRİŞİ'!AR102="","",'BİLGİ GİRİŞİ'!AR102) ->  | AM88: =IF('BİLGİ GİRİŞİ'!AV102="","",'BİLGİ GİRİŞİ'!AV102) -> 
A89: =IF('BİLGİ GİRİŞİ'!D103="","",'BİLGİ GİRİŞİ'!D103) ->  | B89: =IF('BİLGİ GİRİŞİ'!E103="","",'BİLGİ GİRİŞİ'!E103) ->  | P89: =IF('BİLGİ GİRİŞİ'!W103="","",'BİLGİ GİRİŞİ'!W103) ->  | T89: =IF('BİLGİ GİRİŞİ'!T103="","",'BİLGİ GİRİŞİ'!T103) ->  | X89: =IF('BİLGİ GİRİŞİ'!AB103="","",'BİLGİ GİRİŞİ'!AB103) ->  | AA89: =IF('BİLGİ GİRİŞİ'!AF103="","",'BİLGİ GİRİŞİ'!AF103) ->  | AD89: =IF('BİLGİ GİRİŞİ'!AJ103="","",'BİLGİ GİRİŞİ'!AJ103) ->  | AG89: =IF('BİLGİ GİRİŞİ'!AN103="","",'BİLGİ GİRİŞİ'!AN103) ->  | AJ89: =IF('BİLGİ GİRİŞİ'!AR103="","",'BİLGİ GİRİŞİ'!AR103) ->  | AM89: =IF('BİLGİ GİRİŞİ'!AV103="","",'BİLGİ GİRİŞİ'!AV103) -> 
A90: =IF('BİLGİ GİRİŞİ'!D104="","",'BİLGİ GİRİŞİ'!D104) ->  | B90: =IF('BİLGİ GİRİŞİ'!E104="","",'BİLGİ GİRİŞİ'!E104) ->  | P90: =IF('BİLGİ GİRİŞİ'!W104="","",'BİLGİ GİRİŞİ'!W104) ->  | T90: =IF('BİLGİ GİRİŞİ'!T104="","",'BİLGİ GİRİŞİ'!T104) ->  | X90: =IF('BİLGİ GİRİŞİ'!AB104="","",'BİLGİ GİRİŞİ'!AB104) ->  | AA90: =IF('BİLGİ GİRİŞİ'!AF104="","",'BİLGİ GİRİŞİ'!AF104) ->  | AD90: =IF('BİLGİ GİRİŞİ'!AJ104="","",'BİLGİ GİRİŞİ'!AJ104) ->  | AG90: =IF('BİLGİ GİRİŞİ'!AN104="","",'BİLGİ GİRİŞİ'!AN104) ->  | AJ90: =IF('BİLGİ GİRİŞİ'!AR104="","",'BİLGİ GİRİŞİ'!AR104) ->  | AM90: =IF('BİLGİ GİRİŞİ'!AV104="","",'BİLGİ GİRİŞİ'!AV104) -> 
A91: =IF('BİLGİ GİRİŞİ'!D105="","",'BİLGİ GİRİŞİ'!D105) ->  | B91: =IF('BİLGİ GİRİŞİ'!E105="","",'BİLGİ GİRİŞİ'!E105) ->  | P91: =IF('BİLGİ GİRİŞİ'!W105="","",'BİLGİ GİRİŞİ'!W105) ->  | T91: =IF('BİLGİ GİRİŞİ'!T105="","",'BİLGİ GİRİŞİ'!T105) ->  | X91: =IF('BİLGİ GİRİŞİ'!AB105="","",'BİLGİ GİRİŞİ'!AB105) ->  | AA91: =IF('BİLGİ GİRİŞİ'!AF105="","",'BİLGİ GİRİŞİ'!AF105) ->  | AD91: =IF('BİLGİ GİRİŞİ'!AJ105="","",'BİLGİ GİRİŞİ'!AJ105) ->  | AG91: =IF('BİLGİ GİRİŞİ'!AN105="","",'BİLGİ GİRİŞİ'!AN105) ->  | AJ91: =IF('BİLGİ GİRİŞİ'!AR105="","",'BİLGİ GİRİŞİ'!AR105) ->  | AM91: =IF('BİLGİ GİRİŞİ'!AV105="","",'BİLGİ GİRİŞİ'!AV105) -> 
A92: =IF('BİLGİ GİRİŞİ'!D106="","",'BİLGİ GİRİŞİ'!D106) ->  | B92: =IF('BİLGİ GİRİŞİ'!E106="","",'BİLGİ GİRİŞİ'!E106) ->  | P92: =IF('BİLGİ GİRİŞİ'!W106="","",'BİLGİ GİRİŞİ'!W106) ->  | T92: =IF('BİLGİ GİRİŞİ'!T106="","",'BİLGİ GİRİŞİ'!T106) ->  | X92: =IF('BİLGİ GİRİŞİ'!AB106="","",'BİLGİ GİRİŞİ'!AB106) ->  | AA92: =IF('BİLGİ GİRİŞİ'!AF106="","",'BİLGİ GİRİŞİ'!AF106) ->  | AD92: =IF('BİLGİ GİRİŞİ'!AJ106="","",'BİLGİ GİRİŞİ'!AJ106) ->  | AG92: =IF('BİLGİ GİRİŞİ'!AN106="","",'BİLGİ GİRİŞİ'!AN106) ->  | AJ92: =IF('BİLGİ GİRİŞİ'!AR106="","",'BİLGİ GİRİŞİ'!AR106) ->  | AM92: =IF('BİLGİ GİRİŞİ'!AV106="","",'BİLGİ GİRİŞİ'!AV106) -> 
A93: =IF('BİLGİ GİRİŞİ'!D107="","",'BİLGİ GİRİŞİ'!D107) ->  | B93: =IF('BİLGİ GİRİŞİ'!E107="","",'BİLGİ GİRİŞİ'!E107) ->  | P93: =IF('BİLGİ GİRİŞİ'!W107="","",'BİLGİ GİRİŞİ'!W107) ->  | T93: =IF('BİLGİ GİRİŞİ'!T107="","",'BİLGİ GİRİŞİ'!T107) ->  | X93: =IF('BİLGİ GİRİŞİ'!AB107="","",'BİLGİ GİRİŞİ'!AB107) ->  | AA93: =IF('BİLGİ GİRİŞİ'!AF107="","",'BİLGİ GİRİŞİ'!AF107) ->  | AD93: =IF('BİLGİ GİRİŞİ'!AJ107="","",'BİLGİ GİRİŞİ'!AJ107) ->  | AG93: =IF('BİLGİ GİRİŞİ'!AN107="","",'BİLGİ GİRİŞİ'!AN107) ->  | AJ93: =IF('BİLGİ GİRİŞİ'!AR107="","",'BİLGİ GİRİŞİ'!AR107) ->  | AM93: =IF('BİLGİ GİRİŞİ'!AV107="","",'BİLGİ GİRİŞİ'!AV107) -> 
A94: =IF('BİLGİ GİRİŞİ'!D108="","",'BİLGİ GİRİŞİ'!D108) ->  | B94: =IF('BİLGİ GİRİŞİ'!E108="","",'BİLGİ GİRİŞİ'!E108) ->  | P94: =IF('BİLGİ GİRİŞİ'!W108="","",'BİLGİ GİRİŞİ'!W108) ->  | T94: =IF('BİLGİ GİRİŞİ'!T108="","",'BİLGİ GİRİŞİ'!T108) ->  | X94: =IF('BİLGİ GİRİŞİ'!AB108="","",'BİLGİ GİRİŞİ'!AB108) ->  | AA94: =IF('BİLGİ GİRİŞİ'!AF108="","",'BİLGİ GİRİŞİ'!AF108) ->  | AD94: =IF('BİLGİ GİRİŞİ'!AJ108="","",'BİLGİ GİRİŞİ'!AJ108) ->  | AG94: =IF('BİLGİ GİRİŞİ'!AN108="","",'BİLGİ GİRİŞİ'!AN108) ->  | AJ94: =IF('BİLGİ GİRİŞİ'!AR108="","",'BİLGİ GİRİŞİ'!AR108) ->  | AM94: =IF('BİLGİ GİRİŞİ'!AV108="","",'BİLGİ GİRİŞİ'!AV108) -> 
A95: =IF('BİLGİ GİRİŞİ'!D109="","",'BİLGİ GİRİŞİ'!D109) ->  | B95: =IF('BİLGİ GİRİŞİ'!E109="","",'BİLGİ GİRİŞİ'!E109) ->  | P95: =IF('BİLGİ GİRİŞİ'!W109="","",'BİLGİ GİRİŞİ'!W109) ->  | T95: =IF('BİLGİ GİRİŞİ'!T109="","",'BİLGİ GİRİŞİ'!T109) ->  | X95: =IF('BİLGİ GİRİŞİ'!AB109="","",'BİLGİ GİRİŞİ'!AB109) ->  | AA95: =IF('BİLGİ GİRİŞİ'!AF109="","",'BİLGİ GİRİŞİ'!AF109) ->  | AD95: =IF('BİLGİ GİRİŞİ'!AJ109="","",'BİLGİ GİRİŞİ'!AJ109) ->  | AG95: =IF('BİLGİ GİRİŞİ'!AN109="","",'BİLGİ GİRİŞİ'!AN109) ->  | AJ95: =IF('BİLGİ GİRİŞİ'!AR109="","",'BİLGİ GİRİŞİ'!AR109) ->  | AM95: =IF('BİLGİ GİRİŞİ'!AV109="","",'BİLGİ GİRİŞİ'!AV109) ->  | AP95: =IF(P95="","",(X95+AD95+AJ95)/3) ->  | AS95: =IF(P95="","",(AA95+AG95+AM95)/3) -> 
A96: =IF('BİLGİ GİRİŞİ'!D110="","",'BİLGİ GİRİŞİ'!D110) ->  | B96: =IF('BİLGİ GİRİŞİ'!E110="","",'BİLGİ GİRİŞİ'!E110) ->  | P96: =IF('BİLGİ GİRİŞİ'!W110="","",'BİLGİ GİRİŞİ'!W110) ->  | T96: =IF('BİLGİ GİRİŞİ'!T110="","",'BİLGİ GİRİŞİ'!T110) ->  | X96: =IF('BİLGİ GİRİŞİ'!AB110="","",'BİLGİ GİRİŞİ'!AB110) ->  | AA96: =IF('BİLGİ GİRİŞİ'!AF110="","",'BİLGİ GİRİŞİ'!AF110) ->  | AD96: =IF('BİLGİ GİRİŞİ'!AJ110="","",'BİLGİ GİRİŞİ'!AJ110) ->  | AG96: =IF('BİLGİ GİRİŞİ'!AN110="","",'BİLGİ GİRİŞİ'!AN110) ->  | AJ96: =IF('BİLGİ GİRİŞİ'!AR110="","",'BİLGİ GİRİŞİ'!AR110) ->  | AM96: =IF('BİLGİ GİRİŞİ'!AV110="","",'BİLGİ GİRİŞİ'!AV110) -> 
A97: =IF('BİLGİ GİRİŞİ'!D111="","",'BİLGİ GİRİŞİ'!D111) ->  | B97: =IF('BİLGİ GİRİŞİ'!E111="","",'BİLGİ GİRİŞİ'!E111) ->  | P97: =IF('BİLGİ GİRİŞİ'!W111="","",'BİLGİ GİRİŞİ'!W111) ->  | T97: =IF('BİLGİ GİRİŞİ'!T111="","",'BİLGİ GİRİŞİ'!T111) ->  | X97: =IF('BİLGİ GİRİŞİ'!AB111="","",'BİLGİ GİRİŞİ'!AB111) ->  | AA97: =IF('BİLGİ GİRİŞİ'!AF111="","",'BİLGİ GİRİŞİ'!AF111) ->  | AD97: =IF('BİLGİ GİRİŞİ'!AJ111="","",'BİLGİ GİRİŞİ'!AJ111) ->  | AG97: =IF('BİLGİ GİRİŞİ'!AN111="","",'BİLGİ GİRİŞİ'!AN111) ->  | AJ97: =IF('BİLGİ GİRİŞİ'!AR111="","",'BİLGİ GİRİŞİ'!AR111) ->  | AM97: =IF('BİLGİ GİRİŞİ'!AV111="","",'BİLGİ GİRİŞİ'!AV111) -> 
A98: =IF('BİLGİ GİRİŞİ'!D112="","",'BİLGİ GİRİŞİ'!D112) ->  | B98: =IF('BİLGİ GİRİŞİ'!E112="","",'BİLGİ GİRİŞİ'!E112) ->  | P98: =IF('BİLGİ GİRİŞİ'!W112="","",'BİLGİ GİRİŞİ'!W112) ->  | T98: =IF('BİLGİ GİRİŞİ'!T112="","",'BİLGİ GİRİŞİ'!T112) ->  | X98: =IF('BİLGİ GİRİŞİ'!AB112="","",'BİLGİ GİRİŞİ'!AB112) ->  | AA98: =IF('BİLGİ GİRİŞİ'!AF112="","",'BİLGİ GİRİŞİ'!AF112) ->  | AD98: =IF('BİLGİ GİRİŞİ'!AJ112="","",'BİLGİ GİRİŞİ'!AJ112) ->  | AG98: =IF('BİLGİ GİRİŞİ'!AN112="","",'BİLGİ GİRİŞİ'!AN112) ->  | AJ98: =IF('BİLGİ GİRİŞİ'!AR112="","",'BİLGİ GİRİŞİ'!AR112) ->  | AM98: =IF('BİLGİ GİRİŞİ'!AV112="","",'BİLGİ GİRİŞİ'!AV112) -> 
A99: =IF('BİLGİ GİRİŞİ'!D113="","",'BİLGİ GİRİŞİ'!D113) ->  | B99: =IF('BİLGİ GİRİŞİ'!E113="","",'BİLGİ GİRİŞİ'!E113) ->  | P99: =IF('BİLGİ GİRİŞİ'!W113="","",'BİLGİ GİRİŞİ'!W113) ->  | T99: =IF('BİLGİ GİRİŞİ'!T113="","",'BİLGİ GİRİŞİ'!T113) ->  | X99: =IF('BİLGİ GİRİŞİ'!AB113="","",'BİLGİ GİRİŞİ'!AB113) ->  | AA99: =IF('BİLGİ GİRİŞİ'!AF113="","",'BİLGİ GİRİŞİ'!AF113) ->  | AD99: =IF('BİLGİ GİRİŞİ'!AJ113="","",'BİLGİ GİRİŞİ'!AJ113) ->  | AG99: =IF('BİLGİ GİRİŞİ'!AN113="","",'BİLGİ GİRİŞİ'!AN113) ->  | AJ99: =IF('BİLGİ GİRİŞİ'!AR113="","",'BİLGİ GİRİŞİ'!AR113) ->  | AM99: =IF('BİLGİ GİRİŞİ'!AV113="","",'BİLGİ GİRİŞİ'!AV113) -> 
A100: =IF('BİLGİ GİRİŞİ'!D114="","",'BİLGİ GİRİŞİ'!D114) ->  | B100: =IF('BİLGİ GİRİŞİ'!E114="","",'BİLGİ GİRİŞİ'!E114) ->  | P100: =IF('BİLGİ GİRİŞİ'!W114="","",'BİLGİ GİRİŞİ'!W114) ->  | T100: =IF('BİLGİ GİRİŞİ'!T114="","",'BİLGİ GİRİŞİ'!T114) ->  | X100: =IF('BİLGİ GİRİŞİ'!AB114="","",'BİLGİ GİRİŞİ'!AB114) ->  | AA100: =IF('BİLGİ GİRİŞİ'!AF114="","",'BİLGİ GİRİŞİ'!AF114) ->  | AD100: =IF('BİLGİ GİRİŞİ'!AJ114="","",'BİLGİ GİRİŞİ'!AJ114) ->  | AG100: =IF('BİLGİ GİRİŞİ'!AN114="","",'BİLGİ GİRİŞİ'!AN114) ->  | AJ100: =IF('BİLGİ GİRİŞİ'!AR114="","",'BİLGİ GİRİŞİ'!AR114) ->  | AM100: =IF('BİLGİ GİRİŞİ'!AV114="","",'BİLGİ GİRİŞİ'!AV114) -> 
A101: =IF('BİLGİ GİRİŞİ'!D115="","",'BİLGİ GİRİŞİ'!D115) ->  | B101: =IF('BİLGİ GİRİŞİ'!E115="","",'BİLGİ GİRİŞİ'!E115) ->  | P101: =IF('BİLGİ GİRİŞİ'!W115="","",'BİLGİ GİRİŞİ'!W115) ->  | T101: =IF('BİLGİ GİRİŞİ'!T115="","",'BİLGİ GİRİŞİ'!T115) ->  | X101: =IF('BİLGİ GİRİŞİ'!AB115="","",'BİLGİ GİRİŞİ'!AB115) ->  | AA101: =IF('BİLGİ GİRİŞİ'!AF115="","",'BİLGİ GİRİŞİ'!AF115) ->  | AD101: =IF('BİLGİ GİRİŞİ'!AJ115="","",'BİLGİ GİRİŞİ'!AJ115) ->  | AG101: =IF('BİLGİ GİRİŞİ'!AN115="","",'BİLGİ GİRİŞİ'!AN115) ->  | AJ101: =IF('BİLGİ GİRİŞİ'!AR115="","",'BİLGİ GİRİŞİ'!AR115) ->  | AM101: =IF('BİLGİ GİRİŞİ'!AV115="","",'BİLGİ GİRİŞİ'!AV115) -> 
A102: =IF('BİLGİ GİRİŞİ'!D116="","",'BİLGİ GİRİŞİ'!D116) ->  | B102: =IF('BİLGİ GİRİŞİ'!E116="","",'BİLGİ GİRİŞİ'!E116) ->  | P102: =IF('BİLGİ GİRİŞİ'!W116="","",'BİLGİ GİRİŞİ'!W116) ->  | T102: =IF('BİLGİ GİRİŞİ'!T116="","",'BİLGİ GİRİŞİ'!T116) ->  | X102: =IF('BİLGİ GİRİŞİ'!AB116="","",'BİLGİ GİRİŞİ'!AB116) ->  | AA102: =IF('BİLGİ GİRİŞİ'!AF116="","",'BİLGİ GİRİŞİ'!AF116) ->  | AD102: =IF('BİLGİ GİRİŞİ'!AJ116="","",'BİLGİ GİRİŞİ'!AJ116) ->  | AG102: =IF('BİLGİ GİRİŞİ'!AN116="","",'BİLGİ GİRİŞİ'!AN116) ->  | AJ102: =IF('BİLGİ GİRİŞİ'!AR116="","",'BİLGİ GİRİŞİ'!AR116) ->  | AM102: =IF('BİLGİ GİRİŞİ'!AV116="","",'BİLGİ GİRİŞİ'!AV116) -> 
A103: =IF('BİLGİ GİRİŞİ'!D117="","",'BİLGİ GİRİŞİ'!D117) ->  | B103: =IF('BİLGİ GİRİŞİ'!E117="","",'BİLGİ GİRİŞİ'!E117) ->  | P103: =IF('BİLGİ GİRİŞİ'!W117="","",'BİLGİ GİRİŞİ'!W117) ->  | T103: =IF('BİLGİ GİRİŞİ'!T117="","",'BİLGİ GİRİŞİ'!T117) ->  | X103: =IF('BİLGİ GİRİŞİ'!AB117="","",'BİLGİ GİRİŞİ'!AB117) ->  | AA103: =IF('BİLGİ GİRİŞİ'!AF117="","",'BİLGİ GİRİŞİ'!AF117) ->  | AD103: =IF('BİLGİ GİRİŞİ'!AJ117="","",'BİLGİ GİRİŞİ'!AJ117) ->  | AG103: =IF('BİLGİ GİRİŞİ'!AN117="","",'BİLGİ GİRİŞİ'!AN117) ->  | AJ103: =IF('BİLGİ GİRİŞİ'!AR117="","",'BİLGİ GİRİŞİ'!AR117) ->  | AM103: =IF('BİLGİ GİRİŞİ'!AV117="","",'BİLGİ GİRİŞİ'!AV117) -> 
A104: =IF('BİLGİ GİRİŞİ'!D118="","",'BİLGİ GİRİŞİ'!D118) ->  | B104: =IF('BİLGİ GİRİŞİ'!E118="","",'BİLGİ GİRİŞİ'!E118) ->  | P104: =IF('BİLGİ GİRİŞİ'!W118="","",'BİLGİ GİRİŞİ'!W118) ->  | T104: =IF('BİLGİ GİRİŞİ'!T118="","",'BİLGİ GİRİŞİ'!T118) ->  | X104: =IF('BİLGİ GİRİŞİ'!AB118="","",'BİLGİ GİRİŞİ'!AB118) ->  | AA104: =IF('BİLGİ GİRİŞİ'!AF118="","",'BİLGİ GİRİŞİ'!AF118) ->  | AD104: =IF('BİLGİ GİRİŞİ'!AJ118="","",'BİLGİ GİRİŞİ'!AJ118) ->  | AG104: =IF('BİLGİ GİRİŞİ'!AN118="","",'BİLGİ GİRİŞİ'!AN118) ->  | AJ104: =IF('BİLGİ GİRİŞİ'!AR118="","",'BİLGİ GİRİŞİ'!AR118) ->  | AM104: =IF('BİLGİ GİRİŞİ'!AV118="","",'BİLGİ GİRİŞİ'!AV118) -> 
A105: =IF('BİLGİ GİRİŞİ'!D119="","",'BİLGİ GİRİŞİ'!D119) ->  | B105: =IF('BİLGİ GİRİŞİ'!E119="","",'BİLGİ GİRİŞİ'!E119) ->  | P105: =IF('BİLGİ GİRİŞİ'!W119="","",'BİLGİ GİRİŞİ'!W119) ->  | T105: =IF('BİLGİ GİRİŞİ'!T119="","",'BİLGİ GİRİŞİ'!T119) ->  | X105: =IF('BİLGİ GİRİŞİ'!AB119="","",'BİLGİ GİRİŞİ'!AB119) ->  | AA105: =IF('BİLGİ GİRİŞİ'!AF119="","",'BİLGİ GİRİŞİ'!AF119) ->  | AD105: =IF('BİLGİ GİRİŞİ'!AJ119="","",'BİLGİ GİRİŞİ'!AJ119) ->  | AG105: =IF('BİLGİ GİRİŞİ'!AN119="","",'BİLGİ GİRİŞİ'!AN119) ->  | AJ105: =IF('BİLGİ GİRİŞİ'!AR119="","",'BİLGİ GİRİŞİ'!AR119) ->  | AM105: =IF('BİLGİ GİRİŞİ'!AV119="","",'BİLGİ GİRİŞİ'!AV119) -> 
A106: =IF('BİLGİ GİRİŞİ'!D120="","",'BİLGİ GİRİŞİ'!D120) ->  | B106: =IF('BİLGİ GİRİŞİ'!E120="","",'BİLGİ GİRİŞİ'!E120) ->  | P106: =IF('BİLGİ GİRİŞİ'!W120="","",'BİLGİ GİRİŞİ'!W120) ->  | T106: =IF('BİLGİ GİRİŞİ'!T120="","",'BİLGİ GİRİŞİ'!T120) ->  | X106: =IF('BİLGİ GİRİŞİ'!AB120="","",'BİLGİ GİRİŞİ'!AB120) ->  | AA106: =IF('BİLGİ GİRİŞİ'!AF120="","",'BİLGİ GİRİŞİ'!AF120) ->  | AD106: =IF('BİLGİ GİRİŞİ'!AJ120="","",'BİLGİ GİRİŞİ'!AJ120) ->  | AG106: =IF('BİLGİ GİRİŞİ'!AN120="","",'BİLGİ GİRİŞİ'!AN120) ->  | AJ106: =IF('BİLGİ GİRİŞİ'!AR120="","",'BİLGİ GİRİŞİ'!AR120) ->  | AM106: =IF('BİLGİ GİRİŞİ'!AV120="","",'BİLGİ GİRİŞİ'!AV120) -> 
A107: =IF('BİLGİ GİRİŞİ'!D121="","",'BİLGİ GİRİŞİ'!D121) ->  | B107: =IF('BİLGİ GİRİŞİ'!E121="","",'BİLGİ GİRİŞİ'!E121) ->  | P107: =IF('BİLGİ GİRİŞİ'!W121="","",'BİLGİ GİRİŞİ'!W121) ->  | T107: =IF('BİLGİ GİRİŞİ'!T121="","",'BİLGİ GİRİŞİ'!T121) ->  | X107: =IF('BİLGİ GİRİŞİ'!AB121="","",'BİLGİ GİRİŞİ'!AB121) ->  | AA107: =IF('BİLGİ GİRİŞİ'!AF121="","",'BİLGİ GİRİŞİ'!AF121) ->  | AD107: =IF('BİLGİ GİRİŞİ'!AJ121="","",'BİLGİ GİRİŞİ'!AJ121) ->  | AG107: =IF('BİLGİ GİRİŞİ'!AN121="","",'BİLGİ GİRİŞİ'!AN121) ->  | AJ107: =IF('BİLGİ GİRİŞİ'!AR121="","",'BİLGİ GİRİŞİ'!AR121) ->  | AM107: =IF('BİLGİ GİRİŞİ'!AV121="","",'BİLGİ GİRİŞİ'!AV121) -> 
A108: =IF('BİLGİ GİRİŞİ'!D122="","",'BİLGİ GİRİŞİ'!D122) ->  | B108: =IF('BİLGİ GİRİŞİ'!E122="","",'BİLGİ GİRİŞİ'!E122) ->  | P108: =IF('BİLGİ GİRİŞİ'!W122="","",'BİLGİ GİRİŞİ'!W122) ->  | T108: =IF('BİLGİ GİRİŞİ'!T122="","",'BİLGİ GİRİŞİ'!T122) ->  | X108: =IF('BİLGİ GİRİŞİ'!AB122="","",'BİLGİ GİRİŞİ'!AB122) ->  | AA108: =IF('BİLGİ GİRİŞİ'!AF122="","",'BİLGİ GİRİŞİ'!AF122) ->  | AD108: =IF('BİLGİ GİRİŞİ'!AJ122="","",'BİLGİ GİRİŞİ'!AJ122) ->  | AG108: =IF('BİLGİ GİRİŞİ'!AN122="","",'BİLGİ GİRİŞİ'!AN122) ->  | AJ108: =IF('BİLGİ GİRİŞİ'!AR122="","",'BİLGİ GİRİŞİ'!AR122) ->  | AM108: =IF('BİLGİ GİRİŞİ'!AV122="","",'BİLGİ GİRİŞİ'!AV122) -> 
A109: =IF('BİLGİ GİRİŞİ'!D123="","",'BİLGİ GİRİŞİ'!D123) ->  | B109: =IF('BİLGİ GİRİŞİ'!E123="","",'BİLGİ GİRİŞİ'!E123) ->  | P109: =IF('BİLGİ GİRİŞİ'!W123="","",'BİLGİ GİRİŞİ'!W123) ->  | T109: =IF('BİLGİ GİRİŞİ'!T123="","",'BİLGİ GİRİŞİ'!T123) ->  | X109: =IF('BİLGİ GİRİŞİ'!AB123="","",'BİLGİ GİRİŞİ'!AB123) ->  | AA109: =IF('BİLGİ GİRİŞİ'!AF123="","",'BİLGİ GİRİŞİ'!AF123) ->  | AD109: =IF('BİLGİ GİRİŞİ'!AJ123="","",'BİLGİ GİRİŞİ'!AJ123) ->  | AG109: =IF('BİLGİ GİRİŞİ'!AN123="","",'BİLGİ GİRİŞİ'!AN123) ->  | AJ109: =IF('BİLGİ GİRİŞİ'!AR123="","",'BİLGİ GİRİŞİ'!AR123) ->  | AM109: =IF('BİLGİ GİRİŞİ'!AV123="","",'BİLGİ GİRİŞİ'!AV123) -> 
A110: =IF('BİLGİ GİRİŞİ'!D124="","",'BİLGİ GİRİŞİ'!D124) ->  | B110: =IF('BİLGİ GİRİŞİ'!E124="","",'BİLGİ GİRİŞİ'!E124) ->  | P110: =IF('BİLGİ GİRİŞİ'!W124="","",'BİLGİ GİRİŞİ'!W124) ->  | T110: =IF('BİLGİ GİRİŞİ'!T124="","",'BİLGİ GİRİŞİ'!T124) ->  | X110: =IF('BİLGİ GİRİŞİ'!AB124="","",'BİLGİ GİRİŞİ'!AB124) ->  | AA110: =IF('BİLGİ GİRİŞİ'!AF124="","",'BİLGİ GİRİŞİ'!AF124) ->  | AD110: =IF('BİLGİ GİRİŞİ'!AJ124="","",'BİLGİ GİRİŞİ'!AJ124) ->  | AG110: =IF('BİLGİ GİRİŞİ'!AN124="","",'BİLGİ GİRİŞİ'!AN124) ->  | AJ110: =IF('BİLGİ GİRİŞİ'!AR124="","",'BİLGİ GİRİŞİ'!AR124) ->  | AM110: =IF('BİLGİ GİRİŞİ'!AV124="","",'BİLGİ GİRİŞİ'!AV124) -> 
A111: =IF('BİLGİ GİRİŞİ'!D125="","",'BİLGİ GİRİŞİ'!D125) ->  | B111: =IF('BİLGİ GİRİŞİ'!E125="","",'BİLGİ GİRİŞİ'!E125) ->  | P111: =IF('BİLGİ GİRİŞİ'!W125="","",'BİLGİ GİRİŞİ'!W125) ->  | T111: =IF('BİLGİ GİRİŞİ'!T125="","",'BİLGİ GİRİŞİ'!T125) ->  | X111: =IF('BİLGİ GİRİŞİ'!AB125="","",'BİLGİ GİRİŞİ'!AB125) ->  | AA111: =IF('BİLGİ GİRİŞİ'!AF125="","",'BİLGİ GİRİŞİ'!AF125) ->  | AD111: =IF('BİLGİ GİRİŞİ'!AJ125="","",'BİLGİ GİRİŞİ'!AJ125) ->  | AG111: =IF('BİLGİ GİRİŞİ'!AN125="","",'BİLGİ GİRİŞİ'!AN125) ->  | AJ111: =IF('BİLGİ GİRİŞİ'!AR125="","",'BİLGİ GİRİŞİ'!AR125) ->  | AM111: =IF('BİLGİ GİRİŞİ'!AV125="","",'BİLGİ GİRİŞİ'!AV125) -> 
A112: =IF('BİLGİ GİRİŞİ'!D126="","",'BİLGİ GİRİŞİ'!D126) ->  | B112: =IF('BİLGİ GİRİŞİ'!E126="","",'BİLGİ GİRİŞİ'!E126) ->  | P112: =IF('BİLGİ GİRİŞİ'!W126="","",'BİLGİ GİRİŞİ'!W126) ->  | T112: =IF('BİLGİ GİRİŞİ'!T126="","",'BİLGİ GİRİŞİ'!T126) ->  | X112: =IF('BİLGİ GİRİŞİ'!AB126="","",'BİLGİ GİRİŞİ'!AB126) ->  | AA112: =IF('BİLGİ GİRİŞİ'!AF126="","",'BİLGİ GİRİŞİ'!AF126) ->  | AD112: =IF('BİLGİ GİRİŞİ'!AJ126="","",'BİLGİ GİRİŞİ'!AJ126) ->  | AG112: =IF('BİLGİ GİRİŞİ'!AN126="","",'BİLGİ GİRİŞİ'!AN126) ->  | AJ112: =IF('BİLGİ GİRİŞİ'!AR126="","",'BİLGİ GİRİŞİ'!AR126) ->  | AM112: =IF('BİLGİ GİRİŞİ'!AV126="","",'BİLGİ GİRİŞİ'!AV126) -> 
A113: =IF('BİLGİ GİRİŞİ'!D127="","",'BİLGİ GİRİŞİ'!D127) ->  | B113: =IF('BİLGİ GİRİŞİ'!E127="","",'BİLGİ GİRİŞİ'!E127) ->  | P113: =IF('BİLGİ GİRİŞİ'!W127="","",'BİLGİ GİRİŞİ'!W127) ->  | T113: =IF('BİLGİ GİRİŞİ'!T127="","",'BİLGİ GİRİŞİ'!T127) ->  | X113: =IF('BİLGİ GİRİŞİ'!AB127="","",'BİLGİ GİRİŞİ'!AB127) ->  | AA113: =IF('BİLGİ GİRİŞİ'!AF127="","",'BİLGİ GİRİŞİ'!AF127) ->  | AD113: =IF('BİLGİ GİRİŞİ'!AJ127="","",'BİLGİ GİRİŞİ'!AJ127) ->  | AG113: =IF('BİLGİ GİRİŞİ'!AN127="","",'BİLGİ GİRİŞİ'!AN127) ->  | AJ113: =IF('BİLGİ GİRİŞİ'!AR127="","",'BİLGİ GİRİŞİ'!AR127) ->  | AM113: =IF('BİLGİ GİRİŞİ'!AV127="","",'BİLGİ GİRİŞİ'!AV127) -> 
A114: =IF('BİLGİ GİRİŞİ'!D128="","",'BİLGİ GİRİŞİ'!D128) ->  | B114: =IF('BİLGİ GİRİŞİ'!E128="","",'BİLGİ GİRİŞİ'!E128) ->  | P114: =IF('BİLGİ GİRİŞİ'!W128="","",'BİLGİ GİRİŞİ'!W128) ->  | T114: =IF('BİLGİ GİRİŞİ'!T128="","",'BİLGİ GİRİŞİ'!T128) ->  | X114: =IF('BİLGİ GİRİŞİ'!AB128="","",'BİLGİ GİRİŞİ'!AB128) ->  | AA114: =IF('BİLGİ GİRİŞİ'!AF128="","",'BİLGİ GİRİŞİ'!AF128) ->  | AD114: =IF('BİLGİ GİRİŞİ'!AJ128="","",'BİLGİ GİRİŞİ'!AJ128) ->  | AG114: =IF('BİLGİ GİRİŞİ'!AN128="","",'BİLGİ GİRİŞİ'!AN128) ->  | AJ114: =IF('BİLGİ GİRİŞİ'!AR128="","",'BİLGİ GİRİŞİ'!AR128) ->  | AM114: =IF('BİLGİ GİRİŞİ'!AV128="","",'BİLGİ GİRİŞİ'!AV128) -> 
A115: =IF('BİLGİ GİRİŞİ'!D129="","",'BİLGİ GİRİŞİ'!D129) ->  | B115: =IF('BİLGİ GİRİŞİ'!E129="","",'BİLGİ GİRİŞİ'!E129) ->  | P115: =IF('BİLGİ GİRİŞİ'!W129="","",'BİLGİ GİRİŞİ'!W129) ->  | T115: =IF('BİLGİ GİRİŞİ'!T129="","",'BİLGİ GİRİŞİ'!T129) ->  | X115: =IF('BİLGİ GİRİŞİ'!AB129="","",'BİLGİ GİRİŞİ'!AB129) ->  | AA115: =IF('BİLGİ GİRİŞİ'!AF129="","",'BİLGİ GİRİŞİ'!AF129) ->  | AD115: =IF('BİLGİ GİRİŞİ'!AJ129="","",'BİLGİ GİRİŞİ'!AJ129) ->  | AG115: =IF('BİLGİ GİRİŞİ'!AN129="","",'BİLGİ GİRİŞİ'!AN129) ->  | AJ115: =IF('BİLGİ GİRİŞİ'!AR129="","",'BİLGİ GİRİŞİ'!AR129) ->  | AM115: =IF('BİLGİ GİRİŞİ'!AV129="","",'BİLGİ GİRİŞİ'!AV129) -> 
A116: TOPLAM (KDV Hariç) | X116: =SUM(X16:X115) -> 9000 | AA116: =SUM(AA16:AA115) -> 18000 | AD116: =SUM(AD16:AD115) -> 12000 | AG116: =SUM(AG16:AG115) -> 24000 | AJ116: =SUM(AJ16:AJ115) -> 15000 | AM116: =SUM(AM16:AM115) -> 30000 | AP116: =SUM(AP16:AP115) -> 12000 | AS116: =SUM(AS16:AS115) -> 24000
A118: Piyasa araştırması sonucu yaklaşık maliyet, KDV hariç | S118: =IF(AS116="","",AS116) -> 24000 | Y118: Türk Lirası olarak hesaplanmış olup iş bu cetvel tarafımızca imza altına alınmıştır.
B121: =IF(B124="","",IF('BİLGİ GİRİŞİ'!AB16="","",'BİLGİ GİRİŞİ'!AB16)) -> Piyasa Araştırma Görevlisi | M121: =IF(M124="","",IF('BİLGİ GİRİŞİ'!AH16="","",'BİLGİ GİRİŞİ'!AH16)) -> Piyasa Araştırma Görevlisi | X121: =IF(X124="","",IF('BİLGİ GİRİŞİ'!AN16="","",'BİLGİ GİRİŞİ'!AN16)) ->  | AI121: =IF(AI124="","",IF('BİLGİ GİRİŞİ'!AT16="","",'BİLGİ GİRİŞİ'!AT16)) -> OLUR/UYGUNDUR
AI122: =IF(AI124="","",IF('BİLGİ GİRİŞİ'!O17="","….../….../….…..",'BİLGİ GİRİŞİ'!O17)) -> 2023-03-07
B124: =IF('BİLGİ GİRİŞİ'!AB17="","",'BİLGİ GİRİŞİ'!AB17) -> Ahmet DEMİR | M124: =IF('BİLGİ GİRİŞİ'!AH17="","",'BİLGİ GİRİŞİ'!AH17) -> Ayşe YILDIZ | X124: =IF('BİLGİ GİRİŞİ'!AN17="","",'BİLGİ GİRİŞİ'!AN17) ->  | AI124: =IF('BİLGİ GİRİŞİ'!AT17="","",'BİLGİ GİRİŞİ'!AT17) -> Mustafa AYDIN
B125: =IF(B124="","",IF('BİLGİ GİRİŞİ'!AB18="","",'BİLGİ GİRİŞİ'!AB18)) -> Müdür Yardımcısı 1 | M125: =IF(M124="","",IF('BİLGİ GİRİŞİ'!AH18="","",'BİLGİ GİRİŞİ'!AH18)) -> Öğretmen 1 | X125: =IF(X124="","",IF('BİLGİ GİRİŞİ'!AN18="","",'BİLGİ GİRİŞİ'!AN18)) ->  | AI125: =IF(AI124="","",IF('BİLGİ GİRİŞİ'!AT18="","",'BİLGİ GİRİŞİ'!AT18)) -> Okul Müdürü

Sheet 4
A2: DOĞRUDAN TEMİN ONAY BELGESİ
A4: ALIMI YAPAN İDARENİN ADI | L4: =IF('BİLGİ GİRİŞİ'!O8="","",'BİLGİ GİRİŞİ'!O8) -> Atatürk İlkokulu Müdürlüğü
A5: BELGE TARİH VE SAYISI | L5: =IF('BİLGİ GİRİŞİ'!O18="","…../…../……..",'BİLGİ GİRİŞİ'!O18) -> 2023-03-06 | P5: / | Q5: =IF('BİLGİ GİRİŞİ'!S15="","….......................................",'BİLGİ GİRİŞİ'!S15) -> 456789123
A6: =UPPER(IF('BİLGİ GİRİŞİ'!O8="","",'BİLGİ GİRİŞİ'!O8)) -> ATATÜRK İLKOKULU MÜDÜRLÜĞÜ
A7: HARCAMA YETKİLİSİ MAKAMINA
A8: DOĞRUDAN TEMİN İLE İLGİLİ BİLGİLER
A9: DOĞRUDAN TEMİN NUMARASI | P9: =IF('BİLGİ GİRİŞİ'!O11="","",'BİLGİ GİRİŞİ'!O11) -> 22DT1211930
A10: İŞİN ADI | P10: =IF('BİLGİ GİRİŞİ'!O9="","",'BİLGİ GİRİŞİ'!O9) -> Bilişim Malzemeleri Alımı
A11: TEMİN ŞEKLİ | P11: =IF('BİLGİ GİRİŞİ'!O10="","",'BİLGİ GİRİŞİ'!O10) -> 22/d
A12: İŞİN TÜRÜ | P12: Mal Alımı/Hizmet Alımı/Yapım İşi
A14: KULLANILABİLİR ÖDENEK TUTARI | P14: =IF('BİLGİ GİRİŞİ'!AJ13="","",'BİLGİ GİRİŞİ'!AJ13) -> 45000
A15: YAKLAŞIK MALİYET | P15: =IF('3'!AS116="","",'3'!AS116) -> 24000
A16: YATIRIM/PROJE NUMARASI (Varsa)
A17: BÜTÇE TERTİBİ (Varsa) | P17: =IF('BİLGİ GİRİŞİ'!AJ12="","",'BİLGİ GİRİŞİ'!AJ12) -> 6.98.255.9436.13.67.01.03.05.30.02
A18: FİYAT FARKI VERİLECEKSE ŞARTLARI | P18: Verilmeyecektir.
A19: AVANS VERİLECEKSE ŞARTLARI | P19: Verilmeyecektir.
A20: DOKÜMAN HAZIRLANIP HAZIRLANMAYACAĞI | P20: Hazırlanmayacaktır.
A22: DOĞRUDAN TEMİN İLE İLGİLİ DİĞER AÇIKLAMALAR
A23: …..............
A24: ONAY
A25: =CONCATENATE(" ","Yukarıda belirtilen işin Kamu İhale Kanunu'nun ",IF('BİLGİ GİRİŞİ'!O10="",".............................................................................",'BİLGİ GİRİŞİ'!O10)," maddesine göre Doğrudan Temin yoluyla satın alınması hususunu;") -> Yukarıda belirtilen işin Kamu İhale Kanunu'nun 22/d maddesine göre Doğrudan Temin yoluyla satın alınması hususunu;
P28: =IF(P33="","",IF('BİLGİ GİRİŞİ'!AT16="","",'BİLGİ GİRİŞİ'!AT16)) -> OLUR/UYGUNDUR
A29: Olurlarınıza arz ederim. | P29: =IF(P33="","",IF('BİLGİ GİRİŞİ'!O18="","…../…../……..",'BİLGİ GİRİŞİ'!O18)) -> 2023-03-06
A31: =IF(A34="","",IF('BİLGİ GİRİŞİ'!O18="","…../…../……..",'BİLGİ GİRİŞİ'!O18)) -> 2023-03-06
P33: =IF('BİLGİ GİRİŞİ'!AT17="","",'BİLGİ GİRİŞİ'!AT17) -> Mustafa AYDIN
A34: =IF('BİLGİ GİRİŞİ'!AB17="","",'BİLGİ GİRİŞİ'!AB17) -> Ahmet DEMİR | P34: =IF(P33="","",IF('BİLGİ GİRİŞİ'!AT18="","",'BİLGİ GİRİŞİ'!AT18)) -> Okul Müdürü
A35: =IF(A34="","",IF('BİLGİ GİRİŞİ'!AB18="","",'BİLGİ GİRİŞİ'!AB18)) -> Müdür Yardımcısı 1
A38: Ek:İdare Tarafından Hazırlanan Yaklaşık Maliyet Hesap Cetveli

Sheet 5
A2: T.C.
A3: =IF('BİLGİ GİRİŞİ'!O7="","",'BİLGİ GİRİŞİ'!O7) -> BULANIK KAYMAKAMLIĞI
A4: =IF('BİLGİ GİRİŞİ'!O8="","",'BİLGİ GİRİŞİ'!O8) -> Atatürk İlkokulu Müdürlüğü
A6: Sayı | D6: : | E6: =IF('BİLGİ GİRİŞİ'!S15="","",'BİLGİ GİRİŞİ'!S15) -> 456789123 | Z6: =IF('BİLGİ GİRİŞİ'!O19="","…../…../……..",'BİLGİ GİRİŞİ'!O19) -> 2023-03-06
A7: Konu | D7: : | E7: Teklif Vermeye Davet
A9: İLGİLİ GERÇEK/TÜZEL KİŞİLERE
A11: =CONCATENATE(" ","Kurumumuz ihtiyaçlarında kullanılmak üzere aşağıda bilgileri verilen Mal/Hizmet/Yapım İşi, Kamu İhale Kanunu'nun ",IF('BİLGİ GİRİŞİ'!O10="",".............................................................................",'BİLGİ GİRİŞİ'!O10)," maddesine göre Doğrudan Temin yoluyla satın alınacaktır.") -> Kurumumuz ihtiyaçlarında kullanılmak üzere aşağıda bilgileri verilen Mal/Hizmet/Yapım İşi, Kamu İhale Kanunu'nun 22/d maddesine göre Doğrudan Temin yoluyla satın alınacaktır.
A13: =CONCATENATE(" İlgilenmeniz halinde aşağıda bilgileri verilen Mal/Hizmet/Yapım İşi'ne ilişkin, KDV hariç teklifinizi içeren birim fiyat ve toplam fiyatlarının karşılarına yazılarak ", TEXT(IF('BİLGİ GİRİŞİ'!O20="","…../…../……..",'BİLGİ GİRİŞİ'!O20),"gg.aa.yyyy "), " tarihi mesai bitimine kadar Kurumumuza gönderilmesi hususunda;") -> İlgilenmeniz halinde aşağıda bilgileri verilen Mal/Hizmet/Yapım İşi'ne ilişkin, KDV hariç teklifinizi içeren birim fiyat ve toplam fiyatlarının karşılarına yazılarak 08.03.2023 tarihi mesai bitimine kadar Kurumumuza gönderilmesi hususunda;
A16: Gereğini rica ederim/ederiz.
A19: =IF(A20="","",IF('BİLGİ GİRİŞİ'!AH16="","",'BİLGİ GİRİŞİ'!AH16)) -> Piyasa Araştırma Görevlisi | K19: =IF(K20="","",IF('BİLGİ GİRİŞİ'!AN16="","",'BİLGİ GİRİŞİ'!AN16)) ->  | U19: =IF(U20="","",IF('BİLGİ GİRİŞİ'!AB16="","",'BİLGİ GİRİŞİ'!AB16)) -> Piyasa Araştırma Görevlisi
A20: =IF('BİLGİ GİRİŞİ'!AH17="","",'BİLGİ GİRİŞİ'!AH17) -> Ayşe YILDIZ | K20: =IF('BİLGİ GİRİŞİ'!AN17="","",'BİLGİ GİRİŞİ'!AN17) ->  | U20: =IF('BİLGİ GİRİŞİ'!AB17="","",'BİLGİ GİRİŞİ'!AB17) -> Ahmet DEMİR
A21: =IF('BİLGİ GİRİŞİ'!AH18="","",'BİLGİ GİRİŞİ'!AH18) -> Öğretmen 1 | K21: =IF(K20="","",IF('BİLGİ GİRİŞİ'!AN18="","",'BİLGİ GİRİŞİ'!AN18)) ->  | U21: =IF('BİLGİ GİRİŞİ'!AB18="","",'BİLGİ GİRİŞİ'!AB18) -> Müdür Yardımcısı 1
A24: =IF('BİLGİ GİRİŞİ'!O8="","",CONCATENATE(UPPER('BİLGİ GİRİŞİ'!O8),"",UPPER(IF('BİLGİ GİRİŞİ'!O8="","",'BİLGİ GİRİŞİ'!AN8)))) -> ATATÜRK İLKOKULU MÜDÜRLÜĞÜNE
A26: Kurumunuzca satın alınacak Mal/Hizmet/Yapım İşi'ne ilişkin teklifimizi içeren birim fiyatlar ve toplam fiyatlar aşağıya çıkarılmıştır.
A28: Gereğini arz ederim/ederiz.
A30: MAL'IN/HİZMET'İN/YAPIM İŞİ'NİN
A31: S | B31: Kalem/KısımBilgileri | P31: Birimi | T31: Miktarı | X31: Birim Fiyatı | AB31: Toplam Fiyatı
A32: =IF('BİLGİ GİRİŞİ'!D30="","",'BİLGİ GİRİŞİ'!D30) -> 1 | B32: =IF('BİLGİ GİRİŞİ'!E30="","",'BİLGİ GİRİŞİ'!E30) -> AIO (All In One) Masaüstü Bilgisayar | P32: =IF('BİLGİ GİRİŞİ'!W30="","",'BİLGİ GİRİŞİ'!W30) -> Adet | T32: =IF('BİLGİ GİRİŞİ'!T30="","",IF('BİLGİ GİRİŞİ'!$BO$28=1,"1",'BİLGİ GİRİŞİ'!T30)) -> 1
A33: =IF('BİLGİ GİRİŞİ'!D31="","",'BİLGİ GİRİŞİ'!D31) -> 2 | B33: =IF('BİLGİ GİRİŞİ'!E31="","",'BİLGİ GİRİŞİ'!E31) -> Fotokopi Makinesi | P33: =IF('BİLGİ GİRİŞİ'!W31="","",'BİLGİ GİRİŞİ'!W31) -> Adet | T33: =IF('BİLGİ GİRİŞİ'!T31="","",IF('BİLGİ GİRİŞİ'!$BO$28=1,"1",'BİLGİ GİRİŞİ'!T31)) -> 1
A34: =IF('BİLGİ GİRİŞİ'!D32="","",'BİLGİ GİRİŞİ'!D32) -> 3 | B34: =IF('BİLGİ GİRİŞİ'!E32="","",'BİLGİ GİRİŞİ'!E32) -> Projektör | P34: =IF('BİLGİ GİRİŞİ'!W32="","",'BİLGİ GİRİŞİ'!W32) -> Adet | T34: =IF('BİLGİ GİRİŞİ'!T32="","",IF('BİLGİ GİRİŞİ'!$BO$28=1,"1",'BİLGİ GİRİŞİ'!T32)) -> 1
A35: =IF('BİLGİ GİRİŞİ'!D33="","",'BİLGİ GİRİŞİ'!D33) ->  | B35: =IF('BİLGİ GİRİŞİ'!E33="","",'BİLGİ GİRİŞİ'!E33) ->  | P35: =IF('BİLGİ GİRİŞİ'!W33="","",'BİLGİ GİRİŞİ'!W33) ->  | T35: =IF('BİLGİ GİRİŞİ'!T33="","",IF('BİLGİ GİRİŞİ'!$BO$28=1,"1",'BİLGİ GİRİŞİ'!T33)) -> 
A36: =IF('BİLGİ GİRİŞİ'!D34="","",'BİLGİ GİRİŞİ'!D34) ->  | B36: =IF('BİLGİ GİRİŞİ'!E34="","",'BİLGİ GİRİŞİ'!E34) ->  | P36: =IF('BİLGİ GİRİŞİ'!W34="","",'BİLGİ GİRİŞİ'!W34) ->  | T36: =IF('BİLGİ GİRİŞİ'!T34="","",IF('BİLGİ GİRİŞİ'!$BO$28=1,"1",'BİLGİ GİRİŞİ'!T34)) -> 
A37: =IF('BİLGİ GİRİŞİ'!D35="","",'BİLGİ GİRİŞİ'!D35) ->  | B37: =IF('BİLGİ GİRİŞİ'!E35="","",'BİLGİ GİRİŞİ'!E35) ->  | P37: =IF('BİLGİ GİRİŞİ'!W35="","",'BİLGİ GİRİŞİ'!W35) ->  | T37: =IF('BİLGİ GİRİŞİ'!T35="","",IF('BİLGİ GİRİŞİ'!$BO$28=1,"1",'BİLGİ GİRİŞİ'!T35)) -> 
A38: =IF('BİLGİ GİRİŞİ'!D36="","",'BİLGİ GİRİŞİ'!D36) ->  | B38: =IF('BİLGİ GİRİŞİ'!E36="","",'BİLGİ GİRİŞİ'!E36) ->  | P38: =IF('BİLGİ GİRİŞİ'!W36="","",'BİLGİ GİRİŞİ'!W36) ->  | T38: =IF('BİLGİ GİRİŞİ'!T36="","",IF('BİLGİ GİRİŞİ'!$BO$28=1,"1",'BİLGİ GİRİŞİ'!T36)) -> 
A39: =IF('BİLGİ GİRİŞİ'!D37="","",'BİLGİ GİRİŞİ'!D37) ->  | B39: =IF('BİLGİ GİRİŞİ'!E37="","",'BİLGİ GİRİŞİ'!E37) ->  | P39: =IF('BİLGİ GİRİŞİ'!W37="","",'BİLGİ GİRİŞİ'!W37) ->  | T39: =IF('BİLGİ GİRİŞİ'!T37="","",IF('BİLGİ GİRİŞİ'!$BO$28=1,"1",'BİLGİ GİRİŞİ'!T37)) -> 
A40: =IF('BİLGİ GİRİŞİ'!D38="","",'BİLGİ GİRİŞİ'!D38) ->  | B40: =IF('BİLGİ GİRİŞİ'!E38="","",'BİLGİ GİRİŞİ'!E38) ->  | P40: =IF('BİLGİ GİRİŞİ'!W38="","",'BİLGİ GİRİŞİ'!W38) ->  | T40: =IF('BİLGİ GİRİŞİ'!T38="","",IF('BİLGİ GİRİŞİ'!$BO$28=1,"1",'BİLGİ GİRİŞİ'!T38)) -> 
A41: =IF('BİLGİ GİRİŞİ'!D39="","",'BİLGİ GİRİŞİ'!D39) ->  | B41: =IF('BİLGİ GİRİŞİ'!E39="","",'BİLGİ GİRİŞİ'!E39) ->  | P41: =IF('BİLGİ GİRİŞİ'!W39="","",'BİLGİ GİRİŞİ'!W39) ->  | T41: =IF('BİLGİ GİRİŞİ'!T39="","",IF('BİLGİ GİRİŞİ'!$BO$28=1,"1",'BİLGİ GİRİŞİ'!T39)) -> 
A42: =IF('BİLGİ GİRİŞİ'!D40="","",'BİLGİ GİRİŞİ'!D40) ->  | B42: =IF('BİLGİ GİRİŞİ'!E40="","",'BİLGİ GİRİŞİ'!E40) ->  | P42: =IF('BİLGİ GİRİŞİ'!W40="","",'BİLGİ GİRİŞİ'!W40) ->  | T42: =IF('BİLGİ GİRİŞİ'!T40="","",IF('BİLGİ GİRİŞİ'!$BO$28=1,"1",'BİLGİ GİRİŞİ'!T40)) -> 
A43: =IF('BİLGİ GİRİŞİ'!D41="","",'BİLGİ GİRİŞİ'!D41) ->  | B43: =IF('BİLGİ GİRİŞİ'!E41="","",'BİLGİ GİRİŞİ'!E41) ->  | P43: =IF('BİLGİ GİRİŞİ'!W41="","",'BİLGİ GİRİŞİ'!W41) ->  | T43: =IF('BİLGİ GİRİŞİ'!T41="","",IF('BİLGİ GİRİŞİ'!$BO$28=1,"1",'BİLGİ GİRİŞİ'!T41)) -> 
A44: =IF('BİLGİ GİRİŞİ'!D42="","",'BİLGİ GİRİŞİ'!D42) ->  | B44: =IF('BİLGİ GİRİŞİ'!E42="","",'BİLGİ GİRİŞİ'!E42) ->  | P44: =IF('BİLGİ GİRİŞİ'!W42="","",'BİLGİ GİRİŞİ'!W42) ->  | T44: =IF('BİLGİ GİRİŞİ'!T42="","",IF('BİLGİ GİRİŞİ'!$BO$28=1,"1",'BİLGİ GİRİŞİ'!T42)) -> 
A45: =IF('BİLGİ GİRİŞİ'!D43="","",'BİLGİ GİRİŞİ'!D43) ->  | B45: =IF('BİLGİ GİRİŞİ'!E43="","",'BİLGİ GİRİŞİ'!E43) ->  | P45: =IF('BİLGİ GİRİŞİ'!W43="","",'BİLGİ GİRİŞİ'!W43) ->  | T45: =IF('BİLGİ GİRİŞİ'!T43="","",IF('BİLGİ GİRİŞİ'!$BO$28=1,"1",'BİLGİ GİRİŞİ'!T43)) -> 
A46: =IF('BİLGİ GİRİŞİ'!D44="","",'BİLGİ GİRİŞİ'!D44) ->  | B46: =IF('BİLGİ GİRİŞİ'!E44="","",'BİLGİ GİRİŞİ'!E44) ->  | P46: =IF('BİLGİ GİRİŞİ'!W44="","",'BİLGİ GİRİŞİ'!W44) ->  | T46: =IF('BİLGİ GİRİŞİ'!T44="","",IF('BİLGİ GİRİŞİ'!$BO$28=1,"1",'BİLGİ GİRİŞİ'!T44)) -> 
A47: =IF('BİLGİ GİRİŞİ'!D45="","",'BİLGİ GİRİŞİ'!D45) ->  | B47: =IF('BİLGİ GİRİŞİ'!E45="","",'BİLGİ GİRİŞİ'!E45) ->  | P47: =IF('BİLGİ GİRİŞİ'!W45="","",'BİLGİ GİRİŞİ'!W45) ->  | T47: =IF('BİLGİ GİRİŞİ'!T45="","",IF('BİLGİ GİRİŞİ'!$BO$28=1,"1",'BİLGİ GİRİŞİ'!T45)) -> 
A48: =IF('BİLGİ GİRİŞİ'!D46="","",'BİLGİ GİRİŞİ'!D46) ->  | B48: =IF('BİLGİ GİRİŞİ'!E46="","",'BİLGİ GİRİŞİ'!E46) ->  | P48: =IF('BİLGİ GİRİŞİ'!W46="","",'BİLGİ GİRİŞİ'!W46) ->  | T48: =IF('BİLGİ GİRİŞİ'!T46="","",IF('BİLGİ GİRİŞİ'!$BO$28=1,"1",'BİLGİ GİRİŞİ'!T46)) -> 
A49: =IF('BİLGİ GİRİŞİ'!D47="","",'BİLGİ GİRİŞİ'!D47) ->  | B49: =IF('BİLGİ GİRİŞİ'!E47="","",'BİLGİ GİRİŞİ'!E47) ->  | P49: =IF('BİLGİ GİRİŞİ'!W47="","",'BİLGİ GİRİŞİ'!W47) ->  | T49: =IF('BİLGİ GİRİŞİ'!T47="","",IF('BİLGİ GİRİŞİ'!$BO$28=1,"1",'BİLGİ GİRİŞİ'!T47)) -> 
A50: =IF('BİLGİ GİRİŞİ'!D48="","",'BİLGİ GİRİŞİ'!D48) ->  | B50: =IF('BİLGİ GİRİŞİ'!E48="","",'BİLGİ GİRİŞİ'!E48) ->  | P50: =IF('BİLGİ GİRİŞİ'!W48="","",'BİLGİ GİRİŞİ'!W48) ->  | T50: =IF('BİLGİ GİRİŞİ'!T48="","",IF('BİLGİ GİRİŞİ'!$BO$28=1,"1",'BİLGİ GİRİŞİ'!T48)) -> 
A51: =IF('BİLGİ GİRİŞİ'!D49="","",'BİLGİ GİRİŞİ'!D49) ->  | B51: =IF('BİLGİ GİRİŞİ'!E49="","",'BİLGİ GİRİŞİ'!E49) ->  | P51: =IF('BİLGİ GİRİŞİ'!W49="","",'BİLGİ GİRİŞİ'!W49) ->  | T51: =IF('BİLGİ GİRİŞİ'!T49="","",IF('BİLGİ GİRİŞİ'!$BO$28=1,"1",'BİLGİ GİRİŞİ'!T49)) -> 
A52: =IF('BİLGİ GİRİŞİ'!D50="","",'BİLGİ GİRİŞİ'!D50) ->  | B52: =IF('BİLGİ GİRİŞİ'!E50="","",'BİLGİ GİRİŞİ'!E50) ->  | P52: =IF('BİLGİ GİRİŞİ'!W50="","",'BİLGİ GİRİŞİ'!W50) ->  | T52: =IF('BİLGİ GİRİŞİ'!T50="","",IF('BİLGİ GİRİŞİ'!$BO$28=1,"1",'BİLGİ GİRİŞİ'!T50)) -> 
A53: =IF('BİLGİ GİRİŞİ'!D51="","",'BİLGİ GİRİŞİ'!D51) ->  | B53: =IF('BİLGİ GİRİŞİ'!E51="","",'BİLGİ GİRİŞİ'!E51) ->  | P53: =IF('BİLGİ GİRİŞİ'!W51="","",'BİLGİ GİRİŞİ'!W51) ->  | T53: =IF('BİLGİ GİRİŞİ'!T51="","",IF('BİLGİ GİRİŞİ'!$BO$28=1,"1",'BİLGİ GİRİŞİ'!T51)) -> 
A54: =IF('BİLGİ GİRİŞİ'!D52="","",'BİLGİ GİRİŞİ'!D52) ->  | B54: =IF('BİLGİ GİRİŞİ'!E52="","",'BİLGİ GİRİŞİ'!E52) ->  | P54: =IF('BİLGİ GİRİŞİ'!W52="","",'BİLGİ GİRİŞİ'!W52) ->  | T54: =IF('BİLGİ GİRİŞİ'!T52="","",IF('BİLGİ GİRİŞİ'!$BO$28=1,"1",'BİLGİ GİRİŞİ'!T52)) -> 
A55: =IF('BİLGİ GİRİŞİ'!D53="","",'BİLGİ GİRİŞİ'!D53) ->  | B55: =IF('BİLGİ GİRİŞİ'!E53="","",'BİLGİ GİRİŞİ'!E53) ->  | P55: =IF('BİLGİ GİRİŞİ'!W53="","",'BİLGİ GİRİŞİ'!W53) ->  | T55: =IF('BİLGİ GİRİŞİ'!T53="","",IF('BİLGİ GİRİŞİ'!$BO$28=1,"1",'BİLGİ GİRİŞİ'!T53)) -> 
A56: =IF('BİLGİ GİRİŞİ'!D54="","",'BİLGİ GİRİŞİ'!D54) ->  | B56: =IF('BİLGİ GİRİŞİ'!E54="","",'BİLGİ GİRİŞİ'!E54) ->  | P56: =IF('BİLGİ GİRİŞİ'!W54="","",'BİLGİ GİRİŞİ'!W54) ->  | T56: =IF('BİLGİ GİRİŞİ'!T54="","",IF('BİLGİ GİRİŞİ'!$BO$28=1,"1",'BİLGİ GİRİŞİ'!T54)) -> 
A57: =IF('BİLGİ GİRİŞİ'!D55="","",'BİLGİ GİRİŞİ'!D55) ->  | B57: =IF('BİLGİ GİRİŞİ'!E55="","",'BİLGİ GİRİŞİ'!E55) ->  | P57: =IF('BİLGİ GİRİŞİ'!W55="","",'BİLGİ GİRİŞİ'!W55) ->  | T57: =IF('BİLGİ GİRİŞİ'!T55="","",IF('BİLGİ GİRİŞİ'!$BO$28=1,"1",'BİLGİ GİRİŞİ'!T55)) -> 
A58: =IF('BİLGİ GİRİŞİ'!D56="","",'BİLGİ GİRİŞİ'!D56) ->  | B58: =IF('BİLGİ GİRİŞİ'!E56="","",'BİLGİ GİRİŞİ'!E56) ->  | P58: =IF('BİLGİ GİRİŞİ'!W56="","",'BİLGİ GİRİŞİ'!W56) ->  | T58: =IF('BİLGİ GİRİŞİ'!T56="","",IF('BİLGİ GİRİŞİ'!$BO$28=1,"1",'BİLGİ GİRİŞİ'!T56)) -> 
A59: =IF('BİLGİ GİRİŞİ'!D57="","",'BİLGİ GİRİŞİ'!D57) ->  | B59: =IF('BİLGİ GİRİŞİ'!E57="","",'BİLGİ GİRİŞİ'!E57) ->  | P59: =IF('BİLGİ GİRİŞİ'!W57="","",'BİLGİ GİRİŞİ'!W57) ->  | T59: =IF('BİLGİ GİRİŞİ'!T57="","",IF('BİLGİ GİRİŞİ'!$BO$28=1,"1",'BİLGİ GİRİŞİ'!T57)) -> 
A60: =IF('BİLGİ GİRİŞİ'!D58="","",'BİLGİ GİRİŞİ'!D58) ->  | B60: =IF('BİLGİ GİRİŞİ'!E58="","",'BİLGİ GİRİŞİ'!E58) ->  | P60: =IF('BİLGİ GİRİŞİ'!W58="","",'BİLGİ GİRİŞİ'!W58) ->  | T60: =IF('BİLGİ GİRİŞİ'!T58="","",IF('BİLGİ GİRİŞİ'!$BO$28=1,"1",'BİLGİ GİRİŞİ'!T58)) -> 
A61: =IF('BİLGİ GİRİŞİ'!D59="","",'BİLGİ GİRİŞİ'!D59) ->  | B61: =IF('BİLGİ GİRİŞİ'!E59="","",'BİLGİ GİRİŞİ'!E59) ->  | P61: =IF('BİLGİ GİRİŞİ'!W59="","",'BİLGİ GİRİŞİ'!W59) ->  | T61: =IF('BİLGİ GİRİŞİ'!T59="","",IF('BİLGİ GİRİŞİ'!$BO$28=1,"1",'BİLGİ GİRİŞİ'!T59)) -> 
A62: =IF('BİLGİ GİRİŞİ'!D60="","",'BİLGİ GİRİŞİ'!D60) ->  | B62: =IF('BİLGİ GİRİŞİ'!E60="","",'BİLGİ GİRİŞİ'!E60) ->  | P62: =IF('BİLGİ GİRİŞİ'!W60="","",'BİLGİ GİRİŞİ'!W60) ->  | T62: =IF('BİLGİ GİRİŞİ'!T60="","",IF('BİLGİ GİRİŞİ'!$BO$28=1,"1",'BİLGİ GİRİŞİ'!T60)) -> 
A63: =IF('BİLGİ GİRİŞİ'!D61="","",'BİLGİ GİRİŞİ'!D61) ->  | B63: =IF('BİLGİ GİRİŞİ'!E61="","",'BİLGİ GİRİŞİ'!E61) ->  | P63: =IF('BİLGİ GİRİŞİ'!W61="","",'BİLGİ GİRİŞİ'!W61) ->  | T63: =IF('BİLGİ GİRİŞİ'!T61="","",IF('BİLGİ GİRİŞİ'!$BO$28=1,"1",'BİLGİ GİRİŞİ'!T61)) -> 
A64: =IF('BİLGİ GİRİŞİ'!D62="","",'BİLGİ GİRİŞİ'!D62) ->  | B64: =IF('BİLGİ GİRİŞİ'!E62="","",'BİLGİ GİRİŞİ'!E62) ->  | P64: =IF('BİLGİ GİRİŞİ'!W62="","",'BİLGİ GİRİŞİ'!W62) ->  | T64: =IF('BİLGİ GİRİŞİ'!T62="","",IF('BİLGİ GİRİŞİ'!$BO$28=1,"1",'BİLGİ GİRİŞİ'!T62)) -> 
A65: =IF('BİLGİ GİRİŞİ'!D63="","",'BİLGİ GİRİŞİ'!D63) ->  | B65: =IF('BİLGİ GİRİŞİ'!E63="","",'BİLGİ GİRİŞİ'!E63) ->  | P65: =IF('BİLGİ GİRİŞİ'!W63="","",'BİLGİ GİRİŞİ'!W63) ->  | T65: =IF('BİLGİ GİRİŞİ'!T63="","",IF('BİLGİ GİRİŞİ'!$BO$28=1,"1",'BİLGİ GİRİŞİ'!T63)) -> 
A66: =IF('BİLGİ GİRİŞİ'!D64="","",'BİLGİ GİRİŞİ'!D64) ->  | B66: =IF('BİLGİ GİRİŞİ'!E64="","",'BİLGİ GİRİŞİ'!E64) ->  | P66: =IF('BİLGİ GİRİŞİ'!W64="","",'BİLGİ GİRİŞİ'!W64) ->  | T66: =IF('BİLGİ GİRİŞİ'!T64="","",IF('BİLGİ GİRİŞİ'!$BO$28=1,"1",'BİLGİ GİRİŞİ'!T64)) -> 
A67: =IF('BİLGİ GİRİŞİ'!D65="","",'BİLGİ GİRİŞİ'!D65) ->  | B67: =IF('BİLGİ GİRİŞİ'!E65="","",'BİLGİ GİRİŞİ'!E65) ->  | P67: =IF('BİLGİ GİRİŞİ'!W65="","",'BİLGİ GİRİŞİ'!W65) ->  | T67: =IF('BİLGİ GİRİŞİ'!T65="","",IF('BİLGİ GİRİŞİ'!$BO$28=1,"1",'BİLGİ GİRİŞİ'!T65)) -> 
A68: =IF('BİLGİ GİRİŞİ'!D66="","",'BİLGİ GİRİŞİ'!D66) ->  | B68: =IF('BİLGİ GİRİŞİ'!E66="","",'BİLGİ GİRİŞİ'!E66) ->  | P68: =IF('BİLGİ GİRİŞİ'!W66="","",'BİLGİ GİRİŞİ'!W66) ->  | T68: =IF('BİLGİ GİRİŞİ'!T66="","",IF('BİLGİ GİRİŞİ'!$BO$28=1,"1",'BİLGİ GİRİŞİ'!T66)) -> 
A69: =IF('BİLGİ GİRİŞİ'!D67="","",'BİLGİ GİRİŞİ'!D67) ->  | B69: =IF('BİLGİ GİRİŞİ'!E67="","",'BİLGİ GİRİŞİ'!E67) ->  | P69: =IF('BİLGİ GİRİŞİ'!W67="","",'BİLGİ GİRİŞİ'!W67) ->  | T69: =IF('BİLGİ GİRİŞİ'!T67="","",IF('BİLGİ GİRİŞİ'!$BO$28=1,"1",'BİLGİ GİRİŞİ'!T67)) -> 
A70: =IF('BİLGİ GİRİŞİ'!D68="","",'BİLGİ GİRİŞİ'!D68) ->  | B70: =IF('BİLGİ GİRİŞİ'!E68="","",'BİLGİ GİRİŞİ'!E68) ->  | P70: =IF('BİLGİ GİRİŞİ'!W68="","",'BİLGİ GİRİŞİ'!W68) ->  | T70: =IF('BİLGİ GİRİŞİ'!T68="","",IF('BİLGİ GİRİŞİ'!$BO$28=1,"1",'BİLGİ GİRİŞİ'!T68)) -> 
A71: =IF('BİLGİ GİRİŞİ'!D69="","",'BİLGİ GİRİŞİ'!D69) ->  | B71: =IF('BİLGİ GİRİŞİ'!E69="","",'BİLGİ GİRİŞİ'!E69) ->  | P71: =IF('BİLGİ GİRİŞİ'!W69="","",'BİLGİ GİRİŞİ'!W69) ->  | T71: =IF('BİLGİ GİRİŞİ'!T69="","",IF('BİLGİ GİRİŞİ'!$BO$28=1,"1",'BİLGİ GİRİŞİ'!T69)) -> 
A72: =IF('BİLGİ GİRİŞİ'!D70="","",'BİLGİ GİRİŞİ'!D70) ->  | B72: =IF('BİLGİ GİRİŞİ'!E70="","",'BİLGİ GİRİŞİ'!E70) ->  | P72: =IF('BİLGİ GİRİŞİ'!W70="","",'BİLGİ GİRİŞİ'!W70) ->  | T72: =IF('BİLGİ GİRİŞİ'!T70="","",IF('BİLGİ GİRİŞİ'!$BO$28=1,"1",'BİLGİ GİRİŞİ'!T70)) -> 
A73: =IF('BİLGİ GİRİŞİ'!D71="","",'BİLGİ GİRİŞİ'!D71) ->  | B73: =IF('BİLGİ GİRİŞİ'!E71="","",'BİLGİ GİRİŞİ'!E71) ->  | P73: =IF('BİLGİ GİRİŞİ'!W71="","",'BİLGİ GİRİŞİ'!W71) ->  | T73: =IF('BİLGİ GİRİŞİ'!T71="","",IF('BİLGİ GİRİŞİ'!$BO$28=1,"1",'BİLGİ GİRİŞİ'!T71)) -> 
A74: =IF('BİLGİ GİRİŞİ'!D72="","",'BİLGİ GİRİŞİ'!D72) ->  | B74: =IF('BİLGİ GİRİŞİ'!E72="","",'BİLGİ GİRİŞİ'!E72) ->  | P74: =IF('BİLGİ GİRİŞİ'!W72="","",'BİLGİ GİRİŞİ'!W72) ->  | T74: =IF('BİLGİ GİRİŞİ'!T72="","",IF('BİLGİ GİRİŞİ'!$BO$28=1,"1",'BİLGİ GİRİŞİ'!T72)) -> 
A75: =IF('BİLGİ GİRİŞİ'!D73="","",'BİLGİ GİRİŞİ'!D73) ->  | B75: =IF('BİLGİ GİRİŞİ'!E73="","",'BİLGİ GİRİŞİ'!E73) ->  | P75: =IF('BİLGİ GİRİŞİ'!W73="","",'BİLGİ GİRİŞİ'!W73) ->  | T75: =IF('BİLGİ GİRİŞİ'!T73="","",IF('BİLGİ GİRİŞİ'!$BO$28=1,"1",'BİLGİ GİRİŞİ'!T73)) -> 
A76: =IF('BİLGİ GİRİŞİ'!D74="","",'BİLGİ GİRİŞİ'!D74) ->  | B76: =IF('BİLGİ GİRİŞİ'!E74="","",'BİLGİ GİRİŞİ'!E74) ->  | P76: =IF('BİLGİ GİRİŞİ'!W74="","",'BİLGİ GİRİŞİ'!W74) ->  | T76: =IF('BİLGİ GİRİŞİ'!T74="","",IF('BİLGİ GİRİŞİ'!$BO$28=1,"1",'BİLGİ GİRİŞİ'!T74)) -> 
A77: =IF('BİLGİ GİRİŞİ'!D75="","",'BİLGİ GİRİŞİ'!D75) ->  | B77: =IF('BİLGİ GİRİŞİ'!E75="","",'BİLGİ GİRİŞİ'!E75) ->  | P77: =IF('BİLGİ GİRİŞİ'!W75="","",'BİLGİ GİRİŞİ'!W75) ->  | T77: =IF('BİLGİ GİRİŞİ'!T75="","",IF('BİLGİ GİRİŞİ'!$BO$28=1,"1",'BİLGİ GİRİŞİ'!T75)) -> 
A78: =IF('BİLGİ GİRİŞİ'!D76="","",'BİLGİ GİRİŞİ'!D76) ->  | B78: =IF('BİLGİ GİRİŞİ'!E76="","",'BİLGİ GİRİŞİ'!E76) ->  | P78: =IF('BİLGİ GİRİŞİ'!W76="","",'BİLGİ GİRİŞİ'!W76) ->  | T78: =IF('BİLGİ GİRİŞİ'!T76="","",IF('BİLGİ GİRİŞİ'!$BO$28=1,"1",'BİLGİ GİRİŞİ'!T76)) -> 
A79: =IF('BİLGİ GİRİŞİ'!D77="","",'BİLGİ GİRİŞİ'!D77) ->  | B79: =IF('BİLGİ GİRİŞİ'!E77="","",'BİLGİ GİRİŞİ'!E77) ->  | P79: =IF('BİLGİ GİRİŞİ'!W77="","",'BİLGİ GİRİŞİ'!W77) ->  | T79: =IF('BİLGİ GİRİŞİ'!T77="","",IF('BİLGİ GİRİŞİ'!$BO$28=1,"1",'BİLGİ GİRİŞİ'!T77)) -> 
A80: =IF('BİLGİ GİRİŞİ'!D78="","",'BİLGİ GİRİŞİ'!D78) ->  | B80: =IF('BİLGİ GİRİŞİ'!E78="","",'BİLGİ GİRİŞİ'!E78) ->  | P80: =IF('BİLGİ GİRİŞİ'!W78="","",'BİLGİ GİRİŞİ'!W78) ->  | T80: =IF('BİLGİ GİRİŞİ'!T78="","",IF('BİLGİ GİRİŞİ'!$BO$28=1,"1",'BİLGİ GİRİŞİ'!T78)) -> 
A81: =IF('BİLGİ GİRİŞİ'!D79="","",'BİLGİ GİRİŞİ'!D79) ->  | B81: =IF('BİLGİ GİRİŞİ'!E79="","",'BİLGİ GİRİŞİ'!E79) ->  | P81: =IF('BİLGİ GİRİŞİ'!W79="","",'BİLGİ GİRİŞİ'!W79) ->  | T81: =IF('BİLGİ GİRİŞİ'!T79="","",IF('BİLGİ GİRİŞİ'!$BO$28=1,"1",'BİLGİ GİRİŞİ'!T79)) -> 
A82: =IF('BİLGİ GİRİŞİ'!D80="","",'BİLGİ GİRİŞİ'!D80) ->  | B82: =IF('BİLGİ GİRİŞİ'!E80="","",'BİLGİ GİRİŞİ'!E80) ->  | P82: =IF('BİLGİ GİRİŞİ'!W80="","",'BİLGİ GİRİŞİ'!W80) ->  | T82: =IF('BİLGİ GİRİŞİ'!T80="","",IF('BİLGİ GİRİŞİ'!$BO$28=1,"1",'BİLGİ GİRİŞİ'!T80)) -> 
A83: =IF('BİLGİ GİRİŞİ'!D81="","",'BİLGİ GİRİŞİ'!D81) ->  | B83: =IF('BİLGİ GİRİŞİ'!E81="","",'BİLGİ GİRİŞİ'!E81) ->  | P83: =IF('BİLGİ GİRİŞİ'!W81="","",'BİLGİ GİRİŞİ'!W81) ->  | T83: =IF('BİLGİ GİRİŞİ'!T81="","",IF('BİLGİ GİRİŞİ'!$BO$28=1,"1",'BİLGİ GİRİŞİ'!T81)) -> 
A84: =IF('BİLGİ GİRİŞİ'!D82="","",'BİLGİ GİRİŞİ'!D82) ->  | B84: =IF('BİLGİ GİRİŞİ'!E82="","",'BİLGİ GİRİŞİ'!E82) ->  | P84: =IF('BİLGİ GİRİŞİ'!W82="","",'BİLGİ GİRİŞİ'!W82) ->  | T84: =IF('BİLGİ GİRİŞİ'!T82="","",IF('BİLGİ GİRİŞİ'!$BO$28=1,"1",'BİLGİ GİRİŞİ'!T82)) -> 
A85: =IF('BİLGİ GİRİŞİ'!D83="","",'BİLGİ GİRİŞİ'!D83) ->  | B85: =IF('BİLGİ GİRİŞİ'!E83="","",'BİLGİ GİRİŞİ'!E83) ->  | P85: =IF('BİLGİ GİRİŞİ'!W83="","",'BİLGİ GİRİŞİ'!W83) ->  | T85: =IF('BİLGİ GİRİŞİ'!T83="","",IF('BİLGİ GİRİŞİ'!$BO$28=1,"1",'BİLGİ GİRİŞİ'!T83)) -> 
A86: =IF('BİLGİ GİRİŞİ'!D84="","",'BİLGİ GİRİŞİ'!D84) ->  | B86: =IF('BİLGİ GİRİŞİ'!E84="","",'BİLGİ GİRİŞİ'!E84) ->  | P86: =IF('BİLGİ GİRİŞİ'!W84="","",'BİLGİ GİRİŞİ'!W84) ->  | T86: =IF('BİLGİ GİRİŞİ'!T84="","",IF('BİLGİ GİRİŞİ'!$BO$28=1,"1",'BİLGİ GİRİŞİ'!T84)) -> 
A87: =IF('BİLGİ GİRİŞİ'!D85="","",'BİLGİ GİRİŞİ'!D85) ->  | B87: =IF('BİLGİ GİRİŞİ'!E85="","",'BİLGİ GİRİŞİ'!E85) ->  | P87: =IF('BİLGİ GİRİŞİ'!W85="","",'BİLGİ GİRİŞİ'!W85) ->  | T87: =IF('BİLGİ GİRİŞİ'!T85="","",IF('BİLGİ GİRİŞİ'!$BO$28=1,"1",'BİLGİ GİRİŞİ'!T85)) -> 
A88: =IF('BİLGİ GİRİŞİ'!D86="","",'BİLGİ GİRİŞİ'!D86) ->  | B88: =IF('BİLGİ GİRİŞİ'!E86="","",'BİLGİ GİRİŞİ'!E86) ->  | P88: =IF('BİLGİ GİRİŞİ'!W86="","",'BİLGİ GİRİŞİ'!W86) ->  | T88: =IF('BİLGİ GİRİŞİ'!T86="","",IF('BİLGİ GİRİŞİ'!$BO$28=1,"1",'BİLGİ GİRİŞİ'!T86)) -> 
A89: =IF('BİLGİ GİRİŞİ'!D87="","",'BİLGİ GİRİŞİ'!D87) ->  | B89: =IF('BİLGİ GİRİŞİ'!E87="","",'BİLGİ GİRİŞİ'!E87) ->  | P89: =IF('BİLGİ GİRİŞİ'!W87="","",'BİLGİ GİRİŞİ'!W87) ->  | T89: =IF('BİLGİ GİRİŞİ'!T87="","",IF('BİLGİ GİRİŞİ'!$BO$28=1,"1",'BİLGİ GİRİŞİ'!T87)) -> 
A90: =IF('BİLGİ GİRİŞİ'!D88="","",'BİLGİ GİRİŞİ'!D88) ->  | B90: =IF('BİLGİ GİRİŞİ'!E88="","",'BİLGİ GİRİŞİ'!E88) ->  | P90: =IF('BİLGİ GİRİŞİ'!W88="","",'BİLGİ GİRİŞİ'!W88) ->  | T90: =IF('BİLGİ GİRİŞİ'!T88="","",IF('BİLGİ GİRİŞİ'!$BO$28=1,"1",'BİLGİ GİRİŞİ'!T88)) -> 
A91: =IF('BİLGİ GİRİŞİ'!D89="","",'BİLGİ GİRİŞİ'!D89) ->  | B91: =IF('BİLGİ GİRİŞİ'!E89="","",'BİLGİ GİRİŞİ'!E89) ->  | P91: =IF('BİLGİ GİRİŞİ'!W89="","",'BİLGİ GİRİŞİ'!W89) ->  | T91: =IF('BİLGİ GİRİŞİ'!T89="","",IF('BİLGİ GİRİŞİ'!$BO$28=1,"1",'BİLGİ GİRİŞİ'!T89)) -> 
A92: =IF('BİLGİ GİRİŞİ'!D90="","",'BİLGİ GİRİŞİ'!D90) ->  | B92: =IF('BİLGİ GİRİŞİ'!E90="","",'BİLGİ GİRİŞİ'!E90) ->  | P92: =IF('BİLGİ GİRİŞİ'!W90="","",'BİLGİ GİRİŞİ'!W90) ->  | T92: =IF('BİLGİ GİRİŞİ'!T90="","",IF('BİLGİ GİRİŞİ'!$BO$28=1,"1",'BİLGİ GİRİŞİ'!T90)) -> 
A93: =IF('BİLGİ GİRİŞİ'!D91="","",'BİLGİ GİRİŞİ'!D91) ->  | B93: =IF('BİLGİ GİRİŞİ'!E91="","",'BİLGİ GİRİŞİ'!E91) ->  | P93: =IF('BİLGİ GİRİŞİ'!W91="","",'BİLGİ GİRİŞİ'!W91) ->  | T93: =IF('BİLGİ GİRİŞİ'!T91="","",IF('BİLGİ GİRİŞİ'!$BO$28=1,"1",'BİLGİ GİRİŞİ'!T91)) -> 
A94: =IF('BİLGİ GİRİŞİ'!D92="","",'BİLGİ GİRİŞİ'!D92) ->  | B94: =IF('BİLGİ GİRİŞİ'!E92="","",'BİLGİ GİRİŞİ'!E92) ->  | P94: =IF('BİLGİ GİRİŞİ'!W92="","",'BİLGİ GİRİŞİ'!W92) ->  | T94: =IF('BİLGİ GİRİŞİ'!T92="","",IF('BİLGİ GİRİŞİ'!$BO$28=1,"1",'BİLGİ GİRİŞİ'!T92)) -> 
A95: =IF('BİLGİ GİRİŞİ'!D93="","",'BİLGİ GİRİŞİ'!D93) ->  | B95: =IF('BİLGİ GİRİŞİ'!E93="","",'BİLGİ GİRİŞİ'!E93) ->  | P95: =IF('BİLGİ GİRİŞİ'!W93="","",'BİLGİ GİRİŞİ'!W93) ->  | T95: =IF('BİLGİ GİRİŞİ'!T93="","",IF('BİLGİ GİRİŞİ'!$BO$28=1,"1",'BİLGİ GİRİŞİ'!T93)) -> 
A96: =IF('BİLGİ GİRİŞİ'!D94="","",'BİLGİ GİRİŞİ'!D94) ->  | B96: =IF('BİLGİ GİRİŞİ'!E94="","",'BİLGİ GİRİŞİ'!E94) ->  | P96: =IF('BİLGİ GİRİŞİ'!W94="","",'BİLGİ GİRİŞİ'!W94) ->  | T96: =IF('BİLGİ GİRİŞİ'!T94="","",IF('BİLGİ GİRİŞİ'!$BO$28=1,"1",'BİLGİ GİRİŞİ'!T94)) -> 
A97: =IF('BİLGİ GİRİŞİ'!D95="","",'BİLGİ GİRİŞİ'!D95) ->  | B97: =IF('BİLGİ GİRİŞİ'!E95="","",'BİLGİ GİRİŞİ'!E95) ->  | P97: =IF('BİLGİ GİRİŞİ'!W95="","",'BİLGİ GİRİŞİ'!W95) ->  | T97: =IF('BİLGİ GİRİŞİ'!T95="","",IF('BİLGİ GİRİŞİ'!$BO$28=1,"1",'BİLGİ GİRİŞİ'!T95)) -> 
A98: =IF('BİLGİ GİRİŞİ'!D96="","",'BİLGİ GİRİŞİ'!D96) ->  | B98: =IF('BİLGİ GİRİŞİ'!E96="","",'BİLGİ GİRİŞİ'!E96) ->  | P98: =IF('BİLGİ GİRİŞİ'!W96="","",'BİLGİ GİRİŞİ'!W96) ->  | T98: =IF('BİLGİ GİRİŞİ'!T96="","",IF('BİLGİ GİRİŞİ'!$BO$28=1,"1",'BİLGİ GİRİŞİ'!T96)) -> 
A99: =IF('BİLGİ GİRİŞİ'!D97="","",'BİLGİ GİRİŞİ'!D97) ->  | B99: =IF('BİLGİ GİRİŞİ'!E97="","",'BİLGİ GİRİŞİ'!E97) ->  | P99: =IF('BİLGİ GİRİŞİ'!W97="","",'BİLGİ GİRİŞİ'!W97) ->  | T99: =IF('BİLGİ GİRİŞİ'!T97="","",IF('BİLGİ GİRİŞİ'!$BO$28=1,"1",'BİLGİ GİRİŞİ'!T97)) -> 
A100: =IF('BİLGİ GİRİŞİ'!D98="","",'BİLGİ GİRİŞİ'!D98) ->  | B100: =IF('BİLGİ GİRİŞİ'!E98="","",'BİLGİ GİRİŞİ'!E98) ->  | P100: =IF('BİLGİ GİRİŞİ'!W98="","",'BİLGİ GİRİŞİ'!W98) ->  | T100: =IF('BİLGİ GİRİŞİ'!T98="","",IF('BİLGİ GİRİŞİ'!$BO$28=1,"1",'BİLGİ GİRİŞİ'!T98)) -> 
A101: =IF('BİLGİ GİRİŞİ'!D99="","",'BİLGİ GİRİŞİ'!D99) ->  | B101: =IF('BİLGİ GİRİŞİ'!E99="","",'BİLGİ GİRİŞİ'!E99) ->  | P101: =IF('BİLGİ GİRİŞİ'!W99="","",'BİLGİ GİRİŞİ'!W99) ->  | T101: =IF('BİLGİ GİRİŞİ'!T99="","",IF('BİLGİ GİRİŞİ'!$BO$28=1,"1",'BİLGİ GİRİŞİ'!T99)) -> 
A102: =IF('BİLGİ GİRİŞİ'!D100="","",'BİLGİ GİRİŞİ'!D100) ->  | B102: =IF('BİLGİ GİRİŞİ'!E100="","",'BİLGİ GİRİŞİ'!E100) ->  | P102: =IF('BİLGİ GİRİŞİ'!W100="","",'BİLGİ GİRİŞİ'!W100) ->  | T102: =IF('BİLGİ GİRİŞİ'!T100="","",IF('BİLGİ GİRİŞİ'!$BO$28=1,"1",'BİLGİ GİRİŞİ'!T100)) -> 
A103: =IF('BİLGİ GİRİŞİ'!D101="","",'BİLGİ GİRİŞİ'!D101) ->  | B103: =IF('BİLGİ GİRİŞİ'!E101="","",'BİLGİ GİRİŞİ'!E101) ->  | P103: =IF('BİLGİ GİRİŞİ'!W101="","",'BİLGİ GİRİŞİ'!W101) ->  | T103: =IF('BİLGİ GİRİŞİ'!T101="","",IF('BİLGİ GİRİŞİ'!$BO$28=1,"1",'BİLGİ GİRİŞİ'!T101)) -> 
A104: =IF('BİLGİ GİRİŞİ'!D102="","",'BİLGİ GİRİŞİ'!D102) ->  | B104: =IF('BİLGİ GİRİŞİ'!E102="","",'BİLGİ GİRİŞİ'!E102) ->  | P104: =IF('BİLGİ GİRİŞİ'!W102="","",'BİLGİ GİRİŞİ'!W102) ->  | T104: =IF('BİLGİ GİRİŞİ'!T102="","",IF('BİLGİ GİRİŞİ'!$BO$28=1,"1",'BİLGİ GİRİŞİ'!T102)) -> 
A105: =IF('BİLGİ GİRİŞİ'!D103="","",'BİLGİ GİRİŞİ'!D103) ->  | B105: =IF('BİLGİ GİRİŞİ'!E103="","",'BİLGİ GİRİŞİ'!E103) ->  | P105: =IF('BİLGİ GİRİŞİ'!W103="","",'BİLGİ GİRİŞİ'!W103) ->  | T105: =IF('BİLGİ GİRİŞİ'!T103="","",IF('BİLGİ GİRİŞİ'!$BO$28=1,"1",'BİLGİ GİRİŞİ'!T103)) -> 
A106: =IF('BİLGİ GİRİŞİ'!D104="","",'BİLGİ GİRİŞİ'!D104) ->  | B106: =IF('BİLGİ GİRİŞİ'!E104="","",'BİLGİ GİRİŞİ'!E104) ->  | P106: =IF('BİLGİ GİRİŞİ'!W104="","",'BİLGİ GİRİŞİ'!W104) ->  | T106: =IF('BİLGİ GİRİŞİ'!T104="","",IF('BİLGİ GİRİŞİ'!$BO$28=1,"1",'BİLGİ GİRİŞİ'!T104)) -> 
A107: =IF('BİLGİ GİRİŞİ'!D105="","",'BİLGİ GİRİŞİ'!D105) ->  | B107: =IF('BİLGİ GİRİŞİ'!E105="","",'BİLGİ GİRİŞİ'!E105) ->  | P107: =IF('BİLGİ GİRİŞİ'!W105="","",'BİLGİ GİRİŞİ'!W105) ->  | T107: =IF('BİLGİ GİRİŞİ'!T105="","",IF('BİLGİ GİRİŞİ'!$BO$28=1,"1",'BİLGİ GİRİŞİ'!T105)) -> 
A108: =IF('BİLGİ GİRİŞİ'!D106="","",'BİLGİ GİRİŞİ'!D106) ->  | B108: =IF('BİLGİ GİRİŞİ'!E106="","",'BİLGİ GİRİŞİ'!E106) ->  | P108: =IF('BİLGİ GİRİŞİ'!W106="","",'BİLGİ GİRİŞİ'!W106) ->  | T108: =IF('BİLGİ GİRİŞİ'!T106="","",IF('BİLGİ GİRİŞİ'!$BO$28=1,"1",'BİLGİ GİRİŞİ'!T106)) -> 
A109: =IF('BİLGİ GİRİŞİ'!D107="","",'BİLGİ GİRİŞİ'!D107) ->  | B109: =IF('BİLGİ GİRİŞİ'!E107="","",'BİLGİ GİRİŞİ'!E107) ->  | P109: =IF('BİLGİ GİRİŞİ'!W107="","",'BİLGİ GİRİŞİ'!W107) ->  | T109: =IF('BİLGİ GİRİŞİ'!T107="","",IF('BİLGİ GİRİŞİ'!$BO$28=1,"1",'BİLGİ GİRİŞİ'!T107)) -> 
A110: =IF('BİLGİ GİRİŞİ'!D108="","",'BİLGİ GİRİŞİ'!D108) ->  | B110: =IF('BİLGİ GİRİŞİ'!E108="","",'BİLGİ GİRİŞİ'!E108) ->  | P110: =IF('BİLGİ GİRİŞİ'!W108="","",'BİLGİ GİRİŞİ'!W108) ->  | T110: =IF('BİLGİ GİRİŞİ'!T108="","",IF('BİLGİ GİRİŞİ'!$BO$28=1,"1",'BİLGİ GİRİŞİ'!T108)) -> 
A111: =IF('BİLGİ GİRİŞİ'!D109="","",'BİLGİ GİRİŞİ'!D109) ->  | B111: =IF('BİLGİ GİRİŞİ'!E109="","",'BİLGİ GİRİŞİ'!E109) ->  | P111: =IF('BİLGİ GİRİŞİ'!W109="","",'BİLGİ GİRİŞİ'!W109) ->  | T111: =IF('BİLGİ GİRİŞİ'!T109="","",IF('BİLGİ GİRİŞİ'!$BO$28=1,"1",'BİLGİ GİRİŞİ'!T109)) -> 
A112: =IF('BİLGİ GİRİŞİ'!D110="","",'BİLGİ GİRİŞİ'!D110) ->  | B112: =IF('BİLGİ GİRİŞİ'!E110="","",'BİLGİ GİRİŞİ'!E110) ->  | P112: =IF('BİLGİ GİRİŞİ'!W110="","",'BİLGİ GİRİŞİ'!W110) ->  | T112: =IF('BİLGİ GİRİŞİ'!T110="","",IF('BİLGİ GİRİŞİ'!$BO$28=1,"1",'BİLGİ GİRİŞİ'!T110)) -> 
A113: =IF('BİLGİ GİRİŞİ'!D111="","",'BİLGİ GİRİŞİ'!D111) ->  | B113: =IF('BİLGİ GİRİŞİ'!E111="","",'BİLGİ GİRİŞİ'!E111) ->  | P113: =IF('BİLGİ GİRİŞİ'!W111="","",'BİLGİ GİRİŞİ'!W111) ->  | T113: =IF('BİLGİ GİRİŞİ'!T111="","",IF('BİLGİ GİRİŞİ'!$BO$28=1,"1",'BİLGİ GİRİŞİ'!T111)) -> 
A114: =IF('BİLGİ GİRİŞİ'!D112="","",'BİLGİ GİRİŞİ'!D112) ->  | B114: =IF('BİLGİ GİRİŞİ'!E112="","",'BİLGİ GİRİŞİ'!E112) ->  | P114: =IF('BİLGİ GİRİŞİ'!W112="","",'BİLGİ GİRİŞİ'!W112) ->  | T114: =IF('BİLGİ GİRİŞİ'!T112="","",IF('BİLGİ GİRİŞİ'!$BO$28=1,"1",'BİLGİ GİRİŞİ'!T112)) -> 
A115: =IF('BİLGİ GİRİŞİ'!D113="","",'BİLGİ GİRİŞİ'!D113) ->  | B115: =IF('BİLGİ GİRİŞİ'!E113="","",'BİLGİ GİRİŞİ'!E113) ->  | P115: =IF('BİLGİ GİRİŞİ'!W113="","",'BİLGİ GİRİŞİ'!W113) ->  | T115: =IF('BİLGİ GİRİŞİ'!T113="","",IF('BİLGİ GİRİŞİ'!$BO$28=1,"1",'BİLGİ GİRİŞİ'!T113)) -> 
A116: =IF('BİLGİ GİRİŞİ'!D114="","",'BİLGİ GİRİŞİ'!D114) ->  | B116: =IF('BİLGİ GİRİŞİ'!E114="","",'BİLGİ GİRİŞİ'!E114) ->  | P116: =IF('BİLGİ GİRİŞİ'!W114="","",'BİLGİ GİRİŞİ'!W114) ->  | T116: =IF('BİLGİ GİRİŞİ'!T114="","",IF('BİLGİ GİRİŞİ'!$BO$28=1,"1",'BİLGİ GİRİŞİ'!T114)) -> 
A117: =IF('BİLGİ GİRİŞİ'!D115="","",'BİLGİ GİRİŞİ'!D115) ->  | B117: =IF('BİLGİ GİRİŞİ'!E115="","",'BİLGİ GİRİŞİ'!E115) ->  | P117: =IF('BİLGİ GİRİŞİ'!W115="","",'BİLGİ GİRİŞİ'!W115) ->  | T117: =IF('BİLGİ GİRİŞİ'!T115="","",IF('BİLGİ GİRİŞİ'!$BO$28=1,"1",'BİLGİ GİRİŞİ'!T115)) -> 
A118: =IF('BİLGİ GİRİŞİ'!D116="","",'BİLGİ GİRİŞİ'!D116) ->  | B118: =IF('BİLGİ GİRİŞİ'!E116="","",'BİLGİ GİRİŞİ'!E116) ->  | P118: =IF('BİLGİ GİRİŞİ'!W116="","",'BİLGİ GİRİŞİ'!W116) ->  | T118: =IF('BİLGİ GİRİŞİ'!T116="","",IF('BİLGİ GİRİŞİ'!$BO$28=1,"1",'BİLGİ GİRİŞİ'!T116)) -> 
A119: =IF('BİLGİ GİRİŞİ'!D117="","",'BİLGİ GİRİŞİ'!D117) ->  | B119: =IF('BİLGİ GİRİŞİ'!E117="","",'BİLGİ GİRİŞİ'!E117) ->  | P119: =IF('BİLGİ GİRİŞİ'!W117="","",'BİLGİ GİRİŞİ'!W117) ->  | T119: =IF('BİLGİ GİRİŞİ'!T117="","",IF('BİLGİ GİRİŞİ'!$BO$28=1,"1",'BİLGİ GİRİŞİ'!T117)) -> 
A120: =IF('BİLGİ GİRİŞİ'!D118="","",'BİLGİ GİRİŞİ'!D118) ->  | B120: =IF('BİLGİ GİRİŞİ'!E118="","",'BİLGİ GİRİŞİ'!E118) ->  | P120: =IF('BİLGİ GİRİŞİ'!W118="","",'BİLGİ GİRİŞİ'!W118) ->  | T120: =IF('BİLGİ GİRİŞİ'!T118="","",IF('BİLGİ GİRİŞİ'!$BO$28=1,"1",'BİLGİ GİRİŞİ'!T118)) -> 
A121: =IF('BİLGİ GİRİŞİ'!D119="","",'BİLGİ GİRİŞİ'!D119) ->  | B121: =IF('BİLGİ GİRİŞİ'!E119="","",'BİLGİ GİRİŞİ'!E119) ->  | P121: =IF('BİLGİ GİRİŞİ'!W119="","",'BİLGİ GİRİŞİ'!W119) ->  | T121: =IF('BİLGİ GİRİŞİ'!T119="","",IF('BİLGİ GİRİŞİ'!$BO$28=1,"1",'BİLGİ GİRİŞİ'!T119)) -> 
A122: =IF('BİLGİ GİRİŞİ'!D120="","",'BİLGİ GİRİŞİ'!D120) ->  | B122: =IF('BİLGİ GİRİŞİ'!E120="","",'BİLGİ GİRİŞİ'!E120) ->  | P122: =IF('BİLGİ GİRİŞİ'!W120="","",'BİLGİ GİRİŞİ'!W120) ->  | T122: =IF('BİLGİ GİRİŞİ'!T120="","",IF('BİLGİ GİRİŞİ'!$BO$28=1,"1",'BİLGİ GİRİŞİ'!T120)) -> 
A123: =IF('BİLGİ GİRİŞİ'!D121="","",'BİLGİ GİRİŞİ'!D121) ->  | B123: =IF('BİLGİ GİRİŞİ'!E121="","",'BİLGİ GİRİŞİ'!E121) ->  | P123: =IF('BİLGİ GİRİŞİ'!W121="","",'BİLGİ GİRİŞİ'!W121) ->  | T123: =IF('BİLGİ GİRİŞİ'!T121="","",IF('BİLGİ GİRİŞİ'!$BO$28=1,"1",'BİLGİ GİRİŞİ'!T121)) -> 
A124: =IF('BİLGİ GİRİŞİ'!D122="","",'BİLGİ GİRİŞİ'!D122) ->  | B124: =IF('BİLGİ GİRİŞİ'!E122="","",'BİLGİ GİRİŞİ'!E122) ->  | P124: =IF('BİLGİ GİRİŞİ'!W122="","",'BİLGİ GİRİŞİ'!W122) ->  | T124: =IF('BİLGİ GİRİŞİ'!T122="","",IF('BİLGİ GİRİŞİ'!$BO$28=1,"1",'BİLGİ GİRİŞİ'!T122)) -> 
A125: =IF('BİLGİ GİRİŞİ'!D123="","",'BİLGİ GİRİŞİ'!D123) ->  | B125: =IF('BİLGİ GİRİŞİ'!E123="","",'BİLGİ GİRİŞİ'!E123) ->  | P125: =IF('BİLGİ GİRİŞİ'!W123="","",'BİLGİ GİRİŞİ'!W123) ->  | T125: =IF('BİLGİ GİRİŞİ'!T123="","",IF('BİLGİ GİRİŞİ'!$BO$28=1,"1",'BİLGİ GİRİŞİ'!T123)) -> 
A126: =IF('BİLGİ GİRİŞİ'!D124="","",'BİLGİ GİRİŞİ'!D124) ->  | B126: =IF('BİLGİ GİRİŞİ'!E124="","",'BİLGİ GİRİŞİ'!E124) ->  | P126: =IF('BİLGİ GİRİŞİ'!W124="","",'BİLGİ GİRİŞİ'!W124) ->  | T126: =IF('BİLGİ GİRİŞİ'!T124="","",IF('BİLGİ GİRİŞİ'!$BO$28=1,"1",'BİLGİ GİRİŞİ'!T124)) -> 
A127: =IF('BİLGİ GİRİŞİ'!D125="","",'BİLGİ GİRİŞİ'!D125) ->  | B127: =IF('BİLGİ GİRİŞİ'!E125="","",'BİLGİ GİRİŞİ'!E125) ->  | P127: =IF('BİLGİ GİRİŞİ'!W125="","",'BİLGİ GİRİŞİ'!W125) ->  | T127: =IF('BİLGİ GİRİŞİ'!T125="","",IF('BİLGİ GİRİŞİ'!$BO$28=1,"1",'BİLGİ GİRİŞİ'!T125)) -> 
A128: =IF('BİLGİ GİRİŞİ'!D126="","",'BİLGİ GİRİŞİ'!D126) ->  | B128: =IF('BİLGİ GİRİŞİ'!E126="","",'BİLGİ GİRİŞİ'!E126) ->  | P128: =IF('BİLGİ GİRİŞİ'!W126="","",'BİLGİ GİRİŞİ'!W126) ->  | T128: =IF('BİLGİ GİRİŞİ'!T126="","",IF('BİLGİ GİRİŞİ'!$BO$28=1,"1",'BİLGİ GİRİŞİ'!T126)) -> 
A129: =IF('BİLGİ GİRİŞİ'!D127="","",'BİLGİ GİRİŞİ'!D127) ->  | B129: =IF('BİLGİ GİRİŞİ'!E127="","",'BİLGİ GİRİŞİ'!E127) ->  | P129: =IF('BİLGİ GİRİŞİ'!W127="","",'BİLGİ GİRİŞİ'!W127) ->  | T129: =IF('BİLGİ GİRİŞİ'!T127="","",IF('BİLGİ GİRİŞİ'!$BO$28=1,"1",'BİLGİ GİRİŞİ'!T127)) -> 
A130: =IF('BİLGİ GİRİŞİ'!D128="","",'BİLGİ GİRİŞİ'!D128) ->  | B130: =IF('BİLGİ GİRİŞİ'!E128="","",'BİLGİ GİRİŞİ'!E128) ->  | P130: =IF('BİLGİ GİRİŞİ'!W128="","",'BİLGİ GİRİŞİ'!W128) ->  | T130: =IF('BİLGİ GİRİŞİ'!T128="","",IF('BİLGİ GİRİŞİ'!$BO$28=1,"1",'BİLGİ GİRİŞİ'!T128)) -> 
A131: =IF('BİLGİ GİRİŞİ'!D129="","",'BİLGİ GİRİŞİ'!D129) ->  | B131: =IF('BİLGİ GİRİŞİ'!E129="","",'BİLGİ GİRİŞİ'!E129) ->  | P131: =IF('BİLGİ GİRİŞİ'!W129="","",'BİLGİ GİRİŞİ'!W129) ->  | T131: =IF('BİLGİ GİRİŞİ'!T129="","",IF('BİLGİ GİRİŞİ'!$BO$28=1,"1",'BİLGİ GİRİŞİ'!T129)) -> 
A132: TOPLAM (KDV Hariç)
U134: KİŞİ/FİRMA KAŞE/İMZA

Sheet 6
A2: İdarenin Adı | K2: : | L2: =IF('BİLGİ GİRİŞİ'!O8="","",'BİLGİ GİRİŞİ'!O8) -> Atatürk İlkokulu Müdürlüğü
A3: Doğrudan Temin Numarası | K3: : | L3: =IF('BİLGİ GİRİŞİ'!O11="","",'BİLGİ GİRİŞİ'!O11) -> 22DT1211930
A4: Mal/Hizmet/Yapım Adı, Niteliği | K4: : | L4: =IF('BİLGİ GİRİŞİ'!O9="","",'BİLGİ GİRİŞİ'!O9) -> Bilişim Malzemeleri Alımı
A5: Alım/Görevlendirme Onay Tarihi/sayısı | K5: : | L5: =IF('BİLGİ GİRİŞİ'!O15="","",'BİLGİ GİRİŞİ'!O15) -> 2023-03-06 | P5: / | Q5: =IF('BİLGİ GİRİŞİ'!S15="","",'BİLGİ GİRİŞİ'!S15) -> 456789123
A8: İDARİ ŞARTLAR
A9: =IF('BİLGİ GİRİŞİ'!D246="","",'BİLGİ GİRİŞİ'!D246) -> 1 | B9: =IF(C9="","","-") -> - | C9: =IF('BİLGİ GİRİŞİ'!E246="","",'BİLGİ GİRİŞİ'!E246) -> Bu bent boş bırakılmıştır.
A10: =IF('BİLGİ GİRİŞİ'!D247="","",'BİLGİ GİRİŞİ'!D247) ->  | B10: =IF(C10="","","-") ->  | C10: =IF('BİLGİ GİRİŞİ'!E247="","",'BİLGİ GİRİŞİ'!E247) -> 
A11: =IF('BİLGİ GİRİŞİ'!D248="","",'BİLGİ GİRİŞİ'!D248) ->  | C11: =IF('BİLGİ GİRİŞİ'!E248="","",'BİLGİ GİRİŞİ'!E248) -> 
A12: =IF('BİLGİ GİRİŞİ'!D249="","",'BİLGİ GİRİŞİ'!D249) ->  | C12: =IF('BİLGİ GİRİŞİ'!E249="","",'BİLGİ GİRİŞİ'!E249) -> 
A13: =IF('BİLGİ GİRİŞİ'!D250="","",'BİLGİ GİRİŞİ'!D250) ->  | C13: =IF('BİLGİ GİRİŞİ'!E250="","",'BİLGİ GİRİŞİ'!E250) -> 
A14: =IF('BİLGİ GİRİŞİ'!D251="","",'BİLGİ GİRİŞİ'!D251) ->  | C14: =IF('BİLGİ GİRİŞİ'!E251="","",'BİLGİ GİRİŞİ'!E251) -> 
A15: =IF('BİLGİ GİRİŞİ'!D252="","",'BİLGİ GİRİŞİ'!D252) ->  | C15: =IF('BİLGİ GİRİŞİ'!E252="","",'BİLGİ GİRİŞİ'!E252) -> 
A16: =IF('BİLGİ GİRİŞİ'!D253="","",'BİLGİ GİRİŞİ'!D253) ->  | C16: =IF('BİLGİ GİRİŞİ'!E253="","",'BİLGİ GİRİŞİ'!E253) -> 
A17: =IF('BİLGİ GİRİŞİ'!D254="","",'BİLGİ GİRİŞİ'!D254) ->  | B17: =IF(C17="","","-") ->  | C17: =IF('BİLGİ GİRİŞİ'!E254="","",'BİLGİ GİRİŞİ'!E254) -> 
A18: =IF('BİLGİ GİRİŞİ'!D255="","",'BİLGİ GİRİŞİ'!D255) ->  | B18: =IF(C18="","","-") ->  | C18: =IF('BİLGİ GİRİŞİ'!E255="","",'BİLGİ GİRİŞİ'!E255) -> 
A19: =IF('BİLGİ GİRİŞİ'!D256="","",'BİLGİ GİRİŞİ'!D256) ->  | B19: =IF(C19="","","-") ->  | C19: =IF('BİLGİ GİRİŞİ'!E256="","",'BİLGİ GİRİŞİ'!E256) -> 
A20: =IF('BİLGİ GİRİŞİ'!D257="","",'BİLGİ GİRİŞİ'!D257) ->  | C20: =IF('BİLGİ GİRİŞİ'!E257="","",'BİLGİ GİRİŞİ'!E257) -> 
A21: =IF('BİLGİ GİRİŞİ'!D258="","",'BİLGİ GİRİŞİ'!D258) ->  | C21: =IF('BİLGİ GİRİŞİ'!E258="","",'BİLGİ GİRİŞİ'!E258) -> 
A22: =IF('BİLGİ GİRİŞİ'!D259="","",'BİLGİ GİRİŞİ'!D259) ->  | C22: =IF('BİLGİ GİRİŞİ'!E259="","",'BİLGİ GİRİŞİ'!E259) -> 
A23: =IF('BİLGİ GİRİŞİ'!D260="","",'BİLGİ GİRİŞİ'!D260) ->  | C23: =IF('BİLGİ GİRİŞİ'!E260="","",'BİLGİ GİRİŞİ'!E260) -> 
A25: TEKNİK ŞARTLAR
A26: =IF('BİLGİ GİRİŞİ'!D263="","",'BİLGİ GİRİŞİ'!D263) -> 1 | B26: =IF(C26="","","-") -> - | C26: =IF('BİLGİ GİRİŞİ'!E263="","",'BİLGİ GİRİŞİ'!E263) -> Bu bent boş bırakılmıştır.
A27: =IF('BİLGİ GİRİŞİ'!D264="","",'BİLGİ GİRİŞİ'!D264) ->  | C27: =IF('BİLGİ GİRİŞİ'!E264="","",'BİLGİ GİRİŞİ'!E264) -> 
A28: =IF('BİLGİ GİRİŞİ'!D265="","",'BİLGİ GİRİŞİ'!D265) ->  | C28: =IF('BİLGİ GİRİŞİ'!E265="","",'BİLGİ GİRİŞİ'!E265) -> 
A29: =IF('BİLGİ GİRİŞİ'!D266="","",'BİLGİ GİRİŞİ'!D266) ->  | C29: =IF('BİLGİ GİRİŞİ'!E266="","",'BİLGİ GİRİŞİ'!E266) -> 
A30: =IF('BİLGİ GİRİŞİ'!D267="","",'BİLGİ GİRİŞİ'!D267) ->  | C30: =IF('BİLGİ GİRİŞİ'!E267="","",'BİLGİ GİRİŞİ'!E267) -> 
A31: =IF('BİLGİ GİRİŞİ'!D268="","",'BİLGİ GİRİŞİ'!D268) ->  | C31: =IF('BİLGİ GİRİŞİ'!E268="","",'BİLGİ GİRİŞİ'!E268) -> 
A32: =IF('BİLGİ GİRİŞİ'!D269="","",'BİLGİ GİRİŞİ'!D269) ->  | C32: =IF('BİLGİ GİRİŞİ'!E269="","",'BİLGİ GİRİŞİ'!E269) -> 
A33: =IF('BİLGİ GİRİŞİ'!D270="","",'BİLGİ GİRİŞİ'!D270) ->  | C33: =IF('BİLGİ GİRİŞİ'!E270="","",'BİLGİ GİRİŞİ'!E270) -> 
A34: =IF('BİLGİ GİRİŞİ'!D271="","",'BİLGİ GİRİŞİ'!D271) ->  | C34: =IF('BİLGİ GİRİŞİ'!E271="","",'BİLGİ GİRİŞİ'!E271) -> 
A35: =IF('BİLGİ GİRİŞİ'!D272="","",'BİLGİ GİRİŞİ'!D272) ->  | C35: =IF('BİLGİ GİRİŞİ'!E272="","",'BİLGİ GİRİŞİ'!E272) -> 
A36: =IF('BİLGİ GİRİŞİ'!D273="","",'BİLGİ GİRİŞİ'!D273) ->  | C36: =IF('BİLGİ GİRİŞİ'!E273="","",'BİLGİ GİRİŞİ'!E273) -> 
A37: =IF('BİLGİ GİRİŞİ'!D274="","",'BİLGİ GİRİŞİ'!D274) ->  | C37: =IF('BİLGİ GİRİŞİ'!E274="","",'BİLGİ GİRİŞİ'!E274) -> 
A38: =IF('BİLGİ GİRİŞİ'!D275="","",'BİLGİ GİRİŞİ'!D275) ->  | C38: =IF('BİLGİ GİRİŞİ'!E275="","",'BİLGİ GİRİŞİ'!E275) -> 
A39: =IF('BİLGİ GİRİŞİ'!D276="","",'BİLGİ GİRİŞİ'!D276) ->  | C39: =IF('BİLGİ GİRİŞİ'!E276="","",'BİLGİ GİRİŞİ'!E276) -> 
A40: =IF('BİLGİ GİRİŞİ'!D277="","",'BİLGİ GİRİŞİ'!D277) ->  | C40: =IF('BİLGİ GİRİŞİ'!E277="","",'BİLGİ GİRİŞİ'!E277) -> 
A41: =IF('BİLGİ GİRİŞİ'!D278="","",'BİLGİ GİRİŞİ'!D278) ->  | C41: =IF('BİLGİ GİRİŞİ'!E278="","",'BİLGİ GİRİŞİ'!E278) -> 
A42: =IF('BİLGİ GİRİŞİ'!D279="","",'BİLGİ GİRİŞİ'!D279) ->  | C42: =IF('BİLGİ GİRİŞİ'!E279="","",'BİLGİ GİRİŞİ'!E279) -> 
A43: =IF('BİLGİ GİRİŞİ'!D280="","",'BİLGİ GİRİŞİ'!D280) ->  | C43: =IF('BİLGİ GİRİŞİ'!E280="","",'BİLGİ GİRİŞİ'!E280) -> 
A44: =IF('BİLGİ GİRİŞİ'!D281="","",'BİLGİ GİRİŞİ'!D281) ->  | C44: =IF('BİLGİ GİRİŞİ'!E281="","",'BİLGİ GİRİŞİ'!E281) -> 
A45: =IF('BİLGİ GİRİŞİ'!D282="","",'BİLGİ GİRİŞİ'!D282) ->  | C45: =IF('BİLGİ GİRİŞİ'!E282="","",'BİLGİ GİRİŞİ'!E282) -> 

Sheet 7
A2: PİYASA FİYAT ARAŞTIRMA TUTANAĞI
A4: İdarenin Adı | K4: : | L4: =IF('BİLGİ GİRİŞİ'!O8="","",'BİLGİ GİRİŞİ'!O8) -> Atatürk İlkokulu Müdürlüğü | AQ4: =IF('BİLGİ GİRİŞİ'!O22="","…../…../……..",'BİLGİ GİRİŞİ'!O22) -> 2023-03-08
A5: Doğrudan Temin Numarası | K5: : | L5: =IF('BİLGİ GİRİŞİ'!O11="","",'BİLGİ GİRİŞİ'!O11) -> 22DT1211930
A6: İş'in Adı, Türü | K6: : | L6: =IF('BİLGİ GİRİŞİ'!O9="","",'BİLGİ GİRİŞİ'!O9) -> Bilişim Malzemeleri Alımı
A7: Alım/Görevlendirme Onay Tarihi/sayısı | K7: : | L7: =IF('BİLGİ GİRİŞİ'!O15="","",'BİLGİ GİRİŞİ'!O15) -> 2023-03-06 | P7: / | Q7: =IF('BİLGİ GİRİŞİ'!S15="","",'BİLGİ GİRİŞİ'!S15) -> 456789123
A9: MAL'IN/HİZMET'İN/YAPIM İŞİ'NİN | X9: TEKLİF VEREN GERÇEK/TÜZEL KİŞİLER VE TEKLİF FİYATLARI
A10: S | B10: Kalem/KısımBilgileri | P10: Birimi | T10: Miktarı | X10: =IF('BİLGİ GİRİŞİ'!AB135="","",'BİLGİ GİRİŞİ'!AB135) -> A GERÇEK/TÜZEL KİŞİSİ | AF10: =IF('BİLGİ GİRİŞİ'!AJ135="","",'BİLGİ GİRİŞİ'!AJ135) -> B GERÇEK/TÜZEL KİŞİSİ | AN10: =IF('BİLGİ GİRİŞİ'!AR135="","",'BİLGİ GİRİŞİ'!AR135) -> D GERÇEK/TÜZEL KİŞİSİ
X11: Birim Fiyat | AB11: Toplam Fiyat | AF11: Birim Fiyat | AJ11: Toplam Fiyat | AN11: Birim Fiyat | AR11: Toplam Fiyat
A12: =IF('BİLGİ GİRİŞİ'!D30="","",'BİLGİ GİRİŞİ'!D30) -> 1 | B12: =IF('BİLGİ GİRİŞİ'!E30="","",'BİLGİ GİRİŞİ'!E30) -> AIO (All In One) Masaüstü Bilgisayar | P12: =IF('BİLGİ GİRİŞİ'!W30="","",'BİLGİ GİRİŞİ'!W30) -> Adet | T12: =IF('BİLGİ GİRİŞİ'!T30="","",'BİLGİ GİRİŞİ'!T30) -> 2 | X12: =IF('BİLGİ GİRİŞİ'!AB137="","",'BİLGİ GİRİŞİ'!AB137) -> 3000 | AB12: =IF('BİLGİ GİRİŞİ'!AF137="","",'BİLGİ GİRİŞİ'!AF137) -> 6000 | AF12: =IF('BİLGİ GİRİŞİ'!AJ137="","",'BİLGİ GİRİŞİ'!AJ137) -> 4000 | AJ12: =IF('BİLGİ GİRİŞİ'!AN137="","",'BİLGİ GİRİŞİ'!AN137) -> 8000 | AN12: =IF('BİLGİ GİRİŞİ'!AR137="","",'BİLGİ GİRİŞİ'!AR137) -> 5000 | AR12: =IF('BİLGİ GİRİŞİ'!AV137="","",'BİLGİ GİRİŞİ'!AV137) -> 10000
A13: =IF('BİLGİ GİRİŞİ'!D31="","",'BİLGİ GİRİŞİ'!D31) -> 2 | B13: =IF('BİLGİ GİRİŞİ'!E31="","",'BİLGİ GİRİŞİ'!E31) -> Fotokopi Makinesi | P13: =IF('BİLGİ GİRİŞİ'!W31="","",'BİLGİ GİRİŞİ'!W31) -> Adet | T13: =IF('BİLGİ GİRİŞİ'!T31="","",'BİLGİ GİRİŞİ'!T31) -> 2 | X13: =IF('BİLGİ GİRİŞİ'!AB138="","",'BİLGİ GİRİŞİ'!AB138) -> 4000 | AB13: =IF('BİLGİ GİRİŞİ'!AF138="","",'BİLGİ GİRİŞİ'!AF138) -> 8000 | AF13: =IF('BİLGİ GİRİŞİ'!AJ138="","",'BİLGİ GİRİŞİ'!AJ138) -> 5000 | AJ13: =IF('BİLGİ GİRİŞİ'!AN138="","",'BİLGİ GİRİŞİ'!AN138) -> 10000 | AN13: =IF('BİLGİ GİRİŞİ'!AR138="","",'BİLGİ GİRİŞİ'!AR138) -> 6000 | AR13: =IF('BİLGİ GİRİŞİ'!AV138="","",'BİLGİ GİRİŞİ'!AV138) -> 12000
A14: =IF('BİLGİ GİRİŞİ'!D32="","",'BİLGİ GİRİŞİ'!D32) -> 3 | B14: =IF('BİLGİ GİRİŞİ'!E32="","",'BİLGİ GİRİŞİ'!E32) -> Projektör | P14: =IF('BİLGİ GİRİŞİ'!W32="","",'BİLGİ GİRİŞİ'!W32) -> Adet | T14: =IF('BİLGİ GİRİŞİ'!T32="","",'BİLGİ GİRİŞİ'!T32) -> 2 | X14: =IF('BİLGİ GİRİŞİ'!AB139="","",'BİLGİ GİRİŞİ'!AB139) -> 5000 | AB14: =IF('BİLGİ GİRİŞİ'!AF139="","",'BİLGİ GİRİŞİ'!AF139) -> 10000 | AF14: =IF('BİLGİ GİRİŞİ'!AJ139="","",'BİLGİ GİRİŞİ'!AJ139) -> 6000 | AJ14: =IF('BİLGİ GİRİŞİ'!AN139="","",'BİLGİ GİRİŞİ'!AN139) -> 12000 | AN14: =IF('BİLGİ GİRİŞİ'!AR139="","",'BİLGİ GİRİŞİ'!AR139) -> 7000 | AR14: =IF('BİLGİ GİRİŞİ'!AV139="","",'BİLGİ GİRİŞİ'!AV139) -> 14000
A15: =IF('BİLGİ GİRİŞİ'!D33="","",'BİLGİ GİRİŞİ'!D33) ->  | B15: =IF('BİLGİ GİRİŞİ'!E33="","",'BİLGİ GİRİŞİ'!E33) ->  | P15: =IF('BİLGİ GİRİŞİ'!W33="","",'BİLGİ GİRİŞİ'!W33) ->  | T15: =IF('BİLGİ GİRİŞİ'!T33="","",'BİLGİ GİRİŞİ'!T33) ->  | X15: =IF('BİLGİ GİRİŞİ'!AB140="","",'BİLGİ GİRİŞİ'!AB140) ->  | AB15: =IF('BİLGİ GİRİŞİ'!AF140="","",'BİLGİ GİRİŞİ'!AF140) ->  | AF15: =IF('BİLGİ GİRİŞİ'!AJ140="","",'BİLGİ GİRİŞİ'!AJ140) ->  | AJ15: =IF('BİLGİ GİRİŞİ'!AN140="","",'BİLGİ GİRİŞİ'!AN140) ->  | AN15: =IF('BİLGİ GİRİŞİ'!AR140="","",'BİLGİ GİRİŞİ'!AR140) ->  | AR15: =IF('BİLGİ GİRİŞİ'!AV140="","",'BİLGİ GİRİŞİ'!AV140) -> 
A16: =IF('BİLGİ GİRİŞİ'!D34="","",'BİLGİ GİRİŞİ'!D34) ->  | B16: =IF('BİLGİ GİRİŞİ'!E34="","",'BİLGİ GİRİŞİ'!E34) ->  | P16: =IF('BİLGİ GİRİŞİ'!W34="","",'BİLGİ GİRİŞİ'!W34) ->  | T16: =IF('BİLGİ GİRİŞİ'!T34="","",'BİLGİ GİRİŞİ'!T34) ->  | X16: =IF('BİLGİ GİRİŞİ'!AB141="","",'BİLGİ GİRİŞİ'!AB141) ->  | AB16: =IF('BİLGİ GİRİŞİ'!AF141="","",'BİLGİ GİRİŞİ'!AF141) ->  | AF16: =IF('BİLGİ GİRİŞİ'!AJ141="","",'BİLGİ GİRİŞİ'!AJ141) ->  | AJ16: =IF('BİLGİ GİRİŞİ'!AN141="","",'BİLGİ GİRİŞİ'!AN141) ->  | AN16: =IF('BİLGİ GİRİŞİ'!AR141="","",'BİLGİ GİRİŞİ'!AR141) ->  | AR16: =IF('BİLGİ GİRİŞİ'!AV141="","",'BİLGİ GİRİŞİ'!AV141) -> 
A17: =IF('BİLGİ GİRİŞİ'!D35="","",'BİLGİ GİRİŞİ'!D35) ->  | B17: =IF('BİLGİ GİRİŞİ'!E35="","",'BİLGİ GİRİŞİ'!E35) ->  | P17: =IF('BİLGİ GİRİŞİ'!W35="","",'BİLGİ GİRİŞİ'!W35) ->  | T17: =IF('BİLGİ GİRİŞİ'!T35="","",'BİLGİ GİRİŞİ'!T35) ->  | X17: =IF('BİLGİ GİRİŞİ'!AB142="","",'BİLGİ GİRİŞİ'!AB142) ->  | AB17: =IF('BİLGİ GİRİŞİ'!AF142="","",'BİLGİ GİRİŞİ'!AF142) ->  | AF17: =IF('BİLGİ GİRİŞİ'!AJ142="","",'BİLGİ GİRİŞİ'!AJ142) ->  | AJ17: =IF('BİLGİ GİRİŞİ'!AN142="","",'BİLGİ GİRİŞİ'!AN142) ->  | AN17: =IF('BİLGİ GİRİŞİ'!AR142="","",'BİLGİ GİRİŞİ'!AR142) ->  | AR17: =IF('BİLGİ GİRİŞİ'!AV142="","",'BİLGİ GİRİŞİ'!AV142) -> 
A18: =IF('BİLGİ GİRİŞİ'!D36="","",'BİLGİ GİRİŞİ'!D36) ->  | B18: =IF('BİLGİ GİRİŞİ'!E36="","",'BİLGİ GİRİŞİ'!E36) ->  | P18: =IF('BİLGİ GİRİŞİ'!W36="","",'BİLGİ GİRİŞİ'!W36) ->  | T18: =IF('BİLGİ GİRİŞİ'!T36="","",'BİLGİ GİRİŞİ'!T36) ->  | X18: =IF('BİLGİ GİRİŞİ'!AB143="","",'BİLGİ GİRİŞİ'!AB143) ->  | AB18: =IF('BİLGİ GİRİŞİ'!AF143="","",'BİLGİ GİRİŞİ'!AF143) ->  | AF18: =IF('BİLGİ GİRİŞİ'!AJ143="","",'BİLGİ GİRİŞİ'!AJ143) ->  | AJ18: =IF('BİLGİ GİRİŞİ'!AN143="","",'BİLGİ GİRİŞİ'!AN143) ->  | AN18: =IF('BİLGİ GİRİŞİ'!AR143="","",'BİLGİ GİRİŞİ'!AR143) ->  | AR18: =IF('BİLGİ GİRİŞİ'!AV143="","",'BİLGİ GİRİŞİ'!AV143) -> 
A19: =IF('BİLGİ GİRİŞİ'!D37="","",'BİLGİ GİRİŞİ'!D37) ->  | B19: =IF('BİLGİ GİRİŞİ'!E37="","",'BİLGİ GİRİŞİ'!E37) ->  | P19: =IF('BİLGİ GİRİŞİ'!W37="","",'BİLGİ GİRİŞİ'!W37) ->  | T19: =IF('BİLGİ GİRİŞİ'!T37="","",'BİLGİ GİRİŞİ'!T37) ->  | X19: =IF('BİLGİ GİRİŞİ'!AB144="","",'BİLGİ GİRİŞİ'!AB144) ->  | AB19: =IF('BİLGİ GİRİŞİ'!AF144="","",'BİLGİ GİRİŞİ'!AF144) ->  | AF19: =IF('BİLGİ GİRİŞİ'!AJ144="","",'BİLGİ GİRİŞİ'!AJ144) ->  | AJ19: =IF('BİLGİ GİRİŞİ'!AN144="","",'BİLGİ GİRİŞİ'!AN144) ->  | AN19: =IF('BİLGİ GİRİŞİ'!AR144="","",'BİLGİ GİRİŞİ'!AR144) ->  | AR19: =IF('BİLGİ GİRİŞİ'!AV144="","",'BİLGİ GİRİŞİ'!AV144) -> 
A20: =IF('BİLGİ GİRİŞİ'!D38="","",'BİLGİ GİRİŞİ'!D38) ->  | B20: =IF('BİLGİ GİRİŞİ'!E38="","",'BİLGİ GİRİŞİ'!E38) ->  | P20: =IF('BİLGİ GİRİŞİ'!W38="","",'BİLGİ GİRİŞİ'!W38) ->  | T20: =IF('BİLGİ GİRİŞİ'!T38="","",'BİLGİ GİRİŞİ'!T38) ->  | X20: =IF('BİLGİ GİRİŞİ'!AB145="","",'BİLGİ GİRİŞİ'!AB145) ->  | AB20: =IF('BİLGİ GİRİŞİ'!AF145="","",'BİLGİ GİRİŞİ'!AF145) ->  | AF20: =IF('BİLGİ GİRİŞİ'!AJ145="","",'BİLGİ GİRİŞİ'!AJ145) ->  | AJ20: =IF('BİLGİ GİRİŞİ'!AN145="","",'BİLGİ GİRİŞİ'!AN145) ->  | AN20: =IF('BİLGİ GİRİŞİ'!AR145="","",'BİLGİ GİRİŞİ'!AR145) ->  | AR20: =IF('BİLGİ GİRİŞİ'!AV145="","",'BİLGİ GİRİŞİ'!AV145) -> 
A21: =IF('BİLGİ GİRİŞİ'!D39="","",'BİLGİ GİRİŞİ'!D39) ->  | B21: =IF('BİLGİ GİRİŞİ'!E39="","",'BİLGİ GİRİŞİ'!E39) ->  | P21: =IF('BİLGİ GİRİŞİ'!W39="","",'BİLGİ GİRİŞİ'!W39) ->  | T21: =IF('BİLGİ GİRİŞİ'!T39="","",'BİLGİ GİRİŞİ'!T39) ->  | X21: =IF('BİLGİ GİRİŞİ'!AB146="","",'BİLGİ GİRİŞİ'!AB146) ->  | AB21: =IF('BİLGİ GİRİŞİ'!AF146="","",'BİLGİ GİRİŞİ'!AF146) ->  | AF21: =IF('BİLGİ GİRİŞİ'!AJ146="","",'BİLGİ GİRİŞİ'!AJ146) ->  | AJ21: =IF('BİLGİ GİRİŞİ'!AN146="","",'BİLGİ GİRİŞİ'!AN146) ->  | AN21: =IF('BİLGİ GİRİŞİ'!AR146="","",'BİLGİ GİRİŞİ'!AR146) ->  | AR21: =IF('BİLGİ GİRİŞİ'!AV146="","",'BİLGİ GİRİŞİ'!AV146) -> 
A22: =IF('BİLGİ GİRİŞİ'!D40="","",'BİLGİ GİRİŞİ'!D40) ->  | B22: =IF('BİLGİ GİRİŞİ'!E40="","",'BİLGİ GİRİŞİ'!E40) ->  | P22: =IF('BİLGİ GİRİŞİ'!W40="","",'BİLGİ GİRİŞİ'!W40) ->  | T22: =IF('BİLGİ GİRİŞİ'!T40="","",'BİLGİ GİRİŞİ'!T40) ->  | X22: =IF('BİLGİ GİRİŞİ'!AB147="","",'BİLGİ GİRİŞİ'!AB147) ->  | AB22: =IF('BİLGİ GİRİŞİ'!AF147="","",'BİLGİ GİRİŞİ'!AF147) ->  | AF22: =IF('BİLGİ GİRİŞİ'!AJ147="","",'BİLGİ GİRİŞİ'!AJ147) ->  | AJ22: =IF('BİLGİ GİRİŞİ'!AN147="","",'BİLGİ GİRİŞİ'!AN147) ->  | AN22: =IF('BİLGİ GİRİŞİ'!AR147="","",'BİLGİ GİRİŞİ'!AR147) ->  | AR22: =IF('BİLGİ GİRİŞİ'!AV147="","",'BİLGİ GİRİŞİ'!AV147) -> 
A23: =IF('BİLGİ GİRİŞİ'!D41="","",'BİLGİ GİRİŞİ'!D41) ->  | B23: =IF('BİLGİ GİRİŞİ'!E41="","",'BİLGİ GİRİŞİ'!E41) ->  | P23: =IF('BİLGİ GİRİŞİ'!W41="","",'BİLGİ GİRİŞİ'!W41) ->  | T23: =IF('BİLGİ GİRİŞİ'!T41="","",'BİLGİ GİRİŞİ'!T41) ->  | X23: =IF('BİLGİ GİRİŞİ'!AB148="","",'BİLGİ GİRİŞİ'!AB148) ->  | AB23: =IF('BİLGİ GİRİŞİ'!AF148="","",'BİLGİ GİRİŞİ'!AF148) ->  | AF23: =IF('BİLGİ GİRİŞİ'!AJ148="","",'BİLGİ GİRİŞİ'!AJ148) ->  | AJ23: =IF('BİLGİ GİRİŞİ'!AN148="","",'BİLGİ GİRİŞİ'!AN148) ->  | AN23: =IF('BİLGİ GİRİŞİ'!AR148="","",'BİLGİ GİRİŞİ'!AR148) ->  | AR23: =IF('BİLGİ GİRİŞİ'!AV148="","",'BİLGİ GİRİŞİ'!AV148) -> 
A24: =IF('BİLGİ GİRİŞİ'!D42="","",'BİLGİ GİRİŞİ'!D42) ->  | B24: =IF('BİLGİ GİRİŞİ'!E42="","",'BİLGİ GİRİŞİ'!E42) ->  | P24: =IF('BİLGİ GİRİŞİ'!W42="","",'BİLGİ GİRİŞİ'!W42) ->  | T24: =IF('BİLGİ GİRİŞİ'!T42="","",'BİLGİ GİRİŞİ'!T42) ->  | X24: =IF('BİLGİ GİRİŞİ'!AB149="","",'BİLGİ GİRİŞİ'!AB149) ->  | AB24: =IF('BİLGİ GİRİŞİ'!AF149="","",'BİLGİ GİRİŞİ'!AF149) ->  | AF24: =IF('BİLGİ GİRİŞİ'!AJ149="","",'BİLGİ GİRİŞİ'!AJ149) ->  | AJ24: =IF('BİLGİ GİRİŞİ'!AN149="","",'BİLGİ GİRİŞİ'!AN149) ->  | AN24: =IF('BİLGİ GİRİŞİ'!AR149="","",'BİLGİ GİRİŞİ'!AR149) ->  | AR24: =IF('BİLGİ GİRİŞİ'!AV149="","",'BİLGİ GİRİŞİ'!AV149) -> 
A25: =IF('BİLGİ GİRİŞİ'!D43="","",'BİLGİ GİRİŞİ'!D43) ->  | B25: =IF('BİLGİ GİRİŞİ'!E43="","",'BİLGİ GİRİŞİ'!E43) ->  | P25: =IF('BİLGİ GİRİŞİ'!W43="","",'BİLGİ GİRİŞİ'!W43) ->  | T25: =IF('BİLGİ GİRİŞİ'!T43="","",'BİLGİ GİRİŞİ'!T43) ->  | X25: =IF('BİLGİ GİRİŞİ'!AB150="","",'BİLGİ GİRİŞİ'!AB150) ->  | AB25: =IF('BİLGİ GİRİŞİ'!AF150="","",'BİLGİ GİRİŞİ'!AF150) ->  | AF25: =IF('BİLGİ GİRİŞİ'!AJ150="","",'BİLGİ GİRİŞİ'!AJ150) ->  | AJ25: =IF('BİLGİ GİRİŞİ'!AN150="","",'BİLGİ GİRİŞİ'!AN150) ->  | AN25: =IF('BİLGİ GİRİŞİ'!AR150="","",'BİLGİ GİRİŞİ'!AR150) ->  | AR25: =IF('BİLGİ GİRİŞİ'!AV150="","",'BİLGİ GİRİŞİ'!AV150) -> 
A26: =IF('BİLGİ GİRİŞİ'!D44="","",'BİLGİ GİRİŞİ'!D44) ->  | B26: =IF('BİLGİ GİRİŞİ'!E44="","",'BİLGİ GİRİŞİ'!E44) ->  | P26: =IF('BİLGİ GİRİŞİ'!W44="","",'BİLGİ GİRİŞİ'!W44) ->  | T26: =IF('BİLGİ GİRİŞİ'!T44="","",'BİLGİ GİRİŞİ'!T44) ->  | X26: =IF('BİLGİ GİRİŞİ'!AB151="","",'BİLGİ GİRİŞİ'!AB151) ->  | AB26: =IF('BİLGİ GİRİŞİ'!AF151="","",'BİLGİ GİRİŞİ'!AF151) ->  | AF26: =IF('BİLGİ GİRİŞİ'!AJ151="","",'BİLGİ GİRİŞİ'!AJ151) ->  | AJ26: =IF('BİLGİ GİRİŞİ'!AN151="","",'BİLGİ GİRİŞİ'!AN151) ->  | AN26: =IF('BİLGİ GİRİŞİ'!AR151="","",'BİLGİ GİRİŞİ'!AR151) ->  | AR26: =IF('BİLGİ GİRİŞİ'!AV151="","",'BİLGİ GİRİŞİ'!AV151) -> 
A27: =IF('BİLGİ GİRİŞİ'!D45="","",'BİLGİ GİRİŞİ'!D45) ->  | B27: =IF('BİLGİ GİRİŞİ'!E45="","",'BİLGİ GİRİŞİ'!E45) ->  | P27: =IF('BİLGİ GİRİŞİ'!W45="","",'BİLGİ GİRİŞİ'!W45) ->  | T27: =IF('BİLGİ GİRİŞİ'!T45="","",'BİLGİ GİRİŞİ'!T45) ->  | X27: =IF('BİLGİ GİRİŞİ'!AB152="","",'BİLGİ GİRİŞİ'!AB152) ->  | AB27: =IF('BİLGİ GİRİŞİ'!AF152="","",'BİLGİ GİRİŞİ'!AF152) ->  | AF27: =IF('BİLGİ GİRİŞİ'!AJ152="","",'BİLGİ GİRİŞİ'!AJ152) ->  | AJ27: =IF('BİLGİ GİRİŞİ'!AN152="","",'BİLGİ GİRİŞİ'!AN152) ->  | AN27: =IF('BİLGİ GİRİŞİ'!AR152="","",'BİLGİ GİRİŞİ'!AR152) ->  | AR27: =IF('BİLGİ GİRİŞİ'!AV152="","",'BİLGİ GİRİŞİ'!AV152) -> 
A28: =IF('BİLGİ GİRİŞİ'!D46="","",'BİLGİ GİRİŞİ'!D46) ->  | B28: =IF('BİLGİ GİRİŞİ'!E46="","",'BİLGİ GİRİŞİ'!E46) ->  | P28: =IF('BİLGİ GİRİŞİ'!W46="","",'BİLGİ GİRİŞİ'!W46) ->  | T28: =IF('BİLGİ GİRİŞİ'!T46="","",'BİLGİ GİRİŞİ'!T46) ->  | X28: =IF('BİLGİ GİRİŞİ'!AB153="","",'BİLGİ GİRİŞİ'!AB153) ->  | AB28: =IF('BİLGİ GİRİŞİ'!AF153="","",'BİLGİ GİRİŞİ'!AF153) ->  | AF28: =IF('BİLGİ GİRİŞİ'!AJ153="","",'BİLGİ GİRİŞİ'!AJ153) ->  | AJ28: =IF('BİLGİ GİRİŞİ'!AN153="","",'BİLGİ GİRİŞİ'!AN153) ->  | AN28: =IF('BİLGİ GİRİŞİ'!AR153="","",'BİLGİ GİRİŞİ'!AR153) ->  | AR28: =IF('BİLGİ GİRİŞİ'!AV153="","",'BİLGİ GİRİŞİ'!AV153) -> 
A29: =IF('BİLGİ GİRİŞİ'!D47="","",'BİLGİ GİRİŞİ'!D47) ->  | B29: =IF('BİLGİ GİRİŞİ'!E47="","",'BİLGİ GİRİŞİ'!E47) ->  | P29: =IF('BİLGİ GİRİŞİ'!W47="","",'BİLGİ GİRİŞİ'!W47) ->  | T29: =IF('BİLGİ GİRİŞİ'!T47="","",'BİLGİ GİRİŞİ'!T47) ->  | X29: =IF('BİLGİ GİRİŞİ'!AB154="","",'BİLGİ GİRİŞİ'!AB154) ->  | AB29: =IF('BİLGİ GİRİŞİ'!AF154="","",'BİLGİ GİRİŞİ'!AF154) ->  | AF29: =IF('BİLGİ GİRİŞİ'!AJ154="","",'BİLGİ GİRİŞİ'!AJ154) ->  | AJ29: =IF('BİLGİ GİRİŞİ'!AN154="","",'BİLGİ GİRİŞİ'!AN154) ->  | AN29: =IF('BİLGİ GİRİŞİ'!AR154="","",'BİLGİ GİRİŞİ'!AR154) ->  | AR29: =IF('BİLGİ GİRİŞİ'!AV154="","",'BİLGİ GİRİŞİ'!AV154) -> 
A30: =IF('BİLGİ GİRİŞİ'!D48="","",'BİLGİ GİRİŞİ'!D48) ->  | B30: =IF('BİLGİ GİRİŞİ'!E48="","",'BİLGİ GİRİŞİ'!E48) ->  | P30: =IF('BİLGİ GİRİŞİ'!W48="","",'BİLGİ GİRİŞİ'!W48) ->  | T30: =IF('BİLGİ GİRİŞİ'!T48="","",'BİLGİ GİRİŞİ'!T48) ->  | X30: =IF('BİLGİ GİRİŞİ'!AB155="","",'BİLGİ GİRİŞİ'!AB155) ->  | AB30: =IF('BİLGİ GİRİŞİ'!AF155="","",'BİLGİ GİRİŞİ'!AF155) ->  | AF30: =IF('BİLGİ GİRİŞİ'!AJ155="","",'BİLGİ GİRİŞİ'!AJ155) ->  | AJ30: =IF('BİLGİ GİRİŞİ'!AN155="","",'BİLGİ GİRİŞİ'!AN155) ->  | AN30: =IF('BİLGİ GİRİŞİ'!AR155="","",'BİLGİ GİRİŞİ'!AR155) ->  | AR30: =IF('BİLGİ GİRİŞİ'!AV155="","",'BİLGİ GİRİŞİ'!AV155) -> 
A31: =IF('BİLGİ GİRİŞİ'!D49="","",'BİLGİ GİRİŞİ'!D49) ->  | B31: =IF('BİLGİ GİRİŞİ'!E49="","",'BİLGİ GİRİŞİ'!E49) ->  | P31: =IF('BİLGİ GİRİŞİ'!W49="","",'BİLGİ GİRİŞİ'!W49) ->  | T31: =IF('BİLGİ GİRİŞİ'!T49="","",'BİLGİ GİRİŞİ'!T49) ->  | X31: =IF('BİLGİ GİRİŞİ'!AB156="","",'BİLGİ GİRİŞİ'!AB156) ->  | AB31: =IF('BİLGİ GİRİŞİ'!AF156="","",'BİLGİ GİRİŞİ'!AF156) ->  | AF31: =IF('BİLGİ GİRİŞİ'!AJ156="","",'BİLGİ GİRİŞİ'!AJ156) ->  | AJ31: =IF('BİLGİ GİRİŞİ'!AN156="","",'BİLGİ GİRİŞİ'!AN156) ->  | AN31: =IF('BİLGİ GİRİŞİ'!AR156="","",'BİLGİ GİRİŞİ'!AR156) ->  | AR31: =IF('BİLGİ GİRİŞİ'!AV156="","",'BİLGİ GİRİŞİ'!AV156) -> 
A32: =IF('BİLGİ GİRİŞİ'!D50="","",'BİLGİ GİRİŞİ'!D50) ->  | B32: =IF('BİLGİ GİRİŞİ'!E50="","",'BİLGİ GİRİŞİ'!E50) ->  | P32: =IF('BİLGİ GİRİŞİ'!W50="","",'BİLGİ GİRİŞİ'!W50) ->  | T32: =IF('BİLGİ GİRİŞİ'!T50="","",'BİLGİ GİRİŞİ'!T50) ->  | X32: =IF('BİLGİ GİRİŞİ'!AB157="","",'BİLGİ GİRİŞİ'!AB157) ->  | AB32: =IF('BİLGİ GİRİŞİ'!AF157="","",'BİLGİ GİRİŞİ'!AF157) ->  | AF32: =IF('BİLGİ GİRİŞİ'!AJ157="","",'BİLGİ GİRİŞİ'!AJ157) ->  | AJ32: =IF('BİLGİ GİRİŞİ'!AN157="","",'BİLGİ GİRİŞİ'!AN157) ->  | AN32: =IF('BİLGİ GİRİŞİ'!AR157="","",'BİLGİ GİRİŞİ'!AR157) ->  | AR32: =IF('BİLGİ GİRİŞİ'!AV157="","",'BİLGİ GİRİŞİ'!AV157) -> 
A33: =IF('BİLGİ GİRİŞİ'!D51="","",'BİLGİ GİRİŞİ'!D51) ->  | B33: =IF('BİLGİ GİRİŞİ'!E51="","",'BİLGİ GİRİŞİ'!E51) ->  | P33: =IF('BİLGİ GİRİŞİ'!W51="","",'BİLGİ GİRİŞİ'!W51) ->  | T33: =IF('BİLGİ GİRİŞİ'!T51="","",'BİLGİ GİRİŞİ'!T51) ->  | X33: =IF('BİLGİ GİRİŞİ'!AB158="","",'BİLGİ GİRİŞİ'!AB158) ->  | AB33: =IF('BİLGİ GİRİŞİ'!AF158="","",'BİLGİ GİRİŞİ'!AF158) ->  | AF33: =IF('BİLGİ GİRİŞİ'!AJ158="","",'BİLGİ GİRİŞİ'!AJ158) ->  | AJ33: =IF('BİLGİ GİRİŞİ'!AN158="","",'BİLGİ GİRİŞİ'!AN158) ->  | AN33: =IF('BİLGİ GİRİŞİ'!AR158="","",'BİLGİ GİRİŞİ'!AR158) ->  | AR33: =IF('BİLGİ GİRİŞİ'!AV158="","",'BİLGİ GİRİŞİ'!AV158) -> 
A34: =IF('BİLGİ GİRİŞİ'!D52="","",'BİLGİ GİRİŞİ'!D52) ->  | B34: =IF('BİLGİ GİRİŞİ'!E52="","",'BİLGİ GİRİŞİ'!E52) ->  | P34: =IF('BİLGİ GİRİŞİ'!W52="","",'BİLGİ GİRİŞİ'!W52) ->  | T34: =IF('BİLGİ GİRİŞİ'!T52="","",'BİLGİ GİRİŞİ'!T52) ->  | X34: =IF('BİLGİ GİRİŞİ'!AB159="","",'BİLGİ GİRİŞİ'!AB159) ->  | AB34: =IF('BİLGİ GİRİŞİ'!AF159="","",'BİLGİ GİRİŞİ'!AF159) ->  | AF34: =IF('BİLGİ GİRİŞİ'!AJ159="","",'BİLGİ GİRİŞİ'!AJ159) ->  | AJ34: =IF('BİLGİ GİRİŞİ'!AN159="","",'BİLGİ GİRİŞİ'!AN159) ->  | AN34: =IF('BİLGİ GİRİŞİ'!AR159="","",'BİLGİ GİRİŞİ'!AR159) ->  | AR34: =IF('BİLGİ GİRİŞİ'!AV159="","",'BİLGİ GİRİŞİ'!AV159) -> 
A35: =IF('BİLGİ GİRİŞİ'!D53="","",'BİLGİ GİRİŞİ'!D53) ->  | B35: =IF('BİLGİ GİRİŞİ'!E53="","",'BİLGİ GİRİŞİ'!E53) ->  | P35: =IF('BİLGİ GİRİŞİ'!W53="","",'BİLGİ GİRİŞİ'!W53) ->  | T35: =IF('BİLGİ GİRİŞİ'!T53="","",'BİLGİ GİRİŞİ'!T53) ->  | X35: =IF('BİLGİ GİRİŞİ'!AB160="","",'BİLGİ GİRİŞİ'!AB160) ->  | AB35: =IF('BİLGİ GİRİŞİ'!AF160="","",'BİLGİ GİRİŞİ'!AF160) ->  | AF35: =IF('BİLGİ GİRİŞİ'!AJ160="","",'BİLGİ GİRİŞİ'!AJ160) ->  | AJ35: =IF('BİLGİ GİRİŞİ'!AN160="","",'BİLGİ GİRİŞİ'!AN160) ->  | AN35: =IF('BİLGİ GİRİŞİ'!AR160="","",'BİLGİ GİRİŞİ'!AR160) ->  | AR35: =IF('BİLGİ GİRİŞİ'!AV160="","",'BİLGİ GİRİŞİ'!AV160) -> 
A36: =IF('BİLGİ GİRİŞİ'!D54="","",'BİLGİ GİRİŞİ'!D54) ->  | B36: =IF('BİLGİ GİRİŞİ'!E54="","",'BİLGİ GİRİŞİ'!E54) ->  | P36: =IF('BİLGİ GİRİŞİ'!W54="","",'BİLGİ GİRİŞİ'!W54) ->  | T36: =IF('BİLGİ GİRİŞİ'!T54="","",'BİLGİ GİRİŞİ'!T54) ->  | X36: =IF('BİLGİ GİRİŞİ'!AB161="","",'BİLGİ GİRİŞİ'!AB161) ->  | AB36: =IF('BİLGİ GİRİŞİ'!AF161="","",'BİLGİ GİRİŞİ'!AF161) ->  | AF36: =IF('BİLGİ GİRİŞİ'!AJ161="","",'BİLGİ GİRİŞİ'!AJ161) ->  | AJ36: =IF('BİLGİ GİRİŞİ'!AN161="","",'BİLGİ GİRİŞİ'!AN161) ->  | AN36: =IF('BİLGİ GİRİŞİ'!AR161="","",'BİLGİ GİRİŞİ'!AR161) ->  | AR36: =IF('BİLGİ GİRİŞİ'!AV161="","",'BİLGİ GİRİŞİ'!AV161) -> 
A37: =IF('BİLGİ GİRİŞİ'!D55="","",'BİLGİ GİRİŞİ'!D55) ->  | B37: =IF('BİLGİ GİRİŞİ'!E55="","",'BİLGİ GİRİŞİ'!E55) ->  | P37: =IF('BİLGİ GİRİŞİ'!W55="","",'BİLGİ GİRİŞİ'!W55) ->  | T37: =IF('BİLGİ GİRİŞİ'!T55="","",'BİLGİ GİRİŞİ'!T55) ->  | X37: =IF('BİLGİ GİRİŞİ'!AB162="","",'BİLGİ GİRİŞİ'!AB162) ->  | AB37: =IF('BİLGİ GİRİŞİ'!AF162="","",'BİLGİ GİRİŞİ'!AF162) ->  | AF37: =IF('BİLGİ GİRİŞİ'!AJ162="","",'BİLGİ GİRİŞİ'!AJ162) ->  | AJ37: =IF('BİLGİ GİRİŞİ'!AN162="","",'BİLGİ GİRİŞİ'!AN162) ->  | AN37: =IF('BİLGİ GİRİŞİ'!AR162="","",'BİLGİ GİRİŞİ'!AR162) ->  | AR37: =IF('BİLGİ GİRİŞİ'!AV162="","",'BİLGİ GİRİŞİ'!AV162) -> 
A38: =IF('BİLGİ GİRİŞİ'!D56="","",'BİLGİ GİRİŞİ'!D56) ->  | B38: =IF('BİLGİ GİRİŞİ'!E56="","",'BİLGİ GİRİŞİ'!E56) ->  | P38: =IF('BİLGİ GİRİŞİ'!W56="","",'BİLGİ GİRİŞİ'!W56) ->  | T38: =IF('BİLGİ GİRİŞİ'!T56="","",'BİLGİ GİRİŞİ'!T56) ->  | X38: =IF('BİLGİ GİRİŞİ'!AB163="","",'BİLGİ GİRİŞİ'!AB163) ->  | AB38: =IF('BİLGİ GİRİŞİ'!AF163="","",'BİLGİ GİRİŞİ'!AF163) ->  | AF38: =IF('BİLGİ GİRİŞİ'!AJ163="","",'BİLGİ GİRİŞİ'!AJ163) ->  | AJ38: =IF('BİLGİ GİRİŞİ'!AN163="","",'BİLGİ GİRİŞİ'!AN163) ->  | AN38: =IF('BİLGİ GİRİŞİ'!AR163="","",'BİLGİ GİRİŞİ'!AR163) ->  | AR38: =IF('BİLGİ GİRİŞİ'!AV163="","",'BİLGİ GİRİŞİ'!AV163) -> 
A39: =IF('BİLGİ GİRİŞİ'!D57="","",'BİLGİ GİRİŞİ'!D57) ->  | B39: =IF('BİLGİ GİRİŞİ'!E57="","",'BİLGİ GİRİŞİ'!E57) ->  | P39: =IF('BİLGİ GİRİŞİ'!W57="","",'BİLGİ GİRİŞİ'!W57) ->  | T39: =IF('BİLGİ GİRİŞİ'!T57="","",'BİLGİ GİRİŞİ'!T57) ->  | X39: =IF('BİLGİ GİRİŞİ'!AB164="","",'BİLGİ GİRİŞİ'!AB164) ->  | AB39: =IF('BİLGİ GİRİŞİ'!AF164="","",'BİLGİ GİRİŞİ'!AF164) ->  | AF39: =IF('BİLGİ GİRİŞİ'!AJ164="","",'BİLGİ GİRİŞİ'!AJ164) ->  | AJ39: =IF('BİLGİ GİRİŞİ'!AN164="","",'BİLGİ GİRİŞİ'!AN164) ->  | AN39: =IF('BİLGİ GİRİŞİ'!AR164="","",'BİLGİ GİRİŞİ'!AR164) ->  | AR39: =IF('BİLGİ GİRİŞİ'!AV164="","",'BİLGİ GİRİŞİ'!AV164) -> 
A40: =IF('BİLGİ GİRİŞİ'!D58="","",'BİLGİ GİRİŞİ'!D58) ->  | B40: =IF('BİLGİ GİRİŞİ'!E58="","",'BİLGİ GİRİŞİ'!E58) ->  | P40: =IF('BİLGİ GİRİŞİ'!W58="","",'BİLGİ GİRİŞİ'!W58) ->  | T40: =IF('BİLGİ GİRİŞİ'!T58="","",'BİLGİ GİRİŞİ'!T58) ->  | X40: =IF('BİLGİ GİRİŞİ'!AB165="","",'BİLGİ GİRİŞİ'!AB165) ->  | AB40: =IF('BİLGİ GİRİŞİ'!AF165="","",'BİLGİ GİRİŞİ'!AF165) ->  | AF40: =IF('BİLGİ GİRİŞİ'!AJ165="","",'BİLGİ GİRİŞİ'!AJ165) ->  | AJ40: =IF('BİLGİ GİRİŞİ'!AN165="","",'BİLGİ GİRİŞİ'!AN165) ->  | AN40: =IF('BİLGİ GİRİŞİ'!AR165="","",'BİLGİ GİRİŞİ'!AR165) ->  | AR40: =IF('BİLGİ GİRİŞİ'!AV165="","",'BİLGİ GİRİŞİ'!AV165) -> 
A41: =IF('BİLGİ GİRİŞİ'!D59="","",'BİLGİ GİRİŞİ'!D59) ->  | B41: =IF('BİLGİ GİRİŞİ'!E59="","",'BİLGİ GİRİŞİ'!E59) ->  | P41: =IF('BİLGİ GİRİŞİ'!W59="","",'BİLGİ GİRİŞİ'!W59) ->  | T41: =IF('BİLGİ GİRİŞİ'!T59="","",'BİLGİ GİRİŞİ'!T59) ->  | X41: =IF('BİLGİ GİRİŞİ'!AB166="","",'BİLGİ GİRİŞİ'!AB166) ->  | AB41: =IF('BİLGİ GİRİŞİ'!AF166="","",'BİLGİ GİRİŞİ'!AF166) ->  | AF41: =IF('BİLGİ GİRİŞİ'!AJ166="","",'BİLGİ GİRİŞİ'!AJ166) ->  | AJ41: =IF('BİLGİ GİRİŞİ'!AN166="","",'BİLGİ GİRİŞİ'!AN166) ->  | AN41: =IF('BİLGİ GİRİŞİ'!AR166="","",'BİLGİ GİRİŞİ'!AR166) ->  | AR41: =IF('BİLGİ GİRİŞİ'!AV166="","",'BİLGİ GİRİŞİ'!AV166) -> 
A42: =IF('BİLGİ GİRİŞİ'!D60="","",'BİLGİ GİRİŞİ'!D60) ->  | B42: =IF('BİLGİ GİRİŞİ'!E60="","",'BİLGİ GİRİŞİ'!E60) ->  | P42: =IF('BİLGİ GİRİŞİ'!W60="","",'BİLGİ GİRİŞİ'!W60) ->  | T42: =IF('BİLGİ GİRİŞİ'!T60="","",'BİLGİ GİRİŞİ'!T60) ->  | X42: =IF('BİLGİ GİRİŞİ'!AB167="","",'BİLGİ GİRİŞİ'!AB167) ->  | AB42: =IF('BİLGİ GİRİŞİ'!AF167="","",'BİLGİ GİRİŞİ'!AF167) ->  | AF42: =IF('BİLGİ GİRİŞİ'!AJ167="","",'BİLGİ GİRİŞİ'!AJ167) ->  | AJ42: =IF('BİLGİ GİRİŞİ'!AN167="","",'BİLGİ GİRİŞİ'!AN167) ->  | AN42: =IF('BİLGİ GİRİŞİ'!AR167="","",'BİLGİ GİRİŞİ'!AR167) ->  | AR42: =IF('BİLGİ GİRİŞİ'!AV167="","",'BİLGİ GİRİŞİ'!AV167) -> 
A43: =IF('BİLGİ GİRİŞİ'!D61="","",'BİLGİ GİRİŞİ'!D61) ->  | B43: =IF('BİLGİ GİRİŞİ'!E61="","",'BİLGİ GİRİŞİ'!E61) ->  | P43: =IF('BİLGİ GİRİŞİ'!W61="","",'BİLGİ GİRİŞİ'!W61) ->  | T43: =IF('BİLGİ GİRİŞİ'!T61="","",'BİLGİ GİRİŞİ'!T61) ->  | X43: =IF('BİLGİ GİRİŞİ'!AB168="","",'BİLGİ GİRİŞİ'!AB168) ->  | AB43: =IF('BİLGİ GİRİŞİ'!AF168="","",'BİLGİ GİRİŞİ'!AF168) ->  | AF43: =IF('BİLGİ GİRİŞİ'!AJ168="","",'BİLGİ GİRİŞİ'!AJ168) ->  | AJ43: =IF('BİLGİ GİRİŞİ'!AN168="","",'BİLGİ GİRİŞİ'!AN168) ->  | AN43: =IF('BİLGİ GİRİŞİ'!AR168="","",'BİLGİ GİRİŞİ'!AR168) ->  | AR43: =IF('BİLGİ GİRİŞİ'!AV168="","",'BİLGİ GİRİŞİ'!AV168) -> 
A44: =IF('BİLGİ GİRİŞİ'!D62="","",'BİLGİ GİRİŞİ'!D62) ->  | B44: =IF('BİLGİ GİRİŞİ'!E62="","",'BİLGİ GİRİŞİ'!E62) ->  | P44: =IF('BİLGİ GİRİŞİ'!W62="","",'BİLGİ GİRİŞİ'!W62) ->  | T44: =IF('BİLGİ GİRİŞİ'!T62="","",'BİLGİ GİRİŞİ'!T62) ->  | X44: =IF('BİLGİ GİRİŞİ'!AB169="","",'BİLGİ GİRİŞİ'!AB169) ->  | AB44: =IF('BİLGİ GİRİŞİ'!AF169="","",'BİLGİ GİRİŞİ'!AF169) ->  | AF44: =IF('BİLGİ GİRİŞİ'!AJ169="","",'BİLGİ GİRİŞİ'!AJ169) ->  | AJ44: =IF('BİLGİ GİRİŞİ'!AN169="","",'BİLGİ GİRİŞİ'!AN169) ->  | AN44: =IF('BİLGİ GİRİŞİ'!AR169="","",'BİLGİ GİRİŞİ'!AR169) ->  | AR44: =IF('BİLGİ GİRİŞİ'!AV169="","",'BİLGİ GİRİŞİ'!AV169) -> 
A45: =IF('BİLGİ GİRİŞİ'!D63="","",'BİLGİ GİRİŞİ'!D63) ->  | B45: =IF('BİLGİ GİRİŞİ'!E63="","",'BİLGİ GİRİŞİ'!E63) ->  | P45: =IF('BİLGİ GİRİŞİ'!W63="","",'BİLGİ GİRİŞİ'!W63) ->  | T45: =IF('BİLGİ GİRİŞİ'!T63="","",'BİLGİ GİRİŞİ'!T63) ->  | X45: =IF('BİLGİ GİRİŞİ'!AB170="","",'BİLGİ GİRİŞİ'!AB170) ->  | AB45: =IF('BİLGİ GİRİŞİ'!AF170="","",'BİLGİ GİRİŞİ'!AF170) ->  | AF45: =IF('BİLGİ GİRİŞİ'!AJ170="","",'BİLGİ GİRİŞİ'!AJ170) ->  | AJ45: =IF('BİLGİ GİRİŞİ'!AN170="","",'BİLGİ GİRİŞİ'!AN170) ->  | AN45: =IF('BİLGİ GİRİŞİ'!AR170="","",'BİLGİ GİRİŞİ'!AR170) ->  | AR45: =IF('BİLGİ GİRİŞİ'!AV170="","",'BİLGİ GİRİŞİ'!AV170) -> 
A46: =IF('BİLGİ GİRİŞİ'!D64="","",'BİLGİ GİRİŞİ'!D64) ->  | B46: =IF('BİLGİ GİRİŞİ'!E64="","",'BİLGİ GİRİŞİ'!E64) ->  | P46: =IF('BİLGİ GİRİŞİ'!W64="","",'BİLGİ GİRİŞİ'!W64) ->  | T46: =IF('BİLGİ GİRİŞİ'!T64="","",'BİLGİ GİRİŞİ'!T64) ->  | X46: =IF('BİLGİ GİRİŞİ'!AB171="","",'BİLGİ GİRİŞİ'!AB171) ->  | AB46: =IF('BİLGİ GİRİŞİ'!AF171="","",'BİLGİ GİRİŞİ'!AF171) ->  | AF46: =IF('BİLGİ GİRİŞİ'!AJ171="","",'BİLGİ GİRİŞİ'!AJ171) ->  | AJ46: =IF('BİLGİ GİRİŞİ'!AN171="","",'BİLGİ GİRİŞİ'!AN171) ->  | AN46: =IF('BİLGİ GİRİŞİ'!AR171="","",'BİLGİ GİRİŞİ'!AR171) ->  | AR46: =IF('BİLGİ GİRİŞİ'!AV171="","",'BİLGİ GİRİŞİ'!AV171) -> 
A47: =IF('BİLGİ GİRİŞİ'!D65="","",'BİLGİ GİRİŞİ'!D65) ->  | B47: =IF('BİLGİ GİRİŞİ'!E65="","",'BİLGİ GİRİŞİ'!E65) ->  | P47: =IF('BİLGİ GİRİŞİ'!W65="","",'BİLGİ GİRİŞİ'!W65) ->  | T47: =IF('BİLGİ GİRİŞİ'!T65="","",'BİLGİ GİRİŞİ'!T65) ->  | X47: =IF('BİLGİ GİRİŞİ'!AB172="","",'BİLGİ GİRİŞİ'!AB172) ->  | AB47: =IF('BİLGİ GİRİŞİ'!AF172="","",'BİLGİ GİRİŞİ'!AF172) ->  | AF47: =IF('BİLGİ GİRİŞİ'!AJ172="","",'BİLGİ GİRİŞİ'!AJ172) ->  | AJ47: =IF('BİLGİ GİRİŞİ'!AN172="","",'BİLGİ GİRİŞİ'!AN172) ->  | AN47: =IF('BİLGİ GİRİŞİ'!AR172="","",'BİLGİ GİRİŞİ'!AR172) ->  | AR47: =IF('BİLGİ GİRİŞİ'!AV172="","",'BİLGİ GİRİŞİ'!AV172) -> 
A48: =IF('BİLGİ GİRİŞİ'!D66="","",'BİLGİ GİRİŞİ'!D66) ->  | B48: =IF('BİLGİ GİRİŞİ'!E66="","",'BİLGİ GİRİŞİ'!E66) ->  | P48: =IF('BİLGİ GİRİŞİ'!W66="","",'BİLGİ GİRİŞİ'!W66) ->  | T48: =IF('BİLGİ GİRİŞİ'!T66="","",'BİLGİ GİRİŞİ'!T66) ->  | X48: =IF('BİLGİ GİRİŞİ'!AB173="","",'BİLGİ GİRİŞİ'!AB173) ->  | AB48: =IF('BİLGİ GİRİŞİ'!AF173="","",'BİLGİ GİRİŞİ'!AF173) ->  | AF48: =IF('BİLGİ GİRİŞİ'!AJ173="","",'BİLGİ GİRİŞİ'!AJ173) ->  | AJ48: =IF('BİLGİ GİRİŞİ'!AN173="","",'BİLGİ GİRİŞİ'!AN173) ->  | AN48: =IF('BİLGİ GİRİŞİ'!AR173="","",'BİLGİ GİRİŞİ'!AR173) ->  | AR48: =IF('BİLGİ GİRİŞİ'!AV173="","",'BİLGİ GİRİŞİ'!AV173) -> 
A49: =IF('BİLGİ GİRİŞİ'!D67="","",'BİLGİ GİRİŞİ'!D67) ->  | B49: =IF('BİLGİ GİRİŞİ'!E67="","",'BİLGİ GİRİŞİ'!E67) ->  | P49: =IF('BİLGİ GİRİŞİ'!W67="","",'BİLGİ GİRİŞİ'!W67) ->  | T49: =IF('BİLGİ GİRİŞİ'!T67="","",'BİLGİ GİRİŞİ'!T67) ->  | X49: =IF('BİLGİ GİRİŞİ'!AB174="","",'BİLGİ GİRİŞİ'!AB174) ->  | AB49: =IF('BİLGİ GİRİŞİ'!AF174="","",'BİLGİ GİRİŞİ'!AF174) ->  | AF49: =IF('BİLGİ GİRİŞİ'!AJ174="","",'BİLGİ GİRİŞİ'!AJ174) ->  | AJ49: =IF('BİLGİ GİRİŞİ'!AN174="","",'BİLGİ GİRİŞİ'!AN174) ->  | AN49: =IF('BİLGİ GİRİŞİ'!AR174="","",'BİLGİ GİRİŞİ'!AR174) ->  | AR49: =IF('BİLGİ GİRİŞİ'!AV174="","",'BİLGİ GİRİŞİ'!AV174) -> 
A50: =IF('BİLGİ GİRİŞİ'!D68="","",'BİLGİ GİRİŞİ'!D68) ->  | B50: =IF('BİLGİ GİRİŞİ'!E68="","",'BİLGİ GİRİŞİ'!E68) ->  | P50: =IF('BİLGİ GİRİŞİ'!W68="","",'BİLGİ GİRİŞİ'!W68) ->  | T50: =IF('BİLGİ GİRİŞİ'!T68="","",'BİLGİ GİRİŞİ'!T68) ->  | X50: =IF('BİLGİ GİRİŞİ'!AB175="","",'BİLGİ GİRİŞİ'!AB175) ->  | AB50: =IF('BİLGİ GİRİŞİ'!AF175="","",'BİLGİ GİRİŞİ'!AF175) ->  | AF50: =IF('BİLGİ GİRİŞİ'!AJ175="","",'BİLGİ GİRİŞİ'!AJ175) ->  | AJ50: =IF('BİLGİ GİRİŞİ'!AN175="","",'BİLGİ GİRİŞİ'!AN175) ->  | AN50: =IF('BİLGİ GİRİŞİ'!AR175="","",'BİLGİ GİRİŞİ'!AR175) ->  | AR50: =IF('BİLGİ GİRİŞİ'!AV175="","",'BİLGİ GİRİŞİ'!AV175) -> 
A51: =IF('BİLGİ GİRİŞİ'!D69="","",'BİLGİ GİRİŞİ'!D69) ->  | B51: =IF('BİLGİ GİRİŞİ'!E69="","",'BİLGİ GİRİŞİ'!E69) ->  | P51: =IF('BİLGİ GİRİŞİ'!W69="","",'BİLGİ GİRİŞİ'!W69) ->  | T51: =IF('BİLGİ GİRİŞİ'!T69="","",'BİLGİ GİRİŞİ'!T69) ->  | X51: =IF('BİLGİ GİRİŞİ'!AB176="","",'BİLGİ GİRİŞİ'!AB176) ->  | AB51: =IF('BİLGİ GİRİŞİ'!AF176="","",'BİLGİ GİRİŞİ'!AF176) ->  | AF51: =IF('BİLGİ GİRİŞİ'!AJ176="","",'BİLGİ GİRİŞİ'!AJ176) ->  | AJ51: =IF('BİLGİ GİRİŞİ'!AN176="","",'BİLGİ GİRİŞİ'!AN176) ->  | AN51: =IF('BİLGİ GİRİŞİ'!AR176="","",'BİLGİ GİRİŞİ'!AR176) ->  | AR51: =IF('BİLGİ GİRİŞİ'!AV176="","",'BİLGİ GİRİŞİ'!AV176) -> 
A52: =IF('BİLGİ GİRİŞİ'!D70="","",'BİLGİ GİRİŞİ'!D70) ->  | B52: =IF('BİLGİ GİRİŞİ'!E70="","",'BİLGİ GİRİŞİ'!E70) ->  | P52: =IF('BİLGİ GİRİŞİ'!W70="","",'BİLGİ GİRİŞİ'!W70) ->  | T52: =IF('BİLGİ GİRİŞİ'!T70="","",'BİLGİ GİRİŞİ'!T70) ->  | X52: =IF('BİLGİ GİRİŞİ'!AB177="","",'BİLGİ GİRİŞİ'!AB177) ->  | AB52: =IF('BİLGİ GİRİŞİ'!AF177="","",'BİLGİ GİRİŞİ'!AF177) ->  | AF52: =IF('BİLGİ GİRİŞİ'!AJ177="","",'BİLGİ GİRİŞİ'!AJ177) ->  | AJ52: =IF('BİLGİ GİRİŞİ'!AN177="","",'BİLGİ GİRİŞİ'!AN177) ->  | AN52: =IF('BİLGİ GİRİŞİ'!AR177="","",'BİLGİ GİRİŞİ'!AR177) ->  | AR52: =IF('BİLGİ GİRİŞİ'!AV177="","",'BİLGİ GİRİŞİ'!AV177) -> 
A53: =IF('BİLGİ GİRİŞİ'!D71="","",'BİLGİ GİRİŞİ'!D71) ->  | B53: =IF('BİLGİ GİRİŞİ'!E71="","",'BİLGİ GİRİŞİ'!E71) ->  | P53: =IF('BİLGİ GİRİŞİ'!W71="","",'BİLGİ GİRİŞİ'!W71) ->  | T53: =IF('BİLGİ GİRİŞİ'!T71="","",'BİLGİ GİRİŞİ'!T71) ->  | X53: =IF('BİLGİ GİRİŞİ'!AB178="","",'BİLGİ GİRİŞİ'!AB178) ->  | AB53: =IF('BİLGİ GİRİŞİ'!AF178="","",'BİLGİ GİRİŞİ'!AF178) ->  | AF53: =IF('BİLGİ GİRİŞİ'!AJ178="","",'BİLGİ GİRİŞİ'!AJ178) ->  | AJ53: =IF('BİLGİ GİRİŞİ'!AN178="","",'BİLGİ GİRİŞİ'!AN178) ->  | AN53: =IF('BİLGİ GİRİŞİ'!AR178="","",'BİLGİ GİRİŞİ'!AR178) ->  | AR53: =IF('BİLGİ GİRİŞİ'!AV178="","",'BİLGİ GİRİŞİ'!AV178) -> 
A54: =IF('BİLGİ GİRİŞİ'!D72="","",'BİLGİ GİRİŞİ'!D72) ->  | B54: =IF('BİLGİ GİRİŞİ'!E72="","",'BİLGİ GİRİŞİ'!E72) ->  | P54: =IF('BİLGİ GİRİŞİ'!W72="","",'BİLGİ GİRİŞİ'!W72) ->  | T54: =IF('BİLGİ GİRİŞİ'!T72="","",'BİLGİ GİRİŞİ'!T72) ->  | X54: =IF('BİLGİ GİRİŞİ'!AB179="","",'BİLGİ GİRİŞİ'!AB179) ->  | AB54: =IF('BİLGİ GİRİŞİ'!AF179="","",'BİLGİ GİRİŞİ'!AF179) ->  | AF54: =IF('BİLGİ GİRİŞİ'!AJ179="","",'BİLGİ GİRİŞİ'!AJ179) ->  | AJ54: =IF('BİLGİ GİRİŞİ'!AN179="","",'BİLGİ GİRİŞİ'!AN179) ->  | AN54: =IF('BİLGİ GİRİŞİ'!AR179="","",'BİLGİ GİRİŞİ'!AR179) ->  | AR54: =IF('BİLGİ GİRİŞİ'!AV179="","",'BİLGİ GİRİŞİ'!AV179) -> 
A55: =IF('BİLGİ GİRİŞİ'!D73="","",'BİLGİ GİRİŞİ'!D73) ->  | B55: =IF('BİLGİ GİRİŞİ'!E73="","",'BİLGİ GİRİŞİ'!E73) ->  | P55: =IF('BİLGİ GİRİŞİ'!W73="","",'BİLGİ GİRİŞİ'!W73) ->  | T55: =IF('BİLGİ GİRİŞİ'!T73="","",'BİLGİ GİRİŞİ'!T73) ->  | X55: =IF('BİLGİ GİRİŞİ'!AB180="","",'BİLGİ GİRİŞİ'!AB180) ->  | AB55: =IF('BİLGİ GİRİŞİ'!AF180="","",'BİLGİ GİRİŞİ'!AF180) ->  | AF55: =IF('BİLGİ GİRİŞİ'!AJ180="","",'BİLGİ GİRİŞİ'!AJ180) ->  | AJ55: =IF('BİLGİ GİRİŞİ'!AN180="","",'BİLGİ GİRİŞİ'!AN180) ->  | AN55: =IF('BİLGİ GİRİŞİ'!AR180="","",'BİLGİ GİRİŞİ'!AR180) ->  | AR55: =IF('BİLGİ GİRİŞİ'!AV180="","",'BİLGİ GİRİŞİ'!AV180) -> 
A56: =IF('BİLGİ GİRİŞİ'!D74="","",'BİLGİ GİRİŞİ'!D74) ->  | B56: =IF('BİLGİ GİRİŞİ'!E74="","",'BİLGİ GİRİŞİ'!E74) ->  | P56: =IF('BİLGİ GİRİŞİ'!W74="","",'BİLGİ GİRİŞİ'!W74) ->  | T56: =IF('BİLGİ GİRİŞİ'!T74="","",'BİLGİ GİRİŞİ'!T74) ->  | X56: =IF('BİLGİ GİRİŞİ'!AB181="","",'BİLGİ GİRİŞİ'!AB181) ->  | AB56: =IF('BİLGİ GİRİŞİ'!AF181="","",'BİLGİ GİRİŞİ'!AF181) ->  | AF56: =IF('BİLGİ GİRİŞİ'!AJ181="","",'BİLGİ GİRİŞİ'!AJ181) ->  | AJ56: =IF('BİLGİ GİRİŞİ'!AN181="","",'BİLGİ GİRİŞİ'!AN181) ->  | AN56: =IF('BİLGİ GİRİŞİ'!AR181="","",'BİLGİ GİRİŞİ'!AR181) ->  | AR56: =IF('BİLGİ GİRİŞİ'!AV181="","",'BİLGİ GİRİŞİ'!AV181) -> 
A57: =IF('BİLGİ GİRİŞİ'!D75="","",'BİLGİ GİRİŞİ'!D75) ->  | B57: =IF('BİLGİ GİRİŞİ'!E75="","",'BİLGİ GİRİŞİ'!E75) ->  | P57: =IF('BİLGİ GİRİŞİ'!W75="","",'BİLGİ GİRİŞİ'!W75) ->  | T57: =IF('BİLGİ GİRİŞİ'!T75="","",'BİLGİ GİRİŞİ'!T75) ->  | X57: =IF('BİLGİ GİRİŞİ'!AB182="","",'BİLGİ GİRİŞİ'!AB182) ->  | AB57: =IF('BİLGİ GİRİŞİ'!AF182="","",'BİLGİ GİRİŞİ'!AF182) ->  | AF57: =IF('BİLGİ GİRİŞİ'!AJ182="","",'BİLGİ GİRİŞİ'!AJ182) ->  | AJ57: =IF('BİLGİ GİRİŞİ'!AN182="","",'BİLGİ GİRİŞİ'!AN182) ->  | AN57: =IF('BİLGİ GİRİŞİ'!AR182="","",'BİLGİ GİRİŞİ'!AR182) ->  | AR57: =IF('BİLGİ GİRİŞİ'!AV182="","",'BİLGİ GİRİŞİ'!AV182) -> 
A58: =IF('BİLGİ GİRİŞİ'!D76="","",'BİLGİ GİRİŞİ'!D76) ->  | B58: =IF('BİLGİ GİRİŞİ'!E76="","",'BİLGİ GİRİŞİ'!E76) ->  | P58: =IF('BİLGİ GİRİŞİ'!W76="","",'BİLGİ GİRİŞİ'!W76) ->  | T58: =IF('BİLGİ GİRİŞİ'!T76="","",'BİLGİ GİRİŞİ'!T76) ->  | X58: =IF('BİLGİ GİRİŞİ'!AB183="","",'BİLGİ GİRİŞİ'!AB183) ->  | AB58: =IF('BİLGİ GİRİŞİ'!AF183="","",'BİLGİ GİRİŞİ'!AF183) ->  | AF58: =IF('BİLGİ GİRİŞİ'!AJ183="","",'BİLGİ GİRİŞİ'!AJ183) ->  | AJ58: =IF('BİLGİ GİRİŞİ'!AN183="","",'BİLGİ GİRİŞİ'!AN183) ->  | AN58: =IF('BİLGİ GİRİŞİ'!AR183="","",'BİLGİ GİRİŞİ'!AR183) ->  | AR58: =IF('BİLGİ GİRİŞİ'!AV183="","",'BİLGİ GİRİŞİ'!AV183) -> 
A59: =IF('BİLGİ GİRİŞİ'!D77="","",'BİLGİ GİRİŞİ'!D77) ->  | B59: =IF('BİLGİ GİRİŞİ'!E77="","",'BİLGİ GİRİŞİ'!E77) ->  | P59: =IF('BİLGİ GİRİŞİ'!W77="","",'BİLGİ GİRİŞİ'!W77) ->  | T59: =IF('BİLGİ GİRİŞİ'!T77="","",'BİLGİ GİRİŞİ'!T77) ->  | X59: =IF('BİLGİ GİRİŞİ'!AB184="","",'BİLGİ GİRİŞİ'!AB184) ->  | AB59: =IF('BİLGİ GİRİŞİ'!AF184="","",'BİLGİ GİRİŞİ'!AF184) ->  | AF59: =IF('BİLGİ GİRİŞİ'!AJ184="","",'BİLGİ GİRİŞİ'!AJ184) ->  | AJ59: =IF('BİLGİ GİRİŞİ'!AN184="","",'BİLGİ GİRİŞİ'!AN184) ->  | AN59: =IF('BİLGİ GİRİŞİ'!AR184="","",'BİLGİ GİRİŞİ'!AR184) ->  | AR59: =IF('BİLGİ GİRİŞİ'!AV184="","",'BİLGİ GİRİŞİ'!AV184) -> 
A60: =IF('BİLGİ GİRİŞİ'!D78="","",'BİLGİ GİRİŞİ'!D78) ->  | B60: =IF('BİLGİ GİRİŞİ'!E78="","",'BİLGİ GİRİŞİ'!E78) ->  | P60: =IF('BİLGİ GİRİŞİ'!W78="","",'BİLGİ GİRİŞİ'!W78) ->  | T60: =IF('BİLGİ GİRİŞİ'!T78="","",'BİLGİ GİRİŞİ'!T78) ->  | X60: =IF('BİLGİ GİRİŞİ'!AB185="","",'BİLGİ GİRİŞİ'!AB185) ->  | AB60: =IF('BİLGİ GİRİŞİ'!AF185="","",'BİLGİ GİRİŞİ'!AF185) ->  | AF60: =IF('BİLGİ GİRİŞİ'!AJ185="","",'BİLGİ GİRİŞİ'!AJ185) ->  | AJ60: =IF('BİLGİ GİRİŞİ'!AN185="","",'BİLGİ GİRİŞİ'!AN185) ->  | AN60: =IF('BİLGİ GİRİŞİ'!AR185="","",'BİLGİ GİRİŞİ'!AR185) ->  | AR60: =IF('BİLGİ GİRİŞİ'!AV185="","",'BİLGİ GİRİŞİ'!AV185) -> 
A61: =IF('BİLGİ GİRİŞİ'!D79="","",'BİLGİ GİRİŞİ'!D79) ->  | B61: =IF('BİLGİ GİRİŞİ'!E79="","",'BİLGİ GİRİŞİ'!E79) ->  | P61: =IF('BİLGİ GİRİŞİ'!W79="","",'BİLGİ GİRİŞİ'!W79) ->  | T61: =IF('BİLGİ GİRİŞİ'!T79="","",'BİLGİ GİRİŞİ'!T79) ->  | X61: =IF('BİLGİ GİRİŞİ'!AB186="","",'BİLGİ GİRİŞİ'!AB186) ->  | AB61: =IF('BİLGİ GİRİŞİ'!AF186="","",'BİLGİ GİRİŞİ'!AF186) ->  | AF61: =IF('BİLGİ GİRİŞİ'!AJ186="","",'BİLGİ GİRİŞİ'!AJ186) ->  | AJ61: =IF('BİLGİ GİRİŞİ'!AN186="","",'BİLGİ GİRİŞİ'!AN186) ->  | AN61: =IF('BİLGİ GİRİŞİ'!AR186="","",'BİLGİ GİRİŞİ'!AR186) ->  | AR61: =IF('BİLGİ GİRİŞİ'!AV186="","",'BİLGİ GİRİŞİ'!AV186) -> 
A62: =IF('BİLGİ GİRİŞİ'!D80="","",'BİLGİ GİRİŞİ'!D80) ->  | B62: =IF('BİLGİ GİRİŞİ'!E80="","",'BİLGİ GİRİŞİ'!E80) ->  | P62: =IF('BİLGİ GİRİŞİ'!W80="","",'BİLGİ GİRİŞİ'!W80) ->  | T62: =IF('BİLGİ GİRİŞİ'!T80="","",'BİLGİ GİRİŞİ'!T80) ->  | X62: =IF('BİLGİ GİRİŞİ'!AB187="","",'BİLGİ GİRİŞİ'!AB187) ->  | AB62: =IF('BİLGİ GİRİŞİ'!AF187="","",'BİLGİ GİRİŞİ'!AF187) ->  | AF62: =IF('BİLGİ GİRİŞİ'!AJ187="","",'BİLGİ GİRİŞİ'!AJ187) ->  | AJ62: =IF('BİLGİ GİRİŞİ'!AN187="","",'BİLGİ GİRİŞİ'!AN187) ->  | AN62: =IF('BİLGİ GİRİŞİ'!AR187="","",'BİLGİ GİRİŞİ'!AR187) ->  | AR62: =IF('BİLGİ GİRİŞİ'!AV187="","",'BİLGİ GİRİŞİ'!AV187) -> 
A63: =IF('BİLGİ GİRİŞİ'!D81="","",'BİLGİ GİRİŞİ'!D81) ->  | B63: =IF('BİLGİ GİRİŞİ'!E81="","",'BİLGİ GİRİŞİ'!E81) ->  | P63: =IF('BİLGİ GİRİŞİ'!W81="","",'BİLGİ GİRİŞİ'!W81) ->  | T63: =IF('BİLGİ GİRİŞİ'!T81="","",'BİLGİ GİRİŞİ'!T81) ->  | X63: =IF('BİLGİ GİRİŞİ'!AB188="","",'BİLGİ GİRİŞİ'!AB188) ->  | AB63: =IF('BİLGİ GİRİŞİ'!AF188="","",'BİLGİ GİRİŞİ'!AF188) ->  | AF63: =IF('BİLGİ GİRİŞİ'!AJ188="","",'BİLGİ GİRİŞİ'!AJ188) ->  | AJ63: =IF('BİLGİ GİRİŞİ'!AN188="","",'BİLGİ GİRİŞİ'!AN188) ->  | AN63: =IF('BİLGİ GİRİŞİ'!AR188="","",'BİLGİ GİRİŞİ'!AR188) ->  | AR63: =IF('BİLGİ GİRİŞİ'!AV188="","",'BİLGİ GİRİŞİ'!AV188) -> 
A64: =IF('BİLGİ GİRİŞİ'!D82="","",'BİLGİ GİRİŞİ'!D82) ->  | B64: =IF('BİLGİ GİRİŞİ'!E82="","",'BİLGİ GİRİŞİ'!E82) ->  | P64: =IF('BİLGİ GİRİŞİ'!W82="","",'BİLGİ GİRİŞİ'!W82) ->  | T64: =IF('BİLGİ GİRİŞİ'!T82="","",'BİLGİ GİRİŞİ'!T82) ->  | X64: =IF('BİLGİ GİRİŞİ'!AB189="","",'BİLGİ GİRİŞİ'!AB189) ->  | AB64: =IF('BİLGİ GİRİŞİ'!AF189="","",'BİLGİ GİRİŞİ'!AF189) ->  | AF64: =IF('BİLGİ GİRİŞİ'!AJ189="","",'BİLGİ GİRİŞİ'!AJ189) ->  | AJ64: =IF('BİLGİ GİRİŞİ'!AN189="","",'BİLGİ GİRİŞİ'!AN189) ->  | AN64: =IF('BİLGİ GİRİŞİ'!AR189="","",'BİLGİ GİRİŞİ'!AR189) ->  | AR64: =IF('BİLGİ GİRİŞİ'!AV189="","",'BİLGİ GİRİŞİ'!AV189) -> 
A65: =IF('BİLGİ GİRİŞİ'!D83="","",'BİLGİ GİRİŞİ'!D83) ->  | B65: =IF('BİLGİ GİRİŞİ'!E83="","",'BİLGİ GİRİŞİ'!E83) ->  | P65: =IF('BİLGİ GİRİŞİ'!W83="","",'BİLGİ GİRİŞİ'!W83) ->  | T65: =IF('BİLGİ GİRİŞİ'!T83="","",'BİLGİ GİRİŞİ'!T83) ->  | X65: =IF('BİLGİ GİRİŞİ'!AB190="","",'BİLGİ GİRİŞİ'!AB190) ->  | AB65: =IF('BİLGİ GİRİŞİ'!AF190="","",'BİLGİ GİRİŞİ'!AF190) ->  | AF65: =IF('BİLGİ GİRİŞİ'!AJ190="","",'BİLGİ GİRİŞİ'!AJ190) ->  | AJ65: =IF('BİLGİ GİRİŞİ'!AN190="","",'BİLGİ GİRİŞİ'!AN190) ->  | AN65: =IF('BİLGİ GİRİŞİ'!AR190="","",'BİLGİ GİRİŞİ'!AR190) ->  | AR65: =IF('BİLGİ GİRİŞİ'!AV190="","",'BİLGİ GİRİŞİ'!AV190) -> 
A66: =IF('BİLGİ GİRİŞİ'!D84="","",'BİLGİ GİRİŞİ'!D84) ->  | B66: =IF('BİLGİ GİRİŞİ'!E84="","",'BİLGİ GİRİŞİ'!E84) ->  | P66: =IF('BİLGİ GİRİŞİ'!W84="","",'BİLGİ GİRİŞİ'!W84) ->  | T66: =IF('BİLGİ GİRİŞİ'!T84="","",'BİLGİ GİRİŞİ'!T84) ->  | X66: =IF('BİLGİ GİRİŞİ'!AB191="","",'BİLGİ GİRİŞİ'!AB191) ->  | AB66: =IF('BİLGİ GİRİŞİ'!AF191="","",'BİLGİ GİRİŞİ'!AF191) ->  | AF66: =IF('BİLGİ GİRİŞİ'!AJ191="","",'BİLGİ GİRİŞİ'!AJ191) ->  | AJ66: =IF('BİLGİ GİRİŞİ'!AN191="","",'BİLGİ GİRİŞİ'!AN191) ->  | AN66: =IF('BİLGİ GİRİŞİ'!AR191="","",'BİLGİ GİRİŞİ'!AR191) ->  | AR66: =IF('BİLGİ GİRİŞİ'!AV191="","",'BİLGİ GİRİŞİ'!AV191) -> 
A67: =IF('BİLGİ GİRİŞİ'!D85="","",'BİLGİ GİRİŞİ'!D85) ->  | B67: =IF('BİLGİ GİRİŞİ'!E85="","",'BİLGİ GİRİŞİ'!E85) ->  | P67: =IF('BİLGİ GİRİŞİ'!W85="","",'BİLGİ GİRİŞİ'!W85) ->  | T67: =IF('BİLGİ GİRİŞİ'!T85="","",'BİLGİ GİRİŞİ'!T85) ->  | X67: =IF('BİLGİ GİRİŞİ'!AB192="","",'BİLGİ GİRİŞİ'!AB192) ->  | AB67: =IF('BİLGİ GİRİŞİ'!AF192="","",'BİLGİ GİRİŞİ'!AF192) ->  | AF67: =IF('BİLGİ GİRİŞİ'!AJ192="","",'BİLGİ GİRİŞİ'!AJ192) ->  | AJ67: =IF('BİLGİ GİRİŞİ'!AN192="","",'BİLGİ GİRİŞİ'!AN192) ->  | AN67: =IF('BİLGİ GİRİŞİ'!AR192="","",'BİLGİ GİRİŞİ'!AR192) ->  | AR67: =IF('BİLGİ GİRİŞİ'!AV192="","",'BİLGİ GİRİŞİ'!AV192) -> 
A68: =IF('BİLGİ GİRİŞİ'!D86="","",'BİLGİ GİRİŞİ'!D86) ->  | B68: =IF('BİLGİ GİRİŞİ'!E86="","",'BİLGİ GİRİŞİ'!E86) ->  | P68: =IF('BİLGİ GİRİŞİ'!W86="","",'BİLGİ GİRİŞİ'!W86) ->  | T68: =IF('BİLGİ GİRİŞİ'!T86="","",'BİLGİ GİRİŞİ'!T86) ->  | X68: =IF('BİLGİ GİRİŞİ'!AB193="","",'BİLGİ GİRİŞİ'!AB193) ->  | AB68: =IF('BİLGİ GİRİŞİ'!AF193="","",'BİLGİ GİRİŞİ'!AF193) ->  | AF68: =IF('BİLGİ GİRİŞİ'!AJ193="","",'BİLGİ GİRİŞİ'!AJ193) ->  | AJ68: =IF('BİLGİ GİRİŞİ'!AN193="","",'BİLGİ GİRİŞİ'!AN193) ->  | AN68: =IF('BİLGİ GİRİŞİ'!AR193="","",'BİLGİ GİRİŞİ'!AR193) ->  | AR68: =IF('BİLGİ GİRİŞİ'!AV193="","",'BİLGİ GİRİŞİ'!AV193) -> 
A69: =IF('BİLGİ GİRİŞİ'!D87="","",'BİLGİ GİRİŞİ'!D87) ->  | B69: =IF('BİLGİ GİRİŞİ'!E87="","",'BİLGİ GİRİŞİ'!E87) ->  | P69: =IF('BİLGİ GİRİŞİ'!W87="","",'BİLGİ GİRİŞİ'!W87) ->  | T69: =IF('BİLGİ GİRİŞİ'!T87="","",'BİLGİ GİRİŞİ'!T87) ->  | X69: =IF('BİLGİ GİRİŞİ'!AB194="","",'BİLGİ GİRİŞİ'!AB194) ->  | AB69: =IF('BİLGİ GİRİŞİ'!AF194="","",'BİLGİ GİRİŞİ'!AF194) ->  | AF69: =IF('BİLGİ GİRİŞİ'!AJ194="","",'BİLGİ GİRİŞİ'!AJ194) ->  | AJ69: =IF('BİLGİ GİRİŞİ'!AN194="","",'BİLGİ GİRİŞİ'!AN194) ->  | AN69: =IF('BİLGİ GİRİŞİ'!AR194="","",'BİLGİ GİRİŞİ'!AR194) ->  | AR69: =IF('BİLGİ GİRİŞİ'!AV194="","",'BİLGİ GİRİŞİ'!AV194) -> 
A70: =IF('BİLGİ GİRİŞİ'!D88="","",'BİLGİ GİRİŞİ'!D88) ->  | B70: =IF('BİLGİ GİRİŞİ'!E88="","",'BİLGİ GİRİŞİ'!E88) ->  | P70: =IF('BİLGİ GİRİŞİ'!W88="","",'BİLGİ GİRİŞİ'!W88) ->  | T70: =IF('BİLGİ GİRİŞİ'!T88="","",'BİLGİ GİRİŞİ'!T88) ->  | X70: =IF('BİLGİ GİRİŞİ'!AB195="","",'BİLGİ GİRİŞİ'!AB195) ->  | AB70: =IF('BİLGİ GİRİŞİ'!AF195="","",'BİLGİ GİRİŞİ'!AF195) ->  | AF70: =IF('BİLGİ GİRİŞİ'!AJ195="","",'BİLGİ GİRİŞİ'!AJ195) ->  | AJ70: =IF('BİLGİ GİRİŞİ'!AN195="","",'BİLGİ GİRİŞİ'!AN195) ->  | AN70: =IF('BİLGİ GİRİŞİ'!AR195="","",'BİLGİ GİRİŞİ'!AR195) ->  | AR70: =IF('BİLGİ GİRİŞİ'!AV195="","",'BİLGİ GİRİŞİ'!AV195) -> 
A71: =IF('BİLGİ GİRİŞİ'!D89="","",'BİLGİ GİRİŞİ'!D89) ->  | B71: =IF('BİLGİ GİRİŞİ'!E89="","",'BİLGİ GİRİŞİ'!E89) ->  | P71: =IF('BİLGİ GİRİŞİ'!W89="","",'BİLGİ GİRİŞİ'!W89) ->  | T71: =IF('BİLGİ GİRİŞİ'!T89="","",'BİLGİ GİRİŞİ'!T89) ->  | X71: =IF('BİLGİ GİRİŞİ'!AB196="","",'BİLGİ GİRİŞİ'!AB196) ->  | AB71: =IF('BİLGİ GİRİŞİ'!AF196="","",'BİLGİ GİRİŞİ'!AF196) ->  | AF71: =IF('BİLGİ GİRİŞİ'!AJ196="","",'BİLGİ GİRİŞİ'!AJ196) ->  | AJ71: =IF('BİLGİ GİRİŞİ'!AN196="","",'BİLGİ GİRİŞİ'!AN196) ->  | AN71: =IF('BİLGİ GİRİŞİ'!AR196="","",'BİLGİ GİRİŞİ'!AR196) ->  | AR71: =IF('BİLGİ GİRİŞİ'!AV196="","",'BİLGİ GİRİŞİ'!AV196) -> 
A72: =IF('BİLGİ GİRİŞİ'!D90="","",'BİLGİ GİRİŞİ'!D90) ->  | B72: =IF('BİLGİ GİRİŞİ'!E90="","",'BİLGİ GİRİŞİ'!E90) ->  | P72: =IF('BİLGİ GİRİŞİ'!W90="","",'BİLGİ GİRİŞİ'!W90) ->  | T72: =IF('BİLGİ GİRİŞİ'!T90="","",'BİLGİ GİRİŞİ'!T90) ->  | X72: =IF('BİLGİ GİRİŞİ'!AB197="","",'BİLGİ GİRİŞİ'!AB197) ->  | AB72: =IF('BİLGİ GİRİŞİ'!AF197="","",'BİLGİ GİRİŞİ'!AF197) ->  | AF72: =IF('BİLGİ GİRİŞİ'!AJ197="","",'BİLGİ GİRİŞİ'!AJ197) ->  | AJ72: =IF('BİLGİ GİRİŞİ'!AN197="","",'BİLGİ GİRİŞİ'!AN197) ->  | AN72: =IF('BİLGİ GİRİŞİ'!AR197="","",'BİLGİ GİRİŞİ'!AR197) ->  | AR72: =IF('BİLGİ GİRİŞİ'!AV197="","",'BİLGİ GİRİŞİ'!AV197) -> 
A73: =IF('BİLGİ GİRİŞİ'!D91="","",'BİLGİ GİRİŞİ'!D91) ->  | B73: =IF('BİLGİ GİRİŞİ'!E91="","",'BİLGİ GİRİŞİ'!E91) ->  | P73: =IF('BİLGİ GİRİŞİ'!W91="","",'BİLGİ GİRİŞİ'!W91) ->  | T73: =IF('BİLGİ GİRİŞİ'!T91="","",'BİLGİ GİRİŞİ'!T91) ->  | X73: =IF('BİLGİ GİRİŞİ'!AB198="","",'BİLGİ GİRİŞİ'!AB198) ->  | AB73: =IF('BİLGİ GİRİŞİ'!AF198="","",'BİLGİ GİRİŞİ'!AF198) ->  | AF73: =IF('BİLGİ GİRİŞİ'!AJ198="","",'BİLGİ GİRİŞİ'!AJ198) ->  | AJ73: =IF('BİLGİ GİRİŞİ'!AN198="","",'BİLGİ GİRİŞİ'!AN198) ->  | AN73: =IF('BİLGİ GİRİŞİ'!AR198="","",'BİLGİ GİRİŞİ'!AR198) ->  | AR73: =IF('BİLGİ GİRİŞİ'!AV198="","",'BİLGİ GİRİŞİ'!AV198) -> 
A74: =IF('BİLGİ GİRİŞİ'!D92="","",'BİLGİ GİRİŞİ'!D92) ->  | B74: =IF('BİLGİ GİRİŞİ'!E92="","",'BİLGİ GİRİŞİ'!E92) ->  | P74: =IF('BİLGİ GİRİŞİ'!W92="","",'BİLGİ GİRİŞİ'!W92) ->  | T74: =IF('BİLGİ GİRİŞİ'!T92="","",'BİLGİ GİRİŞİ'!T92) ->  | X74: =IF('BİLGİ GİRİŞİ'!AB199="","",'BİLGİ GİRİŞİ'!AB199) ->  | AB74: =IF('BİLGİ GİRİŞİ'!AF199="","",'BİLGİ GİRİŞİ'!AF199) ->  | AF74: =IF('BİLGİ GİRİŞİ'!AJ199="","",'BİLGİ GİRİŞİ'!AJ199) ->  | AJ74: =IF('BİLGİ GİRİŞİ'!AN199="","",'BİLGİ GİRİŞİ'!AN199) ->  | AN74: =IF('BİLGİ GİRİŞİ'!AR199="","",'BİLGİ GİRİŞİ'!AR199) ->  | AR74: =IF('BİLGİ GİRİŞİ'!AV199="","",'BİLGİ GİRİŞİ'!AV199) -> 
A75: =IF('BİLGİ GİRİŞİ'!D93="","",'BİLGİ GİRİŞİ'!D93) ->  | B75: =IF('BİLGİ GİRİŞİ'!E93="","",'BİLGİ GİRİŞİ'!E93) ->  | P75: =IF('BİLGİ GİRİŞİ'!W93="","",'BİLGİ GİRİŞİ'!W93) ->  | T75: =IF('BİLGİ GİRİŞİ'!T93="","",'BİLGİ GİRİŞİ'!T93) ->  | X75: =IF('BİLGİ GİRİŞİ'!AB200="","",'BİLGİ GİRİŞİ'!AB200) ->  | AB75: =IF('BİLGİ GİRİŞİ'!AF200="","",'BİLGİ GİRİŞİ'!AF200) ->  | AF75: =IF('BİLGİ GİRİŞİ'!AJ200="","",'BİLGİ GİRİŞİ'!AJ200) ->  | AJ75: =IF('BİLGİ GİRİŞİ'!AN200="","",'BİLGİ GİRİŞİ'!AN200) ->  | AN75: =IF('BİLGİ GİRİŞİ'!AR200="","",'BİLGİ GİRİŞİ'!AR200) ->  | AR75: =IF('BİLGİ GİRİŞİ'!AV200="","",'BİLGİ GİRİŞİ'!AV200) -> 
A76: =IF('BİLGİ GİRİŞİ'!D94="","",'BİLGİ GİRİŞİ'!D94) ->  | B76: =IF('BİLGİ GİRİŞİ'!E94="","",'BİLGİ GİRİŞİ'!E94) ->  | P76: =IF('BİLGİ GİRİŞİ'!W94="","",'BİLGİ GİRİŞİ'!W94) ->  | T76: =IF('BİLGİ GİRİŞİ'!T94="","",'BİLGİ GİRİŞİ'!T94) ->  | X76: =IF('BİLGİ GİRİŞİ'!AB201="","",'BİLGİ GİRİŞİ'!AB201) ->  | AB76: =IF('BİLGİ GİRİŞİ'!AF201="","",'BİLGİ GİRİŞİ'!AF201) ->  | AF76: =IF('BİLGİ GİRİŞİ'!AJ201="","",'BİLGİ GİRİŞİ'!AJ201) ->  | AJ76: =IF('BİLGİ GİRİŞİ'!AN201="","",'BİLGİ GİRİŞİ'!AN201) ->  | AN76: =IF('BİLGİ GİRİŞİ'!AR201="","",'BİLGİ GİRİŞİ'!AR201) ->  | AR76: =IF('BİLGİ GİRİŞİ'!AV201="","",'BİLGİ GİRİŞİ'!AV201) -> 
A77: =IF('BİLGİ GİRİŞİ'!D95="","",'BİLGİ GİRİŞİ'!D95) ->  | B77: =IF('BİLGİ GİRİŞİ'!E95="","",'BİLGİ GİRİŞİ'!E95) ->  | P77: =IF('BİLGİ GİRİŞİ'!W95="","",'BİLGİ GİRİŞİ'!W95) ->  | T77: =IF('BİLGİ GİRİŞİ'!T95="","",'BİLGİ GİRİŞİ'!T95) ->  | X77: =IF('BİLGİ GİRİŞİ'!AB202="","",'BİLGİ GİRİŞİ'!AB202) ->  | AB77: =IF('BİLGİ GİRİŞİ'!AF202="","",'BİLGİ GİRİŞİ'!AF202) ->  | AF77: =IF('BİLGİ GİRİŞİ'!AJ202="","",'BİLGİ GİRİŞİ'!AJ202) ->  | AJ77: =IF('BİLGİ GİRİŞİ'!AN202="","",'BİLGİ GİRİŞİ'!AN202) ->  | AN77: =IF('BİLGİ GİRİŞİ'!AR202="","",'BİLGİ GİRİŞİ'!AR202) ->  | AR77: =IF('BİLGİ GİRİŞİ'!AV202="","",'BİLGİ GİRİŞİ'!AV202) -> 
A78: =IF('BİLGİ GİRİŞİ'!D96="","",'BİLGİ GİRİŞİ'!D96) ->  | B78: =IF('BİLGİ GİRİŞİ'!E96="","",'BİLGİ GİRİŞİ'!E96) ->  | P78: =IF('BİLGİ GİRİŞİ'!W96="","",'BİLGİ GİRİŞİ'!W96) ->  | T78: =IF('BİLGİ GİRİŞİ'!T96="","",'BİLGİ GİRİŞİ'!T96) ->  | X78: =IF('BİLGİ GİRİŞİ'!AB203="","",'BİLGİ GİRİŞİ'!AB203) ->  | AB78: =IF('BİLGİ GİRİŞİ'!AF203="","",'BİLGİ GİRİŞİ'!AF203) ->  | AF78: =IF('BİLGİ GİRİŞİ'!AJ203="","",'BİLGİ GİRİŞİ'!AJ203) ->  | AJ78: =IF('BİLGİ GİRİŞİ'!AN203="","",'BİLGİ GİRİŞİ'!AN203) ->  | AN78: =IF('BİLGİ GİRİŞİ'!AR203="","",'BİLGİ GİRİŞİ'!AR203) ->  | AR78: =IF('BİLGİ GİRİŞİ'!AV203="","",'BİLGİ GİRİŞİ'!AV203) -> 
A79: =IF('BİLGİ GİRİŞİ'!D97="","",'BİLGİ GİRİŞİ'!D97) ->  | B79: =IF('BİLGİ GİRİŞİ'!E97="","",'BİLGİ GİRİŞİ'!E97) ->  | P79: =IF('BİLGİ GİRİŞİ'!W97="","",'BİLGİ GİRİŞİ'!W97) ->  | T79: =IF('BİLGİ GİRİŞİ'!T97="","",'BİLGİ GİRİŞİ'!T97) ->  | X79: =IF('BİLGİ GİRİŞİ'!AB204="","",'BİLGİ GİRİŞİ'!AB204) ->  | AB79: =IF('BİLGİ GİRİŞİ'!AF204="","",'BİLGİ GİRİŞİ'!AF204) ->  | AF79: =IF('BİLGİ GİRİŞİ'!AJ204="","",'BİLGİ GİRİŞİ'!AJ204) ->  | AJ79: =IF('BİLGİ GİRİŞİ'!AN204="","",'BİLGİ GİRİŞİ'!AN204) ->  | AN79: =IF('BİLGİ GİRİŞİ'!AR204="","",'BİLGİ GİRİŞİ'!AR204) ->  | AR79: =IF('BİLGİ GİRİŞİ'!AV204="","",'BİLGİ GİRİŞİ'!AV204) -> 
A80: =IF('BİLGİ GİRİŞİ'!D98="","",'BİLGİ GİRİŞİ'!D98) ->  | B80: =IF('BİLGİ GİRİŞİ'!E98="","",'BİLGİ GİRİŞİ'!E98) ->  | P80: =IF('BİLGİ GİRİŞİ'!W98="","",'BİLGİ GİRİŞİ'!W98) ->  | T80: =IF('BİLGİ GİRİŞİ'!T98="","",'BİLGİ GİRİŞİ'!T98) ->  | X80: =IF('BİLGİ GİRİŞİ'!AB205="","",'BİLGİ GİRİŞİ'!AB205) ->  | AB80: =IF('BİLGİ GİRİŞİ'!AF205="","",'BİLGİ GİRİŞİ'!AF205) ->  | AF80: =IF('BİLGİ GİRİŞİ'!AJ205="","",'BİLGİ GİRİŞİ'!AJ205) ->  | AJ80: =IF('BİLGİ GİRİŞİ'!AN205="","",'BİLGİ GİRİŞİ'!AN205) ->  | AN80: =IF('BİLGİ GİRİŞİ'!AR205="","",'BİLGİ GİRİŞİ'!AR205) ->  | AR80: =IF('BİLGİ GİRİŞİ'!AV205="","",'BİLGİ GİRİŞİ'!AV205) -> 
A81: =IF('BİLGİ GİRİŞİ'!D99="","",'BİLGİ GİRİŞİ'!D99) ->  | B81: =IF('BİLGİ GİRİŞİ'!E99="","",'BİLGİ GİRİŞİ'!E99) ->  | P81: =IF('BİLGİ GİRİŞİ'!W99="","",'BİLGİ GİRİŞİ'!W99) ->  | T81: =IF('BİLGİ GİRİŞİ'!T99="","",'BİLGİ GİRİŞİ'!T99) ->  | X81: =IF('BİLGİ GİRİŞİ'!AB206="","",'BİLGİ GİRİŞİ'!AB206) ->  | AB81: =IF('BİLGİ GİRİŞİ'!AF206="","",'BİLGİ GİRİŞİ'!AF206) ->  | AF81: =IF('BİLGİ GİRİŞİ'!AJ206="","",'BİLGİ GİRİŞİ'!AJ206) ->  | AJ81: =IF('BİLGİ GİRİŞİ'!AN206="","",'BİLGİ GİRİŞİ'!AN206) ->  | AN81: =IF('BİLGİ GİRİŞİ'!AR206="","",'BİLGİ GİRİŞİ'!AR206) ->  | AR81: =IF('BİLGİ GİRİŞİ'!AV206="","",'BİLGİ GİRİŞİ'!AV206) -> 
A82: =IF('BİLGİ GİRİŞİ'!D100="","",'BİLGİ GİRİŞİ'!D100) ->  | B82: =IF('BİLGİ GİRİŞİ'!E100="","",'BİLGİ GİRİŞİ'!E100) ->  | P82: =IF('BİLGİ GİRİŞİ'!W100="","",'BİLGİ GİRİŞİ'!W100) ->  | T82: =IF('BİLGİ GİRİŞİ'!T100="","",'BİLGİ GİRİŞİ'!T100) ->  | X82: =IF('BİLGİ GİRİŞİ'!AB207="","",'BİLGİ GİRİŞİ'!AB207) ->  | AB82: =IF('BİLGİ GİRİŞİ'!AF207="","",'BİLGİ GİRİŞİ'!AF207) ->  | AF82: =IF('BİLGİ GİRİŞİ'!AJ207="","",'BİLGİ GİRİŞİ'!AJ207) ->  | AJ82: =IF('BİLGİ GİRİŞİ'!AN207="","",'BİLGİ GİRİŞİ'!AN207) ->  | AN82: =IF('BİLGİ GİRİŞİ'!AR207="","",'BİLGİ GİRİŞİ'!AR207) ->  | AR82: =IF('BİLGİ GİRİŞİ'!AV207="","",'BİLGİ GİRİŞİ'!AV207) -> 
A83: =IF('BİLGİ GİRİŞİ'!D101="","",'BİLGİ GİRİŞİ'!D101) ->  | B83: =IF('BİLGİ GİRİŞİ'!E101="","",'BİLGİ GİRİŞİ'!E101) ->  | P83: =IF('BİLGİ GİRİŞİ'!W101="","",'BİLGİ GİRİŞİ'!W101) ->  | T83: =IF('BİLGİ GİRİŞİ'!T101="","",'BİLGİ GİRİŞİ'!T101) ->  | X83: =IF('BİLGİ GİRİŞİ'!AB208="","",'BİLGİ GİRİŞİ'!AB208) ->  | AB83: =IF('BİLGİ GİRİŞİ'!AF208="","",'BİLGİ GİRİŞİ'!AF208) ->  | AF83: =IF('BİLGİ GİRİŞİ'!AJ208="","",'BİLGİ GİRİŞİ'!AJ208) ->  | AJ83: =IF('BİLGİ GİRİŞİ'!AN208="","",'BİLGİ GİRİŞİ'!AN208) ->  | AN83: =IF('BİLGİ GİRİŞİ'!AR208="","",'BİLGİ GİRİŞİ'!AR208) ->  | AR83: =IF('BİLGİ GİRİŞİ'!AV208="","",'BİLGİ GİRİŞİ'!AV208) -> 
A84: =IF('BİLGİ GİRİŞİ'!D102="","",'BİLGİ GİRİŞİ'!D102) ->  | B84: =IF('BİLGİ GİRİŞİ'!E102="","",'BİLGİ GİRİŞİ'!E102) ->  | P84: =IF('BİLGİ GİRİŞİ'!W102="","",'BİLGİ GİRİŞİ'!W102) ->  | T84: =IF('BİLGİ GİRİŞİ'!T102="","",'BİLGİ GİRİŞİ'!T102) ->  | X84: =IF('BİLGİ GİRİŞİ'!AB209="","",'BİLGİ GİRİŞİ'!AB209) ->  | AB84: =IF('BİLGİ GİRİŞİ'!AF209="","",'BİLGİ GİRİŞİ'!AF209) ->  | AF84: =IF('BİLGİ GİRİŞİ'!AJ209="","",'BİLGİ GİRİŞİ'!AJ209) ->  | AJ84: =IF('BİLGİ GİRİŞİ'!AN209="","",'BİLGİ GİRİŞİ'!AN209) ->  | AN84: =IF('BİLGİ GİRİŞİ'!AR209="","",'BİLGİ GİRİŞİ'!AR209) ->  | AR84: =IF('BİLGİ GİRİŞİ'!AV209="","",'BİLGİ GİRİŞİ'!AV209) -> 
A85: =IF('BİLGİ GİRİŞİ'!D103="","",'BİLGİ GİRİŞİ'!D103) ->  | B85: =IF('BİLGİ GİRİŞİ'!E103="","",'BİLGİ GİRİŞİ'!E103) ->  | P85: =IF('BİLGİ GİRİŞİ'!W103="","",'BİLGİ GİRİŞİ'!W103) ->  | T85: =IF('BİLGİ GİRİŞİ'!T103="","",'BİLGİ GİRİŞİ'!T103) ->  | X85: =IF('BİLGİ GİRİŞİ'!AB210="","",'BİLGİ GİRİŞİ'!AB210) ->  | AB85: =IF('BİLGİ GİRİŞİ'!AF210="","",'BİLGİ GİRİŞİ'!AF210) ->  | AF85: =IF('BİLGİ GİRİŞİ'!AJ210="","",'BİLGİ GİRİŞİ'!AJ210) ->  | AJ85: =IF('BİLGİ GİRİŞİ'!AN210="","",'BİLGİ GİRİŞİ'!AN210) ->  | AN85: =IF('BİLGİ GİRİŞİ'!AR210="","",'BİLGİ GİRİŞİ'!AR210) ->  | AR85: =IF('BİLGİ GİRİŞİ'!AV210="","",'BİLGİ GİRİŞİ'!AV210) -> 
A86: =IF('BİLGİ GİRİŞİ'!D104="","",'BİLGİ GİRİŞİ'!D104) ->  | B86: =IF('BİLGİ GİRİŞİ'!E104="","",'BİLGİ GİRİŞİ'!E104) ->  | P86: =IF('BİLGİ GİRİŞİ'!W104="","",'BİLGİ GİRİŞİ'!W104) ->  | T86: =IF('BİLGİ GİRİŞİ'!T104="","",'BİLGİ GİRİŞİ'!T104) ->  | X86: =IF('BİLGİ GİRİŞİ'!AB211="","",'BİLGİ GİRİŞİ'!AB211) ->  | AB86: =IF('BİLGİ GİRİŞİ'!AF211="","",'BİLGİ GİRİŞİ'!AF211) ->  | AF86: =IF('BİLGİ GİRİŞİ'!AJ211="","",'BİLGİ GİRİŞİ'!AJ211) ->  | AJ86: =IF('BİLGİ GİRİŞİ'!AN211="","",'BİLGİ GİRİŞİ'!AN211) ->  | AN86: =IF('BİLGİ GİRİŞİ'!AR211="","",'BİLGİ GİRİŞİ'!AR211) ->  | AR86: =IF('BİLGİ GİRİŞİ'!AV211="","",'BİLGİ GİRİŞİ'!AV211) -> 
A87: =IF('BİLGİ GİRİŞİ'!D105="","",'BİLGİ GİRİŞİ'!D105) ->  | B87: =IF('BİLGİ GİRİŞİ'!E105="","",'BİLGİ GİRİŞİ'!E105) ->  | P87: =IF('BİLGİ GİRİŞİ'!W105="","",'BİLGİ GİRİŞİ'!W105) ->  | T87: =IF('BİLGİ GİRİŞİ'!T105="","",'BİLGİ GİRİŞİ'!T105) ->  | X87: =IF('BİLGİ GİRİŞİ'!AB212="","",'BİLGİ GİRİŞİ'!AB212) ->  | AB87: =IF('BİLGİ GİRİŞİ'!AF212="","",'BİLGİ GİRİŞİ'!AF212) ->  | AF87: =IF('BİLGİ GİRİŞİ'!AJ212="","",'BİLGİ GİRİŞİ'!AJ212) ->  | AJ87: =IF('BİLGİ GİRİŞİ'!AN212="","",'BİLGİ GİRİŞİ'!AN212) ->  | AN87: =IF('BİLGİ GİRİŞİ'!AR212="","",'BİLGİ GİRİŞİ'!AR212) ->  | AR87: =IF('BİLGİ GİRİŞİ'!AV212="","",'BİLGİ GİRİŞİ'!AV212) -> 
A88: =IF('BİLGİ GİRİŞİ'!D106="","",'BİLGİ GİRİŞİ'!D106) ->  | B88: =IF('BİLGİ GİRİŞİ'!E106="","",'BİLGİ GİRİŞİ'!E106) ->  | P88: =IF('BİLGİ GİRİŞİ'!W106="","",'BİLGİ GİRİŞİ'!W106) ->  | T88: =IF('BİLGİ GİRİŞİ'!T106="","",'BİLGİ GİRİŞİ'!T106) ->  | X88: =IF('BİLGİ GİRİŞİ'!AB213="","",'BİLGİ GİRİŞİ'!AB213) ->  | AB88: =IF('BİLGİ GİRİŞİ'!AF213="","",'BİLGİ GİRİŞİ'!AF213) ->  | AF88: =IF('BİLGİ GİRİŞİ'!AJ213="","",'BİLGİ GİRİŞİ'!AJ213) ->  | AJ88: =IF('BİLGİ GİRİŞİ'!AN213="","",'BİLGİ GİRİŞİ'!AN213) ->  | AN88: =IF('BİLGİ GİRİŞİ'!AR213="","",'BİLGİ GİRİŞİ'!AR213) ->  | AR88: =IF('BİLGİ GİRİŞİ'!AV213="","",'BİLGİ GİRİŞİ'!AV213) -> 
A89: =IF('BİLGİ GİRİŞİ'!D107="","",'BİLGİ GİRİŞİ'!D107) ->  | B89: =IF('BİLGİ GİRİŞİ'!E107="","",'BİLGİ GİRİŞİ'!E107) ->  | P89: =IF('BİLGİ GİRİŞİ'!W107="","",'BİLGİ GİRİŞİ'!W107) ->  | T89: =IF('BİLGİ GİRİŞİ'!T107="","",'BİLGİ GİRİŞİ'!T107) ->  | X89: =IF('BİLGİ GİRİŞİ'!AB214="","",'BİLGİ GİRİŞİ'!AB214) ->  | AB89: =IF('BİLGİ GİRİŞİ'!AF214="","",'BİLGİ GİRİŞİ'!AF214) ->  | AF89: =IF('BİLGİ GİRİŞİ'!AJ214="","",'BİLGİ GİRİŞİ'!AJ214) ->  | AJ89: =IF('BİLGİ GİRİŞİ'!AN214="","",'BİLGİ GİRİŞİ'!AN214) ->  | AN89: =IF('BİLGİ GİRİŞİ'!AR214="","",'BİLGİ GİRİŞİ'!AR214) ->  | AR89: =IF('BİLGİ GİRİŞİ'!AV214="","",'BİLGİ GİRİŞİ'!AV214) -> 
A90: =IF('BİLGİ GİRİŞİ'!D108="","",'BİLGİ GİRİŞİ'!D108) ->  | B90: =IF('BİLGİ GİRİŞİ'!E108="","",'BİLGİ GİRİŞİ'!E108) ->  | P90: =IF('BİLGİ GİRİŞİ'!W108="","",'BİLGİ GİRİŞİ'!W108) ->  | T90: =IF('BİLGİ GİRİŞİ'!T108="","",'BİLGİ GİRİŞİ'!T108) ->  | X90: =IF('BİLGİ GİRİŞİ'!AB215="","",'BİLGİ GİRİŞİ'!AB215) ->  | AB90: =IF('BİLGİ GİRİŞİ'!AF215="","",'BİLGİ GİRİŞİ'!AF215) ->  | AF90: =IF('BİLGİ GİRİŞİ'!AJ215="","",'BİLGİ GİRİŞİ'!AJ215) ->  | AJ90: =IF('BİLGİ GİRİŞİ'!AN215="","",'BİLGİ GİRİŞİ'!AN215) ->  | AN90: =IF('BİLGİ GİRİŞİ'!AR215="","",'BİLGİ GİRİŞİ'!AR215) ->  | AR90: =IF('BİLGİ GİRİŞİ'!AV215="","",'BİLGİ GİRİŞİ'!AV215) -> 
A91: =IF('BİLGİ GİRİŞİ'!D109="","",'BİLGİ GİRİŞİ'!D109) ->  | B91: =IF('BİLGİ GİRİŞİ'!E109="","",'BİLGİ GİRİŞİ'!E109) ->  | P91: =IF('BİLGİ GİRİŞİ'!W109="","",'BİLGİ GİRİŞİ'!W109) ->  | T91: =IF('BİLGİ GİRİŞİ'!T109="","",'BİLGİ GİRİŞİ'!T109) ->  | X91: =IF('BİLGİ GİRİŞİ'!AB216="","",'BİLGİ GİRİŞİ'!AB216) ->  | AB91: =IF('BİLGİ GİRİŞİ'!AF216="","",'BİLGİ GİRİŞİ'!AF216) ->  | AF91: =IF('BİLGİ GİRİŞİ'!AJ216="","",'BİLGİ GİRİŞİ'!AJ216) ->  | AJ91: =IF('BİLGİ GİRİŞİ'!AN216="","",'BİLGİ GİRİŞİ'!AN216) ->  | AN91: =IF('BİLGİ GİRİŞİ'!AR216="","",'BİLGİ GİRİŞİ'!AR216) ->  | AR91: =IF('BİLGİ GİRİŞİ'!AV216="","",'BİLGİ GİRİŞİ'!AV216) -> 
A92: =IF('BİLGİ GİRİŞİ'!D110="","",'BİLGİ GİRİŞİ'!D110) ->  | B92: =IF('BİLGİ GİRİŞİ'!E110="","",'BİLGİ GİRİŞİ'!E110) ->  | P92: =IF('BİLGİ GİRİŞİ'!W110="","",'BİLGİ GİRİŞİ'!W110) ->  | T92: =IF('BİLGİ GİRİŞİ'!T110="","",'BİLGİ GİRİŞİ'!T110) ->  | X92: =IF('BİLGİ GİRİŞİ'!AB217="","",'BİLGİ GİRİŞİ'!AB217) ->  | AB92: =IF('BİLGİ GİRİŞİ'!AF217="","",'BİLGİ GİRİŞİ'!AF217) ->  | AF92: =IF('BİLGİ GİRİŞİ'!AJ217="","",'BİLGİ GİRİŞİ'!AJ217) ->  | AJ92: =IF('BİLGİ GİRİŞİ'!AN217="","",'BİLGİ GİRİŞİ'!AN217) ->  | AN92: =IF('BİLGİ GİRİŞİ'!AR217="","",'BİLGİ GİRİŞİ'!AR217) ->  | AR92: =IF('BİLGİ GİRİŞİ'!AV217="","",'BİLGİ GİRİŞİ'!AV217) -> 
A93: =IF('BİLGİ GİRİŞİ'!D111="","",'BİLGİ GİRİŞİ'!D111) ->  | B93: =IF('BİLGİ GİRİŞİ'!E111="","",'BİLGİ GİRİŞİ'!E111) ->  | P93: =IF('BİLGİ GİRİŞİ'!W111="","",'BİLGİ GİRİŞİ'!W111) ->  | T93: =IF('BİLGİ GİRİŞİ'!T111="","",'BİLGİ GİRİŞİ'!T111) ->  | X93: =IF('BİLGİ GİRİŞİ'!AB218="","",'BİLGİ GİRİŞİ'!AB218) ->  | AB93: =IF('BİLGİ GİRİŞİ'!AF218="","",'BİLGİ GİRİŞİ'!AF218) ->  | AF93: =IF('BİLGİ GİRİŞİ'!AJ218="","",'BİLGİ GİRİŞİ'!AJ218) ->  | AJ93: =IF('BİLGİ GİRİŞİ'!AN218="","",'BİLGİ GİRİŞİ'!AN218) ->  | AN93: =IF('BİLGİ GİRİŞİ'!AR218="","",'BİLGİ GİRİŞİ'!AR218) ->  | AR93: =IF('BİLGİ GİRİŞİ'!AV218="","",'BİLGİ GİRİŞİ'!AV218) -> 
A94: =IF('BİLGİ GİRİŞİ'!D112="","",'BİLGİ GİRİŞİ'!D112) ->  | B94: =IF('BİLGİ GİRİŞİ'!E112="","",'BİLGİ GİRİŞİ'!E112) ->  | P94: =IF('BİLGİ GİRİŞİ'!W112="","",'BİLGİ GİRİŞİ'!W112) ->  | T94: =IF('BİLGİ GİRİŞİ'!T112="","",'BİLGİ GİRİŞİ'!T112) ->  | X94: =IF('BİLGİ GİRİŞİ'!AB219="","",'BİLGİ GİRİŞİ'!AB219) ->  | AB94: =IF('BİLGİ GİRİŞİ'!AF219="","",'BİLGİ GİRİŞİ'!AF219) ->  | AF94: =IF('BİLGİ GİRİŞİ'!AJ219="","",'BİLGİ GİRİŞİ'!AJ219) ->  | AJ94: =IF('BİLGİ GİRİŞİ'!AN219="","",'BİLGİ GİRİŞİ'!AN219) ->  | AN94: =IF('BİLGİ GİRİŞİ'!AR219="","",'BİLGİ GİRİŞİ'!AR219) ->  | AR94: =IF('BİLGİ GİRİŞİ'!AV219="","",'BİLGİ GİRİŞİ'!AV219) -> 
A95: =IF('BİLGİ GİRİŞİ'!D113="","",'BİLGİ GİRİŞİ'!D113) ->  | B95: =IF('BİLGİ GİRİŞİ'!E113="","",'BİLGİ GİRİŞİ'!E113) ->  | P95: =IF('BİLGİ GİRİŞİ'!W113="","",'BİLGİ GİRİŞİ'!W113) ->  | T95: =IF('BİLGİ GİRİŞİ'!T113="","",'BİLGİ GİRİŞİ'!T113) ->  | X95: =IF('BİLGİ GİRİŞİ'!AB220="","",'BİLGİ GİRİŞİ'!AB220) ->  | AB95: =IF('BİLGİ GİRİŞİ'!AF220="","",'BİLGİ GİRİŞİ'!AF220) ->  | AF95: =IF('BİLGİ GİRİŞİ'!AJ220="","",'BİLGİ GİRİŞİ'!AJ220) ->  | AJ95: =IF('BİLGİ GİRİŞİ'!AN220="","",'BİLGİ GİRİŞİ'!AN220) ->  | AN95: =IF('BİLGİ GİRİŞİ'!AR220="","",'BİLGİ GİRİŞİ'!AR220) ->  | AR95: =IF('BİLGİ GİRİŞİ'!AV220="","",'BİLGİ GİRİŞİ'!AV220) -> 
A96: =IF('BİLGİ GİRİŞİ'!D114="","",'BİLGİ GİRİŞİ'!D114) ->  | B96: =IF('BİLGİ GİRİŞİ'!E114="","",'BİLGİ GİRİŞİ'!E114) ->  | P96: =IF('BİLGİ GİRİŞİ'!W114="","",'BİLGİ GİRİŞİ'!W114) ->  | T96: =IF('BİLGİ GİRİŞİ'!T114="","",'BİLGİ GİRİŞİ'!T114) ->  | X96: =IF('BİLGİ GİRİŞİ'!AB221="","",'BİLGİ GİRİŞİ'!AB221) ->  | AB96: =IF('BİLGİ GİRİŞİ'!AF221="","",'BİLGİ GİRİŞİ'!AF221) ->  | AF96: =IF('BİLGİ GİRİŞİ'!AJ221="","",'BİLGİ GİRİŞİ'!AJ221) ->  | AJ96: =IF('BİLGİ GİRİŞİ'!AN221="","",'BİLGİ GİRİŞİ'!AN221) ->  | AN96: =IF('BİLGİ GİRİŞİ'!AR221="","",'BİLGİ GİRİŞİ'!AR221) ->  | AR96: =IF('BİLGİ GİRİŞİ'!AV221="","",'BİLGİ GİRİŞİ'!AV221) -> 
A97: =IF('BİLGİ GİRİŞİ'!D115="","",'BİLGİ GİRİŞİ'!D115) ->  | B97: =IF('BİLGİ GİRİŞİ'!E115="","",'BİLGİ GİRİŞİ'!E115) ->  | P97: =IF('BİLGİ GİRİŞİ'!W115="","",'BİLGİ GİRİŞİ'!W115) ->  | T97: =IF('BİLGİ GİRİŞİ'!T115="","",'BİLGİ GİRİŞİ'!T115) ->  | X97: =IF('BİLGİ GİRİŞİ'!AB222="","",'BİLGİ GİRİŞİ'!AB222) ->  | AB97: =IF('BİLGİ GİRİŞİ'!AF222="","",'BİLGİ GİRİŞİ'!AF222) ->  | AF97: =IF('BİLGİ GİRİŞİ'!AJ222="","",'BİLGİ GİRİŞİ'!AJ222) ->  | AJ97: =IF('BİLGİ GİRİŞİ'!AN222="","",'BİLGİ GİRİŞİ'!AN222) ->  | AN97: =IF('BİLGİ GİRİŞİ'!AR222="","",'BİLGİ GİRİŞİ'!AR222) ->  | AR97: =IF('BİLGİ GİRİŞİ'!AV222="","",'BİLGİ GİRİŞİ'!AV222) -> 
A98: =IF('BİLGİ GİRİŞİ'!D116="","",'BİLGİ GİRİŞİ'!D116) ->  | B98: =IF('BİLGİ GİRİŞİ'!E116="","",'BİLGİ GİRİŞİ'!E116) ->  | P98: =IF('BİLGİ GİRİŞİ'!W116="","",'BİLGİ GİRİŞİ'!W116) ->  | T98: =IF('BİLGİ GİRİŞİ'!T116="","",'BİLGİ GİRİŞİ'!T116) ->  | X98: =IF('BİLGİ GİRİŞİ'!AB223="","",'BİLGİ GİRİŞİ'!AB223) ->  | AB98: =IF('BİLGİ GİRİŞİ'!AF223="","",'BİLGİ GİRİŞİ'!AF223) ->  | AF98: =IF('BİLGİ GİRİŞİ'!AJ223="","",'BİLGİ GİRİŞİ'!AJ223) ->  | AJ98: =IF('BİLGİ GİRİŞİ'!AN223="","",'BİLGİ GİRİŞİ'!AN223) ->  | AN98: =IF('BİLGİ GİRİŞİ'!AR223="","",'BİLGİ GİRİŞİ'!AR223) ->  | AR98: =IF('BİLGİ GİRİŞİ'!AV223="","",'BİLGİ GİRİŞİ'!AV223) -> 
A99: =IF('BİLGİ GİRİŞİ'!D117="","",'BİLGİ GİRİŞİ'!D117) ->  | B99: =IF('BİLGİ GİRİŞİ'!E117="","",'BİLGİ GİRİŞİ'!E117) ->  | P99: =IF('BİLGİ GİRİŞİ'!W117="","",'BİLGİ GİRİŞİ'!W117) ->  | T99: =IF('BİLGİ GİRİŞİ'!T117="","",'BİLGİ GİRİŞİ'!T117) ->  | X99: =IF('BİLGİ GİRİŞİ'!AB224="","",'BİLGİ GİRİŞİ'!AB224) ->  | AB99: =IF('BİLGİ GİRİŞİ'!AF224="","",'BİLGİ GİRİŞİ'!AF224) ->  | AF99: =IF('BİLGİ GİRİŞİ'!AJ224="","",'BİLGİ GİRİŞİ'!AJ224) ->  | AJ99: =IF('BİLGİ GİRİŞİ'!AN224="","",'BİLGİ GİRİŞİ'!AN224) ->  | AN99: =IF('BİLGİ GİRİŞİ'!AR224="","",'BİLGİ GİRİŞİ'!AR224) ->  | AR99: =IF('BİLGİ GİRİŞİ'!AV224="","",'BİLGİ GİRİŞİ'!AV224) -> 
A100: =IF('BİLGİ GİRİŞİ'!D118="","",'BİLGİ GİRİŞİ'!D118) ->  | B100: =IF('BİLGİ GİRİŞİ'!E118="","",'BİLGİ GİRİŞİ'!E118) ->  | P100: =IF('BİLGİ GİRİŞİ'!W118="","",'BİLGİ GİRİŞİ'!W118) ->  | T100: =IF('BİLGİ GİRİŞİ'!T118="","",'BİLGİ GİRİŞİ'!T118) ->  | X100: =IF('BİLGİ GİRİŞİ'!AB225="","",'BİLGİ GİRİŞİ'!AB225) ->  | AB100: =IF('BİLGİ GİRİŞİ'!AF225="","",'BİLGİ GİRİŞİ'!AF225) ->  | AF100: =IF('BİLGİ GİRİŞİ'!AJ225="","",'BİLGİ GİRİŞİ'!AJ225) ->  | AJ100: =IF('BİLGİ GİRİŞİ'!AN225="","",'BİLGİ GİRİŞİ'!AN225) ->  | AN100: =IF('BİLGİ GİRİŞİ'!AR225="","",'BİLGİ GİRİŞİ'!AR225) ->  | AR100: =IF('BİLGİ GİRİŞİ'!AV225="","",'BİLGİ GİRİŞİ'!AV225) -> 
A101: =IF('BİLGİ GİRİŞİ'!D119="","",'BİLGİ GİRİŞİ'!D119) ->  | B101: =IF('BİLGİ GİRİŞİ'!E119="","",'BİLGİ GİRİŞİ'!E119) ->  | P101: =IF('BİLGİ GİRİŞİ'!W119="","",'BİLGİ GİRİŞİ'!W119) ->  | T101: =IF('BİLGİ GİRİŞİ'!T119="","",'BİLGİ GİRİŞİ'!T119) ->  | X101: =IF('BİLGİ GİRİŞİ'!AB226="","",'BİLGİ GİRİŞİ'!AB226) ->  | AB101: =IF('BİLGİ GİRİŞİ'!AF226="","",'BİLGİ GİRİŞİ'!AF226) ->  | AF101: =IF('BİLGİ GİRİŞİ'!AJ226="","",'BİLGİ GİRİŞİ'!AJ226) ->  | AJ101: =IF('BİLGİ GİRİŞİ'!AN226="","",'BİLGİ GİRİŞİ'!AN226) ->  | AN101: =IF('BİLGİ GİRİŞİ'!AR226="","",'BİLGİ GİRİŞİ'!AR226) ->  | AR101: =IF('BİLGİ GİRİŞİ'!AV226="","",'BİLGİ GİRİŞİ'!AV226) -> 
A102: =IF('BİLGİ GİRİŞİ'!D120="","",'BİLGİ GİRİŞİ'!D120) ->  | B102: =IF('BİLGİ GİRİŞİ'!E120="","",'BİLGİ GİRİŞİ'!E120) ->  | P102: =IF('BİLGİ GİRİŞİ'!W120="","",'BİLGİ GİRİŞİ'!W120) ->  | T102: =IF('BİLGİ GİRİŞİ'!T120="","",'BİLGİ GİRİŞİ'!T120) ->  | X102: =IF('BİLGİ GİRİŞİ'!AB227="","",'BİLGİ GİRİŞİ'!AB227) ->  | AB102: =IF('BİLGİ GİRİŞİ'!AF227="","",'BİLGİ GİRİŞİ'!AF227) ->  | AF102: =IF('BİLGİ GİRİŞİ'!AJ227="","",'BİLGİ GİRİŞİ'!AJ227) ->  | AJ102: =IF('BİLGİ GİRİŞİ'!AN227="","",'BİLGİ GİRİŞİ'!AN227) ->  | AN102: =IF('BİLGİ GİRİŞİ'!AR227="","",'BİLGİ GİRİŞİ'!AR227) ->  | AR102: =IF('BİLGİ GİRİŞİ'!AV227="","",'BİLGİ GİRİŞİ'!AV227) -> 
A103: =IF('BİLGİ GİRİŞİ'!D121="","",'BİLGİ GİRİŞİ'!D121) ->  | B103: =IF('BİLGİ GİRİŞİ'!E121="","",'BİLGİ GİRİŞİ'!E121) ->  | P103: =IF('BİLGİ GİRİŞİ'!W121="","",'BİLGİ GİRİŞİ'!W121) ->  | T103: =IF('BİLGİ GİRİŞİ'!T121="","",'BİLGİ GİRİŞİ'!T121) ->  | X103: =IF('BİLGİ GİRİŞİ'!AB228="","",'BİLGİ GİRİŞİ'!AB228) ->  | AB103: =IF('BİLGİ GİRİŞİ'!AF228="","",'BİLGİ GİRİŞİ'!AF228) ->  | AF103: =IF('BİLGİ GİRİŞİ'!AJ228="","",'BİLGİ GİRİŞİ'!AJ228) ->  | AJ103: =IF('BİLGİ GİRİŞİ'!AN228="","",'BİLGİ GİRİŞİ'!AN228) ->  | AN103: =IF('BİLGİ GİRİŞİ'!AR228="","",'BİLGİ GİRİŞİ'!AR228) ->  | AR103: =IF('BİLGİ GİRİŞİ'!AV228="","",'BİLGİ GİRİŞİ'!AV228) -> 
A104: =IF('BİLGİ GİRİŞİ'!D122="","",'BİLGİ GİRİŞİ'!D122) ->  | B104: =IF('BİLGİ GİRİŞİ'!E122="","",'BİLGİ GİRİŞİ'!E122) ->  | P104: =IF('BİLGİ GİRİŞİ'!W122="","",'BİLGİ GİRİŞİ'!W122) ->  | T104: =IF('BİLGİ GİRİŞİ'!T122="","",'BİLGİ GİRİŞİ'!T122) ->  | X104: =IF('BİLGİ GİRİŞİ'!AB229="","",'BİLGİ GİRİŞİ'!AB229) ->  | AB104: =IF('BİLGİ GİRİŞİ'!AF229="","",'BİLGİ GİRİŞİ'!AF229) ->  | AF104: =IF('BİLGİ GİRİŞİ'!AJ229="","",'BİLGİ GİRİŞİ'!AJ229) ->  | AJ104: =IF('BİLGİ GİRİŞİ'!AN229="","",'BİLGİ GİRİŞİ'!AN229) ->  | AN104: =IF('BİLGİ GİRİŞİ'!AR229="","",'BİLGİ GİRİŞİ'!AR229) ->  | AR104: =IF('BİLGİ GİRİŞİ'!AV229="","",'BİLGİ GİRİŞİ'!AV229) -> 
A105: =IF('BİLGİ GİRİŞİ'!D123="","",'BİLGİ GİRİŞİ'!D123) ->  | B105: =IF('BİLGİ GİRİŞİ'!E123="","",'BİLGİ GİRİŞİ'!E123) ->  | P105: =IF('BİLGİ GİRİŞİ'!W123="","",'BİLGİ GİRİŞİ'!W123) ->  | T105: =IF('BİLGİ GİRİŞİ'!T123="","",'BİLGİ GİRİŞİ'!T123) ->  | X105: =IF('BİLGİ GİRİŞİ'!AB230="","",'BİLGİ GİRİŞİ'!AB230) ->  | AB105: =IF('BİLGİ GİRİŞİ'!AF230="","",'BİLGİ GİRİŞİ'!AF230) ->  | AF105: =IF('BİLGİ GİRİŞİ'!AJ230="","",'BİLGİ GİRİŞİ'!AJ230) ->  | AJ105: =IF('BİLGİ GİRİŞİ'!AN230="","",'BİLGİ GİRİŞİ'!AN230) ->  | AN105: =IF('BİLGİ GİRİŞİ'!AR230="","",'BİLGİ GİRİŞİ'!AR230) ->  | AR105: =IF('BİLGİ GİRİŞİ'!AV230="","",'BİLGİ GİRİŞİ'!AV230) -> 
A106: =IF('BİLGİ GİRİŞİ'!D124="","",'BİLGİ GİRİŞİ'!D124) ->  | B106: =IF('BİLGİ GİRİŞİ'!E124="","",'BİLGİ GİRİŞİ'!E124) ->  | P106: =IF('BİLGİ GİRİŞİ'!W124="","",'BİLGİ GİRİŞİ'!W124) ->  | T106: =IF('BİLGİ GİRİŞİ'!T124="","",'BİLGİ GİRİŞİ'!T124) ->  | X106: =IF('BİLGİ GİRİŞİ'!AB231="","",'BİLGİ GİRİŞİ'!AB231) ->  | AB106: =IF('BİLGİ GİRİŞİ'!AF231="","",'BİLGİ GİRİŞİ'!AF231) ->  | AF106: =IF('BİLGİ GİRİŞİ'!AJ231="","",'BİLGİ GİRİŞİ'!AJ231) ->  | AJ106: =IF('BİLGİ GİRİŞİ'!AN231="","",'BİLGİ GİRİŞİ'!AN231) ->  | AN106: =IF('BİLGİ GİRİŞİ'!AR231="","",'BİLGİ GİRİŞİ'!AR231) ->  | AR106: =IF('BİLGİ GİRİŞİ'!AV231="","",'BİLGİ GİRİŞİ'!AV231) -> 
A107: =IF('BİLGİ GİRİŞİ'!D125="","",'BİLGİ GİRİŞİ'!D125) ->  | B107: =IF('BİLGİ GİRİŞİ'!E125="","",'BİLGİ GİRİŞİ'!E125) ->  | P107: =IF('BİLGİ GİRİŞİ'!W125="","",'BİLGİ GİRİŞİ'!W125) ->  | T107: =IF('BİLGİ GİRİŞİ'!T125="","",'BİLGİ GİRİŞİ'!T125) ->  | X107: =IF('BİLGİ GİRİŞİ'!AB232="","",'BİLGİ GİRİŞİ'!AB232) ->  | AB107: =IF('BİLGİ GİRİŞİ'!AF232="","",'BİLGİ GİRİŞİ'!AF232) ->  | AF107: =IF('BİLGİ GİRİŞİ'!AJ232="","",'BİLGİ GİRİŞİ'!AJ232) ->  | AJ107: =IF('BİLGİ GİRİŞİ'!AN232="","",'BİLGİ GİRİŞİ'!AN232) ->  | AN107: =IF('BİLGİ GİRİŞİ'!AR232="","",'BİLGİ GİRİŞİ'!AR232) ->  | AR107: =IF('BİLGİ GİRİŞİ'!AV232="","",'BİLGİ GİRİŞİ'!AV232) -> 
A108: =IF('BİLGİ GİRİŞİ'!D126="","",'BİLGİ GİRİŞİ'!D126) ->  | B108: =IF('BİLGİ GİRİŞİ'!E126="","",'BİLGİ GİRİŞİ'!E126) ->  | P108: =IF('BİLGİ GİRİŞİ'!W126="","",'BİLGİ GİRİŞİ'!W126) ->  | T108: =IF('BİLGİ GİRİŞİ'!T126="","",'BİLGİ GİRİŞİ'!T126) ->  | X108: =IF('BİLGİ GİRİŞİ'!AB233="","",'BİLGİ GİRİŞİ'!AB233) ->  | AB108: =IF('BİLGİ GİRİŞİ'!AF233="","",'BİLGİ GİRİŞİ'!AF233) ->  | AF108: =IF('BİLGİ GİRİŞİ'!AJ233="","",'BİLGİ GİRİŞİ'!AJ233) ->  | AJ108: =IF('BİLGİ GİRİŞİ'!AN233="","",'BİLGİ GİRİŞİ'!AN233) ->  | AN108: =IF('BİLGİ GİRİŞİ'!AR233="","",'BİLGİ GİRİŞİ'!AR233) ->  | AR108: =IF('BİLGİ GİRİŞİ'!AV233="","",'BİLGİ GİRİŞİ'!AV233) -> 
A109: =IF('BİLGİ GİRİŞİ'!D127="","",'BİLGİ GİRİŞİ'!D127) ->  | B109: =IF('BİLGİ GİRİŞİ'!E127="","",'BİLGİ GİRİŞİ'!E127) ->  | P109: =IF('BİLGİ GİRİŞİ'!W127="","",'BİLGİ GİRİŞİ'!W127) ->  | T109: =IF('BİLGİ GİRİŞİ'!T127="","",'BİLGİ GİRİŞİ'!T127) ->  | X109: =IF('BİLGİ GİRİŞİ'!AB234="","",'BİLGİ GİRİŞİ'!AB234) ->  | AB109: =IF('BİLGİ GİRİŞİ'!AF234="","",'BİLGİ GİRİŞİ'!AF234) ->  | AF109: =IF('BİLGİ GİRİŞİ'!AJ234="","",'BİLGİ GİRİŞİ'!AJ234) ->  | AJ109: =IF('BİLGİ GİRİŞİ'!AN234="","",'BİLGİ GİRİŞİ'!AN234) ->  | AN109: =IF('BİLGİ GİRİŞİ'!AR234="","",'BİLGİ GİRİŞİ'!AR234) ->  | AR109: =IF('BİLGİ GİRİŞİ'!AV234="","",'BİLGİ GİRİŞİ'!AV234) -> 
A110: =IF('BİLGİ GİRİŞİ'!D128="","",'BİLGİ GİRİŞİ'!D128) ->  | B110: =IF('BİLGİ GİRİŞİ'!E128="","",'BİLGİ GİRİŞİ'!E128) ->  | P110: =IF('BİLGİ GİRİŞİ'!W128="","",'BİLGİ GİRİŞİ'!W128) ->  | T110: =IF('BİLGİ GİRİŞİ'!T128="","",'BİLGİ GİRİŞİ'!T128) ->  | X110: =IF('BİLGİ GİRİŞİ'!AB235="","",'BİLGİ GİRİŞİ'!AB235) ->  | AB110: =IF('BİLGİ GİRİŞİ'!AF235="","",'BİLGİ GİRİŞİ'!AF235) ->  | AF110: =IF('BİLGİ GİRİŞİ'!AJ235="","",'BİLGİ GİRİŞİ'!AJ235) ->  | AJ110: =IF('BİLGİ GİRİŞİ'!AN235="","",'BİLGİ GİRİŞİ'!AN235) ->  | AN110: =IF('BİLGİ GİRİŞİ'!AR235="","",'BİLGİ GİRİŞİ'!AR235) ->  | AR110: =IF('BİLGİ GİRİŞİ'!AV235="","",'BİLGİ GİRİŞİ'!AV235) -> 
A111: =IF('BİLGİ GİRİŞİ'!D129="","",'BİLGİ GİRİŞİ'!D129) ->  | B111: =IF('BİLGİ GİRİŞİ'!E129="","",'BİLGİ GİRİŞİ'!E129) ->  | P111: =IF('BİLGİ GİRİŞİ'!W129="","",'BİLGİ GİRİŞİ'!W129) ->  | T111: =IF('BİLGİ GİRİŞİ'!T129="","",'BİLGİ GİRİŞİ'!T129) ->  | X111: =IF('BİLGİ GİRİŞİ'!AB236="","",'BİLGİ GİRİŞİ'!AB236) ->  | AB111: =IF('BİLGİ GİRİŞİ'!AF236="","",'BİLGİ GİRİŞİ'!AF236) ->  | AF111: =IF('BİLGİ GİRİŞİ'!AJ236="","",'BİLGİ GİRİŞİ'!AJ236) ->  | AJ111: =IF('BİLGİ GİRİŞİ'!AN236="","",'BİLGİ GİRİŞİ'!AN236) ->  | AN111: =IF('BİLGİ GİRİŞİ'!AR236="","",'BİLGİ GİRİŞİ'!AR236) ->  | AR111: =IF('BİLGİ GİRİŞİ'!AV236="","",'BİLGİ GİRİŞİ'!AV236) -> 
A112: TOPLAM | X112: =SUM(X12:X111) -> 12000 | AB112: =SUM(AB12:AB111) -> 24000 | AF112: =SUM(AF12:AF111) -> 15000 | AJ112: =SUM(AJ12:AJ111) -> 30000 | AN112: =SUM(AN12:AN111) -> 18000 | AR112: =SUM(AR12:AR111) -> 36000
A114: EN UYGUN (DÜŞÜK) TEKLİFİ VEREN VE TEKLİFİ UYGUN GÖRÜLEN GERÇEK/TÜZEL KİŞİ
A115: ADI | X115: GERÇEK/TÜZEL KİŞİ'NİN ADRESİ | AN115: TEKLİF ETTİĞİ FİYAT
A116: =IF('BİLGİ GİRİŞİ'!D241="","",'BİLGİ GİRİŞİ'!D241) -> A GERÇEK/TÜZEL KİŞİSİ | X116: =IF('BİLGİ GİRİŞİ'!T241="","",'BİLGİ GİRİŞİ'!T241) -> Bulanık/MUŞ | AN116: =IF('BİLGİ GİRİŞİ'!AF241="","",'BİLGİ GİRİŞİ'!AF241) -> 24000
A118: =CONCATENATE(" Kamu İhale Kanunu'nun ",IF('BİLGİ GİRİŞİ'!O10="",".............................................................................",'BİLGİ GİRİŞİ'!O10)," maddesine göre Doğrudan Temin yoluyla satın alınacak Mal/Hizmet/Yapım İşi'ne ilişkin yapılan piyasa araştırması sonucu gerçek/tüzel kişilerce teklif edilen fiyatlar"&" tarafımızca değerlendirilmiş olup Ma'ın/Hizmet'in/Yapım İşi'nin, yukarıda bilgileri verilen ve teklifi uygun görülen gerçek/tüzel kişiden alınması uygun görülmüştür. "& TEXT(IF('BİLGİ GİRİŞİ'!O22="","…../…../……..",'BİLGİ GİRİŞİ'!O22),"gg.aa.yyyy ")) -> Kamu İhale Kanunu'nun 22/d maddesine göre Doğrudan Temin yoluyla satın alınacak Mal/Hizmet/Yapım İşi'ne ilişkin yapılan piyasa araştırması sonucu gerçek/tüzel kişilerce teklif edilen fiyatlar tarafımızca değerlendirilmiş olup Ma'ın/Hizmet'in/Yapım İşi'nin, yukarıda bilgileri verilen ve teklifi uygun görülen gerçek/tüzel kişiden alınması uygun görülmüştür. 08.03.2023
AF122: =IF(AF126="","",IF('BİLGİ GİRİŞİ'!AB16="","",'BİLGİ GİRİŞİ'!AB16)) -> Piyasa Araştırma Görevlisi
A123: =IF(A126="","",IF('BİLGİ GİRİŞİ'!AH16="","",'BİLGİ GİRİŞİ'!AH16)) -> Piyasa Araştırma Görevlisi | P123: =IF(P126="","",IF('BİLGİ GİRİŞİ'!AN16="","",'BİLGİ GİRİŞİ'!AN16)) -> 
A126: =IF('BİLGİ GİRİŞİ'!AH17="","",'BİLGİ GİRİŞİ'!AH17) -> Ayşe YILDIZ | P126: =IF('BİLGİ GİRİŞİ'!AN17="","",'BİLGİ GİRİŞİ'!AN17) ->  | AF126: =IF('BİLGİ GİRİŞİ'!AB17="","",'BİLGİ GİRİŞİ'!AB17) -> Ahmet DEMİR
A127: =IF('BİLGİ GİRİŞİ'!AH18="","",'BİLGİ GİRİŞİ'!AH18) -> Öğretmen 1 | P127: =IF(P126="","",IF('BİLGİ GİRİŞİ'!AN18="","",'BİLGİ GİRİŞİ'!AN18)) ->  | AF127: =IF('BİLGİ GİRİŞİ'!AB18="","",'BİLGİ GİRİŞİ'!AB18) -> Müdür Yardımcısı 1

Sheet 8
A2: İdarenin Adı | K2: : | L2: =IF('BİLGİ GİRİŞİ'!O8="","",'BİLGİ GİRİŞİ'!O8) -> Atatürk İlkokulu Müdürlüğü
A3: Doğrudan Temin Numarası | K3: : | L3: =IF('BİLGİ GİRİŞİ'!O11="","",'BİLGİ GİRİŞİ'!O11) -> 22DT1211930
A4: Mal/Hizmet/Yapım Adı, Niteliği | K4: : | L4: =IF('BİLGİ GİRİŞİ'!O9="","",'BİLGİ GİRİŞİ'!O9) -> Bilişim Malzemeleri Alımı
A5: Alım/Görevlendirme Onay Tarihi/sayısı | K5: : | L5: =IF('BİLGİ GİRİŞİ'!O15="","",'BİLGİ GİRİŞİ'!O15) -> 2023-03-06 | P5: / | Q5: =IF('BİLGİ GİRİŞİ'!S15="","",'BİLGİ GİRİŞİ'!S15) -> 456789123
A6: MUAYENE VE KABUL TUTANAĞI (DOĞRUDAN TEMİN SONUÇ ONAY BELGESİ)
A8: MAL'IN/HİZMET'İN/YAPIM İŞİ'NİN
A9: S | B9: Kalem/KısımBilgileri | X9: Birimi | AB9: Miktarı
A10: =IF('BİLGİ GİRİŞİ'!D30="","",'BİLGİ GİRİŞİ'!D30) -> 1 | B10: =IF('BİLGİ GİRİŞİ'!E30="","",'BİLGİ GİRİŞİ'!E30) -> AIO (All In One) Masaüstü Bilgisayar | X10: =IF('BİLGİ GİRİŞİ'!W30="","",'BİLGİ GİRİŞİ'!W30) -> Adet | AB10: =IF('BİLGİ GİRİŞİ'!T30="","",'BİLGİ GİRİŞİ'!T30) -> 2
A11: =IF('BİLGİ GİRİŞİ'!D31="","",'BİLGİ GİRİŞİ'!D31) -> 2 | B11: =IF('BİLGİ GİRİŞİ'!E31="","",'BİLGİ GİRİŞİ'!E31) -> Fotokopi Makinesi | X11: =IF('BİLGİ GİRİŞİ'!W31="","",'BİLGİ GİRİŞİ'!W31) -> Adet | AB11: =IF('BİLGİ GİRİŞİ'!T31="","",'BİLGİ GİRİŞİ'!T31) -> 2
A12: =IF('BİLGİ GİRİŞİ'!D32="","",'BİLGİ GİRİŞİ'!D32) -> 3 | B12: =IF('BİLGİ GİRİŞİ'!E32="","",'BİLGİ GİRİŞİ'!E32) -> Projektör | X12: =IF('BİLGİ GİRİŞİ'!W32="","",'BİLGİ GİRİŞİ'!W32) -> Adet | AB12: =IF('BİLGİ GİRİŞİ'!T32="","",'BİLGİ GİRİŞİ'!T32) -> 2
A13: =IF('BİLGİ GİRİŞİ'!D33="","",'BİLGİ GİRİŞİ'!D33) ->  | B13: =IF('BİLGİ GİRİŞİ'!E33="","",'BİLGİ GİRİŞİ'!E33) ->  | X13: =IF('BİLGİ GİRİŞİ'!W33="","",'BİLGİ GİRİŞİ'!W33) ->  | AB13: =IF('BİLGİ GİRİŞİ'!T33="","",'BİLGİ GİRİŞİ'!T33) -> 
A14: =IF('BİLGİ GİRİŞİ'!D34="","",'BİLGİ GİRİŞİ'!D34) ->  | B14: =IF('BİLGİ GİRİŞİ'!E34="","",'BİLGİ GİRİŞİ'!E34) ->  | X14: =IF('BİLGİ GİRİŞİ'!W34="","",'BİLGİ GİRİŞİ'!W34) ->  | AB14: =IF('BİLGİ GİRİŞİ'!T34="","",'BİLGİ GİRİŞİ'!T34) -> 
A15: =IF('BİLGİ GİRİŞİ'!D35="","",'BİLGİ GİRİŞİ'!D35) ->  | B15: =IF('BİLGİ GİRİŞİ'!E35="","",'BİLGİ GİRİŞİ'!E35) ->  | X15: =IF('BİLGİ GİRİŞİ'!W35="","",'BİLGİ GİRİŞİ'!W35) ->  | AB15: =IF('BİLGİ GİRİŞİ'!T35="","",'BİLGİ GİRİŞİ'!T35) -> 
A16: =IF('BİLGİ GİRİŞİ'!D36="","",'BİLGİ GİRİŞİ'!D36) ->  | B16: =IF('BİLGİ GİRİŞİ'!E36="","",'BİLGİ GİRİŞİ'!E36) ->  | X16: =IF('BİLGİ GİRİŞİ'!W36="","",'BİLGİ GİRİŞİ'!W36) ->  | AB16: =IF('BİLGİ GİRİŞİ'!T36="","",'BİLGİ GİRİŞİ'!T36) -> 
A17: =IF('BİLGİ GİRİŞİ'!D37="","",'BİLGİ GİRİŞİ'!D37) ->  | B17: =IF('BİLGİ GİRİŞİ'!E37="","",'BİLGİ GİRİŞİ'!E37) ->  | X17: =IF('BİLGİ GİRİŞİ'!W37="","",'BİLGİ GİRİŞİ'!W37) ->  | AB17: =IF('BİLGİ GİRİŞİ'!T37="","",'BİLGİ GİRİŞİ'!T37) -> 
A18: =IF('BİLGİ GİRİŞİ'!D38="","",'BİLGİ GİRİŞİ'!D38) ->  | B18: =IF('BİLGİ GİRİŞİ'!E38="","",'BİLGİ GİRİŞİ'!E38) ->  | X18: =IF('BİLGİ GİRİŞİ'!W38="","",'BİLGİ GİRİŞİ'!W38) ->  | AB18: =IF('BİLGİ GİRİŞİ'!T38="","",'BİLGİ GİRİŞİ'!T38) -> 
A19: =IF('BİLGİ GİRİŞİ'!D39="","",'BİLGİ GİRİŞİ'!D39) ->  | B19: =IF('BİLGİ GİRİŞİ'!E39="","",'BİLGİ GİRİŞİ'!E39) ->  | X19: =IF('BİLGİ GİRİŞİ'!W39="","",'BİLGİ GİRİŞİ'!W39) ->  | AB19: =IF('BİLGİ GİRİŞİ'!T39="","",'BİLGİ GİRİŞİ'!T39) -> 
A20: =IF('BİLGİ GİRİŞİ'!D40="","",'BİLGİ GİRİŞİ'!D40) ->  | B20: =IF('BİLGİ GİRİŞİ'!E40="","",'BİLGİ GİRİŞİ'!E40) ->  | X20: =IF('BİLGİ GİRİŞİ'!W40="","",'BİLGİ GİRİŞİ'!W40) ->  | AB20: =IF('BİLGİ GİRİŞİ'!T40="","",'BİLGİ GİRİŞİ'!T40) -> 
A21: =IF('BİLGİ GİRİŞİ'!D41="","",'BİLGİ GİRİŞİ'!D41) ->  | B21: =IF('BİLGİ GİRİŞİ'!E41="","",'BİLGİ GİRİŞİ'!E41) ->  | X21: =IF('BİLGİ GİRİŞİ'!W41="","",'BİLGİ GİRİŞİ'!W41) ->  | AB21: =IF('BİLGİ GİRİŞİ'!T41="","",'BİLGİ GİRİŞİ'!T41) -> 
A22: =IF('BİLGİ GİRİŞİ'!D42="","",'BİLGİ GİRİŞİ'!D42) ->  | B22: =IF('BİLGİ GİRİŞİ'!E42="","",'BİLGİ GİRİŞİ'!E42) ->  | X22: =IF('BİLGİ GİRİŞİ'!W42="","",'BİLGİ GİRİŞİ'!W42) ->  | AB22: =IF('BİLGİ GİRİŞİ'!T42="","",'BİLGİ GİRİŞİ'!T42) -> 
A23: =IF('BİLGİ GİRİŞİ'!D43="","",'BİLGİ GİRİŞİ'!D43) ->  | B23: =IF('BİLGİ GİRİŞİ'!E43="","",'BİLGİ GİRİŞİ'!E43) ->  | X23: =IF('BİLGİ GİRİŞİ'!W43="","",'BİLGİ GİRİŞİ'!W43) ->  | AB23: =IF('BİLGİ GİRİŞİ'!T43="","",'BİLGİ GİRİŞİ'!T43) -> 
A24: =IF('BİLGİ GİRİŞİ'!D44="","",'BİLGİ GİRİŞİ'!D44) ->  | B24: =IF('BİLGİ GİRİŞİ'!E44="","",'BİLGİ GİRİŞİ'!E44) ->  | X24: =IF('BİLGİ GİRİŞİ'!W44="","",'BİLGİ GİRİŞİ'!W44) ->  | AB24: =IF('BİLGİ GİRİŞİ'!T44="","",'BİLGİ GİRİŞİ'!T44) -> 
A25: =IF('BİLGİ GİRİŞİ'!D45="","",'BİLGİ GİRİŞİ'!D45) ->  | B25: =IF('BİLGİ GİRİŞİ'!E45="","",'BİLGİ GİRİŞİ'!E45) ->  | X25: =IF('BİLGİ GİRİŞİ'!W45="","",'BİLGİ GİRİŞİ'!W45) ->  | AB25: =IF('BİLGİ GİRİŞİ'!T45="","",'BİLGİ GİRİŞİ'!T45) -> 
A26: =IF('BİLGİ GİRİŞİ'!D46="","",'BİLGİ GİRİŞİ'!D46) ->  | B26: =IF('BİLGİ GİRİŞİ'!E46="","",'BİLGİ GİRİŞİ'!E46) ->  | X26: =IF('BİLGİ GİRİŞİ'!W46="","",'BİLGİ GİRİŞİ'!W46) ->  | AB26: =IF('BİLGİ GİRİŞİ'!T46="","",'BİLGİ GİRİŞİ'!T46) -> 
A27: =IF('BİLGİ GİRİŞİ'!D47="","",'BİLGİ GİRİŞİ'!D47) ->  | B27: =IF('BİLGİ GİRİŞİ'!E47="","",'BİLGİ GİRİŞİ'!E47) ->  | X27: =IF('BİLGİ GİRİŞİ'!W47="","",'BİLGİ GİRİŞİ'!W47) ->  | AB27: =IF('BİLGİ GİRİŞİ'!T47="","",'BİLGİ GİRİŞİ'!T47) -> 
A28: =IF('BİLGİ GİRİŞİ'!D48="","",'BİLGİ GİRİŞİ'!D48) ->  | B28: =IF('BİLGİ GİRİŞİ'!E48="","",'BİLGİ GİRİŞİ'!E48) ->  | X28: =IF('BİLGİ GİRİŞİ'!W48="","",'BİLGİ GİRİŞİ'!W48) ->  | AB28: =IF('BİLGİ GİRİŞİ'!T48="","",'BİLGİ GİRİŞİ'!T48) -> 
A29: =IF('BİLGİ GİRİŞİ'!D49="","",'BİLGİ GİRİŞİ'!D49) ->  | B29: =IF('BİLGİ GİRİŞİ'!E49="","",'BİLGİ GİRİŞİ'!E49) ->  | X29: =IF('BİLGİ GİRİŞİ'!W49="","",'BİLGİ GİRİŞİ'!W49) ->  | AB29: =IF('BİLGİ GİRİŞİ'!T49="","",'BİLGİ GİRİŞİ'!T49) -> 
A30: =IF('BİLGİ GİRİŞİ'!D50="","",'BİLGİ GİRİŞİ'!D50) ->  | B30: =IF('BİLGİ GİRİŞİ'!E50="","",'BİLGİ GİRİŞİ'!E50) ->  | X30: =IF('BİLGİ GİRİŞİ'!W50="","",'BİLGİ GİRİŞİ'!W50) ->  | AB30: =IF('BİLGİ GİRİŞİ'!T50="","",'BİLGİ GİRİŞİ'!T50) -> 
A31: =IF('BİLGİ GİRİŞİ'!D51="","",'BİLGİ GİRİŞİ'!D51) ->  | B31: =IF('BİLGİ GİRİŞİ'!E51="","",'BİLGİ GİRİŞİ'!E51) ->  | X31: =IF('BİLGİ GİRİŞİ'!W51="","",'BİLGİ GİRİŞİ'!W51) ->  | AB31: =IF('BİLGİ GİRİŞİ'!T51="","",'BİLGİ GİRİŞİ'!T51) -> 
A32: =IF('BİLGİ GİRİŞİ'!D52="","",'BİLGİ GİRİŞİ'!D52) ->  | B32: =IF('BİLGİ GİRİŞİ'!E52="","",'BİLGİ GİRİŞİ'!E52) ->  | X32: =IF('BİLGİ GİRİŞİ'!W52="","",'BİLGİ GİRİŞİ'!W52) ->  | AB32: =IF('BİLGİ GİRİŞİ'!T52="","",'BİLGİ GİRİŞİ'!T52) -> 
A33: =IF('BİLGİ GİRİŞİ'!D53="","",'BİLGİ GİRİŞİ'!D53) ->  | B33: =IF('BİLGİ GİRİŞİ'!E53="","",'BİLGİ GİRİŞİ'!E53) ->  | X33: =IF('BİLGİ GİRİŞİ'!W53="","",'BİLGİ GİRİŞİ'!W53) ->  | AB33: =IF('BİLGİ GİRİŞİ'!T53="","",'BİLGİ GİRİŞİ'!T53) -> 
A34: =IF('BİLGİ GİRİŞİ'!D54="","",'BİLGİ GİRİŞİ'!D54) ->  | B34: =IF('BİLGİ GİRİŞİ'!E54="","",'BİLGİ GİRİŞİ'!E54) ->  | X34: =IF('BİLGİ GİRİŞİ'!W54="","",'BİLGİ GİRİŞİ'!W54) ->  | AB34: =IF('BİLGİ GİRİŞİ'!T54="","",'BİLGİ GİRİŞİ'!T54) -> 
A35: =IF('BİLGİ GİRİŞİ'!D55="","",'BİLGİ GİRİŞİ'!D55) ->  | B35: =IF('BİLGİ GİRİŞİ'!E55="","",'BİLGİ GİRİŞİ'!E55) ->  | X35: =IF('BİLGİ GİRİŞİ'!W55="","",'BİLGİ GİRİŞİ'!W55) ->  | AB35: =IF('BİLGİ GİRİŞİ'!T55="","",'BİLGİ GİRİŞİ'!T55) -> 
A36: =IF('BİLGİ GİRİŞİ'!D56="","",'BİLGİ GİRİŞİ'!D56) ->  | B36: =IF('BİLGİ GİRİŞİ'!E56="","",'BİLGİ GİRİŞİ'!E56) ->  | X36: =IF('BİLGİ GİRİŞİ'!W56="","",'BİLGİ GİRİŞİ'!W56) ->  | AB36: =IF('BİLGİ GİRİŞİ'!T56="","",'BİLGİ GİRİŞİ'!T56) -> 
A37: =IF('BİLGİ GİRİŞİ'!D57="","",'BİLGİ GİRİŞİ'!D57) ->  | B37: =IF('BİLGİ GİRİŞİ'!E57="","",'BİLGİ GİRİŞİ'!E57) ->  | X37: =IF('BİLGİ GİRİŞİ'!W57="","",'BİLGİ GİRİŞİ'!W57) ->  | AB37: =IF('BİLGİ GİRİŞİ'!T57="","",'BİLGİ GİRİŞİ'!T57) -> 
A38: =IF('BİLGİ GİRİŞİ'!D58="","",'BİLGİ GİRİŞİ'!D58) ->  | B38: =IF('BİLGİ GİRİŞİ'!E58="","",'BİLGİ GİRİŞİ'!E58) ->  | X38: =IF('BİLGİ GİRİŞİ'!W58="","",'BİLGİ GİRİŞİ'!W58) ->  | AB38: =IF('BİLGİ GİRİŞİ'!T58="","",'BİLGİ GİRİŞİ'!T58) -> 
A39: =IF('BİLGİ GİRİŞİ'!D59="","",'BİLGİ GİRİŞİ'!D59) ->  | B39: =IF('BİLGİ GİRİŞİ'!E59="","",'BİLGİ GİRİŞİ'!E59) ->  | X39: =IF('BİLGİ GİRİŞİ'!W59="","",'BİLGİ GİRİŞİ'!W59) ->  | AB39: =IF('BİLGİ GİRİŞİ'!T59="","",'BİLGİ GİRİŞİ'!T59) -> 
A40: =IF('BİLGİ GİRİŞİ'!D60="","",'BİLGİ GİRİŞİ'!D60) ->  | B40: =IF('BİLGİ GİRİŞİ'!E60="","",'BİLGİ GİRİŞİ'!E60) ->  | X40: =IF('BİLGİ GİRİŞİ'!W60="","",'BİLGİ GİRİŞİ'!W60) ->  | AB40: =IF('BİLGİ GİRİŞİ'!T60="","",'BİLGİ GİRİŞİ'!T60) -> 
A41: =IF('BİLGİ GİRİŞİ'!D61="","",'BİLGİ GİRİŞİ'!D61) ->  | B41: =IF('BİLGİ GİRİŞİ'!E61="","",'BİLGİ GİRİŞİ'!E61) ->  | X41: =IF('BİLGİ GİRİŞİ'!W61="","",'BİLGİ GİRİŞİ'!W61) ->  | AB41: =IF('BİLGİ GİRİŞİ'!T61="","",'BİLGİ GİRİŞİ'!T61) -> 
A42: =IF('BİLGİ GİRİŞİ'!D62="","",'BİLGİ GİRİŞİ'!D62) ->  | B42: =IF('BİLGİ GİRİŞİ'!E62="","",'BİLGİ GİRİŞİ'!E62) ->  | X42: =IF('BİLGİ GİRİŞİ'!W62="","",'BİLGİ GİRİŞİ'!W62) ->  | AB42: =IF('BİLGİ GİRİŞİ'!T62="","",'BİLGİ GİRİŞİ'!T62) -> 
A43: =IF('BİLGİ GİRİŞİ'!D63="","",'BİLGİ GİRİŞİ'!D63) ->  | B43: =IF('BİLGİ GİRİŞİ'!E63="","",'BİLGİ GİRİŞİ'!E63) ->  | X43: =IF('BİLGİ GİRİŞİ'!W63="","",'BİLGİ GİRİŞİ'!W63) ->  | AB43: =IF('BİLGİ GİRİŞİ'!T63="","",'BİLGİ GİRİŞİ'!T63) -> 
A44: =IF('BİLGİ GİRİŞİ'!D64="","",'BİLGİ GİRİŞİ'!D64) ->  | B44: =IF('BİLGİ GİRİŞİ'!E64="","",'BİLGİ GİRİŞİ'!E64) ->  | X44: =IF('BİLGİ GİRİŞİ'!W64="","",'BİLGİ GİRİŞİ'!W64) ->  | AB44: =IF('BİLGİ GİRİŞİ'!T64="","",'BİLGİ GİRİŞİ'!T64) -> 
A45: =IF('BİLGİ GİRİŞİ'!D65="","",'BİLGİ GİRİŞİ'!D65) ->  | B45: =IF('BİLGİ GİRİŞİ'!E65="","",'BİLGİ GİRİŞİ'!E65) ->  | X45: =IF('BİLGİ GİRİŞİ'!W65="","",'BİLGİ GİRİŞİ'!W65) ->  | AB45: =IF('BİLGİ GİRİŞİ'!T65="","",'BİLGİ GİRİŞİ'!T65) -> 
A46: =IF('BİLGİ GİRİŞİ'!D66="","",'BİLGİ GİRİŞİ'!D66) ->  | B46: =IF('BİLGİ GİRİŞİ'!E66="","",'BİLGİ GİRİŞİ'!E66) ->  | X46: =IF('BİLGİ GİRİŞİ'!W66="","",'BİLGİ GİRİŞİ'!W66) ->  | AB46: =IF('BİLGİ GİRİŞİ'!T66="","",'BİLGİ GİRİŞİ'!T66) -> 
A47: =IF('BİLGİ GİRİŞİ'!D67="","",'BİLGİ GİRİŞİ'!D67) ->  | B47: =IF('BİLGİ GİRİŞİ'!E67="","",'BİLGİ GİRİŞİ'!E67) ->  | X47: =IF('BİLGİ GİRİŞİ'!W67="","",'BİLGİ GİRİŞİ'!W67) ->  | AB47: =IF('BİLGİ GİRİŞİ'!T67="","",'BİLGİ GİRİŞİ'!T67) -> 
A48: =IF('BİLGİ GİRİŞİ'!D68="","",'BİLGİ GİRİŞİ'!D68) ->  | B48: =IF('BİLGİ GİRİŞİ'!E68="","",'BİLGİ GİRİŞİ'!E68) ->  | X48: =IF('BİLGİ GİRİŞİ'!W68="","",'BİLGİ GİRİŞİ'!W68) ->  | AB48: =IF('BİLGİ GİRİŞİ'!T68="","",'BİLGİ GİRİŞİ'!T68) -> 
A49: =IF('BİLGİ GİRİŞİ'!D69="","",'BİLGİ GİRİŞİ'!D69) ->  | B49: =IF('BİLGİ GİRİŞİ'!E69="","",'BİLGİ GİRİŞİ'!E69) ->  | X49: =IF('BİLGİ GİRİŞİ'!W69="","",'BİLGİ GİRİŞİ'!W69) ->  | AB49: =IF('BİLGİ GİRİŞİ'!T69="","",'BİLGİ GİRİŞİ'!T69) -> 
A50: =IF('BİLGİ GİRİŞİ'!D70="","",'BİLGİ GİRİŞİ'!D70) ->  | B50: =IF('BİLGİ GİRİŞİ'!E70="","",'BİLGİ GİRİŞİ'!E70) ->  | X50: =IF('BİLGİ GİRİŞİ'!W70="","",'BİLGİ GİRİŞİ'!W70) ->  | AB50: =IF('BİLGİ GİRİŞİ'!T70="","",'BİLGİ GİRİŞİ'!T70) -> 
A51: =IF('BİLGİ GİRİŞİ'!D71="","",'BİLGİ GİRİŞİ'!D71) ->  | B51: =IF('BİLGİ GİRİŞİ'!E71="","",'BİLGİ GİRİŞİ'!E71) ->  | X51: =IF('BİLGİ GİRİŞİ'!W71="","",'BİLGİ GİRİŞİ'!W71) ->  | AB51: =IF('BİLGİ GİRİŞİ'!T71="","",'BİLGİ GİRİŞİ'!T71) -> 
A52: =IF('BİLGİ GİRİŞİ'!D72="","",'BİLGİ GİRİŞİ'!D72) ->  | B52: =IF('BİLGİ GİRİŞİ'!E72="","",'BİLGİ GİRİŞİ'!E72) ->  | X52: =IF('BİLGİ GİRİŞİ'!W72="","",'BİLGİ GİRİŞİ'!W72) ->  | AB52: =IF('BİLGİ GİRİŞİ'!T72="","",'BİLGİ GİRİŞİ'!T72) -> 
A53: =IF('BİLGİ GİRİŞİ'!D73="","",'BİLGİ GİRİŞİ'!D73) ->  | B53: =IF('BİLGİ GİRİŞİ'!E73="","",'BİLGİ GİRİŞİ'!E73) ->  | X53: =IF('BİLGİ GİRİŞİ'!W73="","",'BİLGİ GİRİŞİ'!W73) ->  | AB53: =IF('BİLGİ GİRİŞİ'!T73="","",'BİLGİ GİRİŞİ'!T73) -> 
A54: =IF('BİLGİ GİRİŞİ'!D74="","",'BİLGİ GİRİŞİ'!D74) ->  | B54: =IF('BİLGİ GİRİŞİ'!E74="","",'BİLGİ GİRİŞİ'!E74) ->  | X54: =IF('BİLGİ GİRİŞİ'!W74="","",'BİLGİ GİRİŞİ'!W74) ->  | AB54: =IF('BİLGİ GİRİŞİ'!T74="","",'BİLGİ GİRİŞİ'!T74) -> 
A55: =IF('BİLGİ GİRİŞİ'!D75="","",'BİLGİ GİRİŞİ'!D75) ->  | B55: =IF('BİLGİ GİRİŞİ'!E75="","",'BİLGİ GİRİŞİ'!E75) ->  | X55: =IF('BİLGİ GİRİŞİ'!W75="","",'BİLGİ GİRİŞİ'!W75) ->  | AB55: =IF('BİLGİ GİRİŞİ'!T75="","",'BİLGİ GİRİŞİ'!T75) -> 
A56: =IF('BİLGİ GİRİŞİ'!D76="","",'BİLGİ GİRİŞİ'!D76) ->  | B56: =IF('BİLGİ GİRİŞİ'!E76="","",'BİLGİ GİRİŞİ'!E76) ->  | X56: =IF('BİLGİ GİRİŞİ'!W76="","",'BİLGİ GİRİŞİ'!W76) ->  | AB56: =IF('BİLGİ GİRİŞİ'!T76="","",'BİLGİ GİRİŞİ'!T76) -> 
A57: =IF('BİLGİ GİRİŞİ'!D77="","",'BİLGİ GİRİŞİ'!D77) ->  | B57: =IF('BİLGİ GİRİŞİ'!E77="","",'BİLGİ GİRİŞİ'!E77) ->  | X57: =IF('BİLGİ GİRİŞİ'!W77="","",'BİLGİ GİRİŞİ'!W77) ->  | AB57: =IF('BİLGİ GİRİŞİ'!T77="","",'BİLGİ GİRİŞİ'!T77) -> 
A58: =IF('BİLGİ GİRİŞİ'!D78="","",'BİLGİ GİRİŞİ'!D78) ->  | B58: =IF('BİLGİ GİRİŞİ'!E78="","",'BİLGİ GİRİŞİ'!E78) ->  | X58: =IF('BİLGİ GİRİŞİ'!W78="","",'BİLGİ GİRİŞİ'!W78) ->  | AB58: =IF('BİLGİ GİRİŞİ'!T78="","",'BİLGİ GİRİŞİ'!T78) -> 
A59: =IF('BİLGİ GİRİŞİ'!D79="","",'BİLGİ GİRİŞİ'!D79) ->  | B59: =IF('BİLGİ GİRİŞİ'!E79="","",'BİLGİ GİRİŞİ'!E79) ->  | X59: =IF('BİLGİ GİRİŞİ'!W79="","",'BİLGİ GİRİŞİ'!W79) ->  | AB59: =IF('BİLGİ GİRİŞİ'!T79="","",'BİLGİ GİRİŞİ'!T79) -> 
A60: =IF('BİLGİ GİRİŞİ'!D80="","",'BİLGİ GİRİŞİ'!D80) ->  | B60: =IF('BİLGİ GİRİŞİ'!E80="","",'BİLGİ GİRİŞİ'!E80) ->  | X60: =IF('BİLGİ GİRİŞİ'!W80="","",'BİLGİ GİRİŞİ'!W80) ->  | AB60: =IF('BİLGİ GİRİŞİ'!T80="","",'BİLGİ GİRİŞİ'!T80) -> 
A61: =IF('BİLGİ GİRİŞİ'!D81="","",'BİLGİ GİRİŞİ'!D81) ->  | B61: =IF('BİLGİ GİRİŞİ'!E81="","",'BİLGİ GİRİŞİ'!E81) ->  | X61: =IF('BİLGİ GİRİŞİ'!W81="","",'BİLGİ GİRİŞİ'!W81) ->  | AB61: =IF('BİLGİ GİRİŞİ'!T81="","",'BİLGİ GİRİŞİ'!T81) -> 
A62: =IF('BİLGİ GİRİŞİ'!D82="","",'BİLGİ GİRİŞİ'!D82) ->  | B62: =IF('BİLGİ GİRİŞİ'!E82="","",'BİLGİ GİRİŞİ'!E82) ->  | X62: =IF('BİLGİ GİRİŞİ'!W82="","",'BİLGİ GİRİŞİ'!W82) ->  | AB62: =IF('BİLGİ GİRİŞİ'!T82="","",'BİLGİ GİRİŞİ'!T82) -> 
A63: =IF('BİLGİ GİRİŞİ'!D83="","",'BİLGİ GİRİŞİ'!D83) ->  | B63: =IF('BİLGİ GİRİŞİ'!E83="","",'BİLGİ GİRİŞİ'!E83) ->  | X63: =IF('BİLGİ GİRİŞİ'!W83="","",'BİLGİ GİRİŞİ'!W83) ->  | AB63: =IF('BİLGİ GİRİŞİ'!T83="","",'BİLGİ GİRİŞİ'!T83) -> 
A64: =IF('BİLGİ GİRİŞİ'!D84="","",'BİLGİ GİRİŞİ'!D84) ->  | B64: =IF('BİLGİ GİRİŞİ'!E84="","",'BİLGİ GİRİŞİ'!E84) ->  | X64: =IF('BİLGİ GİRİŞİ'!W84="","",'BİLGİ GİRİŞİ'!W84) ->  | AB64: =IF('BİLGİ GİRİŞİ'!T84="","",'BİLGİ GİRİŞİ'!T84) -> 
A65: =IF('BİLGİ GİRİŞİ'!D85="","",'BİLGİ GİRİŞİ'!D85) ->  | B65: =IF('BİLGİ GİRİŞİ'!E85="","",'BİLGİ GİRİŞİ'!E85) ->  | X65: =IF('BİLGİ GİRİŞİ'!W85="","",'BİLGİ GİRİŞİ'!W85) ->  | AB65: =IF('BİLGİ GİRİŞİ'!T85="","",'BİLGİ GİRİŞİ'!T85) -> 
A66: =IF('BİLGİ GİRİŞİ'!D86="","",'BİLGİ GİRİŞİ'!D86) ->  | B66: =IF('BİLGİ GİRİŞİ'!E86="","",'BİLGİ GİRİŞİ'!E86) ->  | X66: =IF('BİLGİ GİRİŞİ'!W86="","",'BİLGİ GİRİŞİ'!W86) ->  | AB66: =IF('BİLGİ GİRİŞİ'!T86="","",'BİLGİ GİRİŞİ'!T86) -> 
A67: =IF('BİLGİ GİRİŞİ'!D87="","",'BİLGİ GİRİŞİ'!D87) ->  | B67: =IF('BİLGİ GİRİŞİ'!E87="","",'BİLGİ GİRİŞİ'!E87) ->  | X67: =IF('BİLGİ GİRİŞİ'!W87="","",'BİLGİ GİRİŞİ'!W87) ->  | AB67: =IF('BİLGİ GİRİŞİ'!T87="","",'BİLGİ GİRİŞİ'!T87) -> 
A68: =IF('BİLGİ GİRİŞİ'!D88="","",'BİLGİ GİRİŞİ'!D88) ->  | B68: =IF('BİLGİ GİRİŞİ'!E88="","",'BİLGİ GİRİŞİ'!E88) ->  | X68: =IF('BİLGİ GİRİŞİ'!W88="","",'BİLGİ GİRİŞİ'!W88) ->  | AB68: =IF('BİLGİ GİRİŞİ'!T88="","",'BİLGİ GİRİŞİ'!T88) -> 
A69: =IF('BİLGİ GİRİŞİ'!D89="","",'BİLGİ GİRİŞİ'!D89) ->  | B69: =IF('BİLGİ GİRİŞİ'!E89="","",'BİLGİ GİRİŞİ'!E89) ->  | X69: =IF('BİLGİ GİRİŞİ'!W89="","",'BİLGİ GİRİŞİ'!W89) ->  | AB69: =IF('BİLGİ GİRİŞİ'!T89="","",'BİLGİ GİRİŞİ'!T89) -> 
A70: =IF('BİLGİ GİRİŞİ'!D90="","",'BİLGİ GİRİŞİ'!D90) ->  | B70: =IF('BİLGİ GİRİŞİ'!E90="","",'BİLGİ GİRİŞİ'!E90) ->  | X70: =IF('BİLGİ GİRİŞİ'!W90="","",'BİLGİ GİRİŞİ'!W90) ->  | AB70: =IF('BİLGİ GİRİŞİ'!T90="","",'BİLGİ GİRİŞİ'!T90) -> 
A71: =IF('BİLGİ GİRİŞİ'!D91="","",'BİLGİ GİRİŞİ'!D91) ->  | B71: =IF('BİLGİ GİRİŞİ'!E91="","",'BİLGİ GİRİŞİ'!E91) ->  | X71: =IF('BİLGİ GİRİŞİ'!W91="","",'BİLGİ GİRİŞİ'!W91) ->  | AB71: =IF('BİLGİ GİRİŞİ'!T91="","",'BİLGİ GİRİŞİ'!T91) -> 
A72: =IF('BİLGİ GİRİŞİ'!D92="","",'BİLGİ GİRİŞİ'!D92) ->  | B72: =IF('BİLGİ GİRİŞİ'!E92="","",'BİLGİ GİRİŞİ'!E92) ->  | X72: =IF('BİLGİ GİRİŞİ'!W92="","",'BİLGİ GİRİŞİ'!W92) ->  | AB72: =IF('BİLGİ GİRİŞİ'!T92="","",'BİLGİ GİRİŞİ'!T92) -> 
A73: =IF('BİLGİ GİRİŞİ'!D93="","",'BİLGİ GİRİŞİ'!D93) ->  | B73: =IF('BİLGİ GİRİŞİ'!E93="","",'BİLGİ GİRİŞİ'!E93) ->  | X73: =IF('BİLGİ GİRİŞİ'!W93="","",'BİLGİ GİRİŞİ'!W93) ->  | AB73: =IF('BİLGİ GİRİŞİ'!T93="","",'BİLGİ GİRİŞİ'!T93) -> 
A74: =IF('BİLGİ GİRİŞİ'!D94="","",'BİLGİ GİRİŞİ'!D94) ->  | B74: =IF('BİLGİ GİRİŞİ'!E94="","",'BİLGİ GİRİŞİ'!E94) ->  | X74: =IF('BİLGİ GİRİŞİ'!W94="","",'BİLGİ GİRİŞİ'!W94) ->  | AB74: =IF('BİLGİ GİRİŞİ'!T94="","",'BİLGİ GİRİŞİ'!T94) -> 
A75: =IF('BİLGİ GİRİŞİ'!D95="","",'BİLGİ GİRİŞİ'!D95) ->  | B75: =IF('BİLGİ GİRİŞİ'!E95="","",'BİLGİ GİRİŞİ'!E95) ->  | X75: =IF('BİLGİ GİRİŞİ'!W95="","",'BİLGİ GİRİŞİ'!W95) ->  | AB75: =IF('BİLGİ GİRİŞİ'!T95="","",'BİLGİ GİRİŞİ'!T95) -> 
A76: =IF('BİLGİ GİRİŞİ'!D96="","",'BİLGİ GİRİŞİ'!D96) ->  | B76: =IF('BİLGİ GİRİŞİ'!E96="","",'BİLGİ GİRİŞİ'!E96) ->  | X76: =IF('BİLGİ GİRİŞİ'!W96="","",'BİLGİ GİRİŞİ'!W96) ->  | AB76: =IF('BİLGİ GİRİŞİ'!T96="","",'BİLGİ GİRİŞİ'!T96) -> 
A77: =IF('BİLGİ GİRİŞİ'!D97="","",'BİLGİ GİRİŞİ'!D97) ->  | B77: =IF('BİLGİ GİRİŞİ'!E97="","",'BİLGİ GİRİŞİ'!E97) ->  | X77: =IF('BİLGİ GİRİŞİ'!W97="","",'BİLGİ GİRİŞİ'!W97) ->  | AB77: =IF('BİLGİ GİRİŞİ'!T97="","",'BİLGİ GİRİŞİ'!T97) -> 
A78: =IF('BİLGİ GİRİŞİ'!D98="","",'BİLGİ GİRİŞİ'!D98) ->  | B78: =IF('BİLGİ GİRİŞİ'!E98="","",'BİLGİ GİRİŞİ'!E98) ->  | X78: =IF('BİLGİ GİRİŞİ'!W98="","",'BİLGİ GİRİŞİ'!W98) ->  | AB78: =IF('BİLGİ GİRİŞİ'!T98="","",'BİLGİ GİRİŞİ'!T98) -> 
A79: =IF('BİLGİ GİRİŞİ'!D99="","",'BİLGİ GİRİŞİ'!D99) ->  | B79: =IF('BİLGİ GİRİŞİ'!E99="","",'BİLGİ GİRİŞİ'!E99) ->  | X79: =IF('BİLGİ GİRİŞİ'!W99="","",'BİLGİ GİRİŞİ'!W99) ->  | AB79: =IF('BİLGİ GİRİŞİ'!T99="","",'BİLGİ GİRİŞİ'!T99) -> 
A80: =IF('BİLGİ GİRİŞİ'!D100="","",'BİLGİ GİRİŞİ'!D100) ->  | B80: =IF('BİLGİ GİRİŞİ'!E100="","",'BİLGİ GİRİŞİ'!E100) ->  | X80: =IF('BİLGİ GİRİŞİ'!W100="","",'BİLGİ GİRİŞİ'!W100) ->  | AB80: =IF('BİLGİ GİRİŞİ'!T100="","",'BİLGİ GİRİŞİ'!T100) -> 
A81: =IF('BİLGİ GİRİŞİ'!D101="","",'BİLGİ GİRİŞİ'!D101) ->  | B81: =IF('BİLGİ GİRİŞİ'!E101="","",'BİLGİ GİRİŞİ'!E101) ->  | X81: =IF('BİLGİ GİRİŞİ'!W101="","",'BİLGİ GİRİŞİ'!W101) ->  | AB81: =IF('BİLGİ GİRİŞİ'!T101="","",'BİLGİ GİRİŞİ'!T101) -> 
A82: =IF('BİLGİ GİRİŞİ'!D102="","",'BİLGİ GİRİŞİ'!D102) ->  | B82: =IF('BİLGİ GİRİŞİ'!E102="","",'BİLGİ GİRİŞİ'!E102) ->  | X82: =IF('BİLGİ GİRİŞİ'!W102="","",'BİLGİ GİRİŞİ'!W102) ->  | AB82: =IF('BİLGİ GİRİŞİ'!T102="","",'BİLGİ GİRİŞİ'!T102) -> 
A83: =IF('BİLGİ GİRİŞİ'!D103="","",'BİLGİ GİRİŞİ'!D103) ->  | B83: =IF('BİLGİ GİRİŞİ'!E103="","",'BİLGİ GİRİŞİ'!E103) ->  | X83: =IF('BİLGİ GİRİŞİ'!W103="","",'BİLGİ GİRİŞİ'!W103) ->  | AB83: =IF('BİLGİ GİRİŞİ'!T103="","",'BİLGİ GİRİŞİ'!T103) -> 
A84: =IF('BİLGİ GİRİŞİ'!D104="","",'BİLGİ GİRİŞİ'!D104) ->  | B84: =IF('BİLGİ GİRİŞİ'!E104="","",'BİLGİ GİRİŞİ'!E104) ->  | X84: =IF('BİLGİ GİRİŞİ'!W104="","",'BİLGİ GİRİŞİ'!W104) ->  | AB84: =IF('BİLGİ GİRİŞİ'!T104="","",'BİLGİ GİRİŞİ'!T104) -> 
A85: =IF('BİLGİ GİRİŞİ'!D105="","",'BİLGİ GİRİŞİ'!D105) ->  | B85: =IF('BİLGİ GİRİŞİ'!E105="","",'BİLGİ GİRİŞİ'!E105) ->  | X85: =IF('BİLGİ GİRİŞİ'!W105="","",'BİLGİ GİRİŞİ'!W105) ->  | AB85: =IF('BİLGİ GİRİŞİ'!T105="","",'BİLGİ GİRİŞİ'!T105) -> 
A86: =IF('BİLGİ GİRİŞİ'!D106="","",'BİLGİ GİRİŞİ'!D106) ->  | B86: =IF('BİLGİ GİRİŞİ'!E106="","",'BİLGİ GİRİŞİ'!E106) ->  | X86: =IF('BİLGİ GİRİŞİ'!W106="","",'BİLGİ GİRİŞİ'!W106) ->  | AB86: =IF('BİLGİ GİRİŞİ'!T106="","",'BİLGİ GİRİŞİ'!T106) -> 
A87: =IF('BİLGİ GİRİŞİ'!D107="","",'BİLGİ GİRİŞİ'!D107) ->  | B87: =IF('BİLGİ GİRİŞİ'!E107="","",'BİLGİ GİRİŞİ'!E107) ->  | X87: =IF('BİLGİ GİRİŞİ'!W107="","",'BİLGİ GİRİŞİ'!W107) ->  | AB87: =IF('BİLGİ GİRİŞİ'!T107="","",'BİLGİ GİRİŞİ'!T107) -> 
A88: =IF('BİLGİ GİRİŞİ'!D108="","",'BİLGİ GİRİŞİ'!D108) ->  | B88: =IF('BİLGİ GİRİŞİ'!E108="","",'BİLGİ GİRİŞİ'!E108) ->  | X88: =IF('BİLGİ GİRİŞİ'!W108="","",'BİLGİ GİRİŞİ'!W108) ->  | AB88: =IF('BİLGİ GİRİŞİ'!T108="","",'BİLGİ GİRİŞİ'!T108) -> 
A89: =IF('BİLGİ GİRİŞİ'!D109="","",'BİLGİ GİRİŞİ'!D109) ->  | B89: =IF('BİLGİ GİRİŞİ'!E109="","",'BİLGİ GİRİŞİ'!E109) ->  | X89: =IF('BİLGİ GİRİŞİ'!W109="","",'BİLGİ GİRİŞİ'!W109) ->  | AB89: =IF('BİLGİ GİRİŞİ'!T109="","",'BİLGİ GİRİŞİ'!T109) -> 
A90: =IF('BİLGİ GİRİŞİ'!D110="","",'BİLGİ GİRİŞİ'!D110) ->  | B90: =IF('BİLGİ GİRİŞİ'!E110="","",'BİLGİ GİRİŞİ'!E110) ->  | X90: =IF('BİLGİ GİRİŞİ'!W110="","",'BİLGİ GİRİŞİ'!W110) ->  | AB90: =IF('BİLGİ GİRİŞİ'!T110="","",'BİLGİ GİRİŞİ'!T110) -> 
A91: =IF('BİLGİ GİRİŞİ'!D111="","",'BİLGİ GİRİŞİ'!D111) ->  | B91: =IF('BİLGİ GİRİŞİ'!E111="","",'BİLGİ GİRİŞİ'!E111) ->  | X91: =IF('BİLGİ GİRİŞİ'!W111="","",'BİLGİ GİRİŞİ'!W111) ->  | AB91: =IF('BİLGİ GİRİŞİ'!T111="","",'BİLGİ GİRİŞİ'!T111) -> 
A92: =IF('BİLGİ GİRİŞİ'!D112="","",'BİLGİ GİRİŞİ'!D112) ->  | B92: =IF('BİLGİ GİRİŞİ'!E112="","",'BİLGİ GİRİŞİ'!E112) ->  | X92: =IF('BİLGİ GİRİŞİ'!W112="","",'BİLGİ GİRİŞİ'!W112) ->  | AB92: =IF('BİLGİ GİRİŞİ'!T112="","",'BİLGİ GİRİŞİ'!T112) -> 
A93: =IF('BİLGİ GİRİŞİ'!D113="","",'BİLGİ GİRİŞİ'!D113) ->  | B93: =IF('BİLGİ GİRİŞİ'!E113="","",'BİLGİ GİRİŞİ'!E113) ->  | X93: =IF('BİLGİ GİRİŞİ'!W113="","",'BİLGİ GİRİŞİ'!W113) ->  | AB93: =IF('BİLGİ GİRİŞİ'!T113="","",'BİLGİ GİRİŞİ'!T113) -> 
A94: =IF('BİLGİ GİRİŞİ'!D114="","",'BİLGİ GİRİŞİ'!D114) ->  | B94: =IF('BİLGİ GİRİŞİ'!E114="","",'BİLGİ GİRİŞİ'!E114) ->  | X94: =IF('BİLGİ GİRİŞİ'!W114="","",'BİLGİ GİRİŞİ'!W114) ->  | AB94: =IF('BİLGİ GİRİŞİ'!T114="","",'BİLGİ GİRİŞİ'!T114) -> 
A95: =IF('BİLGİ GİRİŞİ'!D115="","",'BİLGİ GİRİŞİ'!D115) ->  | B95: =IF('BİLGİ GİRİŞİ'!E115="","",'BİLGİ GİRİŞİ'!E115) ->  | X95: =IF('BİLGİ GİRİŞİ'!W115="","",'BİLGİ GİRİŞİ'!W115) ->  | AB95: =IF('BİLGİ GİRİŞİ'!T115="","",'BİLGİ GİRİŞİ'!T115) -> 
A96: =IF('BİLGİ GİRİŞİ'!D116="","",'BİLGİ GİRİŞİ'!D116) ->  | B96: =IF('BİLGİ GİRİŞİ'!E116="","",'BİLGİ GİRİŞİ'!E116) ->  | X96: =IF('BİLGİ GİRİŞİ'!W116="","",'BİLGİ GİRİŞİ'!W116) ->  | AB96: =IF('BİLGİ GİRİŞİ'!T116="","",'BİLGİ GİRİŞİ'!T116) -> 
A97: =IF('BİLGİ GİRİŞİ'!D117="","",'BİLGİ GİRİŞİ'!D117) ->  | B97: =IF('BİLGİ GİRİŞİ'!E117="","",'BİLGİ GİRİŞİ'!E117) ->  | X97: =IF('BİLGİ GİRİŞİ'!W117="","",'BİLGİ GİRİŞİ'!W117) ->  | AB97: =IF('BİLGİ GİRİŞİ'!T117="","",'BİLGİ GİRİŞİ'!T117) -> 
A98: =IF('BİLGİ GİRİŞİ'!D118="","",'BİLGİ GİRİŞİ'!D118) ->  | B98: =IF('BİLGİ GİRİŞİ'!E118="","",'BİLGİ GİRİŞİ'!E118) ->  | X98: =IF('BİLGİ GİRİŞİ'!W118="","",'BİLGİ GİRİŞİ'!W118) ->  | AB98: =IF('BİLGİ GİRİŞİ'!T118="","",'BİLGİ GİRİŞİ'!T118) -> 
A99: =IF('BİLGİ GİRİŞİ'!D119="","",'BİLGİ GİRİŞİ'!D119) ->  | B99: =IF('BİLGİ GİRİŞİ'!E119="","",'BİLGİ GİRİŞİ'!E119) ->  | X99: =IF('BİLGİ GİRİŞİ'!W119="","",'BİLGİ GİRİŞİ'!W119) ->  | AB99: =IF('BİLGİ GİRİŞİ'!T119="","",'BİLGİ GİRİŞİ'!T119) -> 
A100: =IF('BİLGİ GİRİŞİ'!D120="","",'BİLGİ GİRİŞİ'!D120) ->  | B100: =IF('BİLGİ GİRİŞİ'!E120="","",'BİLGİ GİRİŞİ'!E120) ->  | X100: =IF('BİLGİ GİRİŞİ'!W120="","",'BİLGİ GİRİŞİ'!W120) ->  | AB100: =IF('BİLGİ GİRİŞİ'!T120="","",'BİLGİ GİRİŞİ'!T120) -> 
A101: =IF('BİLGİ GİRİŞİ'!D121="","",'BİLGİ GİRİŞİ'!D121) ->  | B101: =IF('BİLGİ GİRİŞİ'!E121="","",'BİLGİ GİRİŞİ'!E121) ->  | X101: =IF('BİLGİ GİRİŞİ'!W121="","",'BİLGİ GİRİŞİ'!W121) ->  | AB101: =IF('BİLGİ GİRİŞİ'!T121="","",'BİLGİ GİRİŞİ'!T121) -> 
A102: =IF('BİLGİ GİRİŞİ'!D122="","",'BİLGİ GİRİŞİ'!D122) ->  | B102: =IF('BİLGİ GİRİŞİ'!E122="","",'BİLGİ GİRİŞİ'!E122) ->  | X102: =IF('BİLGİ GİRİŞİ'!W122="","",'BİLGİ GİRİŞİ'!W122) ->  | AB102: =IF('BİLGİ GİRİŞİ'!T122="","",'BİLGİ GİRİŞİ'!T122) -> 
A103: =IF('BİLGİ GİRİŞİ'!D123="","",'BİLGİ GİRİŞİ'!D123) ->  | B103: =IF('BİLGİ GİRİŞİ'!E123="","",'BİLGİ GİRİŞİ'!E123) ->  | X103: =IF('BİLGİ GİRİŞİ'!W123="","",'BİLGİ GİRİŞİ'!W123) ->  | AB103: =IF('BİLGİ GİRİŞİ'!T123="","",'BİLGİ GİRİŞİ'!T123) -> 
A104: =IF('BİLGİ GİRİŞİ'!D124="","",'BİLGİ GİRİŞİ'!D124) ->  | B104: =IF('BİLGİ GİRİŞİ'!E124="","",'BİLGİ GİRİŞİ'!E124) ->  | X104: =IF('BİLGİ GİRİŞİ'!W124="","",'BİLGİ GİRİŞİ'!W124) ->  | AB104: =IF('BİLGİ GİRİŞİ'!T124="","",'BİLGİ GİRİŞİ'!T124) -> 
A105: =IF('BİLGİ GİRİŞİ'!D125="","",'BİLGİ GİRİŞİ'!D125) ->  | B105: =IF('BİLGİ GİRİŞİ'!E125="","",'BİLGİ GİRİŞİ'!E125) ->  | X105: =IF('BİLGİ GİRİŞİ'!W125="","",'BİLGİ GİRİŞİ'!W125) ->  | AB105: =IF('BİLGİ GİRİŞİ'!T125="","",'BİLGİ GİRİŞİ'!T125) -> 
A106: =IF('BİLGİ GİRİŞİ'!D126="","",'BİLGİ GİRİŞİ'!D126) ->  | B106: =IF('BİLGİ GİRİŞİ'!E126="","",'BİLGİ GİRİŞİ'!E126) ->  | X106: =IF('BİLGİ GİRİŞİ'!W126="","",'BİLGİ GİRİŞİ'!W126) ->  | AB106: =IF('BİLGİ GİRİŞİ'!T126="","",'BİLGİ GİRİŞİ'!T126) -> 
A107: =IF('BİLGİ GİRİŞİ'!D127="","",'BİLGİ GİRİŞİ'!D127) ->  | B107: =IF('BİLGİ GİRİŞİ'!E127="","",'BİLGİ GİRİŞİ'!E127) ->  | X107: =IF('BİLGİ GİRİŞİ'!W127="","",'BİLGİ GİRİŞİ'!W127) ->  | AB107: =IF('BİLGİ GİRİŞİ'!T127="","",'BİLGİ GİRİŞİ'!T127) -> 
A108: =IF('BİLGİ GİRİŞİ'!D128="","",'BİLGİ GİRİŞİ'!D128) ->  | B108: =IF('BİLGİ GİRİŞİ'!E128="","",'BİLGİ GİRİŞİ'!E128) ->  | X108: =IF('BİLGİ GİRİŞİ'!W128="","",'BİLGİ GİRİŞİ'!W128) ->  | AB108: =IF('BİLGİ GİRİŞİ'!T128="","",'BİLGİ GİRİŞİ'!T128) -> 
A109: =IF('BİLGİ GİRİŞİ'!D129="","",'BİLGİ GİRİŞİ'!D129) ->  | B109: =IF('BİLGİ GİRİŞİ'!E129="","",'BİLGİ GİRİŞİ'!E129) ->  | X109: =IF('BİLGİ GİRİŞİ'!W129="","",'BİLGİ GİRİŞİ'!W129) ->  | AB109: =IF('BİLGİ GİRİŞİ'!T129="","",'BİLGİ GİRİŞİ'!T129) -> 
A111: S | B111: TEKLİF VEREN GERÇEK/TÜZEL KİŞİLER | X111: TEKLİF FİYATLARI
A112: 1 | B112: =IF('BİLGİ GİRİŞİ'!AB135="","",'BİLGİ GİRİŞİ'!AB135) -> A GERÇEK/TÜZEL KİŞİSİ | X112: =IF('BİLGİ GİRİŞİ'!AF237="","",'BİLGİ GİRİŞİ'!AF237) -> 24000
A113: 2 | B113: =IF('BİLGİ GİRİŞİ'!AJ135="","",'BİLGİ GİRİŞİ'!AJ135) -> B GERÇEK/TÜZEL KİŞİSİ | X113: =IF('BİLGİ GİRİŞİ'!AN237="","",'BİLGİ GİRİŞİ'!AN237) -> 30000
A114: 3 | B114: =IF('BİLGİ GİRİŞİ'!AR135="","",'BİLGİ GİRİŞİ'!AR135) -> D GERÇEK/TÜZEL KİŞİSİ | X114: =IF('BİLGİ GİRİŞİ'!AV237="","",'BİLGİ GİRİŞİ'!AV237) -> 36000
A116: EN UYGUN (DÜŞÜK) TEKLİFİ VEREN VE TEKLİFİ UYGUN GÖRÜLEN GERÇEK/TÜZEL KİŞİ
A117: S | B117: Adı | X117: Teklif Fiyatı
A118: 1 | B118: =IF('BİLGİ GİRİŞİ'!D241="","",'BİLGİ GİRİŞİ'!D241) -> A GERÇEK/TÜZEL KİŞİSİ | X118: =IF('BİLGİ GİRİŞİ'!AF241="","",'BİLGİ GİRİŞİ'!AF241) -> 24000
A120: Yukarıda bilgileri verilen Mal/Hizmet/Yapım İşi, idarenin belirlediği şartlar dahilinde muayenesi yapılmış olup kabule engel herhangi bir durum tespit edilmemiştir. Söz konusu işin yukarıda alım yapılması uygun görülen gerçek/tüzel kişiden Doğrudan Temin yoluyla satın alınması hususunu; Olurlarınıza arz ederim/ederiz.
A125: =IF(A128="","",IF('BİLGİ GİRİŞİ'!AH21="","",'BİLGİ GİRİŞİ'!AH21)) -> Muayene ve Kabul Görevlisi | K125: =IF(K128="","",IF('BİLGİ GİRİŞİ'!AN21="","",'BİLGİ GİRİŞİ'!AN21)) ->  | U125: =IF(U128="","",IF('BİLGİ GİRİŞİ'!AB21="","",'BİLGİ GİRİŞİ'!AB21)) -> Muayene ve Kabul Görevlisi
A126: =IF(A128="","",IF('BİLGİ GİRİŞİ'!O23="","…../…../……..",'BİLGİ GİRİŞİ'!O23)) -> 2023-03-08 | K126: =IF(K128="","",IF('BİLGİ GİRİŞİ'!O23="","…../…../……..",'BİLGİ GİRİŞİ'!O23)) ->  | U126: =IF(U128="","",IF('BİLGİ GİRİŞİ'!O23="","…../…../……..",'BİLGİ GİRİŞİ'!O23)) -> 2023-03-08
A128: =IF('BİLGİ GİRİŞİ'!AH22="","",'BİLGİ GİRİŞİ'!AH22) -> Fatma GÜNEŞ | K128: =IF('BİLGİ GİRİŞİ'!AN22="","",'BİLGİ GİRİŞİ'!AN22) ->  | U128: =IF('BİLGİ GİRİŞİ'!AB22="","",'BİLGİ GİRİŞİ'!AB22) -> Mehmet ÇELİK
A129: =IF('BİLGİ GİRİŞİ'!AH23="","",'BİLGİ GİRİŞİ'!AH23) -> Öğretmen 2 | K129: =IF(K128="","",IF('BİLGİ GİRİŞİ'!AN23="","",'BİLGİ GİRİŞİ'!AN23)) ->  | U129: =IF('BİLGİ GİRİŞİ'!AB23="","",'BİLGİ GİRİŞİ'!AB23) -> Müdür Yardımcısı 2
A132: =IF(A135="","",IF('BİLGİ GİRİŞİ'!AT21="","",'BİLGİ GİRİŞİ'!AT21)) -> OLUR/UYGUNDUR
A133: =IF(A135="","",IF('BİLGİ GİRİŞİ'!O23="","…../…../……..",'BİLGİ GİRİŞİ'!O23)) -> 2023-03-08
A135: =IF('BİLGİ GİRİŞİ'!AT22="","",'BİLGİ GİRİŞİ'!AT22) -> Mustafa AYDIN
A136: =IF(A135="","",'BİLGİ GİRİŞİ'!AT23) -> Okul Müdürü
A138: Ek: Piyasa Fiyat Araştırma Tutanağı

Sheet KAPAK
A4: T.C.
A5: =IF('BİLGİ GİRİŞİ'!O7="","",'BİLGİ GİRİŞİ'!O7) -> BULANIK KAYMAKAMLIĞI
A6: =IF('BİLGİ GİRİŞİ'!O8="","",'BİLGİ GİRİŞİ'!O8) -> Atatürk İlkokulu Müdürlüğü
A10: =IF('BİLGİ GİRİŞİ'!O11="","",CONCATENATE('BİLGİ GİRİŞİ'!O11," DOĞRUDAN TEMİN NUMARALI")) -> 22DT1211930 DOĞRUDAN TEMİN NUMARALI
A11: =UPPER(IF('BİLGİ GİRİŞİ'!O9="","",'BİLGİ GİRİŞİ'!O9)) -> BİLİŞİM MALZEMELERİ ALIMI
A15: DOĞRUDAN TEMİN İŞLEM DOSYASI DİZİ PUSULASI
A16: S.N | B16: Belge Adı | AB16: Sayfa Sayısı
A17: 1 | B17: Ödeme Emri Belgesi | AB17: 1
A18: 2 | B18: Fatura | AB18: 1
A19: 3 | B19: Harcama Talimatı | AB19: 1
A20: 4 | B20: Taşınır İşlem Fişi | AB20: 1
A21: 5 | B21: Varlık İşlem Fişi | AB21: 1
A22: 6 | B22: Vergi Borcu Yok Belgesi (Yüklenici) | AB22: 1
A23: 7 | B23: Alım/Görevlendirme Onayı | AB23: 1
A24: 8 | B24: Yaklaşık Maliyet Araştırma (Piyasa Fiyatları) Belgeleri/Mektupları | AB24: 3
A25: 9 | B25: Doğrudan Temin Onay Belgesi ve Eki Yaklaşık Maliyet Hesap Cetveli | AB25: 2
A26: 10 | B26: Piyasa Fiyat Araştırma (Teklif Edilen Fiyalar) Belgeleri/Mektupları | AB26: 3
A27: 11 | B27: Muayene ve Kabul Tutanağı (Doğrudan Temin Sonuç Onay Belgesi) ve Eki Piyasa Fiyat Araştırma Tutanağı | AB27: 2
A33: TOPLAM | AB33: =SUM(AB17:AB27) -> 17
A36: İş Bu Dosya | D36: =(AB33) -> 17 | F36: Sayfadan İbarettir.
A41: =IF('BİLGİ GİRİŞİ'!AT22="","",'BİLGİ GİRİŞİ'!AT22) -> Mustafa AYDIN
A42: =IF(A41="","",'BİLGİ GİRİŞİ'!AT23) -> Okul Müdürü
